{"text_format":"1","workbook":"xlsx","n_sheets":15,"sheets":["TOP","【届出書】入力","使用前自己確認結果届出書","変更理由を説明する書類","【別紙】確認者の入力","【別紙】機械関係の入力","別紙","【別紙】電気関係の入力","【別紙】電気関係の入力②","【別紙】関係法令の入力","地形図","平面図","断面図","発電方式に関する説明書","添付書類一覧"],"not_rendered":{"charts":0,"images":2,"macros":1,"external_links":0,"defined_names":15,"comments":0,"pivot_tables":0},"unopened":[],"bounds":{"document_bytes":16777216,"sheet_cells":100000,"rows_first":2000,"rows_last":500,"rows_between":2000,"halvings":0,"cell_chars":16384,"cell_head_chars":4096},"cells_cut":0,"cells_raw":0,"read":"whole","date_system":"1900"}

{"sheet":"TOP","index":0,"n_rows":3,"n_cols":11,"rows_kept":3,"cut":false,"hidden":false,"merged":[[1,0,2,8]]}
[]
["使用前自己確認結果届出書　作成支援シート"]
[null,null,null,null,null,null,null,null,null,null,"※マクロは必ず有効にしてください。"]

{"sheet":"【届出書】入力","index":1,"n_rows":41,"n_cols":6,"rows_kept":41,"cut":false,"hidden":false,"merged":[]}
["【届出書用】",null,"↓黄色の部分の入力を漏れなくお願いいたします。数字は半角で入力してください。漏れがあると届出の印刷ができません。","説明"]
[null,"電気工作物の別","事業用（自家用もしくは電気事業用）","小規模事業用は、送配電会社との連系電圧(需要設備含む)が交流600V以下かつ出力10kW以上50kW未満かつ非常用予備発電が10kW未満です。該当しなければ事業用です。","小規模事業用","事業用（自家用もしくは電気事業用）"]
[null,"届出日","2025-06-12","ポスト投函日を入力してください。"]
[null,"【設置者】法人登記上の住所","愛知県名古屋市中区三の丸二丁目５番２号","都道府県名から入力してください。発電所が付いた事業場の住所ではありません。"]
[null,"【設置者】法人登記上の郵便番号",4608510,"ハイフン　－　は不要です。７桁の数字を入力してください。"]
[null,"【設置者】会社名","合同会社メガソーラー菅原","法人名を入力してください。"]
[null,"【設置者】代表者さまの役職","代表社員　菅原太陽光ビジネス研究株式会社　代表取締役","法人代表者さまの役職を入力してください。"]
[null,"【設置者】代表者さまの氏名","菅原　拓"]
[null,"【設置者】法人番号",12345678910,"不明の場合は空欄で結構です。"]
[null,"【設置者】確認者さまの所属部署","○○支店　技術部","【重要】確認者は、設置者又はその役員もしくは従業員である必要があります。"]
[null,"【設置者】確認者さまの役職","技術部長","【重要】確認者は、設置者又はその役員もしくは従業員である必要があります。"]
[null,"【設置者】確認者さまの氏名","菅原　拓一","【重要】確認者は、設置者又はその役員もしくは従業員である必要があります。"]
[null,"【設置者】確認者さまの電話番号","09042219723","確認事項が有る場合の使用および電気事業法上の規定により、入力をお願いいたします。"]
[null,"【設置者】確認者さまのﾒｰﾙｱﾄﾞﾚｽ","sugawara.hiraku@.co.jp","確認事項が有る場合の使用および電気事業法上の規定により、入力をお願いいたします。"]
[null,"発電所･発電設備が付いた事業場の名称","名古屋メガソーラー","【重要】主任技術者に関する届出を国に提出した際の情報と一致させてください！"]
[null,"事業場名称の後ろに「発電所」や「発電設備」の記載","無し","需要設備に発電所や発電設備が付いた場合は　有り　としてください。発電所単体の場合は　無し　としてください。"]
[null,"発電所･発電設備が付いた事業場の住所","愛知県名古屋市中区三の丸二丁目５番２号","都道府県名から入力してください。【重要】保安規程など国に届出した際の情報と一致させてください！"]
[null,"発電所･発電設備の電圧",200,"Ｖ（ボルト）単位を入力してください。単位は入力不要です。複数種類の電圧が有る場合、最大のもの１つを入力してください。"]
[null,null,null,"自家消費：連系変圧器の低圧側（需要設備の受電電圧ではありません。）、自家消費以外：系統連系電圧"]
[null,"新設と変更の別","変更","プルダウンで選んでください。","新設","変更"]
[null,null,null,"同一構内であっても、別の発電所を複数設ける場合は、それぞれが新設となります。"]
[null,null,null,"それぞれが新設となる場合、１つの発電所ごとに届出が必要です。"]
[]
[null,"【変更のみ】変更内容","設備を増設し、５％以上出力が増えた","プルダウンで選んでください。"]
[null,null,"設備を増設し、５％以上出力が増えた","電気事業法施行規則 別表第７ 第３項 第１号"]
[null,null,"設備を新しい別のものへ交換した","電気事業法施行規則 別表第７ 第３項 第２号 （１）"]
[null,null,"設備を今までと全く同じものと交換した際、支持物の工事も行った","電気事業法施行規則 別表第７ 第３項 第２号 （２） イ"]
[null,null,"設備を今までと全く同じものと交換した際、５％以上出力が変更となった（例：モジュール出力は不変のもとＰＣＳ出力が増加）","電気事業法施行規則 別表第７ 第３項 第２号 （２） ロ"]
[null,null,"設備の改造を行った際、２０％以上電圧が変更となった（例：ストリング構成変更による昇圧）","電気事業法施行規則 別表第７ 第３項 第２号 （３） イ"]
[null,null,"設備の改造を行った際、５％以上出力が変更となった","電気事業法施行規則 別表第７ 第３項 第２号 （３） ロ"]
[null,null,"設備の改造を行った際、支持物の強度が変更となった（例：降雪を見据えて支持物の強度をより強くした）","電気事業法施行規則 別表第７ 第３項 第２号 （３） ハ"]
[null,null,"支持物の強度に影響が及ぶような、設備の修理を行った（例：ＰＣＳ基板修理時に支持物構成材を一部取り外した。）","電気事業法施行規則 別表第７ 第３項 第２号 （４）"]
[]
[null,"発電所･発電設備の出力（新設or変更前）",50,"ｋＷ（キロワット）単位を入力してください。単位の入力は不要です。２０００ｋＷ以上は工事計画対象のため、届出できません。"]
[null,null,{"$f":"IF(C2=\"小規模事業用\",IF(C34>=50,\"小規模事業用の範囲を超えており、事業用（自家用もしくは電気事業用）に該当する。\",IF(C34<10,\"小規模事業用に該当しないため、届出不要。\",\"\")),\"\")","v":""},"新設の場合もここに入力してください。"]
[null,null,null,"【重要】保安規程など国に届出した際の情報と一致させてください！"]
[]
[null,"発電所･発電設備の出力（変更後）",100,"ｋＷ（キロワット）単位を入力してください。単位の入力は不要です。２０００ｋＷ以上は工事計画対象のため、届出できません。"]
[null,null,{"$f":"IF(C2=\"小規模事業用\",IF(C34+C38>=50,\"小規模事業用の範囲を超えており、事業用（自家用もしくは電気事業用）に該当する。\",IF(C34+C38<10,\"小規模事業用に該当しないため、届出不要。\",\"\")),\"\")","v":""},"増減した量を入力してください。減の場合は負の値を入力してください。増減が無ければ空欄で結構です。"]
[]
[null,"ＦＩＴ設備ＩＤ","AD3318437DF","ＦＩＴ認定を受けている場合、設備ＩＤを記載ください。認定を受けていない場合は空欄で結構です。"]

{"sheet":"使用前自己確認結果届出書","index":2,"n_rows":51,"n_cols":16384,"rows_kept":51,"cut":false,"hidden":true,"merged":[[23,4,23,11],[24,4,24,11],[2,1,2,13],[16,1,16,13],[18,1,18,5],[19,1,19,13],[4,11,4,12],[45,1,45,13],[21,12,27,13],[8,1,11,5],[12,1,15,5],[8,8,8,12],[9,8,9,12],[10,8,10,12],[12,8,12,12],[37,1,37,13],[29,1,29,3],[42,1,42,13],[13,8,13,12],[14,8,14,12],[30,1,30,13],[33,1,33,13],[11,8,11,12]]}
[null,"様式第５３（第７８条関係）",null,null,null,null,null,null,null,null,null,null,null,null,null,null,null,null,null,null,null,null,null,null,null,null,null,null,null,null,null,null,null,null,null,null,null,null,null,null,null,null,null,null,null,null,null,null,null,null,null,null,null,null,null,null,null,null,null,null,null,null,null,null,null,null,null,null,null,null,null,null,null,null,null,null,null,null,null,null,null,null,null,null,null,null,null,null,null,null,null,null,null,null,null,null,null,null,null,null,null,null,null,null,null,null,null,null,null,null,null,null,null,null,null,null,null,null,null,null,null,null,null,null,null,null,null,null,null,null,null,null,null,null,null,null,null,null,null,null,null,null,null,null,null,null,null,null,null,null,null,null,null,null,null,null,null,null,null,null,null,null,null,null,null,null,null,null,null,null,null,null,null,null,null,null,null,null,null,null,null,null,null,null,null,null,null,null,null,null,null,null,null,null,null,null,null,null,null,null,null,null,null,null,null,null,null,null,null,null,null,null,null,null,null,null,null,null,null,null,null,null,null,null,null,null,null,null,null,null,null,null,null,null,null,null,null,null,null,null,null,null,null,null,null,null,null,null,null,null,null,null,null,null,null,null,null,null,null,null,null,null,null,null,null,null,null,null,null,null,null,null,null,null,null,null,null,null,null,null,null,null,null,null,null,null,null,null,null,null,null,null,null,null,null,null,null,null,null,null,null,null,null,null,null,null,null,null,null,null,null,null,null,null,null,null,null,null,null,null,null,null,null,null,null,null,null,null,null,null,null,null,null,null,null,null,null,null,null,null,null,null,null,null,null,null,null,null,null,null,null,null,null,null,null,null,null,null,null,null,null,null,null,null,null,null,null,null,null,null,null,null,null,null,null,null,null,null,null,null,null,null,null,null,null,null,null,null,null,null,null,null,null,null,null,null,null,null,null,null,null,null,null,null,null,null,null,null,null,null,null,null,null,null,null,null,null,null,null,null,null,null,null,null,null,null,null,null,null,null,null,null,null,null,null,null,null,null,null,null,null,null,null,null,null,null,null,null,null,null,null,null,null,null,null,null,null,null,null,null,null,null,null,null,null,null,null,null,null,null,null,null,null,null,null,null,null,null,null,null,null,null,null,null,null,null,null,null,null,null,null,null,null,null,null,null,null,null,null,null,null,null,null,null,null,null,null,null,null,null,null,null,null,null,null,null,null,null,null,null,null,null,null,null,null,null,null,null,null,null,null,null,null,null,null,null,null,null,null,null,null,null,null,null,null,null,null,null,null,null,null,null,null,null,null,null,null,null,null,null,null,null,null,null,null,null,null,null,null,null,null,null,null,null,null,null,null,null,null,null,null,null,null,null,null,null,null,null,null,null,null,null,null,null,null,null,null,null,null,null,null,null,null,null,null,null,null,null,null,null,null,null,null,null,null,null,null,null,null,null,null,null,null,null,null,null,null,null,null,null,null,null,null,null,null,null,null,null,null,null,null,null,null,null,null,null,null,null,null,null,null,null,null,null,null,null,null,null,null,null,null,null,null,null,null,null,null,null,null,null,null,null,null,null,null,null,null,null,null,null,null,null,null,null,null,null,null,null,null,null,null,null,null,null,null,null,null,null,null,null,null,null,null,null,null,null,null,null,null,null,null,null,null,null,null,null,null,null,null,null,null,null,null,null,null,null,null,null,null,null,null,null,null,null,null,null,null,null,null,null,null,null,null,null,null,null,null,null,null,null,null,null,null,null,null,null,null,null,null,null,null,null,null,null,null,null,null,null,null,null,null,null,null,null,null,null,null,null,null,null,null,null,null,null,null,null,null,null,null,null,null,null,null,null,null,null,null,null,null,null,null,null,null,null,null,null,null,null,null,null,null,null,null,null,null,null,null,null,null,null,null,null,null,null,null,null,null,null,null,null,null,null,null,null,null,null,null,null,null,null,null,null,null,null,null,null,null,null,null,null,null,null,null,null,null,null,null,null,null,null,null,null,null,null,null,null,null,null,null,null,null,null,null,null,null,null,null,null,null,null,null,null,null,null,null,null,null,null,null,null,null,null,null,null,null,null,null,null,null,null,null,null,null,null,null,null,null,null,null,null,null,null,null,null,null,null,null,null,null,null,null,null,null,null,null,null,null,null,null,null,null,null,null,null,null,null,null,null,null,null,null,null,null,null,null,null,null,null,null,null,null,null,null,null,null,null,null,null,null,null,null,null,null,null,null,null,null,null,null,null,null,null,null,null,null,null,null,null,null,null,null,null,null,null,null,null,null,null,null,null,null,null,null,null,null,null,null,null,null,null,null,null,null,null,null,null,null,null,null,null,null,null,null,null,null,null,null,null,null,null,null,null,null,null,null,null,null,null,null,null,null,null,null,null,null,null,null,null,null,null,null,null,null,null,null,null,null,null,null,null,null,null,null,null,null,null,null,null,null,null,null,null,null,null,null,null,null,null,null,null,null,null,null,null,null,null,null,null,null,null,null,null,null,null,null,null,null,null,null,null,null,null,null,null,null,null,null,null,null,null,null,null,null,null,null,null,null,null,null,null,null,null,null,null,null,null,null,null,null,null,null,null,null,null,null,null,null,null,null,null,null,null,null,null,null,null,null,null,null,null,null,null,null,null,null,null,null,null,null,null,null,null,null,null,null,null,null,null,null,null,null,null,null,null,null,null,null,null,null,null,null,null,null,null,null,null,null,null,null,null,null,null,null,null,null,null,null,null,null,null,null,null,null,null,null,null,null,null,null,null,null,null,null,null,null,null,null,null,null,null,null,null,null,null,null,null,null,null,null,null,null,null,null,null,null,null,null,null,null,null,null,null,null,null,null,null,null,null,null,null,null,null,null,null,null,null,null,null,null,null,null,null,null,null,null,null,null,null,null,null,null,null,null,null,null,null,null,null,null,null,null,null,null,null,null,null,null,null,null,null,null,null,null,null,null,null,null,null,null,null,null,null,null,null,null,null,null,null,null,null,null,null,null,null,null,null,null,null,null,null,null,null,null,null,null,null,null,null,null,null,null,null,null,null,null,null,null,null,null,null,null,null,null,null,null,null,null,null,null,null,null,null,null,null,null,null,null,null,null,null,null,null,null,null,null,null,null,null,null,null,null,null,null,null,null,null,null,null,null,null,null,null,null,null,null,null,null,null,null,null,null,null,null,null,null,null,null,null,null,null,null,null,null,null,null,null,null,null,null,null,null,null,null,null,null,null,null,null,null,null,null,null,null,null,null,null,null,null,null,null,null,null,null,null,null,null,null,null,null,null,null,null,null,null,null,null,null,null,null,null,null,null,null,null,null,null,null,null,null,null,null,null,null,null,null,null,null,null,null,null,null,null,null,null,null,null,null,null,null,null,null,null,null,null,null,null,null,null,null,null,null,null,null,null,null,null,null,null,null,null,null,null,null,null,null,null,null,null,null,null,null,null,null,null,null,null,null,null,null,null,null,null,null,null,null,null,null,null,null,null,null,null,null,null,null,null,null,null,null,null,null,null,null,null,null,null,null,null,null,null,null,null,null,null,null,null,null,null,null,null,null,null,null,null,null,null,null,null,null,null,null,null,null,null,null,null,null,null,null,null,null,null,null,null,null,null,null,null,null,null,null,null,null,null,null,null,null,null,null,null,null,null,null,null,null,null,null,null,null,null,null,null,null,null,null,null,null,null,null,null,null,null,null,null,null,null,null,null,null,null,null,null,null,null,null,null,null,null,null,null,null,null,null,null,null,null,null,null,null,null,null,null,null,null,null,null,null,null,null,null,null,null,null,null,null,null,null,null,null,null,null,null,null,null,null,null,null,null,null,null,null,null,null,null,null,null,null,null,null,null,null,null,null,null,null,null,null,null,null,null,null,null,null,null,null,null,null,null,null,null,null,null,null,null,null,null,null,null,null,null,null,null,null,null,null,null,null,null,null,null,null,null,null,null,null,null,null,null,null,null,null,null,null,null,null,null,null,null,null,null,null,null,null,null,null,null,null,null,null,null,null,null,null,null,null,null,null,null,null,null,null,null,null,null,null,null,null,null,null,null,null,null,null,null,null,null,null,null,null,null,null,null,null,null,null,null,null,null,null,null,null,null,null,null,null,null,null,null,null,null,null,null,null,null,null,null,null,null,null,null,null,null,null,null,null,null,null,null,null,null,null,null,null,null,null,null,null,null,null,null,null,null,null,null,null,null,null,null,null,null,null,null,null,null,null,null,null,null,null,null,null,null,null,null,null,null,null,null,null,null,null,null,null,null,null,null,null,null,null,null,null,null,null,null,null,null,null,null,null,null,null,null,null,null,null,null,null,null,null,null,null,null,null,null,null,null,null,null,null,null,null,null,null,null,null,null,null,null,null,null,null,null,null,null,null,null,null,null,null,null,null,null,null,null,null,null,null,null,null,null,null,null,null,null,null,null,null,null,null,null,null,null,null,null,null,null,null,null,null,null,null,null,null,null,null,null,null,null,null,null,null,null,null,null,null,null,null,null,null,null,null,null,null,null,null,null,null,null,null,null,null,null,null,null,null,null,null,null,null,null,null,null,null,null,null,null,null,null,null,null,null,null,null,null,null,null,null,null,null,null,null,null,null,null,null,null,null,null,null,null,null,null,null,null,null,null,null,null,null,null,null,null,null,null,null,null,null,null,null,null,null,null,null,null,null,null,null,null,null,null,null,null,null,null,null,null,null,null,null,null,null,null,null,null,null,null,null,null,null,null,null,null,null,null,null,null,null,null,null,null,null,null,null,null,null,null,null,null,null,null,null,null,null,null,null,null,null,null,null,null,null,null,null,null,null,null,null,null,null,null,null,null,null,null,null,null,null,null,null,null,null,null,null,null,null,null,null,null,null,null,null,null,null,null,null,null,null,null,null,null,null,null,null,null,null,null,null,null,null,null,null,null,null,null,null,null,null,null,null,null,null,null,null,null,null,null,null,null,null,null,null,null,null,null,null,null,null,null,null,null,null,null,null,null,null,null,null,null,null,null,null,null,null,null,null,null,null,null,null,null,null,null,null,null,null,null,null,null,null,null,null,null,null,null,null,null,null,null,null,null,null,null,null,null,null,null,null,null,null,null,null,null,null,null,null,null,null,null,null,null,null,null,null,null,null,null,null,null,null,null,null,null,null,null,null,null,null,null,null,null,null,null,null,null,null,null,null,null,null,null,null,null,null,null,null,null,null,null,null,null,null,null,null,null,null,null,null,null,null,null,null,null,null,null,null,null,null,null,null,null,null,null,null,null,null,null,null,null,null,null,null,null,null,null,null,null,null,null,null,null,null,null,null,null,null,null,null,null,null,null,null,null,null,null,null,null,null,null,null,null,null,null,null,null,null,null,null,null,null,null,null,null,null,null,null,null,null,null,null,null,null,null,null,null,null,null,null,null,null,null,null,null,null,null,null,null,null,null,null,null,null,null,null,null,null,null,null,null,null,null,null,null,null,null,null,null,null,null,null,null,null,null,null,null,null,null,null,null,null,null,null,null,null,null,null,null,null,null,null,null,null,null,null,null,null,null,null,null,null,null,null,null,null,null,null,null,null,null,null,null,null,null,null,null,null,null,null,null,null,null,null,null,null,null,null,null,null,null,null,null,null,null,null,null,null,null,null,null,null,null,null,null,null,null,null,null,null,null,null,null,null,null,null,null,null,null,null,null,null,null,null,null,null,null,null,null,null,null,null,null,null,null,null,null,null,null,null,null,null,null,null,null,null,null,null,null,null,null,null,null,null,null,null,null,null,null,null,null,null,null,null,null,null,null,null,null,null,null,null,null,null,null,null,null,null,null,null,null,null,null,null,null,null,null,null,null,null,null,null,null,null,null,null,null,null,null,null,null,null,null,null,null,null,null,null,null,null,null,null,null,null,null,null,null,null,null,null,null,null,null,null,null,null,null,null,null,null,null,null,null,null,null,null,null,null,null,null,null,null,null,null,null,null,null,null,null,null,null,null,null,null,null,null,null,null,null,null,null,null,null,null,null,null,null,null,null,null,null,null,null,null,null,null,null,null,null,null,null,null,null,null,null,null,null,null,null,null,null,null,null,null,null,null,null,null,null,null,null,null,null,null,null,null,null,null,null,null,null,null,null,null,null,null,null,null,null,null,null,null,null,null,null,null,null,null,null,null,null,null,null,null,null,null,null,null,null,null,null,null,null,null,null,null,null,null,null,null,null,null,null,null,null,null,null,null,null,null,null,null,null,null,null,null,null,null,null,null,null,null,null,null,null,null,null,null,null,null,null,null,null,null,null,null,null,null,null,null,null,null,null,null,null,null,null,null,null,null,null,null,null,null,null,null,null,null,null,null,null,null,null,null,null,null,null,null,null,null,null,null,null,null,null,null,null,null,null,null,null,null,null,null,null,null,null,null,null,null,null,null,null,null,null,null,null,null,null,null,null,null,null,null,null,null,null,null,null,null,null,null,null,null,null,null,null,null,null,null,null,null,null,null,null,null,null,null,null,null,null,null,null,null,null,null,null,null,null,null,null,null,null,null,null,null,null,null,null,null,null,null,null,null,null,null,null,null,null,null,null,null,null,null,null,null,null,null,null,null,null,null,null,null,null,null,null,null,null,null,null,null,null,null,null,null,null,null,null,null,null,null,null,null,null,null,null,null,null,null,null,null,null,null,null,null,null,null,null,null,null,null,null,null,null,null,null,null,null,null,null,null,null,null,null,null,null,null,null,null,null,null,null,null,null,null,null,null,null,null,null,null,null,null,null,null,null,null,null,null,null,null,null,null,null,null,null,null,null,null,null,null,null,null,null,null,null,null,null,null,null,null,null,null,null,null,null,null,null,null,null,null,null,null,null,null,null,null,null,null,null,null,null,null,null,null,null,null,null,null,null,null,null,null,null,null,null,null,null,null,null,null,null,null,null,null,null,null,null,null,null,null,null,null,null,null,null,null,null,null,null,null,null,null,null,null,null,null,null,null,null,null,null,null,null,null,null,null,null,null,null,null,null,null,null,null,null,null,null,null,null,null,null,null,null,null,null,null,null,null,null,null,null,null,null,null,null,null,null,null,null,null,null,null,null,null,null,null,null,null,null,null,null,null,null,null,null,null,null,null,null,null,null,null,null,null,null,null,null,null,null,null,null,null,null,null,null,null,null,null,null,null,null,null,null,null,null,null,null,null,null,null,null,null,null,null,null,null,null,null,null,null,null,null,null,null,null,null,null,null,null,null,null,null,null,null,null,null,null,null,null,null,null,null,null,null,null,null,null,null,null,null,null,null,null,null,null,null,null,null,null,null,null,null,null,null,null,null,null,null,null,null,null,null,null,null,null,null,null,null,null,null,null,null,null,null,null,null,null,null,null,null,null,null,null,null,null,null,null,null,null,null,null,null,null,null,null,null,null,null,null,null,null,null,null,null,null,null,null,null,null,null,null,null,null,null,null,null,null,null,null,null,null,null,null,null,null,null,null,null,null,null,null,null,null,null,null,null,null,null,null,null,null,null,null,null,null,null,null,null,null,null,null,null,null,null,null,null,null,null,null,null,null,null,null,null,null,null,null,null,null,null,null,null,null,null,null,null,null,null,null,null,null,null,null,null,null,null,null,null,null,null,null,null,null,null,null,null,null,null,null,null,null,null,null,null,null,null,null,null,null,null,null,null,null,null,null,null,null,null,null,null,null,null,null,null,null,null,null,null,null,null,null,null,null,null,null,null,null,null,null,null,null,null,null,null,null,null,null,null,null,null,null,null,null,null,null,null,null,null,null,null,null,null,null,null,null,null,null,null,null,null,null,null,null,null,null,null,null,null,null,null,null,null,null,null,null,null,null,null,null,null,null,null,null,null,null,null,null,null,null,null,null,null,null,null,null,null,null,null,null,null,null,null,null,null,null,null,null,null,null,null,null,null,null,null,null,null,null,null,null,null,null,null,null,null,null,null,null,null,null,null,null,null,null,null,null,null,null,null,null,null,null,null,null,null,null,null,null,null,null,null,null,null,null,null,null,null,null,null,null,null,null,null,null,null,null,null,null,null,null,null,null,null,null,null,null,null,null,null,null,null,null,null,null,null,null,null,null,null,null,null,null,null,null,null,null,null,null,null,null,null,null,null,null,null,null,null,null,null,null,null,null,null,null,null,null,null,null,null,null,null,null,null,null,null,null,null,null,null,null,null,null,null,null,null,null,null,null,null,null,null,null,null,null,null,null,null,null,null,null,null,null,null,null,null,null,null,null,null,null,null,null,null,null,null,null,null,null,null,null,null,null,null,null,null,null,null,null,null,null,null,null,null,null,null,null,null,null,null,null,null,null,null,null,null,null,null,null,null,null,null,null,null,null,null,null,null,null,null,null,null,null,null,null,null,null,null,null,null,null,null,null,null,null,null,null,null,null,null,null,null,null,null,null,null,null,null,null,null,null,null,null,null,null,null,null,null,null,null,null,null,null,null,null,null,null,null,null,null,null,null,null,null,null,null,null,null,null,null,null,null,null,null,null,null,null,null,null,null,null,null,null,null,null,null,null,null,null,null,null,null,null,null,null,null,null,null,null,null,null,null,null,null,null,null,null,null,null,null,null,null,null,null,null,null,null,null,null,null,null,null,null,null,null,null,null,null,null,null,null,null,null,null,null,null,null,null,null,null,null,null,null,null,null,null,null,null,null,null,null,null,null,null,null,null,null,null,null,null,null,null,null,null,null,null,null,null,null,null,null,null,null,null,null,null,null,null,null,null,null,null,null,null,null,null,null,null,null,null,null,null,null,null,null,null,null,null,null,null,null,null,null,null,null,null,null,null,null,null,null,null,null,null,null,null,null,null,null,null,null,null,null,null,null,null,null,null,null,null,null,null,null,null,null,null,null,null,null,null,null,null,null,null,null,null,null,null,null,null,null,null,null,null,null,null,null,null,null,null,null,null,null,null,null,null,null,null,null,null,null,null,null,null,null,null,null,null,null,null,null,null,null,null,null,null,null,null,null,null,null,null,null,null,null,null,null,null,null,null,null,null,null,null,null,null,null,null,null,null,null,null,null,null,null,null,null,null,null,null,null,null,null,null,null,null,null,null,null,null,null,null,null,null,null,null,null,null,null,null,null,null,null,null,null,null,null,null,null,null,null,null,null,null,null,null,null,null,null,null,null,null,null,null,null,null,null,null,null,null,null,null,null,null,null,null,null,null,null,null,null,null,null,null,null,null,null,null,null,null,null,null,null,null,null,null,null,null,null,null,null,null,null,null,null,null,null,null,null,null,null,null,null,null,null,null,null,null,null,null,null,null,null,null,null,null,null,null,null,null,null,null,null,null,null,null,null,null,null,null,null,null,null,null,null,null,null,null,null,null,null,null,null,null,null,null,null,null,null,null,null,null,null,null,null,null,null,null,null,null,null,null,null,null,null,null,null,null,null,null,null,null,null,null,null,null,null,null,null,null,null,null,null,null,null,null,null,null,null,null,null,null,null,null,null,null,null,null,null,null,null,null,null,null,null,null,null,null,null,null,null,null,null,null,null,null,null,null,null,null,null,null,null,null,null,null,null,null,null,null,null,null,null,null,null,null,null,null,null,null,null,null,null,null,null,null,null,null,null,null,null,null,null,null,null,null,null,null,null,null,null,null,null,null,null,null,null,null,null,null,null,null,null,null,null,null,null,null,null,null,null,null,null,null,null,null,null,null,null,null,null,null,null,null,null,null,null,null,null,null,null,null,null,null,null,null,null,null,null,null,null,null,null,null,null,null,null,null,null,null,null,null,null,null,null,null,null,null,null,null,null,null,null,null,null,null,null,null,null,null,null,null,null,null,null,null,null,null,null,null,null,null,null,null,null,null,null,null,null,null,null,null,null,null,null,null,null,null,null,null,null,null,null,null,null,null,null,null,null,null,null,null,null,null,null,null,null,null,null,null,null,null,null,null,null,null,null,null,null,null,null,null,null,null,null,null,null,null,null,null,null,null,null,null,null,null,null,null,null,null,null,null,null,null,null,null,null,null,null,null,null,null,null,null,null,null,null,null,null,null,null,null,null,null,null,null,null,null,null,null,null,null,null,null,null,null,null,null,null,null,null,null,null,null,null,null,null,null,null,null,null,null,null,null,null,null,null,null,null,null,null,null,null,null,null,null,null,null,null,null,null,null,null,null,null,null,null,null,null,null,null,null,null,null,null,null,null,null,null,null,null,null,null,null,null,null,null,null,null,null,null,null,null,null,null,null,null,null,null,null,null,null,null,null,null,null,null,null,null,null,null,null,null,null,null,null,null,null,null,null,null,null,null,null,null,null,null,null,null,null,null,null,null,null,null,null,null,null,null,null,null,null,null,null,null,null,null,null,null,null,null,null,null,null,null,null,null,null,null,null,null,null,null,null,null,null,null,null,null,null,null,null,null,null,null,null,null,null,null,null,null,null,null,null,null,null,null,null,null,null,null,null,null,null,null,null,null,null,null,null,null,null,null,null,null,null,null,null,null,null,null,null,null,null,null,null,null,null,null,null,null,null,null,null,null,null,null,null,null,null,null,null,null,null,null,null,null,null,null,null,null,null,null,null,null,null,null,null,null,null,null,null,null,null,null,null,null,null,null,null,null,null,null,null,null,null,null,null,null,null,null,null,null,null,null,null,null,null,null,null,null,null,null,null,null,null,null,null,null,null,null,null,null,null,null,null,null,null,null,null,null,null,null,null,null,null,null,null,null,null,null,null,null,null,null,null,null,null,null,null,null,null,null,null,null,null,null,null,null,null,null,null,null,null,null,null,null,null,null,null,null,null,null,null,null,null,null,null,null,null,null,null,null,null,null,null,null,null,null,null,null,null,null,null,null,null,null,null,null,null,null,null,null,null,null,null,null,null,null,null,null,null,null,null,null,null,null,null,null,null,null,null,null,null,null,null,null,null,null,null,null,null,null,null,null,null,null,null,null,null,null,null,null,null,null,null,null,null,null,null,null,null,null,null,null,null,null,null,null,null,null,null,null,null,null,null,null,null,null,null,null,null,null,null,null,null,null,null,null,null,null,null,null,null,null,null,null,null,null,null,null,null,null,null,null,null,null,null,null,null,null,null,null,null,null,null,null,null,null,null,null,null,null,null,null,null,null,null,null,null,null,null,null,null,null,null,null,null,null,null,null,null,null,null,null,null,null,null,null,null,null,null,null,null,null,null,null,null,null,null,null,null,null,null,null,null,null,null,null,null,null,null,null,null,null,null,null,null,null,null,null,null,null,null,null,null,null,null,null,null,null,null,null,null,null,null,null,null,null,null,null,null,null,null,null,null,null,null,null,null,null,null,null,null,null,null,null,null,null,null,null,null,null,null,null,null,null,null,null,null,null,null,null,null,null,null,null,null,null,null,null,null,null,null,null,null,null,null,null,null,null,null,null,null,null,null,null,null,null,null,null,null,null,null,null,null,null,null,null,null,null,null,null,null,null,null,null,null,null,null,null,null,null,null,null,null,null,null,null,null,null,null,null,null,null,null,null,null,null,null,null,null,null,null,null,null,null,null,null,null,null,null,null,null,null,null,null,null,null,null,null,null,null,null,null,null,null,null,null,null,null,null,null,null,null,null,null,null,null,null,null,null,null,null,null,null,null,null,null,null,null,null,null,null,null,null,null,null,null,null,null,null,null,null,null,null,null,null,null,null,null,null,null,null,null,null,null,null,null,null,null,null,null,null,null,null,null,null,null,null,null,null,null,null,null,null,null,null,null,null,null,null,null,null,null,null,null,null,null,null,null,null,null,null,null,null,null,null,null,null,null,null,null,null,null,null,null,null,null,null,null,null,null,null,null,null,null,null,null,null,null,null,null,null,null,null,null,null,null,null,null,null,null,null,null,null,null,null,null,null,null,null,null,null,null,null,null,null,null,null,null,null,null,null,null,null,null,null,null,null,null,null,null,null,null,null,null,null,null,null,null,null,null,null,null,null,null,null,null,null,null,null,null,null,null,null,null,null,null,null,null,null,null,null,null,null,null,null,null,null,null,null,null,null,null,null,null,null,null,null,null,null,null,null,null,null,null,null,null,null,null,null,null,null,null,null,null,null,null,null,null,null,null,null,null,null,null,null,null,null,null,null,null,null,null,null,null,null,null,null,null,null,null,null,null,null,null,null,null,null,null,null,null,null,null,null,null,null,null,null,null,null,null,null,null,null,null,null,null,null,null,null,null,null,null,null,null,null,null,null,null,null,null,null,null,null,null,null,null,null,null,null,null,null,null,null,null,null,null,null,null,null,null,null,null,null,null,null,null,null,null,null,null,null,null,null,null,null,null,null,null,null,null,null,null,null,null,null,null,null,null,null,null,null,null,null,null,null,null,null,null,null,null,null,null,null,null,null,null,null,null,null,null,null,null,null,null,null,null,null,null,null,null,null,null,null,null,null,null,null,null,null,null,null,null,null,null,null,null,null,null,null,null,null,null,null,null,null,null,null,null,null,null,null,null,null,null,null,null,null,null,null,null,null,null,null,null,null,null,null,null,null,null,null,null,null,null,null,null,null,null,null,null,null,null,null,null,null,null,null,null,null,null,null,null,null,null,null,null,null,null,null,null,null,null,null,null,null,null,null,null,null,null,null,null,null,null,null,null,null,null,null,null,null,null,null,null,null,null,null,null,null,null,null,null,null,null,null,null,null,null,null,null,null,null,null,null,null,null,null,null,null,null,null,null,null,null,null,null,null,null,null,null,null,null,null,null,null,null,null,null,null,null,null,null,null,null,null,null,null,null,null,null,null,null,null,null,null,null,null,null,null,null,null,null,null,null,null,null,null,null,null,null,null,null,null,null,null,null,null,null,null,null,null,null,null,null,null,null,null,null,null,null,null,null,null,null,null,null,null,null,null,null,null,null,null,null,null,null,null,null,null,null,null,null,null,null,null,null,null,null,null,null,null,null,null,null,null,null,null,null,null,null,null,null,null,null,null,null,null,null,null,null,null,null,null,null,null,null,null,null,null,null,null,null,null,null,null,null,null,null,null,null,null,null,null,null,null,null,null,null,null,null,null,null,null,null,null,null,null,null,null,null,null,null,null,null,null,null,null,null,null,null,null,null,null,null,null,null,null,null,null,null,null,null,null,null,null,null,null,null,null,null,null,null,null,null,null,null,null,null,null,null,null,null,null,null,null,null,null,null,null,null,null,null,null,null,null,null,null,null,null,null,null,null,null,null,null,null,null,null,null,null,null,null,null,null,null,null,null,null,null,null,null,null,null,null,null,null,null,null,null,null,null,null,null,null,null,null,null,null,null,null,null,null,null,null,null,null,null,null,null,null,null,null,null,null,null,null,null,null,null,null,null,null,null,null,null,null,null,null,null,null,null,null,null,null,null,null,null,null,null,null,null,null,null,null,null,null,null,null,null,null,null,null,null,null,null,null,null,null,null,null,null,null,null,null,null,null,null,null,null,null,null,null,null,null,null,null,null,null,null,null,null,null,null,null,null,null,null,null,null,null,null,null,null,null,null,null,null,null,null,null,null,null,null,null,null,null,null,null,null,null,null,null,null,null,null,null,null,null,null,null,null,null,null,null,null,null,null,null,null,null,null,null,null,null,null,null,null,null,null,null,null,null,null,null,null,null,null,null,null,null,null,null,null,null,null,null,null,null,null,null,null,null,null,null,null,null,null,null,null,null,null,null,null,null,null,null,null,null,null,null,null,null,null,null,null,null,null,null,null,null,null,null,null,null,null,null,null,null,null,null,null,null,null,null,null,null,null,null,null,null,null,null,null,null,null,null,null,null,null,null,null,null,null,null,null,null,null,null,null,null,null,null,null,null,null,null,null,null,null,null,null,null,null,null,null,null,null,null,null,null,null,null,null,null,null,null,null,null,null,null,null,null,null,null,null,null,null,null,null,null,null,null,null,null,null,null,null,null,null,null,null,null,null,null,null,null,null,null,null,null,null,null,null,null,null,null,null,null,null,null,null,null,null,null,null,null,null,null,null,null,null,null,null,null,null,null,null,null,null,null,null,null,null,null,null,null,null,null,null,null,null,null,null,null,null,null,null,null,null,null,null,null,null,null,null,null,null,null,null,null,null,null,null,null,null,null,null,null,null,null,null,null,null,null,null,null,null,null,null,null,null,null,null,null,null,null,null,null,null,null,null,null,null,null,null,null,null,null,null,null,null,null,null,null,null,null,null,null,null,null,null,null,null,null,null,null,null,null,null,null,null,null,null,null,null,null,null,null,null,null,null,null,null,null,null,null,null,null,null,null,null,null,null,null,null,null,null,null,null,null,null,null,null,null,null,null,null,null,null,null,null,null,null,null,null,null,null,null,null,null,null,null,null,null,null,null,null,null,null,null,null,null,null,null,null,null,null,null,null,null,null,null,null,null,null,null,null,null,null,null,null,null,null,null,null,null,null,null,null,null,null,null,null,null,null,null,null,null,null,null,null,null,null,null,null,null,null,null,null,null,null,null,null,null,null,null,null,null,null,null,null,null,null,null,null,null,null,null,null,null,null,null,null,null,null,null,null,null,null,null,null,null,null,null,null,null,null,null,null,null,null,null,null,null,null,null,null,null,null,null,null,null,null,null,null,null,null,null,null,null,null,null,null,null,null,null,null,null,null,null,null,null,null,null,null,null,null,null,null,null,null,null,null,null,null,null,null,null,null,null,null,null,null,null,null,null,null,null,null,null,null,null,null,null,null,null,null,null,null,null,null,null,null,null,null,null,null,null,null,null,null,null,null,null,null,null,null,null,null,null,null,null,null,null,null,null,null,null,null,null,null,null,null,null,null,null,null,null,null,null,null,null,null,null,null,null,null,null,null,null,null,null,null,null,null,null,null,null,null,null,null,null,null,null,null,null,null,null,null,null,null,null,null,null,null,null,null,null,null,null,null,null,null,null,null,null,null,null,null,null,null,null,null,null,null,null,null,null,null,null,null,null,null,null,null,null,null,null,null,null,null,null,null,null,null,null,null,null,null,null,null,null,null,null,null,null,null,null,null,null,null,null,null,null,null,null,null,null,null,null,null,null,null,null,null,null,null,null,null,null,null,null,null,null,null,null,null,null,null,null,null,null,null,null,null,null,null,null,null,null,null,null,null,null,null,null,null,null,null,null,null,null,null,null,null,null,null,null,null,null,null,null,null,null,null,null,null,null,null,null,null,null,null,null,null,null,null,null,null,null,null,null,null,null,null,null,null,null,null,null,null,null,null,null,null,null,null,null,null,null,null,null,null,null,null,null,null,null,null,null,null,null,null,null,null,null,null,null,null,null,null,null,null,null,null,null,null,null,null,null,null,null,null,null,null,null,null,null,null,null,null,null,null,null,null,null,null,null,null,null,null,null,null,null,null,null,null,null,null,null,null,null,null,null,null,null,null,null,null,null,null,null,null,null,null,null,null,null,null,null,null,null,null,null,null,null,null,null,null,null,null,null,null,null,null,null,null,null,null,null,null,null,null,null,null,null,null,null,null,null,null,null,null,null,null,null,null,null,null,null,null,null,null,null,null,null,null,null,null,null,null,null,null,null,null,null,null,null,null,null,null,null,null,null,null,null,null,null,null,null,null,null,null,null,null,null,null,null,null,null,null,null,null,null,null,null,null,null,null,null,null,null,null,null,null,null,null,null,null,null,null,null,null,null,null,null,null,null,null,null,null,null,null,null,null,null,null,null,null,null,null,null,null,null,null,null,null,null,null,null,null,null,null,null,null,null,null,null,null,null,null,null,null,null,null,null,null,null,null,null,null,null,null,null,null,null,null,null,null,null,null,null,null,null,null,null,null,null,null,null,null,null,null,null,null,null,null,null,null,null,null,null,null,null,null,null,null,null,null,null,null,null,null,null,null,null,null,null,null,null,null,null,null,null,null,null,null,null,null,null,null,null,null,null,null,null,null,null,null,null,null,null,null,null,null,null,null,null,null,null,null,null,null,null,null,null,null,null,null,null,null,null,null,null,null,null,null,null,null,null,null,null,null,null,null,null,null,null,null,null,null,null,null,null,null,null,null,null,null,null,null,null,null,null,null,null,null,null,null,null,null,null,null,null,null,null,null,null,null,null,null,null,null,null,null,null,null,null,null,null,null,null,null,null,null,null,null,null,null,null,null,null,null,null,null,null,null,null,null,null,null,null,null,null,null,null,null,null,null,null,null,null,null,null,null,null,null,null,null,null,null,null,null,null,null,null,null,null,null,null,null,null,null,null,null,null,null,null,null,null,null,null,null,null,null,null,null,null,null,null,null,null,null,null,null,null,null,null,null,null,null,null,null,null,null,null,null,null,null,null,null,null,null,null,null,null,null,null,null,null,null,null,null,null,null,null,null,null,null,null,null,null,null,null,null,null,null,null,null,null,null,null,null,null,null,null,null,null,null,null,null,null,null,null,null,null,null,null,null,null,null,null,null,null,null,null,null,null,null,null,null,null,null,null,null,null,null,null,null,null,null,null,null,null,null,null,null,null,null,null,null,null,null,null,null,null,null,null,null,null,null,null,null,null,null,null,null,null,null,null,null,null,null,null,null,null,null,null,null,null,null,null,null,null,null,null,null,null,null,null,null,null,null,null,null,null,null,null,null,null,null,null,null,null,null,null,null,null,null,null,null,null,null,null,null,null,null,null,null,null,null,null,null,null,null,null,null,null,null,null,null,null,null,null,null,null,null,null,null,null,null,null,null,null,null,null,null,null,null,null,null,null,null,null,null,null,null,null,null,null,null,null,null,null,null,null,null,null,null,null,null,null,null,null,null,null,null,null,null,null,null,null,null,null,null,null,null,null,null,null,null,null,null,null,null,null,null,null,null,null,null,null,null,null,null,null,null,null,null,null,null,null,null,null,null,null,null,null,null,null,null,null,null,null,null,null,null,null,null,null,null,null,null,null,null,null,null,null,null,null,null,null,null,null,null,null,null,null,null,null,null,null,null,null,null,null,null,null,null,null,null,null,null,null,null,null,null,null,null,null,null,null,null,null,null,null,null,null,null,null,null,null,null,null,null,null,null,null,null,null,null,null,null,null,null,null,null,null,null,null,null,null,null,null,null,null,null,null,null,null,null,null,null,null,null,null,null,null,null,null,null,null,null,null,null,null,null,null,null,null,null,null,null,null,null,null,null,null,null,null,null,null,null,null,null,null,null,null,null,null,null,null,null,null,null,null,null,null,null,null,null,null,null,null,null,null,null,null,null,null,null,null,null,null,null,null,null,null,null,null,null,null,null,null,null,null,null,null,null,null,null,null,null,null,null,null,null,null,null,null,null,null,null,null,null,null,null,null,null,null,null,null,null,null,null,null,null,null,null,null,null,null,null,null,null,null,null,null,null,null,null,null,null,null,null,null,null,null,null,null,null,null,null,null,null,null,null,null,null,null,null,null,null,null,null,null,null,null,null,null,null,null,null,null,null,null,null,null,null,null,null,null,null,null,null,null,null,null,null,null,null,null,null,null,null,null,null,null,null,null,null,null,null,null,null,null,null,null,null,null,null,null,null,null,null,null,null,null,null,null,null,null,null,null,null,null,null,null,null,null,null,null,null,null,null,null,null,null,null,null,null,null,null,null,null,null,null,null,null,null,null,null,null,null,null,null,null,null,null,null,null,null,null,null,null,null,null,null,null,null,null,null,null,null,null,null,null,null,null,null,null,null,null,null,null,null,null,null,null,null,null,null,null,null,null,null,null,null,null,null,null,null,null,null,null,null,null,null,null,null,null,null,null,null,null,null,null,null,null,null,null,null,null,null,null,null,null,null,null,null,null,null,null,null,null,null,null,null,null,null,null,null,null,null,null,null,null,null,null,null,null,null,null,null,null,null,null,null,null,null,null,null,null,null,null,null,null,null,null,null,null,null,null,null,null,null,null,null,null,null,null,null,null,null,null,null,null,null,null,null,null,null,null,null,null,null,null,null,null,null,null,null,null,null,null,null,null,null,null,null,null,null,null,null,null,null,null,null,null,null,null,null,null,null,null,null,null,null,null,null,null,null,null,null,null,null,null,null,null,null,null,null,null,null,null,null,null,null,null,null,null,null,null,null,null,null,null,null,null,null,null,null,null,null,null,null,null,null,null,null,null,null,null,null,null,null,null,null,null,null,null,null,null,null,null,null,null,null,null,null,null,null,null,null,null,null,null,null,null,null,null,null,null,null,null,null,null,null,null,null,null,null,null,null,null,null,null,null,null,null,null,null,null,null,null,null,null,null,null,null,null,null,null,null,null,null,null,null,null,null,null,null,null,null,null,null,null,null,null,null,null,null,null,null,null,null,null,null,null,null,null,null,null,null,null,null,null,null,null,null,null,null,null,null,null,null,null,null,null,null,null,null,null,null,null,null,null,null,null,null,null,null,null,null,null,null,null,null,null,null,null,null,null,null,null,null,null,null,null,null,null,null,null,null,null,null,null,null,null,null,null,null,null,null,null,null,null,null,null,null,null,null,null,null,null,null,null,null,null,null,null,null,null,null,null,null,null,null,null,null,null,null,null,null,null,null,null,null,null,null,null,null,null,null,null,null,null,null,null,null,null,null,null,null,null,null,null,null,null,null,null,null,null,null,null,null,null,null,null,null,null,null,null,null,null,null,null,null,null,null,null,null,null,null,null,null,null,null,null,null,null,null,null,null,null,null,null,null,null,null,null,null,null,null,null,null,null,null,null,null,null,null,null,null,null,null,null,null,null,null,null,null,null,null,null,null,null,null,null,null,null,null,null,null,null,null,null,null,null,null,null,null,null,null,null,null,null,null,null,null,null,null,null,null,null,null,null,null,null,null,null,null,null,null,null,null,null,null,null,null,null,null,null,null,null,null,null,null,null,null,null,null,null,null,null,null,null,null,null,null,null,null,null,null,null,null,null,null,null,null,null,null,null,null,null,null,null,null,null,null,null,null,null,null,null,null,null,null,null,null,null,null,null,null,null,null,null,null,null,null,null,null,null,null,null,null,null,null,null,null,null,null,null,null,null,null,null,null,null,null,null,null,null,null,null,null,null,null,null,null,null,null,null,null,null,null,null,null,null,null,null,null,null,null,null,null,null,null,null,null,null,null,null,null,null,null,null,null,null,null,null,null,null,null,null,null,null,null,null,null,null,null,null,null,null,null,null,null,null,null,null,null,null,null,null,null,null,null,null,null,null,null,null,null,null,null,null,null,null,null,null,null,null,null,null,null,null,null,null,null,null,null,null,null,null,null,null,null,null,null,null,null,null,null,null,null,null,null,null,null,null,null,null,null,null,null,null,null,null,null,null,null,null,null,null,null,null,null,null,null,null,null,null,null,null,null,null,null,null,null,null,null,null,null,null,null,null,null,null,null,null,null,null,null,null,null,null,null,null,null,null,null,null,null,null,null,null,null,null,null,null,null,null,null,null,null,null,null,null,null,null,null,null,null,null,null,null,null,null,null,null,null,null,null,null,null,null,null,null,null,null,null,null,null,null,null,null,null,null,null,null,null,null,null,null,null,null,null,null,null,null,null,null,null,null,null,null,null,null,null,null,null,null,null,null,null,null,null,null,null,null,null,null,null,null,null,null,null,null,null,null,null,null,null,null,null,null,null,null,null,null,null,null,null,null,null,null,null,null,null,null,null,null,null,null,null,null,null,null,null,null,null,null,null,null,null,null,null,null,null,null,null,null,null,null,null,null,null,null,null,null,null,null,null,null,null,null,null,null,null,null,null,null,null,null,null,null,null,null,null,null,null,null,null,null,null,null,null,null,null,null,null,null,null,null,null,null,null,null,null,null,null,null,null,null,null,null,null,null,null,null,null,null,null,null,null,null,null,null,null,null,null,null,null,null,null,null,null,null,null,null,null,null,null,null,null,null,null,null,null,null,null,null,null,null,null,null,null,null,null,null,null,null,null,null,null,null,null,null,null,null,null,null,null,null,null,null,null,null,null,null,null,null,null,null,null,null,null,null,null,null,null,null,null,null,null,null,null,null,null,null,null,null,null,null,null,null,null,null,null,null,null,null,null,null,null,null,null,null,null,null,null,null,null,null,null,null,null,null,null,null,null,null,null,null,null,null,null,null,null,null,null,null,null,null,null,null,null,null,null,null,null,null,null,null,null,null,null,null,null,null,null,null,null,null,null,null,null,null,null,null,null,null,null,null,null,null,null,null,null,null,null,null,null,null,null,null,null,null,null,null,null,null,null,null,null,null,null,null,null,null,null,null,null,null,null,null,null,null,null,null,null,null,null,null,null,null,null,null,null,null,null,null,null,null,null,null,null,null,null,null,null,null,null,null,null,null,null,null,null,null,null,null,null,null,null,null,null,null,null,null,null,null,null,null,null,null,null,null,null,null,null,null,null,null,null,null,null,null,null,null,null,null,null,null,null,null,null,null,null,null,null,null,null,null,null,null,null,null,null,null,null,null,null,null,null,null,null,null,null,null,null,null,null,null,null,null,null,null,null,null,null,null,null,null,null,null,null,null,null,null,null,null,null,null,null,null,null,null,null,null,null,null,null,null,null,null,null,null,null,null,null,null,null,null,null,null,null,null,null,null,null,null,null,null,null,null,null,null,null,null,null,null,null,null,null,null,null,null,null,null,null,null,null,null,null,null,null,null,null,null,null,null,null,null,null,null,null,null,null,null,null,null,null,null,null,null,null,null,null,null,null,null,null,null,null,null,null,null,null,null,null,null,null,null,null,null,null,null,null,null,null,null,null,null,null,null,null,null,null,null,null,null,null,null,null,null,null,null,null,null,null,null,null,null,null,null,null,null,null,null,null,null,null,null,null,null,null,null,null,null,null,null,null,null,null,null,null,null,null,null,null,null,null,null,null,null,null,null,null,null,null,null,null,null,null,null,null,null,null,null,null,null,null,null,null,null,null,null,null,null,null,null,null,null,null,null,null,null,null,null,null,null,null,null,null,null,null,null,null,null,null,null,null,null,null,null,null,null,null,null,null,null,null,null,null,null,null,null,null,null,null,null,null,null,null,null,null,null,null,null,null,null,null,null,null,null,null,null,null,null,null,null,null,null,null,null,null,null,null,null,null,null,null,null,null,null,null,null,null,null,null,null,null,null,null,null,null,null,null,null,null,null,null,null,null,null,null,null,null,null,null,null,null,null,null,null,null,null,null,null,null,null,null,null,null,null,null,null,null,null,null,null,null,null,null,null,null,null,null,null,null,null,null,null,null,null,null,null,null,null,null,null,null,null,null,null,null,null,null,null,null,null,null,null,null,null,null,null,null,null,null,null,null,null,null,null,null,null,null,null,null,null,null,null,null,null,null,null,null,null,null,null,null,null,null,null,null,null,null,null,null,null,null,null,null,null,null,null,null,null,null,null,null,null,null,null,null,null,null,null,null,null,null,null,null,null,null,null,null,null,null,null,null,null,null,null,null,null,null,null,null,null,null,null,null,null,null,null,null,null,null,null,null,null,null,null,null,null,null,null,null,null,null,null,null,null,null,null,null,null,null,null,null,null,null,null,null,null,null,null,null,null,null,null,null,null,null,null,null,null,null,null,null,null,null,null,null,null,null,null,null,null,null,null,null,null,null,null,null,null,null,null,null,null,null,null,null,null,null,null,null,null,null,null,null,null,null,null,null,null,null,null,null,null,null,null,null,null,null,null,null,null,null,null,null,null,null,null,null,null,null,null,null,null,null,null,null,null,null,null,null,null,null,null,null,null,null,null,null,null,null,null,null,null,null,null,null,null,null,null,null,null,null,null,null,null,null,null,null,null,null,null,null,null,null,null,null,null,null,null,null,null,null,null,null,null,null,null,null,null,null,null,null,null,null,null,null,null,null,null,null,null,null,null,null,null,null,null,null,null,null,null,null,null,null,null,null,null,null,null,null,null,null,null,null,null,null,null,null,null,null,null,null,null,null,null,null,null,null,null,null,null,null,null,null,null,null,null,null,null,null,null,null,null,null,null,null,null,null,null,null,null,null,null,null,null,null,null,null,null,null,null,null,null,null,null,null,null,null,null,null,null,null,null,null,null,null,null,null,null,null,null,null,null,null,null,null,null,null,null,null,null,null,null,null,null,null,null,null,null,null,null,null,null,null,null,null,null,null,null,null,null,null,null,null,null,null,null,null,null,null,null,null,null,null,null,null,null,null,null,null,null,null,null,null,null,null,null,null,null,null,null,null,null,null,null,null,null,null,null,null,null,null,null,null,null,null,null,null,null,null,null,null,null,null,null,null,null,null,null,null,null,null,null,null,null,null,null,null,null,null,null,null,null,null,null,null,null,null,null,null,null,null,null,null,null,null,null,null,null,null,null,null,null,null,null,null,null,null,null,null,null,null,null,null,null,null,null,null,null,null,null,null,null,null,null,null,null,null,null,null,null,null,null,null,null,null,null,null,null,null,null,null,null,null,null,null,null,null,null,null,null,null,null,null,null,null,null,null,null,null,null,null,null,null,null,null,null,null,null,null,null,null,null,null,null,null,null,null,null,null,null,null,null,null,null,null,null,null,null,null,null,null,null,null,null,null,null,null,null,null,null,null,null,null,null,null,null,null,null,null,null,null,null,null,null,null,null,null,null,null,null,null,null,null,null,null,null,null,null,null,null,null,null,null,null,null,null,null,null,null,null,null,null,null,null,null,null,null,null,null,null,null,null,null,null,null,null,null,null,null,null,null,null,null,null,null,null,null,null,null,null,null,null,null,null,null,null,null,null,null,null,null,null,null,null,null,null,null,null,null,null,null,null,null,null,null,null,null,null,null,null,null,null,null,null,null,null,null,null,null,null,null,null,null,null,null,null,null,null,null,null,null,null,null,null,null,null,null,null,null,null,null,null,null,null,null,null,null,null,null,null,null,null,null,null,null,null,null,null,null,null,null,null,null,null,null,null,null,null,null,null,null,null,null,null,null,null,null,null,null,null,null,null,null,null,null,null,null,null,null,null,null,null,null,null,null,null,null,null,null,null,null,null,null,null,null,null,null,null,null,null,null,null,null,null,null,null,null,null,null,null,null,null,null,null,null,null,null,null,null,null,null,null,null,null,null,null,null,null,null,null,null,null,null,null,null,null,null,null,null,null,null,null,null,null,null,null,null,null,null,null,null,null,null,null,null,null,null,null,null,null,null,null,null,null,null,null,null,null,null,null,null,null,null,null,null,null,null,null,null,null,null,null,null,null,null,null,null,null,null,null,null,null,null,null,null,null,null,null,null,null,null,null,null,null,null,null,null,null,null,null,null,null,null,null,null,null,null,null,null,null,null,null,null,null,null,null,null,null,null,null,null,null,null,null,null,null,null,null,null,null,null,null,null,null,null,null,null,null,null,null,null,null,null,null,null,null,null,null,null,null,null,null,null,null,null,null,null,null,null,null,null,null,null,null,null,null,null,null,null,null,null,null,null,null,null,null,null,null,null,null,null,null,null,null,null,null,null,null,null,null,null,null,null,null,null,null,null,null,null,null,null,null,null,null,null,null,null,null,null,null,null,null,null,null,null,null,null,null,null,null,null,null,null,null,null,null,null,null,null,null,null,null,null,null,null,null,null,null,null,null,null,null,null,null,null,null,null,null,null,null,null,null,null,null,null,null,null,null,null,null,null,null,null,null,null,null,null,null,null,null,null,null,null,null,null,null,null,null,null,null,null,null,null,null,null,null,null,null,null,null,null,null,null,null,null,null,null,null,null,null,null,null,null,null,null,null,null,null,null,null,null,null,null,null,null,null,null,null,null,null,null,null,null,null,null,null,null,null,null,null,null,null,null,null,null,null,null,null,null,null,null,null,null,null,null,null,null,null,null,null,null,null,null,null,null,null,null,null,null,null,null,null,null,null,null,null,null,null,null,null,null,null,null,null,null,null,null,null,null,null,null,null,null,null,null,null,null,null,null,null,null,null,null,null,null,null,null,null,null,null,null,null,null,null,null,null,null,null,null,null,null,null,null,null,null,null,null,null,null,null,null,null,null,null,null,null,null,null,null,null,null,null,null,null,null,null,null,null,null,null,null,null,null,null,null,null,null,null,null,null,null,null,null,null,null,null,null,null,null,null,null,null,null,null,null,null,null,null,null,null,null,null,null,null,null,null,null,null,null,null,null,null,null,null,null,null,null,null,null,null,null,null,null,null,null,null,null,null,null,null,null,null,null,null,null,null,null,null,null,null,null,null,null,null,null,null,null,null,null,null,null,null,null,null,null,null,null,null,null,null,null,null,null,null,null,null,null,null,null,null,null,null,null,null,null,null,null,null,null,null,null,null,null,null,null,null,null,null,null,null,null,null,null,null,null,null,null,null,null,null,null,null,null,null,null,null,null,null,null,null,null,null,null,null,null,null,null,null,null,null,null,null,null,null,null,null,null,null,null,null,null,null,null,null,null,null,null,null,null,null,null,null,null,null,null,null,null,null,null,null,null,null,null,null,null,null,null,null,null,null,null,null,null,null,null,null,null,null,null,null,null,null,null,null,null,null,null,null,null,null,null,null,null,null,null,null,null,null,null,null,null,null,null,null,null,null,null,null,null,null,null,null,null,null,null,null,null,null,null,null,null,null,null,null,null,null,null,null,null,null,null,null,null,null,null,null,null,null,null,null,null,null,null,null,null,null,null,null,null,null,null,null,null,null,null,null,null,null,null,null,null,null,null,null,null,null,null,null,null,null,null,null,null,null,null,null,null,null,null,null,null,null,null,null,null,null,null,null,null,null,null,null,null,null,null,null,null,null,null,null,null,null,null,null,null,null,null,null,null,null,null,null,null,null,null,null,null,null,null,null,null,null,null,null,null,null,null,null,null,null,null,null,null,null,null,null,null,null,null,null,null,null,null,null,null,null,null,null,null,null,null,null,null,null,null,null,null,null,null,null,null,null,null,null,null,null,null,null,null,null,null,null,null,null,null,null,null,null,null,null,null,null,null,null,null,null,null,null,null,null,null,null,null,null,null,null,null,null,null,null,null,null,null,null,null,null,null,null,null,null,null,null,null,null,null,null,null,null,null,null,null,null,null,null,null,null,null,null,null,null,null,null,null,null,null,null,null,null,null,null,null,null,null,null,null,null,null,null,null,null,null,null,null,null,null,null,null,null,null,null,null,null,null,null,null,null,null,null,null,null,null,null,null,null,null,null,null,null,null,null,null,null,null,null,null,null,null,null,null,null,null,null,null,null,null,null,null,null,null,null,null,null,null,null,null,null,null,null,null,null,null,null,null,null,null,null,null,null,null,null,null,null,null,null,null,null,null,null,null,null,null,null,null,null,null,null,null,null,null,null,null,null,null,null,null,null,null,null,null,null,null,null,null,null,null,null,null,null,null,null,null,null,null,null,null,null,null,null,null,null,null,null,null,null,null,null,null,null,null,null,null,null,null,null,null,null,null,null,null,null,null,null,null,null,null,null,null,null,null,null,null,null,null,null,null,null,null,null,null,null,null,null,null,null,null,null,null,null,null,null,null,null,null,null,null,null,null,null,null,null,null,null,null,null,null,null,null,null,null,null,null,null,null,null,null,null,null,null,null,null,null,null,null,null,null,null,null,null,null,null,null,null,null,null,null,null,null,null,null,null,null,null,null,null,null,null,null,null,null,null,null,null,null,null,null,null,null,null,null,null,null,null,null,null,null,null,null,null,null,null,null,null,null,null,null,null,null,null,null,null,null,null,null,null,null,null,null,null,null,null,null,null,null,null,null,null,null,null,null,null,null,null,null,null,null,null,null,null,null,null,null,null,null,null,null,null,null,null,null,null,null,null,null,null,null,null,null,null,null,null,null,null,null,null,null,null,null,null,null,null,null,null,null,null,null,null,null,null,null,null,null,null,null,null,null,null,null,null,null,null,null,null,null,null,null,null,null,null,null,null,null,null,null,null,null,null,null,null,null,null,null,null,null,null,null,null,null,null,null,null,null,null,null,null,null,null,null,null,null,null,null,null,null,null,null,null,null,null,null,null,null,null,null,null,null,null,null,null,null,null,null,null,null,null,null,null,null,null,null,null,null,null,null,null,null,null,null,null,null,null,null,null,null,null,null,null,null,null,null,null,null,null,null,null,null,null,null,null,null,null,null,null,null,null,null,null,null,null,null,null,null,null,null,null,null,null,null,null,null,null,null,null,null,null,null,null,null,null,null,null,null,null,null,null,null,null,null,null,null,null,null,null,null,null,null,null,null,null,null,null,null,null,null,null,null,null,null,null,null,null,null,null,null,null,null,null,null,null,null,null,null,null,null,null,null,null,null,null,null,null,null,null,null,null,null,null,null,null,null,null,null,null,null,null,null,null,null,null,null,null,null,null,null,null,null,null,null,null,null,null,null,null,null,null,null,null,null,null,null,null,null,null,null,null,null,null,null,null,null,null,null,null,null,null,null,null,null,null,null,null,null,null,null,null,null,null,null,null,null,null,null,null,null,null,null,null,null,null,null,null,null,null,null,null,null,null,null,null,null,null,null,null,null,null,null,null,null,null,null,null,null,null,null,null,null,null,null,null,null,null,null,null,null,null,null,null,null,null,null,null,null,null,null,null,null,null,null,null,null,null,null,null,null,null,null,null,null,null,null,null,null,null,null,null,null,null,null,null,null,null,null,null,null,null,null,null,null,null,null,null,null,null,null,null,null,null,null,null,null,null,null,null,null,null,null,null,null,null,null,null,null,null,null,null,null,null,null,null,null,null,null,null,null,null,null,null,null,null,null,null,null,null,null,null,null,null,null,null,null,null,null,null,null,null,null,null,null,null,null,null,null,null,null,null,null,null,null,null,null,null,null,null,null,null,null,null,null,null,null,null,null,null,null,null,null,null,null,null,null,null,null,null,null,null,null,null,null,null,null,null,null,null,null,null,null,null,null,null,null,null,null,null,null,null,null,null,null,null,null,null,null,null,null,null,null,null,null,null,null,null,null,null,null,null,null,null,null,null,null,null,null,null,null,null,null,null,null,null,null,null,null,null,null,null,null,null,null,null,null,null,null,null,null,null,null,null,null,null,null,null,null,null,null,null,null,null,null,null,null,null,null,null,null,null,null,null,null,null,null,null,null,null,null,null,null,null,null,null,null,null,null,null,null,null,null,null,null,null,null,null,null,null,null,null,null,null,null,null,null,null,null,null,null,null,null,null,null,null,null,null,null,null,null,null,null,null,null,null,null,null,null,null,null,null,null,null,null,null,null,null,null,null,null,null,null,null,null,null,null,null,null,null,null,null,null,null,null,null,null,null,null,null,null,null,null,null,null,null,null,null,null,null,null,null,null,null,null,null,null,null,null,null,null,null,null,null,null,null,null,null,null,null,null,null,null,null,null,null,null,null,null,null,null,null,null,null,null,null,null,null,null,null,null,null,null,null,null,null,null,null,null,null,null,null,null,null,null,null,null,null,null,null,null,null,null,null,null,null,null,null,null,null,null,null,null,null,null,null,null,null,null,null,null,null,null,null,null,null,null,null,null,null,null,null,null,null,null,null,null,null,null,null,null,null,null,null,null,null,null,null,null,null,null,null,null,null,null,null,null,null,null,null,null,null,null,null,null,null,null,null,null,null,null,null,null,null,null,null,null,null,null,null,null,null,null,null,null,null,null,null,null,null,null,null,null,null,null,null,null,null,null,null,null,null,null,null,null,null,null,null,null,null,null,null,null,null,null,null,null,null,null,null,null,null,null,null,null,null,null,null,null,null,null,null,null,null,null,null,null,null,null,null,null,null,null,null,null,null,null,null,null,null,null,null,null,null,null,null,null,null,null,null,null,null,null,null,null,null,null,null,null,null,null,null,null,null,null,null,null,null,null,null,null,null,null,null,null,null,null,null,null,null,null,null,null,null,null,null,null,null,null,null,null,null,null,null,null,null,null,null,null,null,null,null,null,null,null,null,null,null,null,null,null,null,null,null,null,null,null,null,null,null,null,null,null,null,null,null,null,null,null,null,null,null,null,null,null,null,null,null,null,null,null,null,null,null,null,null,null,null,null,null,null,null,null,null,null,null,null,null,null,null,null,null,null,null,null,null,null,null,null,null,null,null,null,null,null,null,null,null,null,null,null,null,null,null,null,null,null,null,null,null,null,null,null,null,null,null,null,null,null,null,null,null,null,null,null,null,null,null,null,null,null,null,null,null,null,null,null,null,null,null,null,null,null,null,null,null,null,null,null,null,null,null,null,null,null,null,null,null,null,null,null,null,null,null,null,null,null,null,null,null,null,null,null,null,null,null,null,null,null,null,null,null,null,null,null,null,null,null,null,null,null,null,null,null,null,null,null,null,null,null,null,null,null,null,null,null,null,null,null,null,null,null,null,null,null,null,null,null,null,null,null,null,null,null,null,null,null,null,null,null,null,null,null,null,null,null,null,null,null,null,null,null,null,null,null,null,null,null,null,null,null,null,null,null,null,null,null,null,null,null,null,null,null,null,null,null,null,null,null,null,null,null,null,null,null,null,null,null,null,null,null,null,null,null,null,null,null,null,null,null,null,null,null,null,null,null,null,null,null,null,null,null,null,null,null,null,null,null,null,null,null,null,null,null,null,null,null,null,null,null,null,null,null,null,null,null,null,null,null,null,null,null,null,null,null,null,null,null,null,null,null,null,null,null,null,null,null,null,null,null,null,null,null,null,null,null,null,null,null,null,null,null,null,null,null,null,null,null,null,null,null,null,null,null,null,null,null,null,null,null,null,null,null,null,null,null,null,null,null,null,null,null,null,null,null,null,null,null,null,null,null,null,null,null,null,null,null,null,null,null,null,null,null,null,null,null,null,null,null,null,null,null,null,null,null,null,null,null,null,null,null,null,null,null,null,null,null,null,null,null,null,null,null,null,null,null,null,null,null,null,null,null,null,null,null,null,null,null,null,null,null,null,null,null,null,null,null,null,null,null,null,null,null,null,null,null,null,null,null,null,null,null,null,null,null,null,null,null,null,null,null,null,null,null,null,null,null,null,null,null,null,null,null,null,null,null,null,null,null,null,null,null,null,null,null,null,null,null,null,null,null,null,null,null,null,null,null,null,null,null,null,null,null,null,null,null,null,null,null,null,null,null,null,null,null,null,null,null,null,null,null,null,null,null,null,null,null,null,null,null,null,null,null,null,null,null,null,null,null,null,null,null,null,null,null,null,null,null,null,null,null,null,null,null,null,null,null,null,null,null,null,null,null,null,null,null,null,null,null,null,null,null,null,null,null,null,null,null,null,null,null,null,null,null,null,null,null,null,null,null,null,null,null,null,null,null,null,null,null,null,null,null,null,null,null,null,null,null,null,null,null,null,null,null,null,null,null,null,null,null,null,null,null,null,null,null,null,null,null,null,null,null,null,null,null,null,null,null,null,null,null,null,null,null,null,null,null,null,null,null,null,null,null,null,null,null,null,null,null,null,null,null,null,null,null,null,null,null,null,null,null,null,null,null,null,null,null,null,null,null,null,null,null,null,null,null,null,null,null,null,null,null,null,null,null,null,null,null,null,null,null,null,null,null,null,null,null,null,null,null,null,null,null,null,null,null,null,null,null,null,null,null,null,null,null,null,null,null,null,null,null,null,null,null,null,null,null,null,null,null,null,null,null,null,null,null,null,null,null,null,null,null,null,null,null,null,null,null,null,null,null,null,null,null,null,null,null,null,null,null,null,null,null,null,null,null,null,null,null,null,null,null,null,null,null,null,null,null,null,null,null,null,null,null,null,null,null,null,null,null,null,null,null,null,null,null,null,null,null,null,null,null,null,null,null,null,null,null,null,null,null,null,null,null,null,null,null,null,null,null,null,null,null,null,null,null,null,null,null,null,null,null,null,null,null,null,null,null,null,null,null,null,null,null,null,null,null,null,null,null,null,null,null,null,null,null,null,null,null,null,null,null,null,null,null,null,null,null,null,null,null,null,null,null,null,null,null,null,null,null,null,null,null,null,null,null,null,null,null,null,null,null,null,null,null,null,null,null,null,null,null,null,null,null,null,null,null,null,null,null,null,null,null,null,null,null,null,null,null,null,null,null,null,null,null,null,null,null,null,null,null,null,null,null,null,null,null,null,null,null,null,null,null,null,null,null,null,null,null,null,null,null,null,null,null,null,null,null,null,null,null,null,null,null,null,null,null,null,null,null,null,null,null,null,null,null,null,null,null,null,null,null,null,null,null,null,null,null,null,null,null,null,null,null,null,null,null,null,null,null,null,null,null,null,null,null,null,null,null,null,null,null,null,null,null,null,null,null,null,null,null,null,null,null,null,null,null,null,null,null,null,null,null,null,null,null,null,null,null,null,null,null,null,null,null,null,null,null,null,null,null,null,null,null,null,null,null,null,null,null,null,null,null,null,null,null,null,null,null,null,null,null,null,null,null,null,null,null,null,null,null,null,null,null,null,null,null,null,null,null,null,null,null,null,null,null,null,null,null,null,null,null,null,null,null,null,null,null,null,null,null,null,null,null,null,null,null,null,null,null,null,null,null,null,null,null,null,null,null,null,null,null,null,null,null,null,null,null,null,null,null,null,null,null,null,null,null,null,null,null,null,null,null,null,null,null,null,null,null,null,null,null,null,null,null,null,null,null,null,null,null,null,null,null,null,null,null,null,null,null,null,null,null,null,null,null,null,null,null,null,null,null,null,null,null,null,null,null,null,null,null,null,null,null,null,null,null,null,null,null,null,null,null,null,null,null,null,null,null,null,null,null,null,null,null,null,null,null,null,null,null,null,null,null,null,null,null,null,null,null,null,null,null,null,null,null,null,null,null,null,null,null,null,null,null,null,null,null,null,null,null,null,null,null,null,null,null,null,null,null,null,null,null,null,null,null,null,null,null,null,null,null,null,null,null,null,null,null,null,null,null,null,null,null,null,null,null,null,null,null,null,null,null,null,null,null,null,null,null,null,null,null,null,null,null,null,null,null,null,null,null,null,null,null,null,null,null,null,null,null,null,null,null,null,null,null,null,null,null,null,null,null,null,null,null,null,null,null,null,null,null,null,null,null,null,null,null,null,null,null,null,null,null,null,null,null,null,null,null,null,null,null,null,null,null,null,null,null,null,null,null,null,null,null,null,null,null,null,null,null,null,null,null,null,null,null,null,null,null,null,null,null,null,null,null,null,null,null,null,null,null,null,null,null,null,null,null,null,null,null,null,null,null,null,null,null,null,null,null,null,null,null,null,null,null,null,null,null,null,null,null,null,null,null,null,null,null,null,null,null,null,null,null,null,null,null,null,null,null,null,null,null,null,null,null,null,null,null,null,null,null,null,null,null,null,null,null,null,null,null,null,null,null,null,null,null,null,null,null,null,null,null,null,null,null,null,null,null,null,null,null,null,null,null,null,null,null,null,null,null,null,null,null,null,null,null,null,null,null,null,null,null,null,null,null,null,null,null,null,null,null,null,null,null,null,null,null,null,null,null,null,null,null,null,null,null,null,null,null,null,null,null,null,null,null,null,null,null,null,null,null,null,null,null,null,null,null,null,null,null,null,null,null,null,null,null,null,null,null,null,null,null,null,null,null,null,null,null,null,null,null,null,null,null,null,null,null,null,null,null,null,null,null,null,null,null,null,null,null,null,null,null,null,null,null,null,null,null,null,null,null,null,null,null,null,null,null,null,null,null,null,null,null,null,null,null,null,null,null,null,null,null,null,null,null,null,null,null,null,null,null,null,null,null,null,null,null,null,null,null,null,null,null,null,null,null,null,null,null,null,null,null,null,null,null,null,null,null,null,null,null,null,null,null,null,null,null,null,null,null,null,null,null,null,null,null,null,null,null,null,null,null,null,null,null,null,null,null,null,null,null,null,null,null,null,null,null,null,null,null,null,null,null,null,null,null,null,null,null,null,null,null,null,null,null,null,null,null,null,null,null,null,null,null,null,null,null,null,null,null,null,null,null,null,null,null,null,null,null,null,null,null,null,null,null,null,null,null,null,null,null,null,null,null,null,null,null,null,null,null,null,null,null,null,null,null,null,null,null,null,null,null,null,null,null,null,null,null,null,null,null,null,null,null,null,null,null,null,null,null,null,null,null,null,null,null,null,null,null,null,null,null,null,null,null,null,null,null,null,null,null,null,null,null,null,null,null,null,null,null,null,null,null,null,null,null,null,null,null,null,null,null,null,null,null,null,null,null,null,null,null,null,null,null,null,null,null,null,null,null,null,null,null,null,null,null,null,null,null,null,null,null,null,null,null,null,null,null,null,null,null,null,null,null,null,null,null,null,null,null,null,null,null,null,null,null,null,null,null,null,null,null,null,null,null,null,null,null,null,null,null,null,null,null,null,null,null,null,null,null,null,null,null,null,null,null,null,null,null,null,null,null,null,null,null,null,null,null,null,null,null,null,null,null,null,null,null,null,null,null,null,null,null,null,null,null,null,null,null,null,null,null,null,null,null,null,null,null,null,null,null,null,null,null,null,null,null,null,null,null,null,null,null,null,null,null,null,null,null,null,null,null,null,null,null,null,null,null,null,null,null,null,null,null,null,null,null,null,null,null,null,null,null,null,null,null,null,null,null,null,null,null,null,null,null,null,null,null,null,null,null,null,null,null,null,null,null,null,null,null,null,null,null,null,null,null,null,null,null,null,null,null,null,null,null,null,null,null,null,null,null,null,null,null,null,null,null,null,null,null,null,null,null,null,null,null,null,null,null,null,null,null,null,null,null,null,null,null,null,null,null,null,null,null,null,null,null,null,null,null,null,null,null,null,null,null,null,null,null,null,null,null,null,null,null,null,null,null,null,null,null,null,null,null,null,null,null,null,null,null,null,null,null,null,null,null,null,null,null,null,null,null,null,null,null,null,null,null,null,null,null,null,null,null,null,null,null,null,null,null,null,null,null,null,null,null,null,null,null,null,null,null,null,null,null,null,null,null,null,null,null,null,null,null,null,null,null,null,null,null,null,null,null,null,null,null,null,null,null,null,null,null,null,null,null,null,null,null,null,null,null,null,null,null,null,null,null,null,null,null,null,null,null,null,null,null,null,null,null,null,null,null,null,null,null,null,null,null,null,null,null,null,null,null,null,null,null,null,null,null,null,null,null,null,null,null,null,null,null,null,null,null,null,null,null,null,null,null,null,null,null,null,null,null,null,null,null,null,null,null,null,null,null,null,null,null,null,null,null,null,null,null,null,null,null,null,null,null,null,null,null,null,null,null,null,null,null,null,null,null,null,null,null,null,null,null,null,null,null,null,null,null,null,null,null,null,null,null,null,null,null,null,null,null,null,null,null,null,null,null,null,null,null,null,null,null,null,null,null,null,null,null,null,null,null,null,null,null,null,null,null,null,null,null,null,null,null,null,null,null,null,null,null,null,null,null,null,null,null,null,null,null,null,null,null,null,null,null,null,null,null,null,null,null,null,null,null,null,null,null,null,null,null,null,null,null,null,null,null,null,null,null,null,null,null,null,null,null,null,null,null,null,null,null,null,null,null,null,null,null,null,null,null,null,null,null,null,null,null,null,null,null,null,null,null,null,null,null,null,null,null,null,null,null,null,null,null,null,null,null,null,null,null,null,null,null,null,null,null,null,null,null,null,null,null,null,null,null,null,null,null,null,null,null,null,null,null,null,null,null,null,null,null,null,null,null,null,null,null,null,null,null,null,null,null,null,null,null,null,null,null,null,null,null,null,null,null,null,null,null,null,null,null,null,null,null,null,null,null,null,null,null,null,null,null,null,null,null,null,null,null,null,null,null,null,null,null,null,null,null,null,null,null,null,null,null,null,null,null,null,null,null,null,null,null,null,null,null,null,null,null,null,null,null,null,null,null,null,null,null,null,null,null,null,null,null,null,null,null,null,null,null,null,null,null,null,null,null,null,null,null,null,null,null,null,null,null,null,null,null,null,null,null,null,null,null,null,null,null,null,null,null,null,null,null,null,null,null,null,null,null,null,null,null,null,null,null,null,null,null,null,null,null,null,null,null,null,null,null,null,null,null,null,null,null,null,null,null,null,null,null,null,null,null,null,null,null,null,null,null,null,null,null,null,null,null,null,null,null,null,null,null,null,null,null,null,null,null,null,null,null,null,null,null,null,null,null,null,null,null,null,null,null,null,null,null,null,null,null,null,null,null,null,null,null,null,null,null,null,null,null,null,null,null,null,null,null,null,null,null,null,null,null,null,null,null,null,null,null,null,null,null,null,null,null,null,null,null,null,null,null,null,null,null,null,null,null,null,null,null,null,null,null,null,null,null,null,null,null,null,null,null,null,null,null,null,null,null,null,null,null,null,null,null,null,null,null,null,null,null,null,null,null,null,null,null,null,null,null,null,null,null,null,null,null,null,null,null,null,null,null,null,null,null,null,null,null,null,null,null,null,null,null,null,null,null,null,null,null,null,null,null,null,null,null,null,null,null,null,null,null,null,null,null,null,null,null,null,null,null,null,null,null,null,null,null,null,null,null,null,null,null,null,null,null,null,null,null,null,null,null,null,null,null,null,null,null,null,null,null,null,null,null,null,null,null,null,null,null,null,null,null,null,null,null,null,null,null,null,null,null,null,null,null,null,null,null,null,null,null,null,null,null,null,null,null,null,null,null,null,null,null,null,null,null,null,null,null,null,null,null,null,null,null,null,null,null,null,null,null,null,null,null,null,null,null,null,null,null,null,null,null,null,null,null,null,null,null,null,null,null,null,null,null,null,null,null,null,null,null,null,null,null,null,null,null,null,null,null,null,null,null,null,null,null,null,null,null,null,null,null,null,null,null,null,null,null,null,null,null,null,null,null,null,null,null,null,null,null,null,null,null,null,null,null,null,null,null,null,null,null,null,null,null,null,null,null,null,null,null,null,null,null,null,null,null,null,null,null,null,null,null,null,null,null,null,null,null,null,null,null,null,null,null,null,null,null,null,null,null,null,null,null,null,null,null,null,null,null,null,null,null,null,null,null,null,null,null,null,null,null,null,null,null,null,null,null,null,null,null,null,null,null,null,null,null,null,null,null,null,null,null,null,null,null,null,null,null,null,null,null,null,null,null,null,null,null,null,null,null,null,null,null,null,null,null,null,null,null,null,null,null,null,null,null,null,null,null,null,null,null,null,null,null,null,null,null,null,null,null,null,null,null,null,null,null,null,null,null,null,null,null,null,null,null,null,null,null,null,null,null,null,null,null,null,null,null,null,null,null,null,null,null,null,null,null,null,null,null,null,null,null,null,null,null,null,null,null,null,null,null,null,null,null,null,null,null,null,null,null,null,null,null,null,null,null,null,null,null,null,null,null,null,null,null,null,null,null,null,null,null,null,null,null,null,null,null,null,null,null,null,null,null,null,null,null,null,null,null,null,null,null,null,null,null,null,null,null,null,null,null,null,null,null,null,null,null,null,null,null,null,null,null,null,null,null,null,null,null,null,null,null,null,null,null,null,null,null,null,null,null,null,null,null,null,null,null,null,null,null,null,null,null,null,null,null,null,null,null,null,null,null,null,null,null,null,null,null,null,null,null,null,null,null,null,null,null,null,null,null,null,null,null,null,null,null,null,null,null,null,null,null,null,null,null,null,null,null,null,null,null,null,null,null,null,null,null,null,null,null,null,null,null,null,null,null,null,null,null,null,null,null,null,null,null,null,null,null,null,null,null,null,null,null,null,null,null,null,null,null,null,null,null,null,null,null,null,null,null,null,null,null,null,null,null,null,null,null,null,null,null,null,null,null,null,null,null,null,null,null,null,null,null,null,null,null,null,null,null,null,null,null,null,null,null,null,null,null,null,null,null,null,null,null,null,null,null,null,null,null,null,null,null,null,null,null,null,null,null,null,null,null,null,null,null,null,null,null,null,null,null,null,null,null,null,null,null,null,null,null,null,null,null,null,null,null,null,null,null,null,null,null,null,null,null,null,null,null,null,null,null,null,null,null,null,null,null,null,null,null,null,null,null,null,null,null,null,null,null,null,null,null,null,null,null,null,null,null,null,null,null,null,null,null,null,null,null,null,null,null,null,null,null,null,null,null,null,null,null,null,null,null,null,null,null,null,null,null,null,null,null,null,null,null,null,null,null,null,null,null,null,null,null,null,null,null,null,null,null,null,null,null,null,null,null,null,null,null,null,null,null,null,null,null,null,null,null,null,null,null,null,null,null,null,null,null,null,null,null,null,null,null,null,null,null,null,null,null,null,null,null,null,null,null,null,null,null,null,null,null,null,null,null,null,null,null,null,null,null,null,null,null,null,null,null,null,null,null,null,null,null,null,null,null,null,null,null,null,null,null,null,null,null,null,null,null,null,null,null,null,null,null,null,null,null,null,null,null,null,null,null,null,null,null,null,null,null,null,null,null,null,null,null,null,null,null,null,null,null,null,null,null,null,null,null,null,null,null,null,null,null,null,null,null,null,null,null,null,null,null,null,null,null,null,null,null,null,null,null,null,null,null,null,null,null,null,null,null,null,null,null,null,null,null,null,null,null,null,null,null,null,null,null,null,null,null,null,null,null,null,null,null,null,null,null,null,null,null,null,null,null,null,null,null,null,null,null,null,null,null,null,null,null,null,null,null,null,null,null,null,null,null,null,null,null,null,null,null,null,null,null,null,null,null,null,null,null,null,null,null,null,null,null,null,null,null,null,null,null,null,null,null,null,null,null,null,null,null,null,null,null,null,null,null,null,null,null,null,null,null,null,null,null,null,null,null,null,null,null,null,null,null,null,null,null,null,null,null,null,null,null,null,null,null,null,null,null,null,null,null,null,null,null,null,null,null,null,null,null,null,null,null,null,null,null,null,null,null,null,null,null,null,null,null,null,null,null,null,null,null,null,null,null,null,null,null,null,null,null,null,null,null,null,null,null,null,null,null,null,null,null,null,null,null,null,null,null,null,null,null,null,null,null,null,null,null,null,null,null,null,null,null,null,null,null,null,null,null,null,null,null,null,null,null,null,null,null,null,null,null,null,null,null,null,null,null,null,null,null,null,null,null,null,null,null,null,null,null,null,null,null,null,null,null,null,null,null,null,null,null,null,null,null,null,null,null,null,null,null,null,null,null,null,null,null,null,null,null,null,null,null,null,null,null,null,null,null,null,null,null,null,null,null,null,null,null,null,null,null,null,null,null,null,null,null,null,null,null,null,null,null,null,null,null,null,null,null,null,null,null,null,null,null,null,null,null,null,null,null,null,null,null,null,null,null,null,null,null,null,null,null,null,null,null,null,null,null,null,null,null,null,null,null,null,null,null,null,null,{"$f":"IF(OR(I9=\"\",I10=\"\",I11=\"\",I13=\"\",I14=\"\",I15=\"\",B20=\"\",G23=\"\",E24=\"\",E25=\"\",E26=\"\",E27=\"\",E28=\"\",B31=\"\",B34=\"\",B38=\"\",B43=\"\",B46=\"\"),\"記載が不足した項目があるため、届出できません！\",\"\")","v":""}]
[null,null,null,null,null,null,null,null,null,null,null,null,null,null,null,null,null,null,null,null,null,null,null,null,null,null,null,null,null,null,null,null,null,null,null,null,null,null,null,null,null,null,null,null,null,null,null,null,null,null,null,null,null,null,null,null,null,null,null,null,null,null,null,null,null,null,null,null,null,null,null,null,null,null,null,null,null,null,null,null,null,null,null,null,null,null,null,null,null,null,null,null,null,null,null,null,null,null,null,null,null,null,null,null,null,null,null,null,null,null,null,null,null,null,null,null,null,null,null,null,null,null,null,null,null,null,null,null,null,null,null,null,null,null,null,null,null,null,null,null,null,null,null,null,null,null,null,null,null,null,null,null,null,null,null,null,null,null,null,null,null,null,null,null,null,null,null,null,null,null,null,null,null,null,null,null,null,null,null,null,null,null,null,null,null,null,null,null,null,null,null,null,null,null,null,null,null,null,null,null,null,null,null,null,null,null,null,null,null,null,null,null,null,null,null,null,null,null,null,null,null,null,null,null,null,null,null,null,null,null,null,null,null,null,null,null,null,null,null,null,null,null,null,null,null,null,null,null,null,null,null,null,null,null,null,null,null,null,null,null,null,null,null,null,null,null,null,null,null,null,null,null,null,null,null,null,null,null,null,null,null,null,null,null,null,null,null,null,null,null,null,null,null,null,null,null,null,null,null,null,null,null,null,null,null,null,null,null,null,null,null,null,null,null,null,null,null,null,null,null,null,null,null,null,null,null,null,null,null,null,null,null,null,null,null,null,null,null,null,null,null,null,null,null,null,null,null,null,null,null,null,null,null,null,null,null,null,null,null,null,null,null,null,null,null,null,null,null,null,null,null,null,null,null,null,null,null,null,null,null,null,null,null,null,null,null,null,null,null,null,null,null,null,null,null,null,null,null,null,null,null,null,null,null,null,null,null,null,null,null,null,null,null,null,null,null,null,null,null,null,null,null,null,null,null,null,null,null,null,null,null,null,null,null,null,null,null,null,null,null,null,null,null,null,null,null,null,null,null,null,null,null,null,null,null,null,null,null,null,null,null,null,null,null,null,null,null,null,null,null,null,null,null,null,null,null,null,null,null,null,null,null,null,null,null,null,null,null,null,null,null,null,null,null,null,null,null,null,null,null,null,null,null,null,null,null,null,null,null,null,null,null,null,null,null,null,null,null,null,null,null,null,null,null,null,null,null,null,null,null,null,null,null,null,null,null,null,null,null,null,null,null,null,null,null,null,null,null,null,null,null,null,null,null,null,null,null,null,null,null,null,null,null,null,null,null,null,null,null,null,null,null,null,null,null,null,null,null,null,null,null,null,null,null,null,null,null,null,null,null,null,null,null,null,null,null,null,null,null,null,null,null,null,null,null,null,null,null,null,null,null,null,null,null,null,null,null,null,null,null,null,null,null,null,null,null,null,null,null,null,null,null,null,null,null,null,null,null,null,null,null,null,null,null,null,null,null,null,null,null,null,null,null,null,null,null,null,null,null,null,null,null,null,null,null,null,null,null,null,null,null,null,null,null,null,null,null,null,null,null,null,null,null,null,null,null,null,null,null,null,null,null,null,null,null,null,null,null,null,null,null,null,null,null,null,null,null,null,null,null,null,null,null,null,null,null,null,null,null,null,null,null,null,null,null,null,null,null,null,null,null,null,null,null,null,null,null,null,null,null,null,null,null,null,null,null,null,null,null,null,null,null,null,null,null,null,null,null,null,null,null,null,null,null,null,null,null,null,null,null,null,null,null,null,null,null,null,null,null,null,null,null,null,null,null,null,null,null,null,null,null,null,null,null,null,null,null,null,null,null,null,null,null,null,null,null,null,null,null,null,null,null,null,null,null,null,null,null,null,null,null,null,null,null,null,null,null,null,null,null,null,null,null,null,null,null,null,null,null,null,null,null,null,null,null,null,null,null,null,null,null,null,null,null,null,null,null,null,null,null,null,null,null,null,null,null,null,null,null,null,null,null,null,null,null,null,null,null,null,null,null,null,null,null,null,null,null,null,null,null,null,null,null,null,null,null,null,null,null,null,null,null,null,null,null,null,null,null,null,null,null,null,null,null,null,null,null,null,null,null,null,null,null,null,null,null,null,null,null,null,null,null,null,null,null,null,null,null,null,null,null,null,null,null,null,null,null,null,null,null,null,null,null,null,null,null,null,null,null,null,null,null,null,null,null,null,null,null,null,null,null,null,null,null,null,null,null,null,null,null,null,null,null,null,null,null,null,null,null,null,null,null,null,null,null,null,null,null,null,null,null,null,null,null,null,null,null,null,null,null,null,null,null,null,null,null,null,null,null,null,null,null,null,null,null,null,null,null,null,null,null,null,null,null,null,null,null,null,null,null,null,null,null,null,null,null,null,null,null,null,null,null,null,null,null,null,null,null,null,null,null,null,null,null,null,null,null,null,null,null,null,null,null,null,null,null,null,null,null,null,null,null,null,null,null,null,null,null,null,null,null,null,null,null,null,null,null,null,null,null,null,null,null,null,null,null,null,null,null,null,null,null,null,null,null,null,null,null,null,null,null,null,null,null,null,null,null,null,null,null,null,null,null,null,null,null,null,null,null,null,null,null,null,null,null,null,null,null,null,null,null,null,null,null,null,null,null,null,null,null,null,null,null,null,null,null,null,null,null,null,null,null,null,null,null,null,null,null,null,null,null,null,null,null,null,null,null,null,null,null,null,null,null,null,null,null,null,null,null,null,null,null,null,null,null,null,null,null,null,null,null,null,null,null,null,null,null,null,null,null,null,null,null,null,null,null,null,null,null,null,null,null,null,null,null,null,null,null,null,null,null,null,null,null,null,null,null,null,null,null,null,null,null,null,null,null,null,null,null,null,null,null,null,null,null,null,null,null,null,null,null,null,null,null,null,null,null,null,null,null,null,null,null,null,null,null,null,null,null,null,null,null,null,null,null,null,null,null,null,null,null,null,null,null,null,null,null,null,null,null,null,null,null,null,null,null,null,null,null,null,null,null,null,null,null,null,null,null,null,null,null,null,null,null,null,null,null,null,null,null,null,null,null,null,null,null,null,null,null,null,null,null,null,null,null,null,null,null,null,null,null,null,null,null,null,null,null,null,null,null,null,null,null,null,null,null,null,null,null,null,null,null,null,null,null,null,null,null,null,null,null,null,null,null,null,null,null,null,null,null,null,null,null,null,null,null,null,null,null,null,null,null,null,null,null,null,null,null,null,null,null,null,null,null,null,null,null,null,null,null,null,null,null,null,null,null,null,null,null,null,null,null,null,null,null,null,null,null,null,null,null,null,null,null,null,null,null,null,null,null,null,null,null,null,null,null,null,null,null,null,null,null,null,null,null,null,null,null,null,null,null,null,null,null,null,null,null,null,null,null,null,null,null,null,null,null,null,null,null,null,null,null,null,null,null,null,null,null,null,null,null,null,null,null,null,null,null,null,null,null,null,null,null,null,null,null,null,null,null,null,null,null,null,null,null,null,null,null,null,null,null,null,null,null,null,null,null,null,null,null,null,null,null,null,null,null,null,null,null,null,null,null,null,null,null,null,null,null,null,null,null,null,null,null,null,null,null,null,null,null,null,null,null,null,null,null,null,null,null,null,null,null,null,null,null,null,null,null,null,null,null,null,null,null,null,null,null,null,null,null,null,null,null,null,null,null,null,null,null,null,null,null,null,null,null,null,null,null,null,null,null,null,null,null,null,null,null,null,null,null,null,null,null,null,null,null,null,null,null,null,null,null,null,null,null,null,null,null,null,null,null,null,null,null,null,null,null,null,null,null,null,null,null,null,null,null,null,null,null,null,null,null,null,null,null,null,null,null,null,null,null,null,null,null,null,null,null,null,null,null,null,null,null,null,null,null,null,null,null,null,null,null,null,null,null,null,null,null,null,null,null,null,null,null,null,null,null,null,null,null,null,null,null,null,null,null,null,null,null,null,null,null,null,null,null,null,null,null,null,null,null,null,null,null,null,null,null,null,null,null,null,null,null,null,null,null,null,null,null,null,null,null,null,null,null,null,null,null,null,null,null,null,null,null,null,null,null,null,null,null,null,null,null,null,null,null,null,null,null,null,null,null,null,null,null,null,null,null,null,null,null,null,null,null,null,null,null,null,null,null,null,null,null,null,null,null,null,null,null,null,null,null,null,null,null,null,null,null,null,null,null,null,null,null,null,null,null,null,null,null,null,null,null,null,null,null,null,null,null,null,null,null,null,null,null,null,null,null,null,null,null,null,null,null,null,null,null,null,null,null,null,null,null,null,null,null,null,null,null,null,null,null,null,null,null,null,null,null,null,null,null,null,null,null,null,null,null,null,null,null,null,null,null,null,null,null,null,null,null,null,null,null,null,null,null,null,null,null,null,null,null,null,null,null,null,null,null,null,null,null,null,null,null,null,null,null,null,null,null,null,null,null,null,null,null,null,null,null,null,null,null,null,null,null,null,null,null,null,null,null,null,null,null,null,null,null,null,null,null,null,null,null,null,null,null,null,null,null,null,null,null,null,null,null,null,null,null,null,null,null,null,null,null,null,null,null,null,null,null,null,null,null,null,null,null,null,null,null,null,null,null,null,null,null,null,null,null,null,null,null,null,null,null,null,null,null,null,null,null,null,null,null,null,null,null,null,null,null,null,null,null,null,null,null,null,null,null,null,null,null,null,null,null,null,null,null,null,null,null,null,null,null,null,null,null,null,null,null,null,null,null,null,null,null,null,null,null,null,null,null,null,null,null,null,null,null,null,null,null,null,null,null,null,null,null,null,null,null,null,null,null,null,null,null,null,null,null,null,null,null,null,null,null,null,null,null,null,null,null,null,null,null,null,null,null,null,null,null,null,null,null,null,null,null,null,null,null,null,null,null,null,null,null,null,null,null,null,null,null,null,null,null,null,null,null,null,null,null,null,null,null,null,null,null,null,null,null,null,null,null,null,null,null,null,null,null,null,null,null,null,null,null,null,null,null,null,null,null,null,null,null,null,null,null,null,null,null,null,null,null,null,null,null,null,null,null,null,null,null,null,null,null,null,null,null,null,null,null,null,null,null,null,null,null,null,null,null,null,null,null,null,null,null,null,null,null,null,null,null,null,null,null,null,null,null,null,null,null,null,null,null,null,null,null,null,null,null,null,null,null,null,null,null,null,null,null,null,null,null,null,null,null,null,null,null,null,null,null,null,null,null,null,null,null,null,null,null,null,null,null,null,null,null,null,null,null,null,null,null,null,null,null,null,null,null,null,null,null,null,null,null,null,null,null,null,null,null,null,null,null,null,null,null,null,null,null,null,null,null,null,null,null,null,null,null,null,null,null,null,null,null,null,null,null,null,null,null,null,null,null,null,null,null,null,null,null,null,null,null,null,null,null,null,null,null,null,null,null,null,null,null,null,null,null,null,null,null,null,null,null,null,null,null,null,null,null,null,null,null,null,null,null,null,null,null,null,null,null,null,null,null,null,null,null,null,null,null,null,null,null,null,null,null,null,null,null,null,null,null,null,null,null,null,null,null,null,null,null,null,null,null,null,null,null,null,null,null,null,null,null,null,null,null,null,null,null,null,null,null,null,null,null,null,null,null,null,null,null,null,null,null,null,null,null,null,null,null,null,null,null,null,null,null,null,null,null,null,null,null,null,null,null,null,null,null,null,null,null,null,null,null,null,null,null,null,null,null,null,null,null,null,null,null,null,null,null,null,null,null,null,null,null,null,null,null,null,null,null,null,null,null,null,null,null,null,null,null,null,null,null,null,null,null,null,null,null,null,null,null,null,null,null,null,null,null,null,null,null,null,null,null,null,null,null,null,null,null,null,null,null,null,null,null,null,null,null,null,null,null,null,null,null,null,null,null,null,null,null,null,null,null,null,null,null,null,null,null,null,null,null,null,null,null,null,null,null,null,null,null,null,null,null,null,null,null,null,null,null,null,null,null,null,null,null,null,null,null,null,null,null,null,null,null,null,null,null,null,null,null,null,null,null,null,null,null,null,null,null,null,null,null,null,null,null,null,null,null,null,null,null,null,null,null,null,null,null,null,null,null,null,null,null,null,null,null,null,null,null,null,null,null,null,null,null,null,null,null,null,null,null,null,null,null,null,null,null,null,null,null,null,null,null,null,null,null,null,null,null,null,null,null,null,null,null,null,null,null,null,null,null,null,null,null,null,null,null,null,null,null,null,null,null,null,null,null,null,null,null,null,null,null,null,null,null,null,null,null,null,null,null,null,null,null,null,null,null,null,null,null,null,null,null,null,null,null,null,null,null,null,null,null,null,null,null,null,null,null,null,null,null,null,null,null,null,null,null,null,null,null,null,null,null,null,null,null,null,null,null,null,null,null,null,null,null,null,null,null,null,null,null,null,null,null,null,null,null,null,null,null,null,null,null,null,null,null,null,null,null,null,null,null,null,null,null,null,null,null,null,null,null,null,null,null,null,null,null,null,null,null,null,null,null,null,null,null,null,null,null,null,null,null,null,null,null,null,null,null,null,null,null,null,null,null,null,null,null,null,null,null,null,null,null,null,null,null,null,null,null,null,null,null,null,null,null,null,null,null,null,null,null,null,null,null,null,null,null,null,null,null,null,null,null,null,null,null,null,null,null,null,null,null,null,null,null,null,null,null,null,null,null,null,null,null,null,null,null,null,null,null,null,null,null,null,null,null,null,null,null,null,null,null,null,null,null,null,null,null,null,null,null,null,null,null,null,null,null,null,null,null,null,null,null,null,null,null,null,null,null,null,null,null,null,null,null,null,null,null,null,null,null,null,null,null,null,null,null,null,null,null,null,null,null,null,null,null,null,null,null,null,null,null,null,null,null,null,null,null,null,null,null,null,null,null,null,null,null,null,null,null,null,null,null,null,null,null,null,null,null,null,null,null,null,null,null,null,null,null,null,null,null,null,null,null,null,null,null,null,null,null,null,null,null,null,null,null,null,null,null,null,null,null,null,null,null,null,null,null,null,null,null,null,null,null,null,null,null,null,null,null,null,null,null,null,null,null,null,null,null,null,null,null,null,null,null,null,null,null,null,null,null,null,null,null,null,null,null,null,null,null,null,null,null,null,null,null,null,null,null,null,null,null,null,null,null,null,null,null,null,null,null,null,null,null,null,null,null,null,null,null,null,null,null,null,null,null,null,null,null,null,null,null,null,null,null,null,null,null,null,null,null,null,null,null,null,null,null,null,null,null,null,null,null,null,null,null,null,null,null,null,null,null,null,null,null,null,null,null,null,null,null,null,null,null,null,null,null,null,null,null,null,null,null,null,null,null,null,null,null,null,null,null,null,null,null,null,null,null,null,null,null,null,null,null,null,null,null,null,null,null,null,null,null,null,null,null,null,null,null,null,null,null,null,null,null,null,null,null,null,null,null,null,null,null,null,null,null,null,null,null,null,null,null,null,null,null,null,null,null,null,null,null,null,null,null,null,null,null,null,null,null,null,null,null,null,null,null,null,null,null,null,null,null,null,null,null,null,null,null,null,null,null,null,null,null,null,null,null,null,null,null,null,null,null,null,null,null,null,null,null,null,null,null,null,null,null,null,null,null,null,null,null,null,null,null,null,null,null,null,null,null,null,null,null,null,null,null,null,null,null,null,null,null,null,null,null,null,null,null,null,null,null,null,null,null,null,null,null,null,null,null,null,null,null,null,null,null,null,null,null,null,null,null,null,null,null,null,null,null,null,null,null,null,null,null,null,null,null,null,null,null,null,null,null,null,null,null,null,null,null,null,null,null,null,null,null,null,null,null,null,null,null,null,null,null,null,null,null,null,null,null,null,null,null,null,null,null,null,null,null,null,null,null,null,null,null,null,null,null,null,null,null,null,null,null,null,null,null,null,null,null,null,null,null,null,null,null,null,null,null,null,null,null,null,null,null,null,null,null,null,null,null,null,null,null,null,null,null,null,null,null,null,null,null,null,null,null,null,null,null,null,null,null,null,null,null,null,null,null,null,null,null,null,null,null,null,null,null,null,null,null,null,null,null,null,null,null,null,null,null,null,null,null,null,null,null,null,null,null,null,null,null,null,null,null,null,null,null,null,null,null,null,null,null,null,null,null,null,null,null,null,null,null,null,null,null,null,null,null,null,null,null,null,null,null,null,null,null,null,null,null,null,null,null,null,null,null,null,null,null,null,null,null,null,null,null,null,null,null,null,null,null,null,null,null,null,null,null,null,null,null,null,null,null,null,null,null,null,null,null,null,null,null,null,null,null,null,null,null,null,null,null,null,null,null,null,null,null,null,null,null,null,null,null,null,null,null,null,null,null,null,null,null,null,null,null,null,null,null,null,null,null,null,null,null,null,null,null,null,null,null,null,null,null,null,null,null,null,null,null,null,null,null,null,null,null,null,null,null,null,null,null,null,null,null,null,null,null,null,null,null,null,null,null,null,null,null,null,null,null,null,null,null,null,null,null,null,null,null,null,null,null,null,null,null,null,null,null,null,null,null,null,null,null,null,null,null,null,null,null,null,null,null,null,null,null,null,null,null,null,null,null,null,null,null,null,null,null,null,null,null,null,null,null,null,null,null,null,null,null,null,null,null,null,null,null,null,null,null,null,null,null,null,null,null,null,null,null,null,null,null,null,null,null,null,null,null,null,null,null,null,null,null,null,null,null,null,null,null,null,null,null,null,null,null,null,null,null,null,null,null,null,null,null,null,null,null,null,null,null,null,null,null,null,null,null,null,null,null,null,null,null,null,null,null,null,null,null,null,null,null,null,null,null,null,null,null,null,null,null,null,null,null,null,null,null,null,null,null,null,null,null,null,null,null,null,null,null,null,null,null,null,null,null,null,null,null,null,null,null,null,null,null,null,null,null,null,null,null,null,null,null,null,null,null,null,null,null,null,null,null,null,null,null,null,null,null,null,null,null,null,null,null,null,null,null,null,null,null,null,null,null,null,null,null,null,null,null,null,null,null,null,null,null,null,null,null,null,null,null,null,null,null,null,null,null,null,null,null,null,null,null,null,null,null,null,null,null,null,null,null,null,null,null,null,null,null,null,null,null,null,null,null,null,null,null,null,null,null,null,null,null,null,null,null,null,null,null,null,null,null,null,null,null,null,null,null,null,null,null,null,null,null,null,null,null,null,null,null,null,null,null,null,null,null,null,null,null,null,null,null,null,null,null,null,null,null,null,null,null,null,null,null,null,null,null,null,null,null,null,null,null,null,null,null,null,null,null,null,null,null,null,null,null,null,null,null,null,null,null,null,null,null,null,null,null,null,null,null,null,null,null,null,null,null,null,null,null,null,null,null,null,null,null,null,null,null,null,null,null,null,null,null,null,null,null,null,null,null,null,null,null,null,null,null,null,null,null,null,null,null,null,null,null,null,null,null,null,null,null,null,null,null,null,null,null,null,null,null,null,null,null,null,null,null,null,null,null,null,null,null,null,null,null,null,null,null,null,null,null,null,null,null,null,null,null,null,null,null,null,null,null,null,null,null,null,null,null,null,null,null,null,null,null,null,null,null,null,null,null,null,null,null,null,null,null,null,null,null,null,null,null,null,null,null,null,null,null,null,null,null,null,null,null,null,null,null,null,null,null,null,null,null,null,null,null,null,null,null,null,null,null,null,null,null,null,null,null,null,null,null,null,null,null,null,null,null,null,null,null,null,null,null,null,null,null,null,null,null,null,null,null,null,null,null,null,null,null,null,null,null,null,null,null,null,null,null,null,null,null,null,null,null,null,null,null,null,null,null,null,null,null,null,null,null,null,null,null,null,null,null,null,null,null,null,null,null,null,null,null,null,null,null,null,null,null,null,null,null,null,null,null,null,null,null,null,null,null,null,null,null,null,null,null,null,null,null,null,null,null,null,null,null,null,null,null,null,null,null,null,null,null,null,null,null,null,null,null,null,null,null,null,null,null,null,null,null,null,null,null,null,null,null,null,null,null,null,null,null,null,null,null,null,null,null,null,null,null,null,null,null,null,null,null,null,null,null,null,null,null,null,null,null,null,null,null,null,null,null,null,null,null,null,null,null,null,null,null,null,null,null,null,null,null,null,null,null,null,null,null,null,null,null,null,null,null,null,null,null,null,null,null,null,null,null,null,null,null,null,null,null,null,null,null,null,null,null,null,null,null,null,null,null,null,null,null,null,null,null,null,null,null,null,null,null,null,null,null,null,null,null,null,null,null,null,null,null,null,null,null,null,null,null,null,null,null,null,null,null,null,null,null,null,null,null,null,null,null,null,null,null,null,null,null,null,null,null,null,null,null,null,null,null,null,null,null,null,null,null,null,null,null,null,null,null,null,null,null,null,null,null,null,null,null,null,null,null,null,null,null,null,null,null,null,null,null,null,null,null,null,null,null,null,null,null,null,null,null,null,null,null,null,null,null,null,null,null,null,null,null,null,null,null,null,null,null,null,null,null,null,null,null,null,null,null,null,null,null,null,null,null,null,null,null,null,null,null,null,null,null,null,null,null,null,null,null,null,null,null,null,null,null,null,null,null,null,null,null,null,null,null,null,null,null,null,null,null,null,null,null,null,null,null,null,null,null,null,null,null,null,null,null,null,null,null,null,null,null,null,null,null,null,null,null,null,null,null,null,null,null,null,null,null,null,null,null,null,null,null,null,null,null,null,null,null,null,null,null,null,null,null,null,null,null,null,null,null,null,null,null,null,null,null,null,null,null,null,null,null,null,null,null,null,null,null,null,null,null,null,null,null,null,null,null,null,null,null,null,null,null,null,null,null,null,null,null,null,null,null,null,null,null,null,null,null,null,null,null,null,null,null,null,null,null,null,null,null,null,null,null,null,null,null,null,null,null,null,null,null,null,null,null,null,null,null,null,null,null,null,null,null,null,null,null,null,null,null,null,null,null,null,null,null,null,null,null,null,null,null,null,null,null,null,null,null,null,null,null,null,null,null,null,null,null,null,null,null,null,null,null,null,null,null,null,null,null,null,null,null,null,null,null,null,null,null,null,null,null,null,null,null,null,null,null,null,null,null,null,null,null,null,null,null,null,null,null,null,null,null,null,null,null,null,null,null,null,null,null,null,null,null,null,null,null,null,null,null,null,null,null,null,null,null,null,null,null,null,null,null,null,null,null,null,null,null,null,null,null,null,null,null,null,null,null,null,null,null,null,null,null,null,null,null,null,null,null,null,null,null,null,null,null,null,null,null,null,null,null,null,null,null,null,null,null,null,null,null,null,null,null,null,null,null,null,null,null,null,null,null,null,null,null,null,null,null,null,null,null,null,null,null,null,null,null,null,null,null,null,null,null,null,null,null,null,null,null,null,null,null,null,null,null,null,null,null,null,null,null,null,null,null,null,null,null,null,null,null,null,null,null,null,null,null,null,null,null,null,null,null,null,null,null,null,null,null,null,null,null,null,null,null,null,null,null,null,null,null,null,null,null,null,null,null,null,null,null,null,null,null,null,null,null,null,null,null,null,null,null,null,null,null,null,null,null,null,null,null,null,null,null,null,null,null,null,null,null,null,null,null,null,null,null,null,null,null,null,null,null,null,null,null,null,null,null,null,null,null,null,null,null,null,null,null,null,null,null,null,null,null,null,null,null,null,null,null,null,null,null,null,null,null,null,null,null,null,null,null,null,null,null,null,null,null,null,null,null,null,null,null,null,null,null,null,null,null,null,null,null,null,null,null,null,null,null,null,null,null,null,null,null,null,null,null,null,null,null,null,null,null,null,null,null,null,null,null,null,null,null,null,null,null,null,null,null,null,null,null,null,null,null,null,null,null,null,null,null,null,null,null,null,null,null,null,null,null,null,null,null,null,null,null,null,null,null,null,null,null,null,null,null,null,null,null,null,null,null,null,null,null,null,null,null,null,null,null,null,null,null,null,null,null,null,null,null,null,null,null,null,null,null,null,null,null,null,null,null,null,null,null,null,null,null,null,null,null,null,null,null,null,null,null,null,null,null,null,null,null,null,null,null,null,null,null,null,null,null,null,null,null,null,null,null,null,null,null,null,null,null,null,null,null,null,null,null,null,null,null,null,null,null,null,null,null,null,null,null,null,null,null,null,null,null,null,null,null,null,null,null,null,null,null,null,null,null,null,null,null,null,null,null,null,null,null,null,null,null,null,null,null,null,null,null,null,null,null,null,null,null,null,null,null,null,null,null,null,null,null,null,null,null,null,null,null,null,null,null,null,null,null,null,null,null,null,null,null,null,null,null,null,null,null,null,null,null,null,null,null,null,null,null,null,null,null,null,null,null,null,null,null,null,null,null,null,null,null,null,null,null,null,null,null,null,null,null,null,null,null,null,null,null,null,null,null,null,null,null,null,null,null,null,null,null,null,null,null,null,null,null,null,null,null,null,null,null,null,null,null,null,null,null,null,null,null,null,null,null,null,null,null,null,null,null,null,null,null,null,null,null,null,null,null,null,null,null,null,null,null,null,null,null,null,null,null,null,null,null,null,null,null,null,null,null,null,null,null,null,null,null,null,null,null,null,null,null,null,null,null,null,null,null,null,null,null,null,null,null,null,null,null,null,null,null,null,null,null,null,null,null,null,null,null,null,null,null,null,null,null,null,null,null,null,null,null,null,null,null,null,null,null,null,null,null,null,null,null,null,null,null,null,null,null,null,null,null,null,null,null,null,null,null,null,null,null,null,null,null,null,null,null,null,null,null,null,null,null,null,null,null,null,null,null,null,null,null,null,null,null,null,null,null,null,null,null,null,null,null,null,null,null,null,null,null,null,null,null,null,null,null,null,null,null,null,null,null,null,null,null,null,null,null,null,null,null,null,null,null,null,null,null,null,null,null,null,null,null,null,null,null,null,null,null,null,null,null,null,null,null,null,null,null,null,null,null,null,null,null,null,null,null,null,null,null,null,null,null,null,null,null,null,null,null,null,null,null,null,null,null,null,null,null,null,null,null,null,null,null,null,null,null,null,null,null,null,null,null,null,null,null,null,null,null,null,null,null,null,null,null,null,null,null,null,null,null,null,null,null,null,null,null,null,null,null,null,null,null,null,null,null,null,null,null,null,null,null,null,null,null,null,null,null,null,null,null,null,null,null,null,null,null,null,null,null,null,null,null,null,null,null,null,null,null,null,null,null,null,null,null,null,null,null,null,null,null,null,null,null,null,null,null,null,null,null,null,null,null,null,null,null,null,null,null,null,null,null,null,null,null,null,null,null,null,null,null,null,null,null,null,null,null,null,null,null,null,null,null,null,null,null,null,null,null,null,null,null,null,null,null,null,null,null,null,null,null,null,null,null,null,null,null,null,null,null,null,null,null,null,null,null,null,null,null,null,null,null,null,null,null,null,null,null,null,null,null,null,null,null,null,null,null,null,null,null,null,null,null,null,null,null,null,null,null,null,null,null,null,null,null,null,null,null,null,null,null,null,null,null,null,null,null,null,null,null,null,null,null,null,null,null,null,null,null,null,null,null,null,null,null,null,null,null,null,null,null,null,null,null,null,null,null,null,null,null,null,null,null,null,null,null,null,null,null,null,null,null,null,null,null,null,null,null,null,null,null,null,null,null,null,null,null,null,null,null,null,null,null,null,null,null,null,null,null,null,null,null,null,null,null,null,null,null,null,null,null,null,null,null,null,null,null,null,null,null,null,null,null,null,null,null,null,null,null,null,null,null,null,null,null,null,null,null,null,null,null,null,null,null,null,null,null,null,null,null,null,null,null,null,null,null,null,null,null,null,null,null,null,null,null,null,null,null,null,null,null,null,null,null,null,null,null,null,null,null,null,null,null,null,null,null,null,null,null,null,null,null,null,null,null,null,null,null,null,null,null,null,null,null,null,null,null,null,null,null,null,null,null,null,null,null,null,null,null,null,null,null,null,null,null,null,null,null,null,null,null,null,null,null,null,null,null,null,null,null,null,null,null,null,null,null,null,null,null,null,null,null,null,null,null,null,null,null,null,null,null,null,null,null,null,null,null,null,null,null,null,null,null,null,null,null,null,null,null,null,null,null,null,null,null,null,null,null,null,null,null,null,null,null,null,null,null,null,null,null,null,null,null,null,null,null,null,null,null,null,null,null,null,null,null,null,null,null,null,null,null,null,null,null,null,null,null,null,null,null,null,null,null,null,null,null,null,null,null,null,null,null,null,null,null,null,null,null,null,null,null,null,null,null,null,null,null,null,null,null,null,null,null,null,null,null,null,null,null,null,null,null,null,null,null,null,null,null,null,null,null,null,null,null,null,null,null,null,null,null,null,null,null,null,null,null,null,null,null,null,null,null,null,null,null,null,null,null,null,null,null,null,null,null,null,null,null,null,null,null,null,null,null,null,null,null,null,null,null,null,null,null,null,null,null,null,null,null,null,null,null,null,null,null,null,null,null,null,null,null,null,null,null,null,null,null,null,null,null,null,null,null,null,null,null,null,null,null,null,null,null,null,null,null,null,null,null,null,null,null,null,null,null,null,null,null,null,null,null,null,null,null,null,null,null,null,null,null,null,null,null,null,null,null,null,null,null,null,null,null,null,null,null,null,null,null,null,null,null,null,null,null,null,null,null,null,null,null,null,null,null,null,null,null,null,null,null,null,null,null,null,null,null,null,null,null,null,null,null,null,null,null,null,null,null,null,null,null,null,null,null,null,null,null,null,null,null,null,null,null,null,null,null,null,null,null,null,null,null,null,null,null,null,null,null,null,null,null,null,null,null,null,null,null,null,null,null,null,null,null,null,null,null,null,null,null,null,null,null,null,null,null,null,null,null,null,null,null,null,null,null,null,null,null,null,null,null,null,null,null,null,null,null,null,null,null,null,null,null,null,null,null,null,null,null,null,null,null,null,null,null,null,null,null,null,null,null,null,null,null,null,null,null,null,null,null,null,null,null,null,null,null,null,null,null,null,null,null,null,null,null,null,null,null,null,null,null,null,null,null,null,null,null,null,null,null,null,null,null,null,null,null,null,null,null,null,null,null,null,null,null,null,null,null,null,null,null,null,null,null,null,null,null,null,null,null,null,null,null,null,null,null,null,null,null,null,null,null,null,null,null,null,null,null,null,null,null,null,null,null,null,null,null,null,null,null,null,null,null,null,null,null,null,null,null,null,null,null,null,null,null,null,null,null,null,null,null,null,null,null,null,null,null,null,null,null,null,null,null,null,null,null,null,null,null,null,null,null,null,null,null,null,null,null,null,null,null,null,null,null,null,null,null,null,null,null,null,null,null,null,null,null,null,null,null,null,null,null,null,null,null,null,null,null,null,null,null,null,null,null,null,null,null,null,null,null,null,null,null,null,null,null,null,null,null,null,null,null,null,null,null,null,null,null,null,null,null,null,null,null,null,null,null,null,null,null,null,null,null,null,null,null,null,null,null,null,null,null,null,null,null,null,null,null,null,null,null,null,null,null,null,null,null,null,null,null,null,null,null,null,null,null,null,null,null,null,null,null,null,null,null,null,null,null,null,null,null,null,null,null,null,null,null,null,null,null,null,null,null,null,null,null,null,null,null,null,null,null,null,null,null,null,null,null,null,null,null,null,null,null,null,null,null,null,null,null,null,null,null,null,null,null,null,null,null,null,null,null,null,null,null,null,null,null,null,null,null,null,null,null,null,null,null,null,null,null,null,null,null,null,null,null,null,null,null,null,null,null,null,null,null,null,null,null,null,null,null,null,null,null,null,null,null,null,null,null,null,null,null,null,null,null,null,null,null,null,null,null,null,null,null,null,null,null,null,null,null,null,null,null,null,null,null,null,null,null,null,null,null,null,null,null,null,null,null,null,null,null,null,null,null,null,null,null,null,null,null,null,null,null,null,null,null,null,null,null,null,null,null,null,null,null,null,null,null,null,null,null,null,null,null,null,null,null,null,null,null,null,null,null,null,null,null,null,null,null,null,null,null,null,null,null,null,null,null,null,null,null,null,null,null,null,null,null,null,null,null,null,null,null,null,null,null,null,null,null,null,null,null,null,null,null,null,null,null,null,null,null,null,null,null,null,null,null,null,null,null,null,null,null,null,null,null,null,null,null,null,null,null,null,null,null,null,null,null,null,null,null,null,null,null,null,null,null,null,null,null,null,null,null,null,null,null,null,null,null,null,null,null,null,null,null,null,null,null,null,null,null,null,null,null,null,null,null,null,null,null,null,null,null,null,null,null,null,null,null,null,null,null,null,null,null,null,null,null,null,null,null,null,null,null,null,null,null,null,null,null,null,null,null,null,null,null,null,null,null,null,null,null,null,null,null,null,null,null,null,null,null,null,null,null,null,null,null,null,null,null,null,null,null,null,null,null,null,null,null,null,null,null,null,null,null,null,null,null,null,null,null,null,null,null,null,null,null,null,null,null,null,null,null,null,null,null,null,null,null,null,null,null,null,null,null,null,null,null,null,null,null,null,null,null,null,null,null,null,null,null,null,null,null,null,null,null,null,null,null,null,null,null,null,null,null,null,null,null,null,null,null,null,null,null,null,null,null,null,null,null,null,null,null,null,null,null,null,null,null,null,null,null,null,null,null,null,null,null,null,null,null,null,null,null,null,null,null,null,null,null,null,null,null,null,null,null,null,null,null,null,null,null,null,null,null,null,null,null,null,null,null,null,null,null,null,null,null,null,null,null,null,null,null,null,null,null,null,null,null,null,null,null,null,null,null,null,null,null,null,null,null,null,null,null,null,null,null,null,null,null,null,null,null,null,null,null,null,null,null,null,null,null,null,null,null,null,null,null,null,null,null,null,null,null,null,null,null,null,null,null,null,null,null,null,null,null,null,null,null,null,null,null,null,null,null,null,null,null,null,null,null,null,null,null,null,null,null,null,null,null,null,null,null,null,null,null,null,null,null,null,null,null,null,null,null,null,null,null,null,null,null,null,null,null,null,null,null,null,null,null,null,null,null,null,null,null,null,null,null,null,null,null,null,null,null,null,null,null,null,null,null,null,null,null,null,null,null,null,null,null,null,null,null,null,null,null,null,null,null,null,null,null,null,null,null,null,null,null,null,null,null,null,null,null,null,null,null,null,null,null,null,null,null,null,null,null,null,null,null,null,null,null,null,null,null,null,null,null,null,null,null,null,null,null,null,null,null,null,null,null,null,null,null,null,null,null,null,null,null,null,null,null,null,null,null,null,null,null,null,null,null,null,null,null,null,null,null,null,null,null,null,null,null,null,null,null,null,null,null,null,null,null,null,null,null,null,null,null,null,null,null,null,null,null,null,null,null,null,null,null,null,null,null,null,null,null,null,null,null,null,null,null,null,null,null,null,null,null,null,null,null,null,null,null,null,null,null,null,null,null,null,null,null,null,null,null,null,null,null,null,null,null,null,null,null,null,null,null,null,null,null,null,null,null,null,null,null,null,null,null,null,null,null,null,null,null,null,null,null,null,null,null,null,null,null,null,null,null,null,null,null,null,null,null,null,null,null,null,null,null,null,null,null,null,null,null,null,null,null,null,null,null,null,null,null,null,null,null,null,null,null,null,null,null,null,null,null,null,null,null,null,null,null,null,null,null,null,null,null,null,null,null,null,null,null,null,null,null,null,null,null,null,null,null,null,null,null,null,null,null,null,null,null,null,null,null,null,null,null,null,null,null,null,null,null,null,null,null,null,null,null,null,null,null,null,null,null,null,null,null,null,null,null,null,null,null,null,null,null,null,null,null,null,null,null,null,null,null,null,null,null,null,null,null,null,null,null,null,null,null,null,null,null,null,null,null,null,null,null,null,null,null,null,null,null,null,null,null,null,null,null,null,null,null,null,null,null,null,null,null,null,null,null,null,null,null,null,null,null,null,null,null,null,null,null,null,null,null,null,null,null,null,null,null,null,null,null,null,null,null,null,null,null,null,null,null,null,null,null,null,null,null,null,null,null,null,null,null,null,null,null,null,null,null,null,null,null,null,null,null,null,null,null,null,null,null,null,null,null,null,null,null,null,null,null,null,null,null,null,null,null,null,null,null,null,null,null,null,null,null,null,null,null,null,null,null,null,null,null,null,null,null,null,null,null,null,null,null,null,null,null,null,null,null,null,null,null,null,null,null,null,null,null,null,null,null,null,null,null,null,null,null,null,null,null,null,null,null,null,null,null,null,null,null,null,null,null,null,null,null,null,null,null,null,null,null,null,null,null,null,null,null,null,null,null,null,null,null,null,null,null,null,null,null,null,null,null,null,null,null,null,null,null,null,null,null,null,null,null,null,null,null,null,null,null,null,null,null,null,null,null,null,null,null,null,null,null,null,null,null,null,null,null,null,null,null,null,null,null,null,null,null,null,null,null,null,null,null,null,null,null,null,null,null,null,null,null,null,null,null,null,null,null,null,null,null,null,null,null,null,null,null,null,null,null,null,null,null,null,null,null,null,null,null,null,null,null,null,null,null,null,null,null,null,null,null,null,null,null,null,null,null,null,null,null,null,null,null,null,null,null,null,null,null,null,null,null,null,null,null,null,null,null,null,null,null,null,null,null,null,null,null,null,null,null,null,null,null,null,null,null,null,null,null,null,null,null,null,null,null,null,null,null,null,null,null,null,null,null,null,null,null,null,null,null,null,null,null,null,null,null,null,null,null,null,null,null,null,null,null,null,null,null,null,null,null,null,null,null,null,null,null,null,null,null,null,null,null,null,null,null,null,null,null,null,null,null,null,null,null,null,null,null,null,null,null,null,null,null,null,null,null,null,null,null,null,null,null,null,null,null,null,null,null,null,null,null,null,null,null,null,null,null,null,null,null,null,null,null,null,null,null,null,null,null,null,null,null,null,null,null,null,null,null,null,null,null,null,null,null,null,null,null,null,null,null,null,null,null,null,null,null,null,null,null,null,null,null,null,null,null,null,null,null,null,null,null,null,null,null,null,null,null,null,null,null,null,null,null,null,null,null,null,null,null,null,null,null,null,null,null,null,null,null,null,null,null,null,null,null,null,null,null,null,null,null,null,null,null,null,null,null,null,null,null,null,null,null,null,null,null,null,null,null,null,null,null,null,null,null,null,null,null,null,null,null,null,null,null,null,null,null,null,null,null,null,null,null,null,null,null,null,null,null,null,null,null,null,null,null,null,null,null,null,null,null,null,null,null,null,null,null,null,null,null,null,null,null,null,null,null,null,null,null,null,null,null,null,null,null,null,null,null,null,null,null,null,null,null,null,null,null,null,null,null,null,null,null,null,null,null,null,null,null,null,null,null,null,null,null,null,null,null,null,null,null,null,null,null,null,null,null,null,null,null,null,null,null,null,null,null,null,null,null,null,null,null,null,null,null,null,null,null,null,null,null,null,null,null,null,null,null,null,null,null,null,null,null,null,null,null,null,null,null,null,null,null,null,null,null,null,null,null,null,null,null,null,null,null,null,null,null,null,null,null,null,null,null,null,null,null,null,null,null,null,null,null,null,null,null,null,null,null,null,null,null,null,null,null,null,null,null,null,null,null,null,null,null,null,null,null,null,null,null,null,null,null,null,null,null,null,null,null,null,null,null,null,null,null,null,null,null,null,null,null,null,null,null,null,null,null,null,null,null,null,null,null,null,null,null,null,null,null,null,null,null,null,null,null,null,null,null,null,null,null,null,null,null,null,null,null,null,null,null,null,null,null,null,null,null,null,null,null,null,null,null,null,null,null,null,null,null,null,null,null,null,null,null,null,null,null,null,null,null,null,null,null,null,null,null,null,null,null,null,null,null,null,null,null,null,null,null,null,null,null,null,null,null,null,null,null,null,null,null,null,null,null,null,null,null,null,null,null,null,null,null,null,null,null,null,null,null,null,null,null,null,null,null,null,null,null,null,null,null,null,null,null,null,null,null,null,null,null,null,null,null,null,null,null,null,null,null,null,null,null,null,null,null,null,null,null,null,null,null,null,null,null,null,null,null,null,null,null,null,null,null,null,null,null,null,null,null,null,null,null,null,null,null,null,null,null,null,null,null,null,null,null,null,null,null,null,null,null,null,null,null,null,null,null,null,null,null,null,null,null,null,null,null,null,null,null,null,null,null,null,null,null,null,null,null,null,null,null,null,null,null,null,null,null,null,null,null,null,null,null,null,null,null,null,null,null,null,null,null,null,null,null,null,null,null,null,null,null,null,null,null,null,null,null,null,null,null,null,null,null,null,null,null,null,null,null,null,null,null,null,null,null,null,null,null,null,null,null,null,null,null,null,null,null,null,null,null,null,null,null,null,null,null,null,null,null,null,null,null,null,null,null,null,null,null,null,null,null,null,null,null,null,null,null,null,null,null,null,null,null,null,null,null,null,null,null,null,null,null,null,null,null,null,null,null,null,null,null,null,null,null,null,null,null,null,null,null,null,null,null,null,null,null,null,null,null,null,null,null,null,null,null,null,null,null,null,null,null,null,null,null,null,null,null,null,null,null,null,null,null,null,null,null,null,null,null,null,null,null,null,null,null,null,null,null,null,null,null,null,null,null,null,null,null,null,null,null,null,null,null,null,null,null,null,null,null,null,null,null,null,null,null,null,null,null,null,null,null,null,null,null,null,null,null,null,null,null,null,null,null,null,null,null,null,null,null,null,null,null,null,null,null,null,null,null,null,null,null,null,null,null,null,null,null,null,null,null,null,null,null,null,null,null,null,null,null,null,null,null,null,null,null,null,null,null,null,null,null,null,null,null,null,null,null,null,null,null,null,null,null,null,null,null,null,null,null,null,null,null,null,null,null,null,null,null,null,null,null,null,null,null,null,null,null,null,null,null,null,null,null,null,null,null,null,null,null,null,null,null,null,null,null,null,null,null,null,null,null,null,null,null,null,null,null,null,null,null,null,null,null,null,null,null,null,null,null,null,null,null,null,null,null,null,null,null,null,null,null,null,null,null,null,null,null,null,null,null,null,null,null,null,null,null,null,null,null,null,null,null,null,null,null,null,null,null,null,null,null,null,null,null,null,null,null,null,null,null,null,null,null,null,null,null,null,null,null,null,null,null,null,null,null,null,null,null,null,null,null,null,null,null,null,null,null,null,null,null,null,null,null,null,null,null,null,null,null,null,null,null,null,null,null,null,null,null,null,null,null,null,null,null,null,null,null,null,null,null,null,null,null,null,null,null,null,null,null,null,null,null,null,null,null,null,null,null,null,null,null,null,null,null,null,null,null,null,null,null,null,null,null,null,null,null,null,null,null,null,null,null,null,null,null,null,null,null,null,null,null,null,null,null,null,null,null,null,null,null,null,null,null,null,null,null,null,null,null,null,null,null,null,null,null,null,null,null,null,null,null,null,null,null,null,null,null,null,null,null,null,null,null,null,null,null,null,null,null,null,null,null,null,null,null,null,null,null,null,null,null,null,null,null,null,null,null,null,null,null,null,null,null,null,null,null,null,null,null,null,null,null,null,null,null,null,null,null,null,null,null,null,null,null,null,null,null,null,null,null,null,null,null,null,null,null,null,null,null,null,null,null,null,null,null,null,null,null,null,null,null,null,null,null,null,null,null,null,null,null,null,null,null,null,null,null,null,null,null,null,null,null,null,null,null,null,null,null,null,null,null,null,null,null,null,null,null,null,null,null,null,null,null,null,null,null,null,null,null,null,null,null,null,null,null,null,null,null,null,null,null,null,null,null,null,null,null,null,null,null,null,null,null,null,null,null,null,null,null,null,null,null,null,null,null,null,null,null,null,null,null,null,null,null,null,null,null,null,null,null,null,null,null,null,null,null,null,null,null,null,null,null,null,null,null,null,null,null,null,null,null,null,null,null,null,null,null,null,null,null,null,null,null,null,null,null,null,null,null,null,null,null,null,null,null,null,null,null,null,null,null,null,null,null,null,null,null,null,null,null,null,null,null,null,null,null,null,null,null,null,null,null,null,null,null,null,null,null,null,null,null,null,null,null,null,null,null,null,null,null,null,null,null,null,null,null,null,null,null,null,null,null,null,null,null,null,null,null,null,null,null,null,null,null,null,null,null,null,null,null,null,null,null,null,null,null,null,null,null,null,null,null,null,null,null,null,null,null,null,null,null,null,null,null,null,null,null,null,null,null,null,null,null,null,null,null,null,null,null,null,null,null,null,null,null,null,null,null,null,null,null,null,null,null,null,null,null,null,null,null,null,null,null,null,null,null,null,null,null,null,null,null,null,null,null,null,null,null,null,null,null,null,null,null,null,null,null,null,null,null,null,null,null,null,null,null,null,null,null,null,null,null,null,null,null,null,null,null,null,null,null,null,null,null,null,null,null,null,null,null,null,null,null,null,null,null,null,null,null,null,null,null,null,null,null,null,null,null,null,null,null,null,null,null,null,null,null,null,null,null,null,null,null,null,null,null,null,null,null,null,null,null,null,null,null,null,null,null,null,null,null,null,null,null,null,null,null,null,null,null,null,null,null,null,null,null,null,null,null,null,null,null,null,null,null,null,null,null,null,null,null,null,null,null,null,null,null,null,null,null,null,null,null,null,null,null,null,null,null,null,null,null,null,null,null,null,null,null,null,null,null,null,null,null,null,null,null,null,null,null,null,null,null,null,null,null,null,null,null,null,null,null,null,null,null,null,null,null,null,null,null,null,null,null,null,null,null,null,null,null,null,null,null,null,null,null,null,null,null,null,null,null,null,null,null,null,null,null,null,null,null,null,null,null,null,null,null,null,null,null,null,null,null,null,null,null,null,null,null,null,null,null,null,null,null,null,null,null,null,null,null,null,null,null,null,null,null,null,null,null,null,null,null,null,null,null,null,null,null,null,null,null,null,null,null,null,null,null,null,null,null,null,null,null,null,null,null,null,null,null,null,null,null,null,null,null,null,null,null,null,null,null,null,null,null,null,null,null,null,null,null,null,null,null,null,null,null,null,null,null,null,null,null,null,null,null,null,null,null,null,null,null,null,null,null,null,null,null,null,null,null,null,null,null,null,null,null,null,null,null,null,null,null,null,null,null,null,null,null,null,null,null,null,null,null,null,null,null,null,null,null,null,null,null,null,null,null,null,null,null,null,null,null,null,null,null,null,null,null,null,null,null,null,null,null,null,null,null,null,null,null,null,null,null,null,null,null,null,null,null,null,null,null,null,null,null,null,null,null,null,null,null,null,null,null,null,null,null,null,null,null,null,null,null,null,null,null,null,null,null,null,null,null,null,null,null,null,null,null,null,null,null,null,null,null,null,null,null,null,null,null,null,null,null,null,null,null,null,null,null,null,null,null,null,null,null,null,null,null,null,null,null,null,null,null,null,null,null,null,null,null,null,null,null,null,null,null,null,null,null,null,null,null,null,null,null,null,null,null,null,null,null,null,null,null,null,null,null,null,null,null,null,null,null,null,null,null,null,null,null,null,null,null,null,null,null,null,null,null,null,null,null,null,null,null,null,null,null,null,null,null,null,null,null,null,null,null,null,null,null,null,null,null,null,null,null,null,null,null,null,null,null,null,null,null,null,null,null,null,null,null,null,null,null,null,null,null,null,null,null,null,null,null,null,null,null,null,null,null,null,null,null,null,null,null,null,null,null,null,null,null,null,null,null,null,null,null,null,null,null,null,null,null,null,null,null,null,null,null,null,null,null,null,null,null,null,null,null,null,null,null,null,null,null,null,null,null,null,null,null,null,null,null,null,null,null,null,null,null,null,null,null,null,null,null,null,null,null,null,null,null,null,null,null,null,null,null,null,null,null,null,null,null,null,null,null,null,null,null,null,null,null,null,null,null,null,null,null,null,null,null,null,null,null,null,null,null,null,null,null,null,null,null,null,null,null,null,null,null,null,null,null,null,null,null,null,null,null,null,null,null,null,null,null,null,null,null,null,null,null,null,null,null,null,null,null,null,null,null,null,null,null,null,null,null,null,null,null,null,null,null,null,null,null,null,null,null,null,null,null,null,null,null,null,null,null,null,null,null,null,null,null,null,null,null,null,null,null,null,null,null,null,null,null,null,null,null,null,null,null,null,null,null,null,null,null,null,null,null,null,null,null,null,null,null,null,null,null,null,null,null,null,null,null,null,null,null,null,null,null,null,null,null,null,null,null,null,null,null,null,null,null,null,null,null,null,null,null,null,null,null,null,null,null,null,null,null,null,null,null,null,null,null,null,null,null,null,null,null,null,null,null,null,null,null,null,null,null,null,null,null,null,null,null,null,null,null,null,null,null,null,null,null,null,null,null,null,null,null,null,null,null,null,null,null,null,null,null,null,null,null,null,null,null,null,null,null,null,null,null,null,null,null,null,null,null,null,null,null,null,null,null,null,null,null,null,null,null,null,null,null,null,null,null,null,null,null,null,null,null,null,null,null,null,null,null,null,null,null,null,null,null,null,null,null,null,null,null,null,null,null,null,null,null,null,null,null,null,null,null,null,null,null,null,null,null,null,null,null,null,null,null,null,null,null,null,null,null,null,null,null,null,null,null,null,null,null,null,null,null,null,null,null,null,null,null,null,null,null,null,null,null,null,null,null,null,null,null,null,null,null,null,null,null,null,null,null,null,null,null,null,null,null,null,null,null,null,null,null,null,null,null,null,null,null,null,null,null,null,null,null,null,null,null,null,null,null,null,null,null,null,null,null,null,null,null,null,null,null,null,null,null,null,null,null,null,null,null,null,null,null,null,null,null,null,null,null,null,null,null,null,null,null,null,null,null,null,null,null,null,null,null,null,null,null,null,null,null,null,null,null,null,null,null,null,null,null,null,null,null,null,null,null,null,null,null,null,null,null,null,null,null,null,null,null,null,null,null,null,null,null,null,null,null,null,null,null,null,null,null,null,null,null,null,null,null,null,null,null,null,null,null,null,null,null,null,null,null,null,null,null,null,null,null,null,null,null,null,null,null,null,null,null,null,null,null,null,null,null,null,null,null,null,null,null,null,null,null,null,null,null,null,null,null,null,null,null,null,null,null,null,null,null,null,null,null,null,null,null,null,null,null,null,null,null,null,null,null,null,null,null,null,null,null,null,null,null,null,null,null,null,null,null,null,null,null,null,null,null,null,null,null,null,null,null,null,null,null,null,null,null,null,null,null,null,null,null,null,null,null,null,null,null,null,null,null,null,null,null,null,null,null,null,null,null,null,null,null,null,null,null,null,null,null,null,null,null,null,null,null,null,null,null,null,null,null,null,null,null,null,null,null,null,null,null,null,null,null,null,null,null,null,null,null,null,null,null,null,null,null,null,null,null,null,null,null,null,null,null,null,null,null,null,null,null,null,null,null,null,null,null,null,null,null,null,null,null,null,null,null,null,null,null,null,null,null,null,null,null,null,null,null,null,null,null,null,null,null,null,null,null,null,null,null,null,null,null,null,null,null,null,null,null,null,null,null,null,null,null,null,null,null,null,null,null,null,null,null,null,null,null,null,null,null,null,null,null,null,null,null,null,null,null,null,null,null,null,null,null,null,null,null,null,null,null,null,null,null,null,null,null,null,null,null,null,null,null,null,null,null,null,null,null,null,null,null,null,null,null,null,null,null,null,null,null,null,null,null,null,null,null,null,null,null,null,null,null,null,null,null,null,null,null,null,null,null,null,null,null,null,null,null,null,null,null,null,null,null,null,null,null,null,null,null,null,null,null,null,null,null,null,null,null,null,null,null,null,null,null,null,null,null,null,null,null,null,null,null,null,null,null,null,null,null,null,null,null,null,null,null,null,null,null,null,null,null,null,null,null,null,null,null,null,null,null,null,null,null,null,null,null,null,null,null,null,null,null,null,null,null,null,null,null,null,null,null,null,null,null,null,null,null,null,null,null,null,null,null,null,null,null,null,null,null,null,null,null,null,null,null,null,null,null,null,null,null,null,null,null,null,null,null,null,null,null,null,null,null,null,null,null,null,null,null,null,null,null,null,null,null,null,null,null,null,null,null,null,null,null,null,null,null,null,null,null,null,null,null,null,null,null,null,null,null,null,null,null,null,null,null,null,null,null,null,null,null,null,null,null,null,null,null,null,null,null,null,null,null,null,null,null,null,null,null,null,null,null,null,null,null,null,null,null,null,null,null,null,null,null,null,null,null,null,null,null,null,null,null,null,null,null,null,null,null,null,null,null,null,null,null,null,null,null,null,null,null,null,null,null,null,null,null,null,null,null,null,null,null,null,null,null,null,null,null,null,null,null,null,null,null,null,null,null,null,null,null,null,null,null,null,null,null,null,null,null,null,null,null,null,null,null,null,null,null,null,null,null,null,null,null,null,null,null,null,null,null,null,null,null,null,null,null,null,null,null,null,null,null,null,null,null,null,null,null,null,null,null,null,null,null,null,null,null,null,null,null,null,null,null,null,null,null,null,null,null,null,null,null,null,null,null,null,null,null,null,null,null,null,null,null,null,null,null,null,null,null,null,null,null,null,null,null,null,null,null,null,null,null,null,null,null,null,null,null,null,null,null,null,null,null,null,null,null,null,null,null,null,null,null,null,null,null,null,null,null,null,null,null,null,null,null,null,null,null,null,null,null,null,null,null,null,null,null,null,null,null,null,null,null,null,null,null,null,null,null,null,null,null,null,null,null,null,null,null,null,null,null,null,null,null,null,null,null,null,null,null,null,null,null,null,null,null,null,null,null,null,null,null,null,null,null,null,null,null,null,null,null,null,null,null,null,null,null,null,null,null,null,null,null,null,null,null,null,null,null,null,null,null,null,null,null,null,null,null,null,null,null,null,null,null,null,null,null,null,null,null,null,null,null,null,null,null,null,null,null,null,null,null,null,null,null,null,null,null,null,null,null,null,null,null,null,null,null,null,null,null,null,null,null,null,null,null,null,null,null,null,null,null,null,null,null,null,null,null,null,null,null,null,null,null,null,null,null,null,null,null,null,null,null,null,null,null,null,null,null,null,null,null,null,null,null,null,null,null,null,null,null,null,null,null,null,null,null,null,null,null,null,null,null,null,null,null,null,null,null,null,null,null,null,null,null,null,null,null,null,null,null,null,null,null,null,null,null,null,null,null,null,null,null,null,null,null,null,null,null,null,null,null,null,null,null,null,null,null,null,null,null,null,null,null,null,null,null,null,null,null,null,null,null,null,null,null,null,null,null,null,null,null,null,null,null,null,null,null,null,null,null,null,null,null,null,null,null,null,null,null,null,null,null,null,null,null,null,null,null,null,null,null,null,null,null,null,null,null,null,null,null,null,null,null,null,null,null,null,null,null,null,null,null,null,null,null,null,null,null,null,null,null,null,null,null,null,null,null,null,null,null,null,null,null,null,null,null,null,null,null,null,null,null,null,null,null,null,null,null,null,null,null,null,null,null,null,null,null,null,null,null,null,null,null,null,null,null,null,null,null,null,null,null,null,null,null,null,null,null,null,null,null,null,null,null,null,null,null,null,null,null,null,null,null,null,null,null,null,null,null,null,null,null,null,null,null,null,null,null,null,null,null,null,null,null,null,null,null,null,null,null,null,null,null,null,null,null,null,null,null,null,null,null,null,null,null,null,null,null,null,null,null,null,null,null,null,null,null,null,null,null,null,null,null,null,null,null,null,null,null,null,null,null,null,null,null,null,null,null,null,null,null,null,null,null,null,null,null,null,null,null,null,null,null,null,null,null,null,null,null,null,null,null,null,null,null,null,null,null,null,null,null,null,null,null,null,null,null,null,null,null,null,null,null,null,null,null,null,null,null,null,null,null,null,null,null,null,null,null,null,null,null,null,null,null,null,null,null,null,null,null,null,null,null,null,null,null,null,null,null,null,null,null,null,null,null,null,null,null,null,null,null,null,null,null,null,null,null,null,null,null,null,null,null,null,null,null,null,null,null,null,null,null,null,null,null,null,null,null,null,null,null,null,null,null,null,null,null,null,null,null,null,null,null,null,null,null,null,null,null,null,null,null,null,null,null,null,null,null,null,null,null,null,null,null,null,null,null,null,null,null,null,null,null,null,null,null,null,null,null,null,null,null,null,null,null,null,null,null,null,null,null,null,null,null,null,null,null,null,null,null,null,null,null,null,null,null,null,null,null,null,null,null,null,null,null,null,null,null,null,null,null,null,null,null,null,null,null,null,null,null,null,null,null,null,null,null,null,null,null,null,null,null,null,null,null,null,null,null,null,null,null,null,null,null,null,null,null,null,null,null,null,null,null,null,null,null,null,null,null,null,null,null,null,null,null,null,null,null,null,null,null,null,null,null,null,null,null,null,null,null,null,null,null,null,null,null,null,null,null,null,null,null,null,null,null,null,null,null,null,null,null,null,null,null,null,null,null,null,null,null,null,null,null,null,null,null,null,null,null,null,null,null,null,null,null,null,null,null,null,null,null,null,null,null,null,null,null,null,null,null,null,null,null,null,null,null,null,null,null,null,null,null,null,null,null,null,null,null,null,null,null,null,null,null,null,null,null,null,null,null,null,null,null,null,null,null,null,null,null,null,null,null,null,null,null,null,null,null,null,null,null,null,null,null,null,null,null,null,null,null,null,null,null,null,null,null,null,null,null,null,null,null,null,null,null,null,null,null,null,null,null,null,null,null,null,null,null,null,null,null,null,null,null,null,null,null,null,null,null,null,null,null,null,null,null,null,null,null,null,null,null,null,null,null,null,null,null,null,null,null,null,null,null,null,null,null,null,null,null,null,null,null,null,null,null,null,null,null,null,null,null,null,null,null,null,null,null,null,null,null,null,null,null,null,null,null,null,null,null,null,null,null,null,null,null,null,null,null,null,null,null,null,null,null,null,null,null,null,null,null,null,null,null,null,null,null,null,null,null,null,null,null,null,null,null,null,null,null,null,null,null,null,null,null,null,null,null,null,null,null,null,null,null,null,null,null,null,null,null,null,null,null,null,null,null,null,null,null,null,null,null,null,null,null,null,null,null,null,null,null,null,null,null,null,null,null,null,null,null,null,null,null,null,null,null,null,null,null,null,null,null,null,null,null,null,null,null,null,null,null,null,null,null,null,null,null,null,null,null,null,null,null,null,null,null,null,null,null,null,null,null,null,null,null,null,null,null,null,null,null,null,null,null,null,null,null,null,null,null,null,null,null,null,null,null,null,null,null,null,null,null,null,null,null,null,null,null,null,null,null,null,null,null,null,null,null,null,null,null,null,null,null,null,null,null,null,null,null,null,null,null,null,null,null,null,null,null,null,null,null,null,null,null,null,null,null,null,null,null,null,null,null,null,null,null,null,null,null,null,null,null,null,null,null,null,null,null,null,null,null,null,null,null,null,null,null,null,null,null,null,null,null,null,null,null,null,null,null,null,null,null,null,null,null,null,null,null,null,null,null,null,null,null,null,null,null,null,null,null,null,null,null,null,null,null,null,null,null,null,null,null,null,null,null,null,null,null,null,null,null,null,null,null,null,null,null,null,null,null,null,null,null,null,null,null,null,null,null,null,null,null,null,null,null,null,null,null,null,null,null,null,null,null,null,null,null,null,null,null,null,null,null,null,null,null,null,null,null,null,null,null,null,null,null,null,null,null,null,null,null,null,null,null,null,null,null,null,null,null,null,null,null,null,null,null,null,null,null,null,null,null,null,null,null,null,null,null,null,null,null,null,null,null,null,null,null,null,null,null,null,null,null,null,null,null,null,null,null,null,null,null,null,null,null,null,null,null,null,null,null,null,null,null,null,null,null,null,null,null,null,null,null,null,null,null,null,null,null,null,null,null,null,null,null,null,null,null,null,null,null,null,null,null,null,null,null,null,null,null,null,null,null,null,null,null,null,null,null,null,null,null,null,null,null,null,null,null,null,null,null,null,null,null,null,null,null,null,null,null,null,null,null,null,null,null,null,null,null,null,null,null,null,null,null,null,null,null,null,null,null,null,null,null,null,null,null,null,null,null,null,null,null,null,null,null,null,null,null,null,null,null,null,null,null,null,null,null,null,null,null,null,null,null,null,null,null,null,null,null,null,null,null,null,null,null,null,null,null,null,null,null,null,null,null,null,null,null,null,null,null,null,null,null,null,null,null,null,null,null,null,null,null,null,null,null,null,null,null,null,null,null,null,null,null,null,null,null,null,null,null,null,null,null,null,null,null,null,null,null,null,null,null,null,null,null,null,null,null,null,null,null,null,null,null,null,null,null,null,null,null,null,null,null,null,null,null,null,null,null,null,null,null,null,null,null,null,null,null,null,null,null,null,null,null,null,null,null,null,null,null,null,null,null,null,null,null,null,null,null,null,null,null,null,null,null,null,null,null,null,null,null,null,null,null,null,null,null,null,null,null,null,null,null,null,null,null,null,null,null,null,null,null,null,null,null,null,null,null,null,null,null,null,null,null,null,null,null,null,null,null,null,null,null,null,null,null,null,null,null,null,null,null,null,null,null,null,null,null,null,null,null,null,null,null,null,null,null,null,null,null,null,null,null,null,null,null,null,null,null,null,null,null,null,null,null,null,null,null,null,null,null,null,null,null,null,null,null,null,null,null,null,null,null,null,null,null,null,null,null,null,null,null,null,null,null,null,null,null,null,null,null,null,null,null,null,null,null,null,null,null,null,null,null,null,null,null,null,null,null,null,null,null,null,null,null,null,null,null,null,null,null,null,null,null,null,null,null,null,null,null,null,null,null,null,null,null,null,null,null,null,null,null,null,null,null,null,null,null,null,null,null,null,null,null,null,null,null,null,null,null,null,null,null,null,null,null,null,null,null,null,null,null,null,null,null,null,null,null,null,null,null,null,null,null,null,null,null,null,null,null,null,null,null,null,null,null,null,null,null,null,null,null,null,null,null,null,null,null,null,null,null,null,null,null,null,null,null,null,null,null,null,null,null,null,null,null,null,null,null,null,null,null,null,null,null,null,null,null,null,null,null,null,null,null,null,null,null,null,null,null,null,null,null,null,null,null,null,null,null,null,null,null,null,null,null,null,null,null,null,null,null,null,null,null,null,null,null,null,null,null,null,null,null,null,null,null,null,null,null,null,null,null,null,null,null,null,null,null,null,null,null,null,null,null,null,null,null,null,null,null,null,null,null,null,null,null,null,null,null,null,null,null,null,null,null,null,null,null,null,null,null,null,null,null,null,null,null,null,null,null,null,null,null,null,null,null,null,null,null,null,null,null,null,null,null,null,null,null,null,null,null,null,null,null,null,null,null,null,null,null,null,null,null,null,null,null,null,null,null,null,null,null,null,null,null,null,null,null,null,null,null,null,null,null,null,null,null,null,null,null,null,null,null,null,null,null,null,null,null,null,null,null,null,null,null,null,null,null,null,null,null,null,null,null,null,null,null,null,null,null,null,null,null,null,null,null,null,null,null,null,null,null,null,null,null,null,null,null,null,null,null,null,null,null,null,null,null,null,null,null,null,null,null,null,null,null,null,null,null,null,null,null,null,null,null,null,null,null,null,null,null,null,null,null,null,null,null,null,null,null,null,null,null,null,null,null,null,null,null,null,null,null,null,null,null,null,null,null,null,null,null,null,null,null,null,null,null,null,null,null,null,null,null,null,null,null,null,null,null,null,null,null,null,null,null,null,null,null,null,null,null,null,null,null,null,null,null,null,null,null,null,null,null,null,null,null,null,null,null,null,null,null,null,null,null,null,null,null,null,null,null,null,null,null,null,null,null,null,null,null,null,null,null,null,null,null,null,null,null,null,null,null,null,null,null,null,null,null,null,null,null,null,null,null,null,null,null,null,null,null,null,null,null,null,null,null,null,null,null,null,null,null,null,null,null,null,null,null,null,null,null,null,null,null,null,null,null,null,null,null,null,null,null,null,null,null,null,null,null,null,null,null,null,null,null,null,null,null,null,null,null,null,null,null,null,null,null,null,null,null,null,null,null,null,null,null,null,null,null,null,null,null,null,null,null,null,null,null,null,null,null,null,null,null,null,null,null,null,null,null,null,null,null,null,null,null,null,null,null,null,null,null,null,null,null,null,null,null,null,null,null,null,null,null,null,null,null,null,null,null,null,null,null,null,null,null,null,null,null,null,null,null,null,null,null,null,null,null,null,null,null,null,null,null,null,null,null,null,null,null,null,null,null,null,null,null,null,null,null,null,null,null,null,null,null,null,null,null,null,null,null,null,null,null,null,null,null,null,null,null,null,null,null,null,null,null,null,null,null,null,null,null,null,null,null,null,null,null,null,null,null,null,null,null,null,null,null,null,null,null,null,null,null,null,null,null,null,null,null,null,null,null,null,null,null,null,null,null,null,null,null,null,null,null,null,null,null,null,null,null,null,null,null,null,null,null,null,null,null,null,null,null,null,null,null,null,null,null,null,null,null,null,null,null,null,null,null,null,null,null,null,null,null,null,null,null,null,null,null,null,null,null,null,null,null,null,null,null,null,null,null,null,null,null,null,null,null,null,null,null,null,null,null,null,null,null,null,null,null,null,null,null,null,null,null,null,null,null,null,null,null,null,null,null,null,null,null,null,null,null,null,null,null,null,null,null,null,null,null,null,null,null,null,null,null,null,null,null,null,null,null,null,null,null,null,null,null,null,null,null,null,null,null,null,null,null,null,null,null,null,null,null,null,null,null,null,null,null,null,null,null,null,null,null,null,null,null,null,null,null,null,null,null,null,null,null,null,null,null,null,null,null,null,null,null,null,null,null,null,null,null,null,null,null,null,null,null,null,null,null,null,null,null,null,null,null,null,null,null,null,null,null,null,null,null,null,null,null,null,null,null,null,null,null,null,null,null,null,null,null,null,null,null,null,null,null,null,null,null,null,null,null,null,null,null,null,null,null,null,null,null,null,null,null,null,null,null,null,null,null,null,null,null,null,null,null,null,null,null,null,null,null,null,null,null,null,null,null,null,null,null,null,null,null,null,null,null,null,null,null,null,null,null,null,null,null,null,null,null,null,null,null,null,null,null,null,null,null,null,null,null,null,null,null,null,null,null,null,null,null,null,null,null,null,null,null,null,null,null,null,null,null,null,null,null,null,null,null,null,null,null,null,null,null,null,null,null,null,null,null,null,null,null,null,null,null,null,null,null,null,null,null,null,null,null,null,null,null,null,null,null,null,null,null,null,null,null,null,null,null,null,null,null,null,null,null,null,null,null,null,null,null,null,null,null,null,null,null,null,null,null,null,null,null,null,null,null,null,null,null,null,null,null,null,null,null,null,null,null,null,null,null,null,null,null,null,null,null,null,null,null,null,null,null,null,null,null,null,null,null,null,null,null,null,null,null,null,null,null,null,null,null,null,null,null,null,null,null,null,null,null,null,null,null,null,null,null,null,null,null,null,null,null,null,null,null,null,null,null,null,null,null,null,null,null,null,null,null,null,null,null,null,null,null,null,null,null,null,null,null,null,null,null,null,null,null,null,null,null,null,null,null,null,null,null,null,null,null,null,null,null,null,null,null,null,null,null,null,null,null,null,null,null,null,null,null,null,null,null,null,null,null,null,null,null,null,null,null,null,null,null,null,null,null,null,null,null,null,null,null,null,null,null,null,null,null,null,null,null,null,null,null,null,null,null,null,null,null,null,null,null,null,null,null,null,null,null,null,null,null,null,null,null,null,null,null,null,null,null,null,null,null,null,null,null,null,null,null,null,null,null,null,null,null,null,null,null,null,null,null,null,null,null,null,null,null,null,null,null,null,null,null,null,null,null,null,null,null,null,null,null,null,null,null,null,null,null,null,null,null,null,null,null,null,null,null,null,null,null,null,null,null,null,null,null,null,null,null,null,null,null,null,null,null,null,null,null,null,null,null,null,null,null,null,null,null,null,null,null,null,null,null,null,null,null,null,null,null,null,null,null,null,null,null,null,null,null,null,null,null,null,null,null,null,null,null,null,null,null,null,null,null,null,null,null,null,null,null,null,null,null,null,null,null,null,null,null,null,null,null,null,null,null,null,null,null,null,null,null,null,null,null,null,null,null,null,null,null,null,null,null,null,null,null,null,null,null,null,null,null,null,null,null,null,null,null,null,null,null,null,null,null,null,null,null,null,null,null,null,null,null,null,null,null,null,null,null,null,null,null,null,null,null,null,null,null,null,null,null,null,null,null,null,null,null,null,null,null,null,null,null,null,null,null,null,null,null,null,null,null,null,null,null,null,null,null,null,null,null,null,null,null,null,null,null,null,null,null,null,null,null,null,null,null,null,null,null,null,null,null,null,null,null,null,null,null,null,null,null,null,null,null,null,null,null,null,null,null,null,null,null,null,null,null,null,null,null,null,null,null,null,null,null,null,null,null,null,null,null,null,null,null,null,null,null,null,null,null,null,null,null,null,null,null,null,null,null,null,null,null,null,null,null,null,null,null,null,null,null,null,null,null,null,null,null,null,null,null,null,null,null,null,null,null,null,null,null,null,null,null,null,null,null,null,null,null,null,null,null,null,null,null,null,null,null,null,null,null,null,null,null,null,null,null,null,null,null,null,null,null,null,null,null,null,null,null,null,null,null,null,null,null,null,null,null,null,null,null,null,null,null,null,null,null,null,null,null,null,null,null,null,null,null,null,null,null,null,null,null,null,null,null,null,null,null,null,null,null,null,null,null,null,null,null,null,null,null,null,null,null,null,null,null,null,null,null,null,null,null,null,null,null,null,null,null,null,null,null,null,null,null,null,null,null,null,null,null,null,null,null,null,null,null,null,null,null,null,null,null,null,null,null,null,null,null,null,null,null,null,null,null,null,null,null,null,null,null,null,null,null,null,null,null,null,null,null,null,null,null,null,null,null,null,null,null,null,null,null,null,null,null,null,null,null,null,null,null,null,null,null,null,null,null,null,null,null,null,null,null,null,null,null,null,null,null,null,null,null,null,null,null,null,null,null,null,null,null,null,null,null,null,null,null,null,null,null,null,null,null,null,null,null,null,null,null,null,null,null,null,null,null,null,null,null,null,null,null,null,null,null,null,null,null,null,null,null,null,null,null,null,null,null,null,null,null,null,null,null,null,null,null,null,null,null,null,null,null,null,null,null,null,null,null,null,null,null,null,null,null,null,null,null,null,null,null,null,null,null,null,null,null,null,null,null,null,null,null,null,null,null,null,null,null,null,null,null,null,null,null,null,null,null,null,null,null,null,null,null,null,null,null,null,null,null,null,null,null,null,null,null,null,null,null,null,null,null,null,null,null,null,null,null,null,null,null,null,null,null,null,null,null,null,null,null,null,null,null,null,null,null,null,null,null,null,null,null,null,null,null,null,null,null,null,null,null,null,null,null,null,null,null,null,null,null,null,null,null,null,null,null,null,null,null,null,null,null,null,null,null,null,null,null,null,null,null,null,null,null,null,null,null,null,null,null,null,null,null,null,null,null,null,null,null,null,null,null,null,null,null,null,null,null,null,null,null,null,null,null,null,null,null,null,null,null,null,null,null,null,null,null,null,null,null,null,null,null,null,null,null,null,null,null,null,null,null,null,null,null,null,null,null,null,null,null,null,null,null,null,null,null,null,null,null,null,null,null,null,null,null,null,null,null,null,null,null,null,null,null,null,null,null,null,null,null,null,null,null,null,null,null,null,null,null,null,null,null,null,null,null,null,null,null,null,null,null,null,null,null,null,null,null,null,null,null,null,null,null,null,null,null,null,null,null,null,null,null,null,null,null,null,null,null,null,null,null,null,null,null,null,null,null,null,null,null,null,null,null,null,null,null,null,null,null,null,null,null,null,null,null,null,null,null,null,null,null,null,null,null,null,null,null,null,null,null,null,null,null,null,null,null,null,null,null,null,null,null,null,null,null,null,null,null,null,null,null,null,null,null,null,null,null,null,null,null,null,null,null,null,null,null,null,null,null,null,null,null,null,null,null,null,null,null,null,null,null,null,null,null,null,null,null,null,null,null,null,null,null,null,null,null,null,null,null,null,null,null,null,null,null,null,null,null,null,null,null,null,null,null,null,null,null,null,null,null,null,null,null,null,null,null,null,null,null,null,null,null,null,null,null,null,null,null,null,null,null,null,null,null,null,null,null,null,null,null,null,null,null,null,null,null,null,null,null,null,null,null,null,null,null,null,null,null,null,null,null,null,null,null,null,null,null,null,null,null,null,null,null,null,null,null,null,null,null,null,null,null,null,null,null,null,null,null,null,null,null,null,null,null,null,null,null,null,null,null,null,null,null,null,null,null,null,null,null,null,null,null,null,null,null,null,null,null,null,null,null,null,null,null,null,null,null,null,null,null,null,null,null,null,null,null,null,null,null,null,null,null,null,null,null,null,null,null,null,null,null,null,null,null,null,null,null,null,null,null,null,null,null,null,null,null,null,null,null,null,null,null,null,null,null,null,null,null,null,null,null,null,null,null,null,null,null,null,null,null,null,null,null,null,null,null,null,null,null,null,null,null,null,null,null,null,null,null,null,null,null,null,null,null,null,null,null,null,null,null,null,null,null,null,null,null,null,null,null,null,null,null,null,null,null,null,null,null,null,null,null,null,null,null,null,null,null,null,null,null,null,null,null,null,null,null,null,null,null,null,null,null,null,null,null,null,null,null,null,null,null,null,null,null,null,null,null,null,null,null,null,null,null,null,null,null,null,null,null,null,null,null,null,null,null,null,null,null,null,null,null,null,null,null,null,null,null,null,null,null,null,null,null,null,null,null,null,null,null,null,null,null,null,null,null,null,null,null,null,null,null,null,null,null,null,null,null,null,null,null,null,null,null,null,null,null,null,null,null,null,null,null,null,null,null,null,null,null,null,null,null,null,null,null,null,null,null,null,null,null,null,null,null,null,null,null,null,null,null,null,null,null,null,null,null,null,null,null,null,null,null,null,null,null,null,null,null,null,null,null,null,null,null,null,null,null,null,null,null,null,null,null,null,null,null,null,null,null,null,null,null,null,null,null,null,null,null,null,null,null,null,null,null,null,null,null,null,null,null,null,null,null,null,null,null,null,null,null,null,null,null,null,null,null,null,null,null,null,null,null,null,null,null,null,null,null,null,null,null,null,null,null,null,null,null,null,null,null,null,null,null,null,null,null,null,null,null,null,null,null,null,null,null,null,null,null,null,null,null,null,null,null,null,null,null,null,null,null,null,null,null,null,null,null,null,null,null,null,null,null,null,null,null,null,null,null,null,null,null,null,null,null,null,null,null,null,null,null,null,null,null,null,null,null,null,null,null,null,null,null,null,null,null,null,null,null,null,null,null,null,null,null,null,null,null,null,null,null,null,null,null,null,null,null,null,null,null,null,null,null,null,null,null,null,null,null,null,null,null,null,null,null,null,null,null,null,null,null,null,null,null,null,{"$f":"IF(OR(【届出書】入力!C35=\"小規模事業用の範囲を超えており、事業用（自家用もしくは電気事業用）に該当する。\",【届出書】入力!C35=\"小規模事業用に該当しないため、届出不要。\"),\"事業用（自家用もしくは電気事業用）もしくは小規模事業用の該当に不備あり、届出できません！\",\"\")","v":""}]
[null,"使用前自己確認結果届出書",null,null,null,null,null,null,null,null,null,null,null,null,null,null,null,null,null,null,null,null,null,null,null,null,null,null,null,null,null,null,null,null,null,null,null,null,null,null,null,null,null,null,null,null,null,null,null,null,null,null,null,null,null,null,null,null,null,null,null,null,null,null,null,null,null,null,null,null,null,null,null,null,null,null,null,null,null,null,null,null,null,null,null,null,null,null,null,null,null,null,null,null,null,null,null,null,null,null,null,null,null,null,null,null,null,null,null,null,null,null,null,null,null,null,null,null,null,null,null,null,null,null,null,null,null,null,null,null,null,null,null,null,null,null,null,null,null,null,null,null,null,null,null,null,null,null,null,null,null,null,null,null,null,null,null,null,null,null,null,null,null,null,null,null,null,null,null,null,null,null,null,null,null,null,null,null,null,null,null,null,null,null,null,null,null,null,null,null,null,null,null,null,null,null,null,null,null,null,null,null,null,null,null,null,null,null,null,null,null,null,null,null,null,null,null,null,null,null,null,null,null,null,null,null,null,null,null,null,null,null,null,null,null,null,null,null,null,null,null,null,null,null,null,null,null,null,null,null,null,null,null,null,null,null,null,null,null,null,null,null,null,null,null,null,null,null,null,null,null,null,null,null,null,null,null,null,null,null,null,null,null,null,null,null,null,null,null,null,null,null,null,null,null,null,null,null,null,null,null,null,null,null,null,null,null,null,null,null,null,null,null,null,null,null,null,null,null,null,null,null,null,null,null,null,null,null,null,null,null,null,null,null,null,null,null,null,null,null,null,null,null,null,null,null,null,null,null,null,null,null,null,null,null,null,null,null,null,null,null,null,null,null,null,null,null,null,null,null,null,null,null,null,null,null,null,null,null,null,null,null,null,null,null,null,null,null,null,null,null,null,null,null,null,null,null,null,null,null,null,null,null,null,null,null,null,null,null,null,null,null,null,null,null,null,null,null,null,null,null,null,null,null,null,null,null,null,null,null,null,null,null,null,null,null,null,null,null,null,null,null,null,null,null,null,null,null,null,null,null,null,null,null,null,null,null,null,null,null,null,null,null,null,null,null,null,null,null,null,null,null,null,null,null,null,null,null,null,null,null,null,null,null,null,null,null,null,null,null,null,null,null,null,null,null,null,null,null,null,null,null,null,null,null,null,null,null,null,null,null,null,null,null,null,null,null,null,null,null,null,null,null,null,null,null,null,null,null,null,null,null,null,null,null,null,null,null,null,null,null,null,null,null,null,null,null,null,null,null,null,null,null,null,null,null,null,null,null,null,null,null,null,null,null,null,null,null,null,null,null,null,null,null,null,null,null,null,null,null,null,null,null,null,null,null,null,null,null,null,null,null,null,null,null,null,null,null,null,null,null,null,null,null,null,null,null,null,null,null,null,null,null,null,null,null,null,null,null,null,null,null,null,null,null,null,null,null,null,null,null,null,null,null,null,null,null,null,null,null,null,null,null,null,null,null,null,null,null,null,null,null,null,null,null,null,null,null,null,null,null,null,null,null,null,null,null,null,null,null,null,null,null,null,null,null,null,null,null,null,null,null,null,null,null,null,null,null,null,null,null,null,null,null,null,null,null,null,null,null,null,null,null,null,null,null,null,null,null,null,null,null,null,null,null,null,null,null,null,null,null,null,null,null,null,null,null,null,null,null,null,null,null,null,null,null,null,null,null,null,null,null,null,null,null,null,null,null,null,null,null,null,null,null,null,null,null,null,null,null,null,null,null,null,null,null,null,null,null,null,null,null,null,null,null,null,null,null,null,null,null,null,null,null,null,null,null,null,null,null,null,null,null,null,null,null,null,null,null,null,null,null,null,null,null,null,null,null,null,null,null,null,null,null,null,null,null,null,null,null,null,null,null,null,null,null,null,null,null,null,null,null,null,null,null,null,null,null,null,null,null,null,null,null,null,null,null,null,null,null,null,null,null,null,null,null,null,null,null,null,null,null,null,null,null,null,null,null,null,null,null,null,null,null,null,null,null,null,null,null,null,null,null,null,null,null,null,null,null,null,null,null,null,null,null,null,null,null,null,null,null,null,null,null,null,null,null,null,null,null,null,null,null,null,null,null,null,null,null,null,null,null,null,null,null,null,null,null,null,null,null,null,null,null,null,null,null,null,null,null,null,null,null,null,null,null,null,null,null,null,null,null,null,null,null,null,null,null,null,null,null,null,null,null,null,null,null,null,null,null,null,null,null,null,null,null,null,null,null,null,null,null,null,null,null,null,null,null,null,null,null,null,null,null,null,null,null,null,null,null,null,null,null,null,null,null,null,null,null,null,null,null,null,null,null,null,null,null,null,null,null,null,null,null,null,null,null,null,null,null,null,null,null,null,null,null,null,null,null,null,null,null,null,null,null,null,null,null,null,null,null,null,null,null,null,null,null,null,null,null,null,null,null,null,null,null,null,null,null,null,null,null,null,null,null,null,null,null,null,null,null,null,null,null,null,null,null,null,null,null,null,null,null,null,null,null,null,null,null,null,null,null,null,null,null,null,null,null,null,null,null,null,null,null,null,null,null,null,null,null,null,null,null,null,null,null,null,null,null,null,null,null,null,null,null,null,null,null,null,null,null,null,null,null,null,null,null,null,null,null,null,null,null,null,null,null,null,null,null,null,null,null,null,null,null,null,null,null,null,null,null,null,null,null,null,null,null,null,null,null,null,null,null,null,null,null,null,null,null,null,null,null,null,null,null,null,null,null,null,null,null,null,null,null,null,null,null,null,null,null,null,null,null,null,null,null,null,null,null,null,null,null,null,null,null,null,null,null,null,null,null,null,null,null,null,null,null,null,null,null,null,null,null,null,null,null,null,null,null,null,null,null,null,null,null,null,null,null,null,null,null,null,null,null,null,null,null,null,null,null,null,null,null,null,null,null,null,null,null,null,null,null,null,null,null,null,null,null,null,null,null,null,null,null,null,null,null,null,null,null,null,null,null,null,null,null,null,null,null,null,null,null,null,null,null,null,null,null,null,null,null,null,null,null,null,null,null,null,null,null,null,null,null,null,null,null,null,null,null,null,null,null,null,null,null,null,null,null,null,null,null,null,null,null,null,null,null,null,null,null,null,null,null,null,null,null,null,null,null,null,null,null,null,null,null,null,null,null,null,null,null,null,null,null,null,null,null,null,null,null,null,null,null,null,null,null,null,null,null,null,null,null,null,null,null,null,null,null,null,null,null,null,null,null,null,null,null,null,null,null,null,null,null,null,null,null,null,null,null,null,null,null,null,null,null,null,null,null,null,null,null,null,null,null,null,null,null,null,null,null,null,null,null,null,null,null,null,null,null,null,null,null,null,null,null,null,null,null,null,null,null,null,null,null,null,null,null,null,null,null,null,null,null,null,null,null,null,null,null,null,null,null,null,null,null,null,null,null,null,null,null,null,null,null,null,null,null,null,null,null,null,null,null,null,null,null,null,null,null,null,null,null,null,null,null,null,null,null,null,null,null,null,null,null,null,null,null,null,null,null,null,null,null,null,null,null,null,null,null,null,null,null,null,null,null,null,null,null,null,null,null,null,null,null,null,null,null,null,null,null,null,null,null,null,null,null,null,null,null,null,null,null,null,null,null,null,null,null,null,null,null,null,null,null,null,null,null,null,null,null,null,null,null,null,null,null,null,null,null,null,null,null,null,null,null,null,null,null,null,null,null,null,null,null,null,null,null,null,null,null,null,null,null,null,null,null,null,null,null,null,null,null,null,null,null,null,null,null,null,null,null,null,null,null,null,null,null,null,null,null,null,null,null,null,null,null,null,null,null,null,null,null,null,null,null,null,null,null,null,null,null,null,null,null,null,null,null,null,null,null,null,null,null,null,null,null,null,null,null,null,null,null,null,null,null,null,null,null,null,null,null,null,null,null,null,null,null,null,null,null,null,null,null,null,null,null,null,null,null,null,null,null,null,null,null,null,null,null,null,null,null,null,null,null,null,null,null,null,null,null,null,null,null,null,null,null,null,null,null,null,null,null,null,null,null,null,null,null,null,null,null,null,null,null,null,null,null,null,null,null,null,null,null,null,null,null,null,null,null,null,null,null,null,null,null,null,null,null,null,null,null,null,null,null,null,null,null,null,null,null,null,null,null,null,null,null,null,null,null,null,null,null,null,null,null,null,null,null,null,null,null,null,null,null,null,null,null,null,null,null,null,null,null,null,null,null,null,null,null,null,null,null,null,null,null,null,null,null,null,null,null,null,null,null,null,null,null,null,null,null,null,null,null,null,null,null,null,null,null,null,null,null,null,null,null,null,null,null,null,null,null,null,null,null,null,null,null,null,null,null,null,null,null,null,null,null,null,null,null,null,null,null,null,null,null,null,null,null,null,null,null,null,null,null,null,null,null,null,null,null,null,null,null,null,null,null,null,null,null,null,null,null,null,null,null,null,null,null,null,null,null,null,null,null,null,null,null,null,null,null,null,null,null,null,null,null,null,null,null,null,null,null,null,null,null,null,null,null,null,null,null,null,null,null,null,null,null,null,null,null,null,null,null,null,null,null,null,null,null,null,null,null,null,null,null,null,null,null,null,null,null,null,null,null,null,null,null,null,null,null,null,null,null,null,null,null,null,null,null,null,null,null,null,null,null,null,null,null,null,null,null,null,null,null,null,null,null,null,null,null,null,null,null,null,null,null,null,null,null,null,null,null,null,null,null,null,null,null,null,null,null,null,null,null,null,null,null,null,null,null,null,null,null,null,null,null,null,null,null,null,null,null,null,null,null,null,null,null,null,null,null,null,null,null,null,null,null,null,null,null,null,null,null,null,null,null,null,null,null,null,null,null,null,null,null,null,null,null,null,null,null,null,null,null,null,null,null,null,null,null,null,null,null,null,null,null,null,null,null,null,null,null,null,null,null,null,null,null,null,null,null,null,null,null,null,null,null,null,null,null,null,null,null,null,null,null,null,null,null,null,null,null,null,null,null,null,null,null,null,null,null,null,null,null,null,null,null,null,null,null,null,null,null,null,null,null,null,null,null,null,null,null,null,null,null,null,null,null,null,null,null,null,null,null,null,null,null,null,null,null,null,null,null,null,null,null,null,null,null,null,null,null,null,null,null,null,null,null,null,null,null,null,null,null,null,null,null,null,null,null,null,null,null,null,null,null,null,null,null,null,null,null,null,null,null,null,null,null,null,null,null,null,null,null,null,null,null,null,null,null,null,null,null,null,null,null,null,null,null,null,null,null,null,null,null,null,null,null,null,null,null,null,null,null,null,null,null,null,null,null,null,null,null,null,null,null,null,null,null,null,null,null,null,null,null,null,null,null,null,null,null,null,null,null,null,null,null,null,null,null,null,null,null,null,null,null,null,null,null,null,null,null,null,null,null,null,null,null,null,null,null,null,null,null,null,null,null,null,null,null,null,null,null,null,null,null,null,null,null,null,null,null,null,null,null,null,null,null,null,null,null,null,null,null,null,null,null,null,null,null,null,null,null,null,null,null,null,null,null,null,null,null,null,null,null,null,null,null,null,null,null,null,null,null,null,null,null,null,null,null,null,null,null,null,null,null,null,null,null,null,null,null,null,null,null,null,null,null,null,null,null,null,null,null,null,null,null,null,null,null,null,null,null,null,null,null,null,null,null,null,null,null,null,null,null,null,null,null,null,null,null,null,null,null,null,null,null,null,null,null,null,null,null,null,null,null,null,null,null,null,null,null,null,null,null,null,null,null,null,null,null,null,null,null,null,null,null,null,null,null,null,null,null,null,null,null,null,null,null,null,null,null,null,null,null,null,null,null,null,null,null,null,null,null,null,null,null,null,null,null,null,null,null,null,null,null,null,null,null,null,null,null,null,null,null,null,null,null,null,null,null,null,null,null,null,null,null,null,null,null,null,null,null,null,null,null,null,null,null,null,null,null,null,null,null,null,null,null,null,null,null,null,null,null,null,null,null,null,null,null,null,null,null,null,null,null,null,null,null,null,null,null,null,null,null,null,null,null,null,null,null,null,null,null,null,null,null,null,null,null,null,null,null,null,null,null,null,null,null,null,null,null,null,null,null,null,null,null,null,null,null,null,null,null,null,null,null,null,null,null,null,null,null,null,null,null,null,null,null,null,null,null,null,null,null,null,null,null,null,null,null,null,null,null,null,null,null,null,null,null,null,null,null,null,null,null,null,null,null,null,null,null,null,null,null,null,null,null,null,null,null,null,null,null,null,null,null,null,null,null,null,null,null,null,null,null,null,null,null,null,null,null,null,null,null,null,null,null,null,null,null,null,null,null,null,null,null,null,null,null,null,null,null,null,null,null,null,null,null,null,null,null,null,null,null,null,null,null,null,null,null,null,null,null,null,null,null,null,null,null,null,null,null,null,null,null,null,null,null,null,null,null,null,null,null,null,null,null,null,null,null,null,null,null,null,null,null,null,null,null,null,null,null,null,null,null,null,null,null,null,null,null,null,null,null,null,null,null,null,null,null,null,null,null,null,null,null,null,null,null,null,null,null,null,null,null,null,null,null,null,null,null,null,null,null,null,null,null,null,null,null,null,null,null,null,null,null,null,null,null,null,null,null,null,null,null,null,null,null,null,null,null,null,null,null,null,null,null,null,null,null,null,null,null,null,null,null,null,null,null,null,null,null,null,null,null,null,null,null,null,null,null,null,null,null,null,null,null,null,null,null,null,null,null,null,null,null,null,null,null,null,null,null,null,null,null,null,null,null,null,null,null,null,null,null,null,null,null,null,null,null,null,null,null,null,null,null,null,null,null,null,null,null,null,null,null,null,null,null,null,null,null,null,null,null,null,null,null,null,null,null,null,null,null,null,null,null,null,null,null,null,null,null,null,null,null,null,null,null,null,null,null,null,null,null,null,null,null,null,null,null,null,null,null,null,null,null,null,null,null,null,null,null,null,null,null,null,null,null,null,null,null,null,null,null,null,null,null,null,null,null,null,null,null,null,null,null,null,null,null,null,null,null,null,null,null,null,null,null,null,null,null,null,null,null,null,null,null,null,null,null,null,null,null,null,null,null,null,null,null,null,null,null,null,null,null,null,null,null,null,null,null,null,null,null,null,null,null,null,null,null,null,null,null,null,null,null,null,null,null,null,null,null,null,null,null,null,null,null,null,null,null,null,null,null,null,null,null,null,null,null,null,null,null,null,null,null,null,null,null,null,null,null,null,null,null,null,null,null,null,null,null,null,null,null,null,null,null,null,null,null,null,null,null,null,null,null,null,null,null,null,null,null,null,null,null,null,null,null,null,null,null,null,null,null,null,null,null,null,null,null,null,null,null,null,null,null,null,null,null,null,null,null,null,null,null,null,null,null,null,null,null,null,null,null,null,null,null,null,null,null,null,null,null,null,null,null,null,null,null,null,null,null,null,null,null,null,null,null,null,null,null,null,null,null,null,null,null,null,null,null,null,null,null,null,null,null,null,null,null,null,null,null,null,null,null,null,null,null,null,null,null,null,null,null,null,null,null,null,null,null,null,null,null,null,null,null,null,null,null,null,null,null,null,null,null,null,null,null,null,null,null,null,null,null,null,null,null,null,null,null,null,null,null,null,null,null,null,null,null,null,null,null,null,null,null,null,null,null,null,null,null,null,null,null,null,null,null,null,null,null,null,null,null,null,null,null,null,null,null,null,null,null,null,null,null,null,null,null,null,null,null,null,null,null,null,null,null,null,null,null,null,null,null,null,null,null,null,null,null,null,null,null,null,null,null,null,null,null,null,null,null,null,null,null,null,null,null,null,null,null,null,null,null,null,null,null,null,null,null,null,null,null,null,null,null,null,null,null,null,null,null,null,null,null,null,null,null,null,null,null,null,null,null,null,null,null,null,null,null,null,null,null,null,null,null,null,null,null,null,null,null,null,null,null,null,null,null,null,null,null,null,null,null,null,null,null,null,null,null,null,null,null,null,null,null,null,null,null,null,null,null,null,null,null,null,null,null,null,null,null,null,null,null,null,null,null,null,null,null,null,null,null,null,null,null,null,null,null,null,null,null,null,null,null,null,null,null,null,null,null,null,null,null,null,null,null,null,null,null,null,null,null,null,null,null,null,null,null,null,null,null,null,null,null,null,null,null,null,null,null,null,null,null,null,null,null,null,null,null,null,null,null,null,null,null,null,null,null,null,null,null,null,null,null,null,null,null,null,null,null,null,null,null,null,null,null,null,null,null,null,null,null,null,null,null,null,null,null,null,null,null,null,null,null,null,null,null,null,null,null,null,null,null,null,null,null,null,null,null,null,null,null,null,null,null,null,null,null,null,null,null,null,null,null,null,null,null,null,null,null,null,null,null,null,null,null,null,null,null,null,null,null,null,null,null,null,null,null,null,null,null,null,null,null,null,null,null,null,null,null,null,null,null,null,null,null,null,null,null,null,null,null,null,null,null,null,null,null,null,null,null,null,null,null,null,null,null,null,null,null,null,null,null,null,null,null,null,null,null,null,null,null,null,null,null,null,null,null,null,null,null,null,null,null,null,null,null,null,null,null,null,null,null,null,null,null,null,null,null,null,null,null,null,null,null,null,null,null,null,null,null,null,null,null,null,null,null,null,null,null,null,null,null,null,null,null,null,null,null,null,null,null,null,null,null,null,null,null,null,null,null,null,null,null,null,null,null,null,null,null,null,null,null,null,null,null,null,null,null,null,null,null,null,null,null,null,null,null,null,null,null,null,null,null,null,null,null,null,null,null,null,null,null,null,null,null,null,null,null,null,null,null,null,null,null,null,null,null,null,null,null,null,null,null,null,null,null,null,null,null,null,null,null,null,null,null,null,null,null,null,null,null,null,null,null,null,null,null,null,null,null,null,null,null,null,null,null,null,null,null,null,null,null,null,null,null,null,null,null,null,null,null,null,null,null,null,null,null,null,null,null,null,null,null,null,null,null,null,null,null,null,null,null,null,null,null,null,null,null,null,null,null,null,null,null,null,null,null,null,null,null,null,null,null,null,null,null,null,null,null,null,null,null,null,null,null,null,null,null,null,null,null,null,null,null,null,null,null,null,null,null,null,null,null,null,null,null,null,null,null,null,null,null,null,null,null,null,null,null,null,null,null,null,null,null,null,null,null,null,null,null,null,null,null,null,null,null,null,null,null,null,null,null,null,null,null,null,null,null,null,null,null,null,null,null,null,null,null,null,null,null,null,null,null,null,null,null,null,null,null,null,null,null,null,null,null,null,null,null,null,null,null,null,null,null,null,null,null,null,null,null,null,null,null,null,null,null,null,null,null,null,null,null,null,null,null,null,null,null,null,null,null,null,null,null,null,null,null,null,null,null,null,null,null,null,null,null,null,null,null,null,null,null,null,null,null,null,null,null,null,null,null,null,null,null,null,null,null,null,null,null,null,null,null,null,null,null,null,null,null,null,null,null,null,null,null,null,null,null,null,null,null,null,null,null,null,null,null,null,null,null,null,null,null,null,null,null,null,null,null,null,null,null,null,null,null,null,null,null,null,null,null,null,null,null,null,null,null,null,null,null,null,null,null,null,null,null,null,null,null,null,null,null,null,null,null,null,null,null,null,null,null,null,null,null,null,null,null,null,null,null,null,null,null,null,null,null,null,null,null,null,null,null,null,null,null,null,null,null,null,null,null,null,null,null,null,null,null,null,null,null,null,null,null,null,null,null,null,null,null,null,null,null,null,null,null,null,null,null,null,null,null,null,null,null,null,null,null,null,null,null,null,null,null,null,null,null,null,null,null,null,null,null,null,null,null,null,null,null,null,null,null,null,null,null,null,null,null,null,null,null,null,null,null,null,null,null,null,null,null,null,null,null,null,null,null,null,null,null,null,null,null,null,null,null,null,null,null,null,null,null,null,null,null,null,null,null,null,null,null,null,null,null,null,null,null,null,null,null,null,null,null,null,null,null,null,null,null,null,null,null,null,null,null,null,null,null,null,null,null,null,null,null,null,null,null,null,null,null,null,null,null,null,null,null,null,null,null,null,null,null,null,null,null,null,null,null,null,null,null,null,null,null,null,null,null,null,null,null,null,null,null,null,null,null,null,null,null,null,null,null,null,null,null,null,null,null,null,null,null,null,null,null,null,null,null,null,null,null,null,null,null,null,null,null,null,null,null,null,null,null,null,null,null,null,null,null,null,null,null,null,null,null,null,null,null,null,null,null,null,null,null,null,null,null,null,null,null,null,null,null,null,null,null,null,null,null,null,null,null,null,null,null,null,null,null,null,null,null,null,null,null,null,null,null,null,null,null,null,null,null,null,null,null,null,null,null,null,null,null,null,null,null,null,null,null,null,null,null,null,null,null,null,null,null,null,null,null,null,null,null,null,null,null,null,null,null,null,null,null,null,null,null,null,null,null,null,null,null,null,null,null,null,null,null,null,null,null,null,null,null,null,null,null,null,null,null,null,null,null,null,null,null,null,null,null,null,null,null,null,null,null,null,null,null,null,null,null,null,null,null,null,null,null,null,null,null,null,null,null,null,null,null,null,null,null,null,null,null,null,null,null,null,null,null,null,null,null,null,null,null,null,null,null,null,null,null,null,null,null,null,null,null,null,null,null,null,null,null,null,null,null,null,null,null,null,null,null,null,null,null,null,null,null,null,null,null,null,null,null,null,null,null,null,null,null,null,null,null,null,null,null,null,null,null,null,null,null,null,null,null,null,null,null,null,null,null,null,null,null,null,null,null,null,null,null,null,null,null,null,null,null,null,null,null,null,null,null,null,null,null,null,null,null,null,null,null,null,null,null,null,null,null,null,null,null,null,null,null,null,null,null,null,null,null,null,null,null,null,null,null,null,null,null,null,null,null,null,null,null,null,null,null,null,null,null,null,null,null,null,null,null,null,null,null,null,null,null,null,null,null,null,null,null,null,null,null,null,null,null,null,null,null,null,null,null,null,null,null,null,null,null,null,null,null,null,null,null,null,null,null,null,null,null,null,null,null,null,null,null,null,null,null,null,null,null,null,null,null,null,null,null,null,null,null,null,null,null,null,null,null,null,null,null,null,null,null,null,null,null,null,null,null,null,null,null,null,null,null,null,null,null,null,null,null,null,null,null,null,null,null,null,null,null,null,null,null,null,null,null,null,null,null,null,null,null,null,null,null,null,null,null,null,null,null,null,null,null,null,null,null,null,null,null,null,null,null,null,null,null,null,null,null,null,null,null,null,null,null,null,null,null,null,null,null,null,null,null,null,null,null,null,null,null,null,null,null,null,null,null,null,null,null,null,null,null,null,null,null,null,null,null,null,null,null,null,null,null,null,null,null,null,null,null,null,null,null,null,null,null,null,null,null,null,null,null,null,null,null,null,null,null,null,null,null,null,null,null,null,null,null,null,null,null,null,null,null,null,null,null,null,null,null,null,null,null,null,null,null,null,null,null,null,null,null,null,null,null,null,null,null,null,null,null,null,null,null,null,null,null,null,null,null,null,null,null,null,null,null,null,null,null,null,null,null,null,null,null,null,null,null,null,null,null,null,null,null,null,null,null,null,null,null,null,null,null,null,null,null,null,null,null,null,null,null,null,null,null,null,null,null,null,null,null,null,null,null,null,null,null,null,null,null,null,null,null,null,null,null,null,null,null,null,null,null,null,null,null,null,null,null,null,null,null,null,null,null,null,null,null,null,null,null,null,null,null,null,null,null,null,null,null,null,null,null,null,null,null,null,null,null,null,null,null,null,null,null,null,null,null,null,null,null,null,null,null,null,null,null,null,null,null,null,null,null,null,null,null,null,null,null,null,null,null,null,null,null,null,null,null,null,null,null,null,null,null,null,null,null,null,null,null,null,null,null,null,null,null,null,null,null,null,null,null,null,null,null,null,null,null,null,null,null,null,null,null,null,null,null,null,null,null,null,null,null,null,null,null,null,null,null,null,null,null,null,null,null,null,null,null,null,null,null,null,null,null,null,null,null,null,null,null,null,null,null,null,null,null,null,null,null,null,null,null,null,null,null,null,null,null,null,null,null,null,null,null,null,null,null,null,null,null,null,null,null,null,null,null,null,null,null,null,null,null,null,null,null,null,null,null,null,null,null,null,null,null,null,null,null,null,null,null,null,null,null,null,null,null,null,null,null,null,null,null,null,null,null,null,null,null,null,null,null,null,null,null,null,null,null,null,null,null,null,null,null,null,null,null,null,null,null,null,null,null,null,null,null,null,null,null,null,null,null,null,null,null,null,null,null,null,null,null,null,null,null,null,null,null,null,null,null,null,null,null,null,null,null,null,null,null,null,null,null,null,null,null,null,null,null,null,null,null,null,null,null,null,null,null,null,null,null,null,null,null,null,null,null,null,null,null,null,null,null,null,null,null,null,null,null,null,null,null,null,null,null,null,null,null,null,null,null,null,null,null,null,null,null,null,null,null,null,null,null,null,null,null,null,null,null,null,null,null,null,null,null,null,null,null,null,null,null,null,null,null,null,null,null,null,null,null,null,null,null,null,null,null,null,null,null,null,null,null,null,null,null,null,null,null,null,null,null,null,null,null,null,null,null,null,null,null,null,null,null,null,null,null,null,null,null,null,null,null,null,null,null,null,null,null,null,null,null,null,null,null,null,null,null,null,null,null,null,null,null,null,null,null,null,null,null,null,null,null,null,null,null,null,null,null,null,null,null,null,null,null,null,null,null,null,null,null,null,null,null,null,null,null,null,null,null,null,null,null,null,null,null,null,null,null,null,null,null,null,null,null,null,null,null,null,null,null,null,null,null,null,null,null,null,null,null,null,null,null,null,null,null,null,null,null,null,null,null,null,null,null,null,null,null,null,null,null,null,null,null,null,null,null,null,null,null,null,null,null,null,null,null,null,null,null,null,null,null,null,null,null,null,null,null,null,null,null,null,null,null,null,null,null,null,null,null,null,null,null,null,null,null,null,null,null,null,null,null,null,null,null,null,null,null,null,null,null,null,null,null,null,null,null,null,null,null,null,null,null,null,null,null,null,null,null,null,null,null,null,null,null,null,null,null,null,null,null,null,null,null,null,null,null,null,null,null,null,null,null,null,null,null,null,null,null,null,null,null,null,null,null,null,null,null,null,null,null,null,null,null,null,null,null,null,null,null,null,null,null,null,null,null,null,null,null,null,null,null,null,null,null,null,null,null,null,null,null,null,null,null,null,null,null,null,null,null,null,null,null,null,null,null,null,null,null,null,null,null,null,null,null,null,null,null,null,null,null,null,null,null,null,null,null,null,null,null,null,null,null,null,null,null,null,null,null,null,null,null,null,null,null,null,null,null,null,null,null,null,null,null,null,null,null,null,null,null,null,null,null,null,null,null,null,null,null,null,null,null,null,null,null,null,null,null,null,null,null,null,null,null,null,null,null,null,null,null,null,null,null,null,null,null,null,null,null,null,null,null,null,null,null,null,null,null,null,null,null,null,null,null,null,null,null,null,null,null,null,null,null,null,null,null,null,null,null,null,null,null,null,null,null,null,null,null,null,null,null,null,null,null,null,null,null,null,null,null,null,null,null,null,null,null,null,null,null,null,null,null,null,null,null,null,null,null,null,null,null,null,null,null,null,null,null,null,null,null,null,null,null,null,null,null,null,null,null,null,null,null,null,null,null,null,null,null,null,null,null,null,null,null,null,null,null,null,null,null,null,null,null,null,null,null,null,null,null,null,null,null,null,null,null,null,null,null,null,null,null,null,null,null,null,null,null,null,null,null,null,null,null,null,null,null,null,null,null,null,null,null,null,null,null,null,null,null,null,null,null,null,null,null,null,null,null,null,null,null,null,null,null,null,null,null,null,null,null,null,null,null,null,null,null,null,null,null,null,null,null,null,null,null,null,null,null,null,null,null,null,null,null,null,null,null,null,null,null,null,null,null,null,null,null,null,null,null,null,null,null,null,null,null,null,null,null,null,null,null,null,null,null,null,null,null,null,null,null,null,null,null,null,null,null,null,null,null,null,null,null,null,null,null,null,null,null,null,null,null,null,null,null,null,null,null,null,null,null,null,null,null,null,null,null,null,null,null,null,null,null,null,null,null,null,null,null,null,null,null,null,null,null,null,null,null,null,null,null,null,null,null,null,null,null,null,null,null,null,null,null,null,null,null,null,null,null,null,null,null,null,null,null,null,null,null,null,null,null,null,null,null,null,null,null,null,null,null,null,null,null,null,null,null,null,null,null,null,null,null,null,null,null,null,null,null,null,null,null,null,null,null,null,null,null,null,null,null,null,null,null,null,null,null,null,null,null,null,null,null,null,null,null,null,null,null,null,null,null,null,null,null,null,null,null,null,null,null,null,null,null,null,null,null,null,null,null,null,null,null,null,null,null,null,null,null,null,null,null,null,null,null,null,null,null,null,null,null,null,null,null,null,null,null,null,null,null,null,null,null,null,null,null,null,null,null,null,null,null,null,null,null,null,null,null,null,null,null,null,null,null,null,null,null,null,null,null,null,null,null,null,null,null,null,null,null,null,null,null,null,null,null,null,null,null,null,null,null,null,null,null,null,null,null,null,null,null,null,null,null,null,null,null,null,null,null,null,null,null,null,null,null,null,null,null,null,null,null,null,null,null,null,null,null,null,null,null,null,null,null,null,null,null,null,null,null,null,null,null,null,null,null,null,null,null,null,null,null,null,null,null,null,null,null,null,null,null,null,null,null,null,null,null,null,null,null,null,null,null,null,null,null,null,null,null,null,null,null,null,null,null,null,null,null,null,null,null,null,null,null,null,null,null,null,null,null,null,null,null,null,null,null,null,null,null,null,null,null,null,null,null,null,null,null,null,null,null,null,null,null,null,null,null,null,null,null,null,null,null,null,null,null,null,null,null,null,null,null,null,null,null,null,null,null,null,null,null,null,null,null,null,null,null,null,null,null,null,null,null,null,null,null,null,null,null,null,null,null,null,null,null,null,null,null,null,null,null,null,null,null,null,null,null,null,null,null,null,null,null,null,null,null,null,null,null,null,null,null,null,null,null,null,null,null,null,null,null,null,null,null,null,null,null,null,null,null,null,null,null,null,null,null,null,null,null,null,null,null,null,null,null,null,null,null,null,null,null,null,null,null,null,null,null,null,null,null,null,null,null,null,null,null,null,null,null,null,null,null,null,null,null,null,null,null,null,null,null,null,null,null,null,null,null,null,null,null,null,null,null,null,null,null,null,null,null,null,null,null,null,null,null,null,null,null,null,null,null,null,null,null,null,null,null,null,null,null,null,null,null,null,null,null,null,null,null,null,null,null,null,null,null,null,null,null,null,null,null,null,null,null,null,null,null,null,null,null,null,null,null,null,null,null,null,null,null,null,null,null,null,null,null,null,null,null,null,null,null,null,null,null,null,null,null,null,null,null,null,null,null,null,null,null,null,null,null,null,null,null,null,null,null,null,null,null,null,null,null,null,null,null,null,null,null,null,null,null,null,null,null,null,null,null,null,null,null,null,null,null,null,null,null,null,null,null,null,null,null,null,null,null,null,null,null,null,null,null,null,null,null,null,null,null,null,null,null,null,null,null,null,null,null,null,null,null,null,null,null,null,null,null,null,null,null,null,null,null,null,null,null,null,null,null,null,null,null,null,null,null,null,null,null,null,null,null,null,null,null,null,null,null,null,null,null,null,null,null,null,null,null,null,null,null,null,null,null,null,null,null,null,null,null,null,null,null,null,null,null,null,null,null,null,null,null,null,null,null,null,null,null,null,null,null,null,null,null,null,null,null,null,null,null,null,null,null,null,null,null,null,null,null,null,null,null,null,null,null,null,null,null,null,null,null,null,null,null,null,null,null,null,null,null,null,null,null,null,null,null,null,null,null,null,null,null,null,null,null,null,null,null,null,null,null,null,null,null,null,null,null,null,null,null,null,null,null,null,null,null,null,null,null,null,null,null,null,null,null,null,null,null,null,null,null,null,null,null,null,null,null,null,null,null,null,null,null,null,null,null,null,null,null,null,null,null,null,null,null,null,null,null,null,null,null,null,null,null,null,null,null,null,null,null,null,null,null,null,null,null,null,null,null,null,null,null,null,null,null,null,null,null,null,null,null,null,null,null,null,null,null,null,null,null,null,null,null,null,null,null,null,null,null,null,null,null,null,null,null,null,null,null,null,null,null,null,null,null,null,null,null,null,null,null,null,null,null,null,null,null,null,null,null,null,null,null,null,null,null,null,null,null,null,null,null,null,null,null,null,null,null,null,null,null,null,null,null,null,null,null,null,null,null,null,null,null,null,null,null,null,null,null,null,null,null,null,null,null,null,null,null,null,null,null,null,null,null,null,null,null,null,null,null,null,null,null,null,null,null,null,null,null,null,null,null,null,null,null,null,null,null,null,null,null,null,null,null,null,null,null,null,null,null,null,null,null,null,null,null,null,null,null,null,null,null,null,null,null,null,null,null,null,null,null,null,null,null,null,null,null,null,null,null,null,null,null,null,null,null,null,null,null,null,null,null,null,null,null,null,null,null,null,null,null,null,null,null,null,null,null,null,null,null,null,null,null,null,null,null,null,null,null,null,null,null,null,null,null,null,null,null,null,null,null,null,null,null,null,null,null,null,null,null,null,null,null,null,null,null,null,null,null,null,null,null,null,null,null,null,null,null,null,null,null,null,null,null,null,null,null,null,null,null,null,null,null,null,null,null,null,null,null,null,null,null,null,null,null,null,null,null,null,null,null,null,null,null,null,null,null,null,null,null,null,null,null,null,null,null,null,null,null,null,null,null,null,null,null,null,null,null,null,null,null,null,null,null,null,null,null,null,null,null,null,null,null,null,null,null,null,null,null,null,null,null,null,null,null,null,null,null,null,null,null,null,null,null,null,null,null,null,null,null,null,null,null,null,null,null,null,null,null,null,null,null,null,null,null,null,null,null,null,null,null,null,null,null,null,null,null,null,null,null,null,null,null,null,null,null,null,null,null,null,null,null,null,null,null,null,null,null,null,null,null,null,null,null,null,null,null,null,null,null,null,null,null,null,null,null,null,null,null,null,null,null,null,null,null,null,null,null,null,null,null,null,null,null,null,null,null,null,null,null,null,null,null,null,null,null,null,null,null,null,null,null,null,null,null,null,null,null,null,null,null,null,null,null,null,null,null,null,null,null,null,null,null,null,null,null,null,null,null,null,null,null,null,null,null,null,null,null,null,null,null,null,null,null,null,null,null,null,null,null,null,null,null,null,null,null,null,null,null,null,null,null,null,null,null,null,null,null,null,null,null,null,null,null,null,null,null,null,null,null,null,null,null,null,null,null,null,null,null,null,null,null,null,null,null,null,null,null,null,null,null,null,null,null,null,null,null,null,null,null,null,null,null,null,null,null,null,null,null,null,null,null,null,null,null,null,null,null,null,null,null,null,null,null,null,null,null,null,null,null,null,null,null,null,null,null,null,null,null,null,null,null,null,null,null,null,null,null,null,null,null,null,null,null,null,null,null,null,null,null,null,null,null,null,null,null,null,null,null,null,null,null,null,null,null,null,null,null,null,null,null,null,null,null,null,null,null,null,null,null,null,null,null,null,null,null,null,null,null,null,null,null,null,null,null,null,null,null,null,null,null,null,null,null,null,null,null,null,null,null,null,null,null,null,null,null,null,null,null,null,null,null,null,null,null,null,null,null,null,null,null,null,null,null,null,null,null,null,null,null,null,null,null,null,null,null,null,null,null,null,null,null,null,null,null,null,null,null,null,null,null,null,null,null,null,null,null,null,null,null,null,null,null,null,null,null,null,null,null,null,null,null,null,null,null,null,null,null,null,null,null,null,null,null,null,null,null,null,null,null,null,null,null,null,null,null,null,null,null,null,null,null,null,null,null,null,null,null,null,null,null,null,null,null,null,null,null,null,null,null,null,null,null,null,null,null,null,null,null,null,null,null,null,null,null,null,null,null,null,null,null,null,null,null,null,null,null,null,null,null,null,null,null,null,null,null,null,null,null,null,null,null,null,null,null,null,null,null,null,null,null,null,null,null,null,null,null,null,null,null,null,null,null,null,null,null,null,null,null,null,null,null,null,null,null,null,null,null,null,null,null,null,null,null,null,null,null,null,null,null,null,null,null,null,null,null,null,null,null,null,null,null,null,null,null,null,null,null,null,null,null,null,null,null,null,null,null,null,null,null,null,null,null,null,null,null,null,null,null,null,null,null,null,null,null,null,null,null,null,null,null,null,null,null,null,null,null,null,null,null,null,null,null,null,null,null,null,null,null,null,null,null,null,null,null,null,null,null,null,null,null,null,null,null,null,null,null,null,null,null,null,null,null,null,null,null,null,null,null,null,null,null,null,null,null,null,null,null,null,null,null,null,null,null,null,null,null,null,null,null,null,null,null,null,null,null,null,null,null,null,null,null,null,null,null,null,null,null,null,null,null,null,null,null,null,null,null,null,null,null,null,null,null,null,null,null,null,null,null,null,null,null,null,null,null,null,null,null,null,null,null,null,null,null,null,null,null,null,null,null,null,null,null,null,null,null,null,null,null,null,null,null,null,null,null,null,null,null,null,null,null,null,null,null,null,null,null,null,null,null,null,null,null,null,null,null,null,null,null,null,null,null,null,null,null,null,null,null,null,null,null,null,null,null,null,null,null,null,null,null,null,null,null,null,null,null,null,null,null,null,null,null,null,null,null,null,null,null,null,null,null,null,null,null,null,null,null,null,null,null,null,null,null,null,null,null,null,null,null,null,null,null,null,null,null,null,null,null,null,null,null,null,null,null,null,null,null,null,null,null,null,null,null,null,null,null,null,null,null,null,null,null,null,null,null,null,null,null,null,null,null,null,null,null,null,null,null,null,null,null,null,null,null,null,null,null,null,null,null,null,null,null,null,null,null,null,null,null,null,null,null,null,null,null,null,null,null,null,null,null,null,null,null,null,null,null,null,null,null,null,null,null,null,null,null,null,null,null,null,null,null,null,null,null,null,null,null,null,null,null,null,null,null,null,null,null,null,null,null,null,null,null,null,null,null,null,null,null,null,null,null,null,null,null,null,null,null,null,null,null,null,null,null,null,null,null,null,null,null,null,null,null,null,null,null,null,null,null,null,null,null,null,null,null,null,null,null,null,null,null,null,null,null,null,null,null,null,null,null,null,null,null,null,null,null,null,null,null,null,null,null,null,null,null,null,null,null,null,null,null,null,null,null,null,null,null,null,null,null,null,null,null,null,null,null,null,null,null,null,null,null,null,null,null,null,null,null,null,null,null,null,null,null,null,null,null,null,null,null,null,null,null,null,null,null,null,null,null,null,null,null,null,null,null,null,null,null,null,null,null,null,null,null,null,null,null,null,null,null,null,null,null,null,null,null,null,null,null,null,null,null,null,null,null,null,null,null,null,null,null,null,null,null,null,null,null,null,null,null,null,null,null,null,null,null,null,null,null,null,null,null,null,null,null,null,null,null,null,null,null,null,null,null,null,null,null,null,null,null,null,null,null,null,null,null,null,null,null,null,null,null,null,null,null,null,null,null,null,null,null,null,null,null,null,null,null,null,null,null,null,null,null,null,null,null,null,null,null,null,null,null,null,null,null,null,null,null,null,null,null,null,null,null,null,null,null,null,null,null,null,null,null,null,null,null,null,null,null,null,null,null,null,null,null,null,null,null,null,null,null,null,null,null,null,null,null,null,null,null,null,null,null,null,null,null,null,null,null,null,null,null,null,null,null,null,null,null,null,null,null,null,null,null,null,null,null,null,null,null,null,null,null,null,null,null,null,null,null,null,null,null,null,null,null,null,null,null,null,null,null,null,null,null,null,null,null,null,null,null,null,null,null,null,null,null,null,null,null,null,null,null,null,null,null,null,null,null,null,null,null,null,null,null,null,null,null,null,null,null,null,null,null,null,null,null,null,null,null,null,null,null,null,null,null,null,null,null,null,null,null,null,null,null,null,null,null,null,null,null,null,null,null,null,null,null,null,null,null,null,null,null,null,null,null,null,null,null,null,null,null,null,null,null,null,null,null,null,null,null,null,null,null,null,null,null,null,null,null,null,null,null,null,null,null,null,null,null,null,null,null,null,null,null,null,null,null,null,null,null,null,null,null,null,null,null,null,null,null,null,null,null,null,null,null,null,null,null,null,null,null,null,null,null,null,null,null,null,null,null,null,null,null,null,null,null,null,null,null,null,null,null,null,null,null,null,null,null,null,null,null,null,null,null,null,null,null,null,null,null,null,null,null,null,null,null,null,null,null,null,null,null,null,null,null,null,null,null,null,null,null,null,null,null,null,null,null,null,null,null,null,null,null,null,null,null,null,null,null,null,null,null,null,null,null,null,null,null,null,null,null,null,null,null,null,null,null,null,null,null,null,null,null,null,null,null,null,null,null,null,null,null,null,null,null,null,null,null,null,null,null,null,null,null,null,null,null,null,null,null,null,null,null,null,null,null,null,null,null,null,null,null,null,null,null,null,null,null,null,null,null,null,null,null,null,null,null,null,null,null,null,null,null,null,null,null,null,null,null,null,null,null,null,null,null,null,null,null,null,null,null,null,null,null,null,null,null,null,null,null,null,null,null,null,null,null,null,null,null,null,null,null,null,null,null,null,null,null,null,null,null,null,null,null,null,null,null,null,null,null,null,null,null,null,null,null,null,null,null,null,null,null,null,null,null,null,null,null,null,null,null,null,null,null,null,null,null,null,null,null,null,null,null,null,null,null,null,null,null,null,null,null,null,null,null,null,null,null,null,null,null,null,null,null,null,null,null,null,null,null,null,null,null,null,null,null,null,null,null,null,null,null,null,null,null,null,null,null,null,null,null,null,null,null,null,null,null,null,null,null,null,null,null,null,null,null,null,null,null,null,null,null,null,null,null,null,null,null,null,null,null,null,null,null,null,null,null,null,null,null,null,null,null,null,null,null,null,null,null,null,null,null,null,null,null,null,null,null,null,null,null,null,null,null,null,null,null,null,null,null,null,null,null,null,null,null,null,null,null,null,null,null,null,null,null,null,null,null,null,null,null,null,null,null,null,null,null,null,null,null,null,null,null,null,null,null,null,null,null,null,null,null,null,null,null,null,null,null,null,null,null,null,null,null,null,null,null,null,null,null,null,null,null,null,null,null,null,null,null,null,null,null,null,null,null,null,null,null,null,null,null,null,null,null,null,null,null,null,null,null,null,null,null,null,null,null,null,null,null,null,null,null,null,null,null,null,null,null,null,null,null,null,null,null,null,null,null,null,null,null,null,null,null,null,null,null,null,null,null,null,null,null,null,null,null,null,null,null,null,null,null,null,null,null,null,null,null,null,null,null,null,null,null,null,null,null,null,null,null,null,null,null,null,null,null,null,null,null,null,null,null,null,null,null,null,null,null,null,null,null,null,null,null,null,null,null,null,null,null,null,null,null,null,null,null,null,null,null,null,null,null,null,null,null,null,null,null,null,null,null,null,null,null,null,null,null,null,null,null,null,null,null,null,null,null,null,null,null,null,null,null,null,null,null,null,null,null,null,null,null,null,null,null,null,null,null,null,null,null,null,null,null,null,null,null,null,null,null,null,null,null,null,null,null,null,null,null,null,null,null,null,null,null,null,null,null,null,null,null,null,null,null,null,null,null,null,null,null,null,null,null,null,null,null,null,null,null,null,null,null,null,null,null,null,null,null,null,null,null,null,null,null,null,null,null,null,null,null,null,null,null,null,null,null,null,null,null,null,null,null,null,null,null,null,null,null,null,null,null,null,null,null,null,null,null,null,null,null,null,null,null,null,null,null,null,null,null,null,null,null,null,null,null,null,null,null,null,null,null,null,null,null,null,null,null,null,null,null,null,null,null,null,null,null,null,null,null,null,null,null,null,null,null,null,null,null,null,null,null,null,null,null,null,null,null,null,null,null,null,null,null,null,null,null,null,null,null,null,null,null,null,null,null,null,null,null,null,null,null,null,null,null,null,null,null,null,null,null,null,null,null,null,null,null,null,null,null,null,null,null,null,null,null,null,null,null,null,null,null,null,null,null,null,null,null,null,null,null,null,null,null,null,null,null,null,null,null,null,null,null,null,null,null,null,null,null,null,null,null,null,null,null,null,null,null,null,null,null,null,null,null,null,null,null,null,null,null,null,null,null,null,null,null,null,null,null,null,null,null,null,null,null,null,null,null,null,null,null,null,null,null,null,null,null,null,null,null,null,null,null,null,null,null,null,null,null,null,null,null,null,null,null,null,null,null,null,null,null,null,null,null,null,null,null,null,null,null,null,null,null,null,null,null,null,null,null,null,null,null,null,null,null,null,null,null,null,null,null,null,null,null,null,null,null,null,null,null,null,null,null,null,null,null,null,null,null,null,null,null,null,null,null,null,null,null,null,null,null,null,null,null,null,null,null,null,null,null,null,null,null,null,null,null,null,null,null,null,null,null,null,null,null,null,null,null,null,null,null,null,null,null,null,null,null,null,null,null,null,null,null,null,null,null,null,null,null,null,null,null,null,null,null,null,null,null,null,null,null,null,null,null,null,null,null,null,null,null,null,null,null,null,null,null,null,null,null,null,null,null,null,null,null,null,null,null,null,null,null,null,null,null,null,null,null,null,null,null,null,null,null,null,null,null,null,null,null,null,null,null,null,null,null,null,null,null,null,null,null,null,null,null,null,null,null,null,null,null,null,null,null,null,null,null,null,null,null,null,null,null,null,null,null,null,null,null,null,null,null,null,null,null,null,null,null,null,null,null,null,null,null,null,null,null,null,null,null,null,null,null,null,null,null,null,null,null,null,null,null,null,null,null,null,null,null,null,null,null,null,null,null,null,null,null,null,null,null,null,null,null,null,null,null,null,null,null,null,null,null,null,null,null,null,null,null,null,null,null,null,null,null,null,null,null,null,null,null,null,null,null,null,null,null,null,null,null,null,null,null,null,null,null,null,null,null,null,null,null,null,null,null,null,null,null,null,null,null,null,null,null,null,null,null,null,null,null,null,null,null,null,null,null,null,null,null,null,null,null,null,null,null,null,null,null,null,null,null,null,null,null,null,null,null,null,null,null,null,null,null,null,null,null,null,null,null,null,null,null,null,null,null,null,null,null,null,null,null,null,null,null,null,null,null,null,null,null,null,null,null,null,null,null,null,null,null,null,null,null,null,null,null,null,null,null,null,null,null,null,null,null,null,null,null,null,null,null,null,null,null,null,null,null,null,null,null,null,null,null,null,null,null,null,null,null,null,null,null,null,null,null,null,null,null,null,null,null,null,null,null,null,null,null,null,null,null,null,null,null,null,null,null,null,null,null,null,null,null,null,null,null,null,null,null,null,null,null,null,null,null,null,null,null,null,null,null,null,null,null,null,null,null,null,null,null,null,null,null,null,null,null,null,null,null,null,null,null,null,null,null,null,null,null,null,null,null,null,null,null,null,null,null,null,null,null,null,null,null,null,null,null,null,null,null,null,null,null,null,null,null,null,null,null,null,null,null,null,null,null,null,null,null,null,null,null,null,null,null,null,null,null,null,null,null,null,null,null,null,null,null,null,null,null,null,null,null,null,null,null,null,null,null,null,null,null,null,null,null,null,null,null,null,null,null,null,null,null,null,null,null,null,null,null,null,null,null,null,null,null,null,null,null,null,null,null,null,null,null,null,null,null,null,null,null,null,null,null,null,null,null,null,null,null,null,null,null,null,null,null,null,null,null,null,null,null,null,null,null,null,null,null,null,null,null,null,null,null,null,null,null,null,null,null,null,null,null,null,null,null,null,null,null,null,null,null,null,null,null,null,null,null,null,null,null,null,null,null,null,null,null,null,null,null,null,null,null,null,null,null,null,null,null,null,null,null,null,null,null,null,null,null,null,null,null,null,null,null,null,null,null,null,null,null,null,null,null,null,null,null,null,null,null,null,null,null,null,null,null,null,null,null,null,null,null,null,null,null,null,null,null,null,null,null,null,null,null,null,null,null,null,null,null,null,null,null,null,null,null,null,null,null,null,null,null,null,null,null,null,null,null,null,null,null,null,null,null,null,null,null,null,null,null,null,null,null,null,null,null,null,null,null,null,null,null,null,null,null,null,null,null,null,null,null,null,null,null,null,null,null,null,null,null,null,null,null,null,null,null,null,null,null,null,null,null,null,null,null,null,null,null,null,null,null,null,null,null,null,null,null,null,null,null,null,null,null,null,null,null,null,null,null,null,null,null,null,null,null,null,null,null,null,null,null,null,null,null,null,null,null,null,null,null,null,null,null,null,null,null,null,null,null,null,null,null,null,null,null,null,null,null,null,null,null,null,null,null,null,null,null,null,null,null,null,null,null,null,null,null,null,null,null,null,null,null,null,null,null,null,null,null,null,null,null,null,null,null,null,null,null,null,null,null,null,null,null,null,null,null,null,null,null,null,null,null,null,null,null,null,null,null,null,null,null,null,null,null,null,null,null,null,null,null,null,null,null,null,null,null,null,null,null,null,null,null,null,null,null,null,null,null,null,null,null,null,null,null,null,null,null,null,null,null,null,null,null,null,null,null,null,null,null,null,null,null,null,null,null,null,null,null,null,null,null,null,null,null,null,null,null,null,null,null,null,null,null,null,null,null,null,null,null,null,null,null,null,null,null,null,null,null,null,null,null,null,null,null,null,null,null,null,null,null,null,null,null,null,null,null,null,null,null,null,null,null,null,null,null,null,null,null,null,null,null,null,null,null,null,null,null,null,null,null,null,null,null,null,null,null,null,null,null,null,null,null,null,null,null,null,null,null,null,null,null,null,null,null,null,null,null,null,null,null,null,null,null,null,null,null,null,null,null,null,null,null,null,null,null,null,null,null,null,null,null,null,null,null,null,null,null,null,null,null,null,null,null,null,null,null,null,null,null,null,null,null,null,null,null,null,null,null,null,null,null,null,null,null,null,null,null,null,null,null,null,null,null,null,null,null,null,null,null,null,null,null,null,null,null,null,null,null,null,null,null,null,null,null,null,null,null,null,null,null,null,null,null,null,null,null,null,null,null,null,null,null,null,null,null,null,null,null,null,null,null,null,null,null,null,null,null,null,null,null,null,null,null,null,null,null,null,null,null,null,null,null,null,null,null,null,null,null,null,null,null,null,null,null,null,null,null,null,null,null,null,null,null,null,null,null,null,null,null,null,null,null,null,null,null,null,null,null,null,null,null,null,null,null,null,null,null,null,null,null,null,null,null,null,null,null,null,null,null,null,null,null,null,null,null,null,null,null,null,null,null,null,null,null,null,null,null,null,null,null,null,null,null,null,null,null,null,null,null,null,null,null,null,null,null,null,null,null,null,null,null,null,null,null,null,null,null,null,null,null,null,null,null,null,null,null,null,null,null,null,null,null,null,null,null,null,null,null,null,null,null,null,null,null,null,null,null,null,null,null,null,null,null,null,null,null,null,null,null,null,null,null,null,null,null,null,null,null,null,null,null,null,null,null,null,null,null,null,null,null,null,null,null,null,null,null,null,null,null,null,null,null,null,null,null,null,null,null,null,null,null,null,null,null,null,null,null,null,null,null,null,null,null,null,null,null,null,null,null,null,null,null,null,null,null,null,null,null,null,null,null,null,null,null,null,null,null,null,null,null,null,null,null,null,null,null,null,null,null,null,null,null,null,null,null,null,null,null,null,null,null,null,null,null,null,null,null,null,null,null,null,null,null,null,null,null,null,null,null,null,null,null,null,null,null,null,null,null,null,null,null,null,null,null,null,null,null,null,null,null,null,null,null,null,null,null,null,null,null,null,null,null,null,null,null,null,null,null,null,null,null,null,null,null,null,null,null,null,null,null,null,null,null,null,null,null,null,null,null,null,null,null,null,null,null,null,null,null,null,null,null,null,null,null,null,null,null,null,null,null,null,null,null,null,null,null,null,null,null,null,null,null,null,null,null,null,null,null,null,null,null,null,null,null,null,null,null,null,null,null,null,null,null,null,null,null,null,null,null,null,null,null,null,null,null,null,null,null,null,null,null,null,null,null,null,null,null,null,null,null,null,null,null,null,null,null,null,null,null,null,null,null,null,null,null,null,null,null,null,null,null,null,null,null,null,null,null,null,null,null,null,null,null,null,null,null,null,null,null,null,null,null,null,null,null,null,null,null,null,null,null,null,null,null,null,null,null,null,null,null,null,null,null,null,null,null,null,null,null,null,null,null,null,null,null,null,null,null,null,null,null,null,null,null,null,null,null,null,null,null,null,null,null,null,null,null,null,null,null,null,null,null,null,null,null,null,null,null,null,null,null,null,null,null,null,null,null,null,null,null,null,null,null,null,null,null,null,null,null,null,null,null,null,null,null,null,null,null,null,null,null,null,null,null,null,null,null,null,null,null,null,null,null,null,null,null,null,null,null,null,null,null,null,null,null,null,null,null,null,null,null,null,null,null,null,null,null,null,null,null,null,null,null,null,null,null,null,null,null,null,null,null,null,null,null,null,null,null,null,null,null,null,null,null,null,null,null,null,null,null,null,null,null,null,null,null,null,null,null,null,null,null,null,null,null,null,null,null,null,null,null,null,null,null,null,null,null,null,null,null,null,null,null,null,null,null,null,null,null,null,null,null,null,null,null,null,null,null,null,null,null,null,null,null,null,null,null,null,null,null,null,null,null,null,null,null,null,null,null,null,null,null,null,null,null,null,null,null,null,null,null,null,null,null,null,null,null,null,null,null,null,null,null,null,null,null,null,null,null,null,null,null,null,null,null,null,null,null,null,null,null,null,null,null,null,null,null,null,null,null,null,null,null,null,null,null,null,null,null,null,null,null,null,null,null,null,null,null,null,null,null,null,null,null,null,null,null,null,null,null,null,null,null,null,null,null,null,null,null,null,null,null,null,null,null,null,null,null,null,null,null,null,null,null,null,null,null,null,null,null,null,null,null,null,null,null,null,null,null,null,null,null,null,null,null,null,null,null,null,null,null,null,null,null,null,null,null,null,null,null,null,null,null,null,null,null,null,null,null,null,null,null,null,null,null,null,null,null,null,null,null,null,null,null,null,null,null,null,null,null,null,null,null,null,null,null,null,null,null,null,null,null,null,null,null,null,null,null,null,null,null,null,null,null,null,null,null,null,null,null,null,null,null,null,null,null,null,null,null,null,null,null,null,null,null,null,null,null,null,null,null,null,null,null,null,null,null,null,null,null,null,null,null,null,null,null,null,null,null,null,null,null,null,null,null,null,null,null,null,null,null,null,null,null,null,null,null,null,null,null,null,null,null,null,null,null,null,null,null,null,null,null,null,null,null,null,null,null,null,null,null,null,null,null,null,null,null,null,null,null,null,null,null,null,null,null,null,null,null,null,null,null,null,null,null,null,null,null,null,null,null,null,null,null,null,null,null,null,null,null,null,null,null,null,null,null,null,null,null,null,null,null,null,null,null,null,null,null,null,null,null,null,null,null,null,null,null,null,null,null,null,null,null,null,null,null,null,null,null,null,null,null,null,null,null,null,null,null,null,null,null,null,null,null,null,null,null,null,null,null,null,null,null,null,null,null,null,null,null,null,null,null,null,null,null,null,null,null,null,null,null,null,null,null,null,null,null,null,null,null,null,null,null,null,null,null,null,null,null,null,null,null,null,null,null,null,null,null,null,null,null,null,null,null,null,null,null,null,null,null,null,null,null,null,null,null,null,null,null,null,null,null,null,null,null,null,null,null,null,null,null,null,null,null,null,null,null,null,null,null,null,null,null,null,null,null,null,null,null,null,null,null,null,null,null,null,null,null,null,null,null,null,null,null,null,null,null,null,null,null,null,null,null,null,null,null,null,null,null,null,null,null,null,null,null,null,null,null,null,null,null,null,null,null,null,null,null,null,null,null,null,null,null,null,null,null,null,null,null,null,null,null,null,null,null,null,null,null,null,null,null,null,null,null,null,null,null,null,null,null,null,null,null,null,null,null,null,null,null,null,null,null,null,null,null,null,null,null,null,null,null,null,null,null,null,null,null,null,null,null,null,null,null,null,null,null,null,null,null,null,null,null,null,null,null,null,null,null,null,null,null,null,null,null,null,null,null,null,null,null,null,null,null,null,null,null,null,null,null,null,null,null,null,null,null,null,null,null,null,null,null,null,null,null,null,null,null,null,null,null,null,null,null,null,null,null,null,null,null,null,null,null,null,null,null,null,null,null,null,null,null,null,null,null,null,null,null,null,null,null,null,null,null,null,null,null,null,null,null,null,null,null,null,null,null,null,null,null,null,null,null,null,null,null,null,null,null,null,null,null,null,null,null,null,null,null,null,null,null,null,null,null,null,null,null,null,null,null,null,null,null,null,null,null,null,null,null,null,null,null,null,null,null,null,null,null,null,null,null,null,null,null,null,null,null,null,null,null,null,null,null,null,null,null,null,null,null,null,null,null,null,null,null,null,null,null,null,null,null,null,null,null,null,null,null,null,null,null,null,null,null,null,null,null,null,null,null,null,null,null,null,null,null,null,null,null,null,null,null,null,null,null,null,null,null,null,null,null,null,null,null,null,null,null,null,null,null,null,null,null,null,null,null,null,null,null,null,null,null,null,null,null,null,null,null,null,null,null,null,null,null,null,null,null,null,null,null,null,null,null,null,null,null,null,null,null,null,null,null,null,null,null,null,null,null,null,null,null,null,null,null,null,null,null,null,null,null,null,null,null,null,null,null,null,null,null,null,null,null,null,null,null,null,null,null,null,null,null,null,null,null,null,null,null,null,null,null,null,null,null,null,null,null,null,null,null,null,null,null,null,null,null,null,null,null,null,null,null,null,null,null,null,null,null,null,null,null,null,null,null,null,null,null,null,null,null,null,null,null,null,null,null,null,null,null,null,null,null,null,null,null,null,null,null,null,null,null,null,null,null,null,null,null,null,null,null,null,null,null,null,null,null,null,null,null,null,null,null,null,null,null,null,null,null,null,null,null,null,null,null,null,null,null,null,null,null,null,null,null,null,null,null,null,null,null,null,null,null,null,null,null,null,null,null,null,null,null,null,null,null,null,null,null,null,null,null,null,null,null,null,null,null,null,null,null,null,null,null,null,null,null,null,null,null,null,null,null,null,null,null,null,null,null,null,null,null,null,null,null,null,null,null,null,null,null,null,null,null,null,null,null,null,null,null,null,null,null,null,null,null,null,null,null,null,null,null,null,null,null,null,null,null,null,null,null,null,null,null,null,null,null,null,null,null,null,null,null,null,null,null,null,null,null,null,null,null,null,null,null,null,null,null,null,null,null,null,null,null,null,null,null,null,null,null,null,null,null,null,null,null,null,null,null,null,null,null,null,null,null,null,null,null,null,null,null,null,null,null,null,null,null,null,null,null,null,null,null,null,null,null,null,null,null,null,null,null,null,null,null,null,null,null,null,null,null,null,null,null,null,null,null,null,null,null,null,null,null,null,null,null,null,null,null,null,null,null,null,null,null,null,null,null,null,null,null,null,null,null,null,null,null,null,null,null,null,null,null,null,null,null,null,null,null,null,null,null,null,null,null,null,null,null,null,null,null,null,null,null,null,null,null,null,null,null,null,null,null,null,null,null,null,null,null,null,null,null,null,null,null,null,null,null,null,null,null,null,null,null,null,null,null,null,null,null,null,null,null,null,null,null,null,null,null,null,null,null,null,null,null,null,null,null,null,null,null,null,null,null,null,null,null,null,null,null,null,null,null,null,null,null,null,null,null,null,null,null,null,null,null,null,null,null,null,null,null,null,null,null,null,null,null,null,null,null,null,null,null,null,null,null,null,null,null,null,null,null,null,null,null,null,null,null,null,null,null,null,null,null,null,null,null,null,null,null,null,null,null,null,null,null,null,null,null,null,null,null,null,null,null,null,null,null,null,null,null,null,null,null,null,null,null,null,null,null,null,null,null,null,null,null,null,null,null,null,null,null,null,null,null,null,null,null,null,null,null,null,null,null,null,null,null,null,null,null,null,null,null,null,null,null,null,null,null,null,null,null,null,null,null,null,null,null,null,null,null,null,null,null,null,null,null,null,null,null,null,null,null,null,null,null,null,null,null,null,null,null,null,null,null,null,null,null,null,null,null,null,null,null,null,null,null,null,null,null,null,null,null,null,null,null,null,null,null,null,null,null,null,null,null,null,null,null,null,null,null,null,null,null,null,null,null,null,null,null,null,null,null,null,null,null,null,null,null,null,null,null,null,null,null,null,null,null,null,null,null,null,null,null,null,null,null,null,null,null,null,null,null,null,null,null,null,null,null,null,null,null,null,null,null,null,null,null,null,null,null,null,null,null,null,null,null,null,null,null,null,null,null,null,null,null,null,null,null,null,null,null,null,null,null,null,null,null,null,null,null,null,null,null,null,null,null,null,null,null,null,null,null,null,null,null,null,null,null,null,null,null,null,null,null,null,null,null,null,null,null,null,null,null,null,null,null,null,null,null,null,null,null,null,null,null,null,null,null,null,null,null,null,null,null,null,null,null,null,null,null,null,null,null,null,null,null,null,null,null,null,null,null,null,null,null,null,null,null,null,null,null,null,null,null,null,null,null,null,null,null,null,null,null,null,null,null,null,null,null,null,null,null,null,null,null,null,null,null,null,null,null,null,null,null,null,null,null,null,null,null,null,null,null,null,null,null,null,null,null,null,null,null,null,null,null,null,null,null,null,null,null,null,null,null,null,null,null,null,null,null,null,null,null,null,null,null,null,null,null,null,null,null,null,null,null,null,null,null,null,null,null,null,null,null,null,null,null,null,null,null,null,null,null,null,null,null,null,null,null,null,null,null,null,null,null,null,null,null,null,null,null,null,null,null,null,null,null,null,null,null,null,null,null,null,null,null,null,null,null,null,null,null,null,null,null,null,null,null,null,null,null,null,null,null,null,null,null,null,null,null,null,null,null,null,null,null,null,null,null,null,null,null,null,null,null,null,null,null,null,null,null,null,null,null,null,null,null,null,null,null,null,null,null,null,null,null,null,null,null,null,null,null,null,null,null,null,null,null,null,null,null,null,null,null,null,null,null,null,null,null,null,null,null,null,null,null,null,null,null,null,null,null,null,null,null,null,null,null,null,null,null,null,null,null,null,null,null,null,null,null,null,null,null,null,null,null,null,null,null,null,null,null,null,null,null,null,null,null,null,null,null,null,null,null,null,null,null,null,null,null,null,null,null,null,null,null,null,null,null,null,null,null,null,null,null,null,null,null,null,null,null,null,null,null,null,null,null,null,null,null,null,null,null,null,null,null,null,null,null,null,null,null,null,null,null,null,null,null,null,null,null,null,null,null,null,null,null,null,null,null,null,null,null,null,null,null,null,null,null,null,null,null,null,null,null,null,null,null,null,null,null,null,null,null,null,null,null,null,null,null,null,null,null,null,null,null,null,null,null,null,null,null,null,null,null,null,null,null,null,null,null,null,null,null,null,null,null,null,null,null,null,null,null,null,null,null,null,null,null,null,null,null,null,null,null,null,null,null,null,null,null,null,null,null,null,null,null,null,null,null,null,null,null,null,null,null,null,null,null,null,null,null,null,null,null,null,null,null,null,null,null,null,null,null,null,null,null,null,null,null,null,null,null,null,null,null,null,null,null,null,null,null,null,null,null,null,null,null,null,null,null,null,null,null,null,null,null,null,null,null,null,null,null,null,null,null,null,null,null,null,null,null,null,null,null,null,null,null,null,null,null,null,null,null,null,null,null,null,null,null,null,null,null,null,null,null,null,null,null,null,null,null,null,null,null,null,null,null,null,null,null,null,null,null,null,null,null,null,null,null,null,null,null,null,null,null,null,null,null,null,null,null,null,null,null,null,null,null,null,null,null,null,null,null,null,null,null,null,null,null,null,null,null,null,null,null,null,null,null,null,null,null,null,null,null,null,null,null,null,null,null,null,null,null,null,null,null,null,null,null,null,null,null,null,null,null,null,null,null,null,null,null,null,null,null,null,null,null,null,null,null,null,null,null,null,null,null,null,null,null,null,null,null,null,null,null,null,null,null,null,null,null,null,null,null,null,null,null,null,null,null,null,null,null,null,null,null,null,null,null,null,null,null,null,null,null,null,null,null,null,null,null,null,null,null,null,null,null,null,null,null,null,null,null,null,null,null,null,null,null,null,null,null,null,null,null,null,null,null,null,null,null,null,null,null,null,null,null,null,null,null,null,null,null,null,null,null,null,null,null,null,null,null,null,null,null,null,null,null,null,null,null,null,null,null,null,null,null,null,null,null,null,null,null,null,null,null,null,null,null,null,null,null,null,null,null,null,null,null,null,null,null,null,null,null,null,null,null,null,null,null,null,null,null,null,null,null,null,null,null,null,null,null,null,null,null,null,null,null,null,null,null,null,null,null,null,null,null,null,null,null,null,null,null,null,null,null,null,null,null,null,null,null,null,null,null,null,null,null,null,null,null,null,null,null,null,null,null,null,null,null,null,null,null,null,null,null,null,null,null,null,null,null,null,null,null,null,null,null,null,null,null,null,null,null,null,null,null,null,null,null,null,null,null,null,null,null,null,null,null,null,null,null,null,null,null,null,null,null,null,null,null,null,null,null,null,null,null,null,null,null,null,null,null,null,null,null,null,null,null,null,null,null,null,null,null,null,null,null,null,null,null,null,null,null,null,null,null,null,null,null,null,null,null,null,null,null,null,null,null,null,null,null,null,null,null,null,null,null,null,null,null,null,null,null,null,null,null,null,null,null,null,null,null,null,null,null,null,null,null,null,null,null,null,null,null,null,null,null,null,null,null,null,null,null,null,null,null,null,null,null,null,null,null,null,null,null,null,null,null,null,null,null,null,null,null,null,null,null,null,null,null,null,null,null,null,null,null,null,null,null,null,null,null,null,null,null,null,null,null,null,null,null,null,null,null,null,null,null,null,null,null,null,null,null,null,null,null,null,null,null,null,null,null,null,null,null,null,null,null,null,null,null,null,null,null,null,null,null,null,null,null,null,null,null,null,null,null,null,null,null,null,null,null,null,null,null,null,null,null,null,null,null,null,null,null,null,null,null,null,null,null,null,null,null,null,null,null,null,null,null,null,null,null,null,null,null,null,null,null,null,null,null,null,null,null,null,null,null,null,null,null,null,null,null,null,null,null,null,null,null,null,null,null,null,null,null,null,null,null,null,null,null,null,null,null,null,null,null,null,null,null,null,null,null,null,null,null,null,null,null,null,null,null,null,null,null,null,null,null,null,null,null,null,null,null,null,null,null,null,null,null,null,null,null,null,null,null,null,null,null,null,null,null,null,null,null,null,null,null,null,null,null,null,null,null,null,null,null,null,null,null,null,null,null,null,null,null,null,null,null,null,null,null,null,null,null,null,null,null,null,null,null,null,null,null,null,null,null,null,null,null,null,null,null,null,null,null,null,null,null,null,null,null,null,null,null,null,null,null,null,null,null,null,null,null,null,null,null,null,null,null,null,null,null,null,null,null,null,null,null,null,null,null,null,null,null,null,null,null,null,null,null,null,null,null,null,null,null,null,null,null,null,null,null,null,null,null,null,null,null,null,null,null,null,null,null,null,null,null,null,null,null,null,null,null,null,null,null,null,null,null,null,null,null,null,null,null,null,null,null,null,null,null,null,null,null,null,null,null,null,null,null,null,null,null,null,null,null,null,null,null,null,null,null,null,null,null,null,null,null,null,null,null,null,null,null,null,null,null,null,null,null,null,null,null,null,null,null,null,null,null,null,null,null,null,null,null,null,null,null,null,null,null,null,null,null,null,null,null,null,null,null,null,null,null,null,null,null,null,null,null,null,null,null,null,null,null,null,null,null,null,null,null,null,null,null,null,null,null,null,null,null,null,null,null,null,null,null,null,null,null,null,null,null,null,null,null,null,null,null,null,null,null,null,null,null,null,null,null,null,null,null,null,null,null,null,null,null,null,null,null,null,null,null,null,null,null,null,null,null,null,null,null,null,null,null,null,null,null,null,null,null,null,null,null,null,null,null,null,null,null,null,null,null,null,null,null,null,null,null,null,null,null,null,null,null,null,null,null,null,null,null,null,null,null,null,null,null,null,null,null,null,null,null,null,null,null,null,null,null,null,null,null,null,null,null,null,null,null,null,null,null,null,null,null,null,null,null,null,null,null,null,null,null,null,null,null,null,null,null,null,null,null,null,null,null,null,null,null,null,null,null,null,null,null,null,null,null,null,null,null,null,null,null,null,null,null,null,null,null,null,null,null,null,null,null,null,null,null,null,null,null,null,null,null,null,null,null,null,null,null,null,null,null,null,null,null,null,null,null,null,null,null,null,null,null,null,null,null,null,null,null,null,null,null,null,null,null,null,null,null,null,null,null,null,null,null,null,null,null,null,null,null,null,null,null,null,null,null,null,null,null,null,null,null,null,null,null,null,null,null,null,null,null,null,null,null,null,null,null,null,null,null,null,null,null,null,null,null,null,null,null,null,null,null,null,null,null,null,null,null,null,null,null,null,null,null,null,null,null,null,null,null,null,null,null,null,null,null,null,null,null,null,null,null,null,null,null,null,null,null,null,null,null,null,null,null,null,null,null,null,null,null,null,null,null,null,null,null,null,null,null,null,null,null,null,null,null,null,null,null,null,null,null,null,null,null,null,null,null,null,null,null,null,null,null,null,null,null,null,null,null,null,null,null,null,null,null,null,null,null,null,null,null,null,null,null,null,null,null,null,null,null,null,null,null,null,null,null,null,null,null,null,null,null,null,null,null,null,null,null,null,null,null,null,null,null,null,null,null,null,null,null,null,null,null,null,null,null,null,null,null,null,null,null,null,null,null,null,null,null,null,null,null,null,null,null,null,null,null,null,null,null,null,null,null,null,null,null,null,null,null,null,null,null,null,null,null,null,null,null,null,null,null,null,null,null,null,null,null,null,null,null,null,null,null,null,null,null,null,null,null,null,null,null,null,null,null,null,null,null,null,null,null,null,null,null,null,null,null,null,null,null,null,null,null,null,null,null,null,null,null,null,null,null,null,null,null,null,null,null,null,null,null,null,null,null,null,null,null,null,null,null,null,null,null,null,null,null,null,null,null,null,null,null,null,null,null,null,null,null,null,null,null,null,null,null,null,null,null,null,null,null,null,null,null,null,null,null,null,null,null,null,null,null,null,null,null,null,null,null,null,null,null,null,null,null,null,null,null,null,null,null,null,null,null,null,null,null,null,null,null,null,null,null,null,null,null,null,null,null,null,null,null,null,null,null,null,null,null,null,null,null,null,null,null,null,null,null,null,null,null,null,null,null,null,null,null,null,null,null,null,null,null,null,null,null,null,null,null,null,null,null,null,null,null,null,null,null,null,null,null,null,null,null,null,null,null,null,null,null,null,null,null,null,null,null,null,null,null,null,null,null,null,null,null,null,null,null,null,null,null,null,null,null,null,null,null,null,null,null,null,null,null,null,null,null,null,null,null,null,null,null,null,null,null,null,null,null,null,null,null,null,null,null,null,null,null,null,null,null,null,null,null,null,null,null,null,null,null,null,null,null,null,null,null,null,null,null,null,null,null,null,null,null,null,null,null,null,null,null,null,null,null,null,null,null,null,null,null,null,null,null,null,null,null,null,null,null,null,null,null,null,null,null,null,null,null,null,null,null,null,null,null,null,null,null,null,null,null,null,null,null,null,null,null,null,null,null,null,null,null,null,null,null,null,null,null,null,null,null,null,null,null,null,null,null,null,null,null,null,null,null,null,null,null,null,null,null,null,null,null,null,null,null,null,null,null,null,null,null,null,null,null,null,null,null,null,null,null,null,null,null,null,null,null,null,null,null,null,null,null,null,null,null,null,null,null,null,null,null,null,null,null,null,null,null,null,null,null,null,null,null,null,null,null,null,null,null,null,null,null,null,null,null,null,null,null,null,null,null,null,null,null,null,null,null,null,null,null,null,null,null,null,null,null,null,null,null,null,null,null,null,null,null,null,null,null,null,null,null,null,null,null,null,null,null,null,null,null,null,null,null,null,null,null,null,null,null,null,null,null,null,null,null,null,null,null,null,null,null,null,null,null,null,null,null,null,null,null,null,null,null,null,null,null,null,null,null,null,null,null,null,null,null,null,null,null,null,null,null,null,null,null,null,null,null,null,null,null,null,null,null,null,null,null,null,null,null,null,null,null,null,null,null,null,null,null,null,null,null,null,null,null,null,null,null,null,null,null,null,null,null,null,null,null,null,null,null,null,null,null,null,null,null,null,null,null,null,null,null,null,null,null,null,null,null,null,null,null,null,null,null,null,null,null,null,null,null,null,null,null,null,null,null,null,null,null,null,null,null,null,null,null,null,null,null,null,null,null,null,null,null,null,null,null,null,null,null,null,null,null,null,null,null,null,null,null,null,null,null,null,null,null,null,null,null,null,null,null,null,null,null,null,null,null,null,null,null,null,null,null,null,null,null,null,null,null,null,null,null,null,null,null,null,null,null,null,null,null,null,null,null,null,null,null,null,null,null,null,null,null,null,null,null,null,null,null,null,null,null,null,null,null,null,null,null,null,null,null,null,null,null,null,null,null,null,null,null,null,null,null,null,null,null,null,null,null,null,null,null,null,null,null,null,null,null,null,null,null,null,null,null,null,null,null,null,null,null,null,null,null,null,null,null,null,null,null,null,null,null,null,null,null,null,null,null,null,null,null,null,null,null,null,null,null,null,null,null,null,null,null,null,null,null,null,null,null,null,null,null,null,null,null,null,null,null,null,null,null,null,null,null,null,null,null,null,null,null,null,null,null,null,null,null,null,null,null,null,null,null,null,null,null,null,null,null,null,null,null,null,null,null,null,null,null,null,null,null,null,null,null,null,null,null,null,null,null,null,null,null,null,null,null,null,null,null,null,null,null,null,null,null,null,null,null,null,null,null,null,null,null,null,null,null,null,null,null,null,null,null,null,null,null,null,null,null,null,null,null,null,null,null,null,null,null,null,null,null,null,null,null,null,null,null,null,null,null,null,null,null,null,null,null,null,null,null,null,null,null,null,null,null,null,null,null,null,null,null,null,null,null,null,null,null,null,null,null,null,null,null,null,null,null,null,null,null,null,null,null,null,null,null,null,null,null,null,null,null,null,null,null,null,null,null,null,null,null,null,null,null,null,null,null,null,null,null,null,null,null,null,null,null,null,null,null,null,null,null,null,null,null,null,null,null,null,null,null,null,null,null,null,null,null,null,null,null,null,null,null,null,null,null,null,null,null,null,null,{"$f":"IF(【届出書】入力!C20=\"新設\",IF(【届出書】入力!C34>=2000,\"工事計画届出の対象につき、届出できません！\",IF(【届出書】入力!C34<10,\"届出不要です！\",\"\")),IF(【届出書】入力!C34+【届出書】入力!C38>=2000,\"工事計画届出の対象につき、届出できません！\",IF(【届出書】入力!C34+【届出書】入力!C38<10,\"届出不要です！\",\"\")))","v":""}]
[]
[null,null,null,null,null,null,null,null,null,null,null,{"$f":"IF(【届出書】入力!C3=\"\",\"\",TEXT(【届出書】入力!C3,\"[DBNum3]ggge年m月d日\"))","v":"令和７年６月１２日"}]
[]
[null,"　中部近畿産業保安監督部長　殿"]
[null,null,null,null,null,null,null,null,{"$f":"IF(【届出書】入力!C5=\"\",\"\",\"〒\"&LEFT(【届出書】入力!C5,3)&\"-\"&RIGHT(【届出書】入力!C5,4))","v":"〒460-8510"}]
[null,{"$f":"IF(OR(I9=\"\",I10=\"\",I11=\"\",I13=\"\",I14=\"\",I15=\"\",B20=\"\",G23=\"\",E24=\"\",E25=\"\",E26=\"\",E27=\"\",E28=\"\",B31=\"\",B34=\"\",B38=\"\",B43=\"\",B46=\"\"),\"記載が不足した項目があるため、届出できません！\",\"\")","v":""},null,null,null,null,null,"住　所：",{"$f":"IF(【届出書】入力!C4=\"\",\"\",【届出書】入力!C4)","v":"愛知県名古屋市中区三の丸二丁目５番２号"}]
[null,null,null,null,null,null,null,"氏　名：",{"$f":"IF(【届出書】入力!C6=\"\",\"\",【届出書】入力!C6)","v":"合同会社メガソーラー菅原"}]
[null,null,null,null,null,null,null,null,{"$f":"IF(OR(【届出書】入力!C7=\"\",【届出書】入力!C8=\"\"),\"\",\"　\"&【届出書】入力!C7&\"　　\"&【届出書】入力!C8)","v":"　代表社員　菅原太陽光ビジネス研究株式会社　代表取締役　　菅原　拓"}]
[null,null,null,null,null,null,null,null,{"$f":"IF(【届出書】入力!C9=\"\",\" （法人番号：　　　　　　　）\",\" （法人番号：\"&【届出書】入力!C9&\"）\")","v":" （法人番号：12345678910）"}]
[null,{"$f":"IF(OR(【届出書】入力!C35=\"小規模事業用の範囲を超えており、事業用（自家用もしくは電気事業用）に該当する。\",【届出書】入力!C35=\"小規模事業用に該当しないため、届出不要。\"),\"事業用（自家用もしくは電気事業用）もしくは小規模事業用の該当に不備あり、届出できません！\",\"\")","v":""},null,null,null,null,null,"連絡先：",{"$f":"IF(OR(【届出書】入力!C10=\"\",【届出書】入力!C11=\"\"),\"\",【届出書】入力!C10&\"　\"&【届出書】入力!C11&\"　　\"&【届出書】入力!C12)","v":"○○支店　技術部　技術部長　　菅原　拓一"}]
[null,null,null,null,null,null,null,null,{"$f":"IF(【届出書】入力!C13=\"\",\"\",\"　電話番号　\"&【届出書】入力!C13)","v":"　電話番号　09042219723"}]
[null,null,null,null,null,null,null,null,{"$f":"IF(【届出書】入力!C14=\"\",\"\",\"　ﾒｰﾙｱﾄﾞﾚｽ　\"&【届出書】入力!C14)","v":"　ﾒｰﾙｱﾄﾞﾚｽ　sugawara.hiraku@.co.jp"}]
[]
[null,"電気事業法第５１条の２第３項の規定により別紙のとおり使用前自己確認の結果を届け出ます。"]
[]
[null,"１．確認年月日"]
[null,"　　別紙のとおり"]
[]
[null,"２．確認の対象",null,null,null,null,null,null,null,null,null,null,{"$f":"IF(【届出書】入力!C20=\"新設\",IF(【届出書】入力!C34>=2000,\"工事計画届出の対象につき、届出できません！\",IF(【届出書】入力!C34<10,\"届出不要です！\",\"\")),IF(【届出書】入力!C34+【届出書】入力!C38>=2000,\"工事計画届出の対象につき、届出できません！\",IF(【届出書】入力!C34+【届出書】入力!C38<10,\"届出不要です！\",\"\")))","v":""}]
[null,"　　発電所又は発電設備の種類：",null,null,null,null,{"$f":"IF(【届出書】入力!C34>=50,\"太陽電池発電所\",\"太陽電池発電設備\")","v":"太陽電池発電所"}]
[null,"　　発電所名称：",null,null,{"$f":"IF(【届出書】入力!C16=\"有り\",DBCS(【届出書】入力!C15)&IF(【届出書】入力!C34>=50,\"　発電所\",\"　発電設備\"),IF(【届出書】入力!C16=\"無し\",DBCS(【届出書】入力!C15),\"\"))","v":"名古屋メガソーラー"}]
[null,"　　発電所住所：",null,null,{"$f":"【届出書】入力!C17","v":"愛知県名古屋市中区三の丸二丁目５番２号"}]
[null,"　　発電所出力：",null,null,{"$f":"IF(【届出書】入力!C20=\"新設\",DBCS(【届出書】入力!C34)&\"ｋＷ\",\"（変更前）\"&DBCS(【届出書】入力!C34)&\"ｋＷ　\"&\"（変更後）\"&DBCS(【届出書】入力!C34+【届出書】入力!C38)&\"ｋＷ\")","v":"（変更前）５０ｋＷ　（変更後）１５０ｋＷ"}]
[null,"　　発電所電圧：",null,null,{"$f":"DBCS(【届出書】入力!C18)&\"Ｖ\"","v":"２００Ｖ"}]
[null,"　　根拠条文　：",null,null,{"$f":"IF(【届出書】入力!C20=\"新設\",\"電気事業法施行規則 別表第６ 第２項\",VLOOKUP(【届出書】入力!C24,【届出書】入力!C25:D32,2,FALSE))","v":"電気事業法施行規則 別表第７ 第３項 第１号"}]
[]
[null,"３．確認の方法"]
[null,"　　別紙のとおり"]
[]
[null,"４．確認の結果"]
[null,"　　別紙のとおり"]
[]
[null,"５．確認を実施した者及び主任技術者（当該事業用電気工作物が小規模事業用電気工作物である"]
[null,"　　場合を除く。）の氏名"]
[null,"　　別紙のとおり"]
[]
[null,"６．当該事業用電気工作物が小規模事業用電気工作物である場合であって､確認に係る業務を委託"]
[null,"　　して行った場合にあっては､その委託先の氏名又は名称､住所及び電話番号､電子メールアドレ"]
[null,"　　スその他の連絡先"]
[null,{"$f":"IF(【届出書】入力!C2=\"事業用（自家用もしくは電気事業用）\",\"　　該当無し\",\"　　別紙のとおり\")","v":"　　該当無し"}]
[]
[null,"７．確認の結果にもとづいて補修などの措置を講じたときは、その内容"]
[null,"　　該当無し"]
[]
[null,"備考　用紙の大きさは，日本産業規格Ａ４とすること。"]
[]
[null,"※ＦＩＴ認定を受けている場合、下記に設備ＩＤをご記載ください（任意）"]
[null,{"$f":"IF(【届出書】入力!C41=\"\",\"　ＦＩＴ設備ＩＤ：無\",\"　ＦＩＴ設備ＩＤ：\"&DBCS(【届出書】入力!C41))","v":"　ＦＩＴ設備ＩＤ：ＡＤ３３１８４３７ＤＦ"}]

{"sheet":"変更理由を説明する書類","index":3,"n_rows":11,"n_cols":16,"rows_kept":11,"cut":false,"hidden":false,"merged":[[2,1,2,13],[8,8,8,12],[9,8,9,12],[10,8,10,12],[12,8,12,12],[13,8,13,12],[14,8,14,12],[16,1,16,13],[18,1,18,5],[42,1,42,13],[45,1,45,13],[19,1,19,13],[29,1,29,3],[30,1,30,13],[33,1,33,13],[37,1,37,13]]}
[null,"変更の工事に該当する場合"]
[null,null,null,null,null,null,null,null,null,null,null,null,null,null,null,"新設と変更の別：新設　の場合、作成不要です。"]
[null,"変更理由を説明する書類"]
[null,null,null,null,null,null,null,null,null,null,null,null,null,null,null,"新設と変更の別：変更　の場合、作成要です。"]
[null,{"$f":"IF(【届出書】入力!C20=\"新設\",\"電気事業法施行規則 別表第６ 第２項\",\"　\"&VLOOKUP(【届出書】入力!C24,【届出書】入力!C25:D32,2,FALSE)&\"の対象となる箇所の概要を説明いたします。\")","v":"　電気事業法施行規則 別表第７ 第３項 第１号の対象となる箇所の概要を説明いたします。"},null,null,null,null,null,null,null,null,null,null,null,null,null,"届出いただく内容に合わせて、設備概略図を加筆修正ください。"]
[]
[null,{"$f":"\"　当該事業場は、需要設備へ高圧連系する自家消費の太陽電池\"&IF(【届出書】入力!C34>=50,\"発電所\",\"発電設備\")&\"です。\"","v":"　当該事業場は、需要設備へ高圧連系する自家消費の太陽電池発電所です。"}]
[null,"　今回、自家消費の高圧連系の発電所を新たに設置したため、届出を行います。"]
[]
[]
[null,"【設備概略図】"]

{"sheet":"【別紙】確認者の入力","index":4,"n_rows":14,"n_cols":5,"rows_kept":14,"cut":false,"hidden":false,"merged":[]}
["【別紙：確認者】",null,"注意","↓黄色の部分の入力を漏れなくお願いいたします。","説明"]
[null,"電気工作物の別",null,{"$f":"IF(【届出書】入力!C2=\"\",\"\",【届出書】入力!C2)","v":"事業用（自家用もしくは電気事業用）"},"小規模事業用は、送配電会社との連系電圧(需要設備含めて)が交流600V以下かつ出力10kW以上50kW未満です。該当しなければ事業用です。"]
[null,"使用前自己確認結果の確認年月日",null,"2025-06-12","すべての項目が確認完了した日を入力してください。現地試験を実施した日と分けて入力する必要はありません。"]
[null,"会社名",null,{"$f":"IF(【届出書】入力!C6=\"\",\"\",【届出書】入力!C6)","v":"合同会社メガソーラー菅原"}]
[null,"【設置者】確認者さまの所属部署",null,{"$f":"IF(【届出書】入力!C10=\"\",\"\",【届出書】入力!C10)","v":"○○支店　技術部"}]
[null,"【設置者】確認者さまの役職",null,{"$f":"IF(【届出書】入力!C11=\"\",\"\",【届出書】入力!C11)","v":"技術部長"}]
[null,"【設置者】確認者さまの氏名",null,{"$f":"IF(【届出書】入力!C12=\"\",\"\",【届出書】入力!C12)","v":"菅原　拓一"}]
[null,"電気主任技術者さまのご所属",{"$f":"IF($D$2=\"小規模事業用\",\"入力不要\",\"\")","v":""},"合同会社メガソーラー菅原　電気主任技術者"]
[null,"電気主任技術者さまの氏名",{"$f":"IF($D$2=\"小規模事業用\",\"入力不要\",\"\")","v":""},"菅原　拓三"]
[null,"【小規模事業用のみ】確認者は委託したか",{"$f":"IF($D$2=\"小規模事業用\",\"\",\"入力不要\")","v":"入力不要"},"委託した","プルダウンで選んでください。"]
[null,"【小規模事業用のみ】確認者の委託先氏名",{"$f":"IF($D$2=\"小規模事業用\",\"\",\"入力不要\")","v":"入力不要"},"すがわら電気保安管理事務所　　菅原　拓二","法人名もしくは個人名を入力してください。"]
[null,"【小規模事業用のみ】確認者の住所",{"$f":"IF($D$2=\"小規模事業用\",\"\",\"入力不要\")","v":"入力不要"},"愛知県名古屋市中区三の丸二丁目５番２号","委託先氏名に法人名を入力した場合、法人登記上の会社名を入力してください。"]
[null,"【小規模事業用のみ】確認者の電話番号",{"$f":"IF($D$2=\"小規模事業用\",\"\",\"入力不要\")","v":"入力不要"},"XXX-XXXX-XXXX","確認事項が有る場合の使用および電気事業法上の規定により、入力をお願いいたします。"]
[null,"【小規模事業用のみ】確認者のﾒｰﾙｱﾄﾞﾚｽ",{"$f":"IF($D$2=\"小規模事業用\",\"\",\"入力不要\")","v":"入力不要"},"sugawara.hiraku2@.coｍ","確認事項が有る場合の使用および電気事業法上の規定により、入力をお願いいたします。"]

{"sheet":"【別紙】機械関係の入力","index":5,"n_rows":27,"n_cols":5,"rows_kept":27,"cut":false,"hidden":false,"merged":[]}
["【別紙：機械関係】",null,null,"↓実際に行った内容を黄色の部分へ入力してください。","説明"]
[null,"０　設置形態",null,"屋根（屋上含む）","異なる設置形態が混在する場合、それぞれで確認をお願いいたします。"]
[null,"１　外観検査","判定基準はすべて確認しましたか","はい","検査の実施は必須です。"]
[null,null,{"$f":"IF(【届出書】入力!C2=\"小規模事業用\",\"判定基準の②、⑬は書類等によって確認しましたか\",\"判定基準の②、③、④、⑩、⑪、⑬は書類等によって確認しましたか\")","v":"判定基準の②、③、④、⑩、⑪、⑬は書類等によって確認しましたか"},"はい","現地の敷設状況を検査するため、工場試験記録による確認はありません。"]
[null,null,"設計時、電気設備の技術基準に基づく支持物の強度計算の妥当性を確認しましたか","はい","確認は必須です。"]
[null,"２　設計荷重","判定基準はすべて確認しましたか","はい","確認は必須です。強度計算といった設計を確認するため、現地試験および工場試験記録による確認はありません。"]
[null,null,"傾斜地、水上等に設置される設備ですか",{"$f":"IF(D2=\"\",\"\",IF(OR(D2=\"傾斜地\",D2=\"水上\"),\"はい\",\"いいえ\"))","v":"いいえ"},"「はい」のとき、発電用太陽電池設備に関する技術基準の解釈第８条への適合を確認してください。"]
[null,"３　支持物構造","支持物は安定した構造ですか","はい","確認は必須です。構造計算書により確認してください。"]
[null,null,"設計および図面のとおり、現地が施工されましたか","はい","設計のとおり現地が施工されていることを確認してください。項目２，４～９の現地確認もここで行います。"]
[null,"４　部材強度","部材の強度不足がないことを確認しましたか","はい","確認は必須です。設計を確認するため、現地試験および工場試験記録による確認はありません。"]
[null,null,"カーポートは建築基準法に基づき確認したものですか","はい","建築確認証など建築基準法に基づいて設計したものを参照してください。"]
[null,"５　使用材料","確認はしましたか","はい","確認は必須です。構造計算書により確認してください。"]
[null,null,"確認した規格名を明記ください。","JISC8955、JISB1054-1、本体金具：JIS H 4100、押さえ金具：JIS H 4100、ボルト：JIS B 1054-1","不明の場合はメーカーや設計会社へお問い合わせください。複数有る場合は「、」で区切って記載ください。"]
[null,null,null,{"$f":"IF(D13=\"\",\"規格名を明記ください。\",\"\")","v":""}]
[null,null,"外国の規格などJISおよびISO以外の規格を採用していますか","はい"]
[null,null,"メッキ厚や許容応力などがJISおよびISOより優れていることを確認しましたか","はい"]
[null,null,"カーポートは建築基準法に基づき確認していますか",{"$f":"IF(D11=\"\",\"\",D11)","v":"はい"},"建築確認証など建築基準法に基づいて設計したものを参照してください。"]
[null,"６　接合部構造","接合部における存在応力を確実に伝える構造ですか","はい"]
[null,null,"カーポートは建築基準法に基づき確認していますか",{"$f":"IF(D11=\"\",\"\",D11)","v":"はい"},"建築確認証など建築基準法に基づいて設計したものを参照してください。"]
[null,"７　基礎・アンカー","基礎・アンカーは有りますか","いいえ","屋根（屋上含む）においても自重を稼ぐために存在するケースがあります。"]
[null,null,"沈下、浮上がり及び水平方向への移動が生じないことを確認しましたか","いいえ","構造計算書により確認してください。"]
[null,null,"カーポートは建築基準法に基づき確認していますか",{"$f":"IF(D11=\"\",\"\",D11)","v":"はい"},"建築確認証など建築基準法に基づいて設計したものを参照してください。"]
[null,"８　アレイ面の高さ","設置面(屋根置きは屋根面)から頂部まで９ｍを超えますか","いいえ","JISC8955(2017)が適用可能なアレイ面の高さは９ｍまでです。それ以上は建築基準法に基づく確認が必要です。"]
[null,null,"【９ｍを超える場合】建築基準法に基づき確認していますか","はい","建築基準法施行令第3章のうち第38条､第65条､第66条､第68条､第69条及び第93条の規定により施設が必要です。"]
[null,"９　土砂崩壊・流出","土地に自立する設備ですか",{"$f":"IF(D2=\"\",\"\",IF(OR(D2=\"屋根（屋上含む）\",D2=\"水上\"),\"いいえ\",\"はい\"))","v":"いいえ"},"屋根（屋上含む）と水上は土地に自立しません。"]
[null,null,"兆候を含め、土砂流出や地盤崩壊が生じていないことを確認しましたか","はい","設計および現地試験による確認が必要です。"]
[null,null,"抑止・抑制工が図面等のとおりに施工されていることを確認しましたか","はい","設計および現地試験による確認が必要です。"]

{"sheet":"別紙","index":6,"n_rows":237,"n_cols":29,"rows_kept":237,"cut":false,"hidden":true,"merged":[[218,26,226,26],[227,0,234,0],[227,1,234,1],[227,2,233,2],[227,3,233,3],[227,22,228,24],[230,26,234,26],[234,22,234,24],[215,0,226,0],[215,1,226,1],[215,2,225,2],[215,3,225,3],[215,22,216,24],[217,22,220,24],[221,22,226,24],[230,25,232,25],[171,0,181,0],[171,1,181,1],[171,22,181,24],[174,25,177,25],[207,26,214,26],[193,0,203,0],[193,1,203,1],[193,2,196,2],[193,22,203,24],[174,26,181,26],[182,0,192,0],[182,1,192,1],[182,2,185,2],[182,22,192,24],[185,26,192,26],[196,26,203,26],[204,0,214,0],[204,1,214,1],[183,20,192,21],[195,3,196,3],[204,22,214,24],[196,25,199,25],[179,25,181,25],[171,2,176,2],[159,0,170,0],[159,1,170,1],[159,2,167,2],[159,22,170,24],[162,26,170,26],[168,2,170,2],[142,2,147,2],[142,3,147,3],[148,0,158,0],[148,1,158,1],[148,2,151,2],[148,3,151,3],[148,22,158,24],[151,26,158,26],[152,2,158,2],[152,3,158,3],[149,20,158,21],[139,22,143,24],[144,22,147,24],[151,25,154,25],[156,25,158,25],[162,25,165,25],[167,25,170,25],[140,20,141,21],[129,26,136,26],[132,2,136,2],[137,0,147,0],[137,1,147,1],[137,2,141,2],[140,26,147,26],[126,0,136,0],[126,1,136,1],[126,2,131,2],[126,22,136,24],[137,22,138,24],[140,3,141,3],[137,3,139,3],[128,3,129,3],[130,3,131,3],[132,3,133,3],[129,25,132,25],[134,25,136,25],[140,25,143,25],[145,25,147,25],[142,20,147,21],[107,26,114,26],[108,2,114,2],[108,3,114,3],[115,0,125,0],[115,1,125,1],[115,2,119,2],[115,3,119,3],[115,22,125,24],[118,26,125,26],[104,0,114,0],[104,1,114,1],[104,2,107,2],[104,3,107,3],[104,22,114,24],[107,25,110,25],[112,25,114,25],[120,2,125,2],[120,3,125,3],[118,25,121,25],[123,25,125,25],[85,26,92,26],[93,0,103,0],[93,1,103,1],[93,2,94,2],[93,3,94,3],[93,22,103,24],[95,2,103,2],[95,3,103,3],[96,26,103,26],[82,0,92,0],[82,1,92,1],[82,22,92,24],[83,2,92,2],[83,3,92,3],[101,25,103,25],[63,26,70,26],[71,0,81,0],[71,1,81,1],[71,22,81,24],[72,2,81,2],[72,3,81,3],[74,26,81,26],[60,0,70,0],[60,1,70,1],[61,2,70,2],[61,3,70,3],[61,20,70,21],[60,22,63,24],[64,22,70,24],[10,26,22,26],[11,22,11,23],[12,22,12,23],[13,22,22,24],[15,25,16,25],[17,25,18,25],[41,26,48,26],[49,0,59,0],[49,1,59,1],[49,22,59,24],[50,2,59,2],[50,3,59,3],[52,26,59,26],[26,26,37,26],[38,0,48,0],[38,1,48,1],[38,2,39,2],[38,3,39,3],[38,22,48,24],[40,2,48,2],[40,3,48,3],[23,0,37,0],[23,1,37,1],[23,2,25,2],[0,0,0,26],[1,0,1,26],[2,0,2,26],[3,0,6,0],[3,1,6,2],[3,3,6,3],[3,4,6,6],[3,7,6,9],[3,10,6,12],[3,13,4,18],[3,19,6,21],[3,22,6,24],[3,25,5,26],[5,13,6,15],[5,16,6,18],[10,25,13,25],[20,25,22,25],[26,25,29,25],[41,25,44,25],[31,25,33,25],[7,0,22,0],[7,1,22,1],[7,2,9,2],[7,3,9,3],[7,22,10,24],[26,3,37,3],[10,2,22,2],[23,3,25,3],[23,22,37,24],[26,2,37,2],[46,25,48,25],[57,25,59,25],[63,25,66,25],[68,25,70,25],[74,25,77,25],[79,25,81,25],[85,25,88,25],[90,25,92,25],[96,25,99,25],[52,25,55,25],[171,3,176,3],[177,2,181,2],[177,3,181,3],[185,25,188,25],[190,25,192,25],[186,2,192,2],[186,3,192,3],[218,25,221,25],[223,25,226,25],[201,25,203,25],[197,2,203,2],[197,3,203,3],[207,25,210,25],[212,25,214,25],[204,2,209,2],[204,3,209,3],[210,2,214,2],[210,3,214,3]]}
["使用前自己確認結果届出書 別紙　ver.1-5　Copyright(c)Chubu Kinki Industrial Safety and Inspection Division All Rights Reserved　",null,null,null,null,null,null,null,null,null,null,null,null,null,null,null,null,null,null,null,null,null,null,null,null,null,null,{"$f":"IF(AND(AB8=\"ＯＫ\",AB24=\"ＯＫ\",AB39=\"ＯＫ\",AB50=\"ＯＫ\",AB61=\"ＯＫ\",AB72=\"ＯＫ\",AB83=\"ＯＫ\",AB94=\"ＯＫ\",AB105=\"ＯＫ\",AB116=\"ＯＫ\",AB127=\"ＯＫ\",AB138=\"ＯＫ\",AB149=\"ＯＫ\",AB160=\"ＯＫ\",AB172=\"ＯＫ\",AB183=\"ＯＫ\",AB194=\"ＯＫ\",AB205=\"ＯＫ\",AB216=\"ＯＫ\",AB228=\"ＯＫ\"),\"印刷ＯＫ\",\"記載不足や不適合の項目が見られ、印刷不可\")","v":"印刷ＯＫ"}]
["３　太陽電池発電所及び太陽電池発電設備"]
[{"$f":"IF(【届出書】入力!C2=\"事業用（自家用もしくは電気事業用）\",\"【太陽電池発電所（高圧受電設備に接続されている太陽電池発電設備を含む）】\",\"【小規模事業用太陽電池発電設備】\")","v":"【太陽電池発電所（高圧受電設備に接続されている太陽電池発電設備を含む）】"}]
["番号","確認項目",null,"確認内容\n（使用前自己確認方法の基本案）","確認状況",null,null,"判定結果",null,null,"現地試験結果による確認の有無（１）",null,null,"記録による確認",null,null,null,null,null,"規格に沿って確認を行った場合の規格番号",null,null,"備考",null,null,"確認年月日、\n確認者（２）"]
[]
[null,null,null,null,null,null,null,null,null,null,null,null,null,"工場試験結果による確認の有無",null,null,"その他記録（図面、書類等）による確認の有無"]
[null,null,null,null,null,null,null,null,null,null,null,null,null,null,null,null,null,null,null,null,null,null,null,null,null,"設置者","主任技術者"]
[1,"外観検査","確認方法",{"$f":"\"検査対象となる電気工作物の設置状況について、工事の計画に従って工事が行われていること及び電技に適合していることを目視により確認する。\"&IF(【届出書】入力!C2=\"小規模事業用\",\"なお、判定基準の②、⑬を確認する場合は書類等によって確認することもできる。\",\"なお、判定基準の②、③、④、⑩、⑪、⑬を確認する場合は書類等によって確認することもできる。\")","v":"検査対象となる電気工作物の設置状況について、工事の計画に従って工事が行われていること及び電技に適合していることを目視により確認する。なお、判定基準の②、③、④、⑩、⑪、⑬を確認する場合は書類等によって確認することもできる。"},null,null,null,null,null,null,null,null,null,null,null,null,null,null,null,null,null,null,"設計時において電気設備の技術基準に基づく支持物の強度計算の妥当性の確認の有無",null,null,"確認年月日","確認年月日",{"$f":"IF(AND(AB9=\"ＯＫ\",AB10=\"ＯＫ\",AB11=\"ＯＫ\",AB12=\"ＯＫ\",AB13=\"ＯＫ\",AB14=\"ＯＫ\",AB15=\"ＯＫ\"),\"ＯＫ\",\"\")","v":"ＯＫ"},"全体：以下内容がすべてＯＫならＯＫ"]
[null,null,null,null,null,"✓","済",null,{"$f":"IF(【別紙】機械関係の入力!D3=\"はい\",\"✓\",\"\")","v":"✓"},"合",null,{"$f":"IF(【別紙】機械関係の入力!D3=\"はい\",\"✓\",\"\")","v":"✓"},"有",null,null,"有",null,{"$f":"IF(【別紙】機械関係の入力!D4=\"はい\",\"✓\",\"\")","v":"✓"},"有",null,{"$f":"IF(【別紙】機械関係の入力!D3=\"はい\",\"対象となる規格無し\",\"\")","v":"対象となる規格無し"},null,null,null,null,{"$f":"IF(【別紙】確認者の入力!$D$3=\"\",\"\",TEXT(【別紙】確認者の入力!$D$3,\"[DBNum3]ggge年m月d日\"))","v":"令和７年６月１２日"},{"$f":"IF(【別紙】確認者の入力!$D$2=\"小規模事業用\",\"－\",IF(【別紙】確認者の入力!$D$3=\"\",\"\",TEXT(【別紙】確認者の入力!$D$3,\"[DBNum3]ggge年m月d日\")))","v":"令和７年６月１２日"},{"$f":"IF(AND(OR(F9=\"✓\",F11=\"✓\"),OR(I9=\"✓\",I11=\"✓\"),OR(L9=\"✓\",L11=\"✓\"),OR(O9=\"✓\",O11=\"✓\"),OR(R9=\"✓\",R11=\"✓\")),\"ＯＫ\",\"\")","v":"ＯＫ"},"確認状況～記録のチェックが全てあること"]
[null,null,null,null,null,null,null,null,null,null,null,null,null,null,null,null,null,null,null,null,null,null,null,null,null,"確認者","確認者",{"$f":"IF(I11=\"✓\",\"判定結果：否の解消が必要\",\"ＯＫ\")","v":"ＯＫ"},"判定結果：否がないこと"]
[null,null,"判定基準",{"$f":"IF(【届出書】入力!C2=\"小規模事業用\",\"①小規模事業用電気工作物は対象外\",\"①中性点直接接地式電路に接続する変圧器には、油流出防止設備が施設されていること。（電技第１９条第１０項）\")","v":"①中性点直接接地式電路に接続する変圧器には、油流出防止設備が施設されていること。（電技第１９条第１０項）"},null,null,"対象外",null,{"$f":"IF(【別紙】機械関係の入力!D3=\"はい\",\"\",\"✓\")","v":""},"否",null,null,"無",null,{"$f":"IF(【別紙】機械関係の入力!D4=\"はい\",\"✓\",\"\")","v":"✓"},"無",null,null,"無",null,null,null,null,null,null,{"$f":"IF(AND(【別紙】確認者の入力!D4=\"\",【別紙】確認者の入力!D5=\"\",【別紙】確認者の入力!D6=\"\",【別紙】確認者の入力!D7=\"\"),\"\",【別紙】確認者の入力!D4&\"　　\"&【別紙】確認者の入力!D5&\"　　\"&【別紙】確認者の入力!D6&\"　　\"&【別紙】確認者の入力!D7)","v":"合同会社メガソーラー菅原　　○○支店　技術部　　技術部長　　菅原　拓一"},{"$f":"IF(OR(【別紙】確認者の入力!C8=\"入力不要\",【別紙】確認者の入力!C9=\"入力不要\"),\"【小規模事業用の場合は記載不要】\",IF(AND(【別紙】確認者の入力!D8=\"\",【別紙】確認者の入力!D9=\"\"),\"\",【別紙】確認者の入力!D8&\"　　\"&【別紙】確認者の入力!D9))","v":"合同会社メガソーラー菅原　電気主任技術者　　菅原　拓三"},{"$f":"IF(U9<>\"\",\"ＯＫ\",\"規格番号の明記が無い\")","v":"ＯＫ"},"規格番号の明記があること"]
[null,null,null,{"$f":"IF(【届出書】入力!C2=\"小規模事業用\",\"②必要な箇所に所定の接地が行われていること。（電技解釈第１７条～第１９条、第２９条）\",\"②必要な箇所に所定の接地が行われていること。（電技解釈第１７条～第１９条、第２１条、第２２条、第２４条、第２５条、第２７条～第２９条、第３７条）\")","v":"②必要な箇所に所定の接地が行われていること。（電技解釈第１７条～第１９条、第２１条、第２２条、第２４条、第２５条、第２７条～第２９条、第３７条）"},null,null,null,null,null,null,null,null,null,null,null,null,null,null,null,null,null,null,{"$f":"IF(【別紙】機械関係の入力!D5=\"はい\",\"✓\",\"\")","v":"✓"},null,"有",null,null,{"$f":"IF(W14<>\"\",\"ＯＫ\",\"備考欄の説明書きが無い\")","v":"ＯＫ"},"備考欄の説明書きがあること"]
[null,null,null,{"$f":"IF(【届出書】入力!C2=\"小規模事業用\",\"③小規模事業用電気工作物は対象外\",\"③高圧又は特別高圧用の機械器具の充電部が、取扱者が容易に触れないように施設されていること。（電技解釈第２１条、第２２条）\")","v":"③高圧又は特別高圧用の機械器具の充電部が、取扱者が容易に触れないように施設されていること。（電技解釈第２１条、第２２条）"},null,null,null,null,null,null,null,null,null,null,null,null,null,null,null,null,null,null,{"$f":"IF(【別紙】機械関係の入力!D5=\"はい\",\"\",\"✓\")","v":""},null,"無",null,null,{"$f":"IF(Z11<>\"\",\"ＯＫ\",\"設置者の確認が無い\")","v":"ＯＫ"},"設置者の確認があること"]
[null,null,null,{"$f":"IF(【届出書】入力!C2=\"小規模事業用\",\"④小規模事業用電気工作物は対象外\",\"④アークを発生する器具と可燃性物質との離隔が十分であること。（電技解釈第２３条）\")","v":"④アークを発生する器具と可燃性物質との離隔が十分であること。（電技解釈第２３条）"},null,null,null,null,null,null,null,null,null,null,null,null,null,null,null,null,null,null,{"$f":"IF(W13=\"✓\",\"不適合\",IF(【届出書】入力!C2=\"小規模事業用\",\"判定基準の②、⑬は書類等によって確認した。\",\"判定基準の②、③、④、⑩、⑪、⑬は書類等によって確認した。\"))","v":"判定基準の②、③、④、⑩、⑪、⑬は書類等によって確認した。"},null,null,null,null,{"$f":"IF(【届出書】入力!C2=\"事業用（自家用もしくは電気事業用）\",IF(AA11<>\"\",\"ＯＫ\",\"主任技術者の確認が無い\"),\"ＯＫ\")","v":"ＯＫ"},"主任技術者の確認があること（小規模事業用はスルーでＯＫ）"]
[null,null,null,{"$f":"IF(【届出書】入力!C2=\"小規模事業用\",\"⑤小規模事業用電気工作物は対象外\",\"⑤高圧又は特別高圧電路中の過電流遮断器の開閉状態が容易に確認できること。（電技解釈第３４条）\")","v":"⑤高圧又は特別高圧電路中の過電流遮断器の開閉状態が容易に確認できること。（電技解釈第３４条）"},null,null,null,null,null,null,null,null,null,null,null,null,null,null,null,null,null,null,null,null,null,{"$f":"IF(AND(【別紙】確認者の入力!D2=\"小規模事業用\",【別紙】確認者の入力!D10=\"委託した\"),\"【確認を委託した場合】\",\"\")","v":""},null,{"$f":"IF(【届出書】入力!C2=\"小規模事業用\",IF(AND(Z15<>\"\",Z16<>\"\",Z18<>\"\",Z20<>\"\",Z21<>\"\"),\"ＯＫ\",\"委託先の確認が無い\"),\"ＯＫ\")","v":"ＯＫ"},"委託先の確認があること（事業用はスルーでＯＫ）"]
[null,null,null,{"$f":"IF(【届出書】入力!C2=\"小規模事業用\",\"⑥電線及び電気機械器具を保護するため必要な箇所に過電流遮断器が施設されていること。（電技解釈第３３条、第３５条）\",\"⑥高圧及び特別高圧の電路において電線及び電気機械器具を保護するため必要な箇所に過電流遮断器が施設されていること。（電技解釈第３３条、第３４条、第３５条）\")","v":"⑥高圧及び特別高圧の電路において電線及び電気機械器具を保護するため必要な箇所に過電流遮断器が施設されていること。（電技解釈第３３条、第３４条、第３５条）"},null,null,null,null,null,null,null,null,null,null,null,null,null,null,null,null,null,null,null,null,null,{"$f":"IF(AND(【別紙】確認者の入力!D2=\"小規模事業用\",【別紙】確認者の入力!D10=\"委託した\"),【別紙】確認者の入力!D11,\"\")","v":""}]
[null,null,null,{"$f":"IF(【届出書】入力!C2=\"小規模事業用\",\"⑦小規模事業用電気工作物は対象外\",\"⑦高圧及び特別高圧の電路に地絡を生じた時に自動的に電路を遮断する装置が必要な箇所に施設されていること。（電技解釈第３６条）\")","v":"⑦高圧及び特別高圧の電路に地絡を生じた時に自動的に電路を遮断する装置が必要な箇所に施設されていること。（電技解釈第３６条）"}]
[null,null,null,{"$f":"IF(【届出書】入力!C2=\"小規模事業用\",\"⑧小規模事業用電気工作物は対象外\",\"⑧太陽電池発電所の高圧及び特別高圧の電路において、架空電線の引込口及び引出口又はこれに近接する箇所に避雷器が施設されていること。（電技解釈第３７条）\")","v":"⑧太陽電池発電所の高圧及び特別高圧の電路において、架空電線の引込口及び引出口又はこれに近接する箇所に避雷器が施設されていること。（電技解釈第３７条）"},null,null,null,null,null,null,null,null,null,null,null,null,null,null,null,null,null,null,null,null,null,{"$f":"IF(AND(【別紙】確認者の入力!D2=\"小規模事業用\",【別紙】確認者の入力!D10=\"委託した\"),【別紙】確認者の入力!D12,\"\")","v":""}]
[null,null,null,{"$f":"IF(【届出書】入力!C2=\"小規模事業用\",\"⑨太陽電池発電設備の周囲に、柵、塀等が施設されており、出入口に施錠装置及び立入禁止表示が施設されていること。（発電用太陽電池設備に関する技術基準の解釈第２条）\",\"⑨太陽電池発電所の周囲に、柵、塀等が施設されており、出入口に施錠装置及び立入禁止表示が施設されていること。（電技解釈第３８条）\")","v":"⑨太陽電池発電所の周囲に、柵、塀等が施設されており、出入口に施錠装置及び立入禁止表示が施設されていること。（電技解釈第３８条）"}]
[null,null,null,{"$f":"IF(【届出書】入力!C2=\"小規模事業用\",\"⑩小規模事業用電気工作物は対象外\",\"⑩太陽電池発電所の周囲の柵、塀等の高さと柵、塀等から特別高圧の充電部までの距離との和が規定値以上であること。（電技解釈第３８条）\")","v":"⑩太陽電池発電所の周囲の柵、塀等の高さと柵、塀等から特別高圧の充電部までの距離との和が規定値以上であること。（電技解釈第３８条）"},null,null,null,null,null,null,null,null,null,null,null,null,null,null,null,null,null,null,null,null,null,{"$f":"IF(AND(【別紙】確認者の入力!D2=\"小規模事業用\",【別紙】確認者の入力!D10=\"委託した\"),\"TEL \"&【別紙】確認者の入力!D13,\"\")","v":""}]
[null,null,null,{"$f":"IF(【届出書】入力!C2=\"小規模事業用\",\"⑪小規模事業用電気工作物は対象外\",\"⑪ガス絶縁機器等の圧力容器が規定どおり施設されていること。（電技解釈第４０条）\")","v":"⑪ガス絶縁機器等の圧力容器が規定どおり施設されていること。（電技解釈第４０条）"},null,null,null,null,null,null,null,null,null,null,null,null,null,null,null,null,null,null,null,null,null,{"$f":"IF(AND(【別紙】確認者の入力!D2=\"小規模事業用\",【別紙】確認者の入力!D10=\"委託した\"),\"ｱﾄﾞﾚｽ \"&【別紙】確認者の入力!D14,\"\")","v":""}]
[null,null,null,{"$f":"IF(【届出書】入力!C2=\"小規模事業用\",\"⑫小規模事業用電気工作物は対象外\",\"⑫発電機、特別高圧用の変圧器、電力用コンデンサ又は分路リアクトル及び調相機に必要な保護装置が施設されていること。（電技解釈第４２条、第４３条）\")","v":"⑫発電機、特別高圧用の変圧器、電力用コンデンサ又は分路リアクトル及び調相機に必要な保護装置が施設されていること。（電技解釈第４２条、第４３条）"}]
[null,null,null,"⑬検査の対象となる電気工作物が図面等の記載事項どおりに施設されていること。なお、支持物の基礎については、当該記載事項どおりに施設されていることが施工の状態が分かる写真や施工管理記録等により確認されていること。"]
[2,"設計荷重の確認","確認方法","検査対象となる電気工作物の支持物の設計荷重が当該設置環境下の荷重として適切に設定されていることを図面等（構造計算書、架台図、載荷試験結果及び地盤調査結果等を含む。以下「Ⅱ－１．使用前自己確認の方法 ３．太陽電池発電所及び太陽電池発電設備」において同じ。）によって確認する。",null,null,null,null,null,null,null,null,null,null,null,null,null,null,null,null,null,null,{"$f":"IF(R25=\"✓\",IF(【別紙】機械関係の入力!D7=\"はい\",\"判定基準の①～⑧は書類等によって確認した。⑨は基礎及びアンカーが想定される荷重に対して上部構造に支障をきたす沈下、浮上がり及び水平方向への移動がないことを確認した。\"&IF(【別紙】機械関係の入力!D2=\"水上\",\"水面に施設されるフロート群（アイランド）においては、多数のアンカーが配置されるため、荷重の偏りを考\n慮して全てのアンカーの安全性を確認した。\",),\"判定基準の①～⑧は書類等によって確認した。⑨は対象外\"),\"不適合\")","v":"判定基準の①～⑧は書類等によって確認した。⑨は対象外"},null,null,"確認年月日","確認年月日",{"$f":"IF(AND(AB25=\"ＯＫ\",AB26=\"ＯＫ\",AB27=\"ＯＫ\",AB28=\"ＯＫ\",AB29=\"ＯＫ\",AB30=\"ＯＫ\",AB31=\"ＯＫ\"),\"ＯＫ\",\"\")","v":"ＯＫ"},"全体：以下内容がすべてＯＫならＯＫ"]
[null,null,null,null,null,"✓","済",null,{"$f":"IF(【別紙】機械関係の入力!D6=\"はい\",\"✓\",\"\")","v":"✓"},"合",null,null,"有",null,null,"有",null,{"$f":"IF(【別紙】機械関係の入力!D6=\"はい\",\"✓\",\"\")","v":"✓"},"有",null,{"$f":"IF(【別紙】機械関係の入力!D6=\"はい\",\"JISC8955(2017)\",\"\")","v":"JISC8955(2017)"},null,null,null,null,{"$f":"IF(【別紙】確認者の入力!$D$3=\"\",\"\",TEXT(【別紙】確認者の入力!$D$3,\"[DBNum3]ggge年m月d日\"))","v":"令和７年６月１２日"},{"$f":"IF(【別紙】確認者の入力!$D$2=\"小規模事業用\",\"－\",IF(【別紙】確認者の入力!$D$3=\"\",\"\",TEXT(【別紙】確認者の入力!$D$3,\"[DBNum3]ggge年m月d日\")))","v":"令和７年６月１２日"},{"$f":"IF(AND(OR(F25=\"✓\",F27=\"✓\"),OR(I25=\"✓\",I27=\"✓\"),OR(L25=\"✓\",L27=\"✓\"),OR(O25=\"✓\",O27=\"✓\"),OR(R25=\"✓\",R27=\"✓\")),\"ＯＫ\",\"\")","v":"ＯＫ"},"確認状況～記録のチェックが全てあること"]
[null,null,null,null,null,null,null,null,null,null,null,null,null,null,null,null,null,null,null,null,null,null,null,null,null,"確認者","確認者",{"$f":"IF(I27=\"✓\",\"判定結果：否の解消が必要\",\"ＯＫ\")","v":"ＯＫ"},"判定結果：否がないこと"]
[null,null,"判定基準","自重、風圧荷重、積雪荷重、地震荷重その他の当該支持物の設置環境下において想定される各種荷重が、日本産業規格ＪＩＳ Ｃ ８９５５（２０１７）「太\n陽電池アレイ用支持物の設計用荷重算出方法」等に基づき設定されていること。\n具体的には、以下の項目を満たすこと。\n①自重は、太陽電池モジュール、支持物及び支持物に取付けられている電気設備（逆変換装置、電線、接続箱、集電箱）等の重量が設定されていること。\n②風圧荷重は、アレイ面と支持物のそれぞれの荷重が与えられていること。\n③基準風速、地表面粗度区分は当該設備の設置場所に応じた値が設定されていること。\n④風力係数は風洞実験結果から与えられた数値、またはＪＩＳ Ｃ ８９５５（２０１７）に示された設置形態に応じた数値が設定されていること。\n⑤積雪荷重の地上垂直積雪量は、ＪＩＳ Ｃ ８９５５（２０１７）の算定方法により求めた値が設定されていること。\n⑥勾配係数はアレイ面の角度に応じた値が設定されており、アレイ面の積雪が確実に滑落しないと判断できる場合には勾配係数を１としていること。\n⑦雪の単位荷重は、一般の地方で２０N/cm/㎡以上、多雪区域で３０N/cm/㎡以上が設定されていること。\n⑧地震荷重の設計用水平震度は、ＪＩＳ Ｃ ８９５５（２０１７）に示された設置形態（地上設置および建築物等設置）及び設置場所に応じた値が設定さ\nれていること。\n⑨傾斜地、水上等に設置される設備の場合は、「発電用太陽電池設備に関する技術基準の解釈」に基づいて付加的に考慮すべき外力を適切に評価していること。",null,null,"対象外",null,{"$f":"IF(【別紙】機械関係の入力!D6=\"はい\",\"\",\"✓\")","v":""},"否",null,{"$f":"IF(【別紙】機械関係の入力!D6=\"はい\",\"✓\",\"\")","v":"✓"},"無",null,{"$f":"IF(【別紙】機械関係の入力!D6=\"はい\",\"✓\",\"\")","v":"✓"},"無",null,null,"無",null,null,null,null,null,null,{"$f":"IF($F25=\"✓\",Z$11,\"\")","v":"合同会社メガソーラー菅原　　○○支店　技術部　　技術部長　　菅原　拓一"},{"$f":"IF($F25=\"✓\",AA$11,\"\")","v":"合同会社メガソーラー菅原　電気主任技術者　　菅原　拓三"},{"$f":"IF(U25<>\"\",\"ＯＫ\",\"規格番号の明記が無い\")","v":"ＯＫ"},"規格番号の明記があること"]
[null,null,null,null,null,null,null,null,null,null,null,null,null,null,null,null,null,null,null,null,null,null,null,null,null,null,null,{"$f":"IF(W24<>\"\",\"ＯＫ\",\"備考欄の説明書きが無い\")","v":"ＯＫ"},"備考欄の説明書きがあること"]
[null,null,null,null,null,null,null,null,null,null,null,null,null,null,null,null,null,null,null,null,null,null,null,null,null,null,null,{"$f":"IF(Z27<>\"\",\"ＯＫ\",\"設置者の確認が無い\")","v":"ＯＫ"},"設置者の確認があること"]
[null,null,null,null,null,null,null,null,null,null,null,null,null,null,null,null,null,null,null,null,null,null,null,null,null,null,null,{"$f":"IF(【届出書】入力!C19=\"事業用（自家用もしくは電気事業用）\",IF(AA27<>\"\",\"ＯＫ\",\"主任技術者の確認が無い\"),\"ＯＫ\")","v":"ＯＫ"},"主任技術者の確認があること（小規模事業用はスルーでＯＫ）"]
[null,null,null,null,null,null,null,null,null,null,null,null,null,null,null,null,null,null,null,null,null,null,null,null,null,{"$f":"IF($Z$15=\"\",\"\",$Z$15)","v":""},null,{"$f":"IF(【届出書】入力!C19=\"小規模事業用\",IF(AND(Z31<>\"\",Z32<>\"\"),\"ＯＫ\",\"委託先の確認が無い\"),\"ＯＫ\")","v":"ＯＫ"},"委託先の確認があること（事業用はスルーでＯＫ）"]
[null,null,null,null,null,null,null,null,null,null,null,null,null,null,null,null,null,null,null,null,null,null,null,null,null,{"$f":"IF($Z$16=\"\",\"\",\"委託先の氏名、住所、電話番号、メールアドレスは番号１に同じ。\")","v":""}]
[]
[]
[]
[]
[]
[]
[3,"支持物構造の確認","確認方法","図面等での支持物の形状及び寸法、使用材料等が実際の設備の支持物と一致していることを確認する。\n支持物が各種設計荷重に対して安定した構造であることを図面等によって確認する。",null,null,null,null,null,null,null,null,null,null,null,null,null,null,null,null,null,null,{"$f":"IF(AND(L40=\"✓\",R40=\"✓\"),\"判定基準の①は書類等と現地が一致していることを確認した。判定基準の②は構造計算書により基準値を満たしていることを確認した。\",\"不適合\")","v":"判定基準の①は書類等と現地が一致していることを確認した。判定基準の②は構造計算書により基準値を満たしていることを確認した。"},null,null,"確認年月日","確認年月日",{"$f":"IF(AND(AB40=\"ＯＫ\",AB41=\"ＯＫ\",AB42=\"ＯＫ\",AB43=\"ＯＫ\",AB44=\"ＯＫ\",AB45=\"ＯＫ\",AB46=\"ＯＫ\"),\"ＯＫ\",\"\")","v":"ＯＫ"},"全体：以下内容がすべてＯＫならＯＫ"]
[null,null,null,null,null,"✓","済",null,{"$f":"IF(AND(【別紙】機械関係の入力!D8=\"はい\",【別紙】機械関係の入力!D9=\"はい\"),\"✓\",\"\")","v":"✓"},"合",null,{"$f":"IF(AND(【別紙】機械関係の入力!D8=\"はい\",【別紙】機械関係の入力!D9=\"はい\"),\"✓\",\"\")","v":"✓"},"有",null,null,"有",null,{"$f":"IF(AND(【別紙】機械関係の入力!D8=\"はい\",【別紙】機械関係の入力!D9=\"はい\"),\"✓\",\"\")","v":"✓"},"有",null,{"$f":"IF(AND(【別紙】機械関係の入力!D8=\"はい\",【別紙】機械関係の入力!D9=\"はい\"),\"対象となる規格無し\",\"\")","v":"対象となる規格無し"},null,null,null,null,{"$f":"IF(【別紙】確認者の入力!$D$3=\"\",\"\",TEXT(【別紙】確認者の入力!$D$3,\"[DBNum3]ggge年m月d日\"))","v":"令和７年６月１２日"},{"$f":"IF(【別紙】確認者の入力!$D$2=\"小規模事業用\",\"－\",IF(【別紙】確認者の入力!$D$3=\"\",\"\",TEXT(【別紙】確認者の入力!$D$3,\"[DBNum3]ggge年m月d日\")))","v":"令和７年６月１２日"},{"$f":"IF(AND(OR(F40=\"✓\",F42=\"✓\"),OR(I40=\"✓\",I42=\"✓\"),OR(L40=\"✓\",L42=\"✓\"),OR(O40=\"✓\",O42=\"✓\"),OR(R40=\"✓\",R42=\"✓\")),\"ＯＫ\",\"\")","v":"ＯＫ"},"確認状況～記録のチェックが全てあること"]
[null,null,"判定基準","①支持物の架構（部材の組み方や形状、使用材料等）及び寸法が図面等と一致していること。\n②図面等に示された支持物（基礎を含む）の架構図をもとに正面、側面、背面の架構について不静定次数の計算を行い、いずれの架構も不静定次数の値が０以上の安定した構造（静定・不静定）であること。このとき、部材間の接合部の条件を適切に設定し、不静定次数の算出方法は、発電用太陽電池設備に関する技術基準を定める省令及びその解釈に関する逐条解説（令和３年１２月２０日）の解釈第３条の解説（支持物の架構）を参照すること。",null,null,null,null,null,null,null,null,null,null,null,null,null,null,null,null,null,null,null,null,null,"確認者","確認者",{"$f":"IF(I42=\"✓\",\"判定結果：否の解消が必要\",\"ＯＫ\")","v":"ＯＫ"},"判定結果：否がないこと"]
[null,null,null,null,null,null,"対象外",null,{"$f":"IF(AND(【別紙】機械関係の入力!D8=\"はい\",【別紙】機械関係の入力!D9=\"はい\"),\"\",\"✓\")","v":""},"否",null,null,"無",null,{"$f":"IF(AND(【別紙】機械関係の入力!D8=\"はい\",【別紙】機械関係の入力!D9=\"はい\"),\"✓\",\"\")","v":"✓"},"無",null,null,"無",null,null,null,null,null,null,{"$f":"IF($F40=\"✓\",Z$11,\"\")","v":"合同会社メガソーラー菅原　　○○支店　技術部　　技術部長　　菅原　拓一"},{"$f":"IF($F40=\"✓\",AA$11,\"\")","v":"合同会社メガソーラー菅原　電気主任技術者　　菅原　拓三"},{"$f":"IF(U40<>\"\",\"ＯＫ\",\"規格番号の明記が無い\")","v":"ＯＫ"},"規格番号の明記があること"]
[null,null,null,null,null,null,null,null,null,null,null,null,null,null,null,null,null,null,null,null,null,null,null,null,null,null,null,{"$f":"IF(W39<>\"\",\"ＯＫ\",\"備考欄の説明書きが無い\")","v":"ＯＫ"},"備考欄の説明書きがあること"]
[null,null,null,null,null,null,null,null,null,null,null,null,null,null,null,null,null,null,null,null,null,null,null,null,null,null,null,{"$f":"IF(Z42<>\"\",\"ＯＫ\",\"設置者の確認が無い\")","v":"ＯＫ"},"設置者の確認があること"]
[null,null,null,null,null,null,null,null,null,null,null,null,null,null,null,null,null,null,null,null,null,null,null,null,null,null,null,{"$f":"IF(【届出書】入力!C34=\"事業用（自家用もしくは電気事業用）\",IF(AA42<>\"\",\"ＯＫ\",\"主任技術者の確認が無い\"),\"ＯＫ\")","v":"ＯＫ"},"主任技術者の確認があること（小規模事業用はスルーでＯＫ）"]
[null,null,null,null,null,null,null,null,null,null,null,null,null,null,null,null,null,null,null,null,null,null,null,null,null,{"$f":"IF($Z$15=\"\",\"\",$Z$15)","v":""},null,{"$f":"IF(【届出書】入力!C34=\"小規模事業用\",IF(AND(Z46<>\"\",Z47<>\"\"),\"ＯＫ\",\"委託先の確認が無い\"),\"ＯＫ\")","v":"ＯＫ"},"委託先の確認があること（事業用はスルーでＯＫ）"]
[null,null,null,null,null,null,null,null,null,null,null,null,null,null,null,null,null,null,null,null,null,null,null,null,null,{"$f":"IF($Z$16=\"\",\"\",\"委託先の氏名、住所、電話番号、メールアドレスは番号１に同じ。\")","v":""}]
[]
[]
[4,"部材強度の確認","確認方法","部材が受ける応力が許容応力度以下であることを図面等によって確認する。",null,null,null,null,null,null,null,null,null,null,null,null,null,null,null,null,null,null,{"$f":"IF(AND(I51=\"✓\",R51=\"✓\"),IF(【別紙】機械関係の入力!D2<>\"カーポート\",\"構造計算書により判定基準すべてが満たされていることを確認した。\",IF(AND(【別紙】機械関係の入力!D2=\"カーポート\",【別紙】機械関係の入力!D11=\"はい\"),\"建築確認時に行った構造計算により確認を行った。\",\"不適合\")),\"不適合\")","v":"構造計算書により判定基準すべてが満たされていることを確認した。"},null,null,"確認年月日","確認年月日",{"$f":"IF(AND(AB51=\"ＯＫ\",AB52=\"ＯＫ\",AB53=\"ＯＫ\",AB54=\"ＯＫ\",AB55=\"ＯＫ\",AB56=\"ＯＫ\",AB57=\"ＯＫ\"),\"ＯＫ\",\"\")","v":"ＯＫ"},"全体：以下内容がすべてＯＫならＯＫ"]
[null,null,"判定基準","①全ての部材の形状、断面性能および許容応力度が示されていること。\n②部材の許容応力度は、ボルト孔による断面欠損、有効断面積、座屈による低減などが考慮されていること。\n③各種設計荷重に対する各部材の応力が示されていること。\n④各部材の検定比（＝応力／許容応力度）が１以下であること。",null,{"$f":"IF(【別紙】機械関係の入力!D10=\"はい\",\"✓\",\"\")","v":"✓"},"済",null,{"$f":"IF(【別紙】機械関係の入力!D10=\"はい\",\"✓\",\"\")","v":"✓"},"合",null,null,"有",null,null,"有",null,{"$f":"IF(【別紙】機械関係の入力!D10=\"はい\",\"✓\",\"\")","v":"✓"},"有",null,{"$f":"IF(【別紙】機械関係の入力!D10=\"はい\",IF(AND(【別紙】機械関係の入力!D2=\"カーポート\",【別紙】機械関係の入力!D11=\"はい\"),\"建築基準法に基づき\",\"対象となる規格無し\"),\"\")","v":"対象となる規格無し"},null,null,null,null,{"$f":"IF(【別紙】確認者の入力!$D$3=\"\",\"\",TEXT(【別紙】確認者の入力!$D$3,\"[DBNum3]ggge年m月d日\"))","v":"令和７年６月１２日"},{"$f":"IF(【別紙】確認者の入力!$D$2=\"小規模事業用\",\"－\",IF(【別紙】確認者の入力!$D$3=\"\",\"\",TEXT(【別紙】確認者の入力!$D$3,\"[DBNum3]ggge年m月d日\")))","v":"令和７年６月１２日"},{"$f":"IF(AND(OR(F51=\"✓\",F53=\"✓\"),OR(I51=\"✓\",I53=\"✓\"),OR(L51=\"✓\",L53=\"✓\"),OR(O51=\"✓\",O53=\"✓\"),OR(R51=\"✓\",R53=\"✓\")),\"ＯＫ\",\"\")","v":"ＯＫ"},"確認状況～記録のチェックが全てあること"]
[null,null,null,null,null,null,null,null,null,null,null,null,null,null,null,null,null,null,null,null,{"$f":"IF(【別紙】機械関係の入力!D10=\"はい\",IF(AND(【別紙】機械関係の入力!D2=\"カーポート\",【別紙】機械関係の入力!D11=\"はい\"),\"確認済み\",\"\"),\"\")","v":""},null,null,null,null,"確認者","確認者",{"$f":"IF(I53=\"✓\",\"判定結果：否の解消が必要\",\"ＯＫ\")","v":"ＯＫ"},"判定結果：否がないこと"]
[null,null,null,null,null,null,"対象外",null,{"$f":"IF(【別紙】機械関係の入力!D10=\"はい\",\"\",\"✓\")","v":""},"否",null,{"$f":"IF(【別紙】機械関係の入力!D10=\"はい\",\"✓\",\"\")","v":"✓"},"無",null,{"$f":"IF(【別紙】機械関係の入力!D10=\"はい\",\"✓\",\"\")","v":"✓"},"無",null,null,"無",null,null,null,null,null,null,{"$f":"IF(OR($F51=\"✓\",$F53=\"✓\"),Z$11,\"\")","v":"合同会社メガソーラー菅原　　○○支店　技術部　　技術部長　　菅原　拓一"},{"$f":"IF(OR($F51=\"✓\",$F53=\"✓\"),AA$11,\"\")","v":"合同会社メガソーラー菅原　電気主任技術者　　菅原　拓三"},{"$f":"IF(U51<>\"\",\"ＯＫ\",\"規格番号の明記が無い\")","v":"ＯＫ"},"規格番号の明記があること"]
[null,null,null,null,null,null,null,null,null,null,null,null,null,null,null,null,null,null,null,null,null,null,null,null,null,null,null,{"$f":"IF(W50<>\"\",\"ＯＫ\",\"備考欄の説明書きが無い\")","v":"ＯＫ"},"備考欄の説明書きがあること"]
[null,null,null,null,null,null,null,null,null,null,null,null,null,null,null,null,null,null,null,null,null,null,null,null,null,null,null,{"$f":"IF(Z53<>\"\",\"ＯＫ\",\"設置者の確認が無い\")","v":"ＯＫ"},"設置者の確認があること"]
[null,null,null,null,null,null,null,null,null,null,null,null,null,null,null,null,null,null,null,null,null,null,null,null,null,null,null,{"$f":"IF(【届出書】入力!C45=\"事業用（自家用もしくは電気事業用）\",IF(AA53<>\"\",\"ＯＫ\",\"主任技術者の確認が無い\"),\"ＯＫ\")","v":"ＯＫ"},"主任技術者の確認があること（小規模事業用はスルーでＯＫ）"]
[null,null,null,null,null,null,null,null,null,null,null,null,null,null,null,null,null,null,null,null,null,null,null,null,null,{"$f":"IF($Z$15=\"\",\"\",$Z$15)","v":""},null,{"$f":"IF(【届出書】入力!C45=\"小規模事業用\",IF(AND(Z57<>\"\",Z58<>\"\"),\"ＯＫ\",\"委託先の確認が無い\"),\"ＯＫ\")","v":"ＯＫ"},"委託先の確認があること（事業用はスルーでＯＫ）"]
[null,null,null,null,null,null,null,null,null,null,null,null,null,null,null,null,null,null,null,null,null,null,null,null,null,{"$f":"IF($Z$16=\"\",\"\",\"委託先の氏名、住所、電話番号、メールアドレスは番号１に同じ。\")","v":""}]
[]
[]
[5,"使用材料の確認","確認方法","安定した品質の材料が使用されているか図面等によって確認する。",null,null,null,null,null,null,null,null,null,null,null,null,null,null,null,null,null,null,{"$f":"IF(AND(I62=\"✓\",O62=\"✓\",R62=\"✓\"),IF(【別紙】機械関係の入力!D2<>\"カーポート\",\"図面および構造計算書により判定基準すべてが満たされていることを確認した。\",IF(AND(【別紙】機械関係の入力!D2=\"カーポート\",【別紙】機械関係の入力!D17=\"はい\"),\"建築確認時に行った構造計算により確認を行った。\",\"不適合\")),\"不適合\")","v":"図面および構造計算書により判定基準すべてが満たされていることを確認した。"},null,null,"確認年月日","確認年月日",{"$f":"IF(AND(AB62=\"ＯＫ\",AB63=\"ＯＫ\",AB64=\"ＯＫ\",AB65=\"ＯＫ\",AB66=\"ＯＫ\",AB67=\"ＯＫ\",AB68=\"ＯＫ\"),\"ＯＫ\",\"\")","v":"ＯＫ"},"全体：以下内容がすべてＯＫならＯＫ"]
[null,null,"判定基準","①日本産業規格（ＪＩＳ）、国際規格（ＩＳО）に規定された材料であること。\n②腐食、腐朽および劣化しやすい材料については、その対策処理（めっき、塗装など）が施されていること。\n③①以外の規格に規定された材料を使用する場合には、その強度特性を明確にしたうえで設計条件に適合していること。",null,{"$f":"IF(【別紙】機械関係の入力!D12=\"はい\",\"✓\",\"\")","v":"✓"},"済",null,{"$f":"IF(【別紙】機械関係の入力!D12=\"はい\",\"✓\",\"\")","v":"✓"},"合",null,null,"有",null,{"$f":"IF(【別紙】機械関係の入力!D12=\"はい\",\"✓\",\"\")","v":"✓"},"有",null,{"$f":"IF(【別紙】機械関係の入力!D12=\"はい\",\"✓\",\"\")","v":"✓"},"有",null,{"$f":"IF(【別紙】機械関係の入力!D12=\"はい\",IF(AND(【別紙】機械関係の入力!D2=\"カーポート\",【別紙】機械関係の入力!D17=\"はい\"),\"建築基準法に基づき確認済み\",IF(AND(【別紙】機械関係の入力!D2<>\"カーポート\",【別紙】機械関係の入力!D14=\"規格名を明記ください。\"),\"\",【別紙】機械関係の入力!D13)),\"\")","v":"JISC8955、JISB1054-1、本体金具：JIS H 4100、押さえ金具：JIS H 4100、ボルト：JIS B 1054-1"},null,null,null,null,{"$f":"IF(【別紙】確認者の入力!$D$3=\"\",\"\",TEXT(【別紙】確認者の入力!$D$3,\"[DBNum3]ggge年m月d日\"))","v":"令和７年６月１２日"},{"$f":"IF(【別紙】確認者の入力!$D$2=\"小規模事業用\",\"－\",IF(【別紙】確認者の入力!$D$3=\"\",\"\",TEXT(【別紙】確認者の入力!$D$3,\"[DBNum3]ggge年m月d日\")))","v":"令和７年６月１２日"},{"$f":"IF(AND(OR(F62=\"✓\",F64=\"✓\"),OR(I62=\"✓\",I64=\"✓\"),OR(L62=\"✓\",L64=\"✓\"),OR(O62=\"✓\",O64=\"✓\"),OR(R62=\"✓\",R64=\"✓\")),\"ＯＫ\",\"\")","v":"ＯＫ"},"確認状況～記録のチェックが全てあること"]
[null,null,null,null,null,null,null,null,null,null,null,null,null,null,null,null,null,null,null,null,null,null,null,null,null,"確認者","確認者",{"$f":"IF(I64=\"✓\",\"判定結果：否の解消が必要\",\"ＯＫ\")","v":"ＯＫ"},"判定結果：否がないこと"]
[null,null,null,null,null,{"$f":"IF(【別紙】機械関係の入力!D12=\"はい\",\"\",\"✓\")","v":""},"対象外",null,{"$f":"IF(【別紙】機械関係の入力!D12=\"はい\",\"\",\"✓\")","v":""},"否",null,{"$f":"IF(【別紙】機械関係の入力!D12=\"はい\",\"✓\",\"\")","v":"✓"},"無",null,null,"無",null,null,"無",null,null,null,null,null,null,{"$f":"IF(OR($F62=\"✓\",$F64=\"✓\"),Z$11,\"\")","v":"合同会社メガソーラー菅原　　○○支店　技術部　　技術部長　　菅原　拓一"},{"$f":"IF(OR($F62=\"✓\",$F64=\"✓\"),AA$11,\"\")","v":"合同会社メガソーラー菅原　電気主任技術者　　菅原　拓三"},{"$f":"IF(U62<>\"\",\"ＯＫ\",\"規格番号の明記が無い\")","v":"ＯＫ"},"規格番号の明記があること"]
[null,null,null,null,null,null,null,null,null,null,null,null,null,null,null,null,null,null,null,null,null,null,{"$f":"IF(【別紙】機械関係の入力!D15=\"いいえ\",\"③は該当なし。\",IF(AND(I62=\"✓\",O62=\"✓\",R62=\"✓\",【別紙】機械関係の入力!D15=\"はい\",【別紙】機械関係の入力!D16=\"はい\"),\"③は、材料がＪＩＳ、ＩＳОに規定された材料ではないものの、強度特性がＪＩＳ、ＩＳОと同等以上であることが設計書により明確となっており、判断基準に適合していることを確認した。\",\"③は、強度特性がＪＩＳ、ＩＳОと同等以上であることが未確認のため、不適合\"))","v":"③は、材料がＪＩＳ、ＩＳОに規定された材料ではないものの、強度特性がＪＩＳ、ＩＳОと同等以上であることが設計書により明確となっており、判断基準に適合していることを確認した。"},null,null,null,null,{"$f":"IF(AND(W61<>\"\",W65<>\"③は、強度特性がＪＩＳ、ＩＳОと同等以上であることが未確認のため、不適合\"),\"ＯＫ\",\"備考欄の説明書きが無い、③が不適合\")","v":"ＯＫ"},"備考欄の説明書きがあること、③が該当の場合、適合していること"]
[null,null,null,null,null,null,null,null,null,null,null,null,null,null,null,null,null,null,null,null,null,null,null,null,null,null,null,{"$f":"IF(Z64<>\"\",\"ＯＫ\",\"設置者の確認が無い\")","v":"ＯＫ"},"設置者の確認があること"]
[null,null,null,null,null,null,null,null,null,null,null,null,null,null,null,null,null,null,null,null,null,null,null,null,null,null,null,{"$f":"IF(【届出書】入力!C56=\"事業用（自家用もしくは電気事業用）\",IF(AA64<>\"\",\"ＯＫ\",\"主任技術者の確認が無い\"),\"ＯＫ\")","v":"ＯＫ"},"主任技術者の確認があること（小規模事業用はスルーでＯＫ）"]
[null,null,null,null,null,null,null,null,null,null,null,null,null,null,null,null,null,null,null,null,null,null,null,null,null,{"$f":"IF($Z$15=\"\",\"\",$Z$15)","v":""},null,{"$f":"IF(【届出書】入力!C56=\"小規模事業用\",IF(AND(Z68<>\"\",Z69<>\"\",),\"ＯＫ\",\"委託先の確認が無い\"),\"ＯＫ\")","v":"ＯＫ"},"委託先の確認があること（事業用はスルーでＯＫ）"]
[null,null,null,null,null,null,null,null,null,null,null,null,null,null,null,null,null,null,null,null,null,null,null,null,null,{"$f":"IF($Z$16=\"\",\"\",\"委託先の氏名、住所、電話番号、メールアドレスは番号１に同じ。\")","v":""}]
[]
[]
[6,"接合部構造の確認","確認方法","接合部における存在応力を確実に伝える構造であるかを図面等によって確認する。",null,null,null,null,null,null,null,null,null,null,null,null,null,null,null,null,null,null,{"$f":"IF(AND(I73=\"✓\",R73=\"✓\"),IF(【別紙】機械関係の入力!D2<>\"カーポート\",\"構造計算書により判定基準すべてが満たされていることを確認した。\",IF(AND(【別紙】機械関係の入力!D2=\"カーポート\",【別紙】機械関係の入力!D19=\"はい\"),\"建築確認時に行った構造計算により確認を行った。\",\"不適合\")),\"不適合\")","v":"構造計算書により判定基準すべてが満たされていることを確認した。"},null,null,"確認年月日","確認年月日",{"$f":"IF(AND(AB73=\"ＯＫ\",AB74=\"ＯＫ\",AB75=\"ＯＫ\",AB76=\"ＯＫ\",AB77=\"ＯＫ\",AB78=\"ＯＫ\",AB79=\"ＯＫ\"),\"ＯＫ\",\"\")","v":"ＯＫ"},"全体：以下内容がすべてＯＫならＯＫ"]
[null,null,"判定基準","①全ての接合部についての仕様（形状や締結材の仕様等）が示されていること。\n②接合部に作用する応力が示されていること。\n③部材間の摩擦によって接合される接合部（単管クランプ、スロット接合等）については、部材間の摩擦力が適切に評価されていること。\n④押さえ金具は、荷重作用時の部材の変形を考慮した十分な掛かりしろが確保されていること。\n⑤接合強度のばらつきが想定される場合には、そのばらつきを考慮した強度の低減を行っていること。\n⑥②に示された応力に対して接合部の外れ、ずれ、大きい変形の発生がなく、接合強度が上回っていること。",null,{"$f":"IF(【別紙】機械関係の入力!D18=\"はい\",\"✓\",\"\")","v":"✓"},"済",null,{"$f":"IF(【別紙】機械関係の入力!D18=\"はい\",\"✓\",\"\")","v":"✓"},"合",null,null,"有",null,null,"有",null,{"$f":"IF(【別紙】機械関係の入力!D18=\"はい\",\"✓\",\"\")","v":"✓"},"有",null,{"$f":"IF(【別紙】機械関係の入力!D18=\"はい\",IF(AND(【別紙】機械関係の入力!D2=\"カーポート\",【別紙】機械関係の入力!D19=\"はい\"),\"建築基準法に基づき\",\"対象となる規格無し\"),\"\")","v":"対象となる規格無し"},null,null,null,null,{"$f":"IF(【別紙】確認者の入力!$D$3=\"\",\"\",TEXT(【別紙】確認者の入力!$D$3,\"[DBNum3]ggge年m月d日\"))","v":"令和７年６月１２日"},{"$f":"IF(【別紙】確認者の入力!$D$2=\"小規模事業用\",\"－\",IF(【別紙】確認者の入力!$D$3=\"\",\"\",TEXT(【別紙】確認者の入力!$D$3,\"[DBNum3]ggge年m月d日\")))","v":"令和７年６月１２日"},{"$f":"IF(AND(OR(F73=\"✓\",F75=\"✓\"),OR(I73=\"✓\",I75=\"✓\"),OR(L73=\"✓\",L75=\"✓\"),OR(O73=\"✓\",O75=\"✓\"),OR(R73=\"✓\",R75=\"✓\")),\"ＯＫ\",\"\")","v":"ＯＫ"},"確認状況～記録のチェックが全てあること"]
[null,null,null,null,null,null,null,null,null,null,null,null,null,null,null,null,null,null,null,null,{"$f":"IF(【別紙】機械関係の入力!D18=\"はい\",IF(AND(【別紙】機械関係の入力!D2=\"カーポート\",【別紙】機械関係の入力!D19=\"はい\"),\"確認済み\",\"\"),\"\")","v":""},null,null,null,null,"確認者","確認者",{"$f":"IF(I75=\"✓\",\"判定結果：否の解消が必要\",\"ＯＫ\")","v":"ＯＫ"},"判定結果：否がないこと"]
[null,null,null,null,null,{"$f":"IF(【別紙】機械関係の入力!D18=\"はい\",\"\",\"✓\")","v":""},"対象外",null,{"$f":"IF(【別紙】機械関係の入力!D18=\"はい\",\"\",\"✓\")","v":""},"否",null,{"$f":"IF(【別紙】機械関係の入力!D18=\"はい\",\"✓\",\"\")","v":"✓"},"無",null,{"$f":"IF(【別紙】機械関係の入力!D18=\"はい\",\"✓\",\"\")","v":"✓"},"無",null,null,"無",null,null,null,null,null,null,{"$f":"IF(OR($F73=\"✓\",$F75=\"✓\"),Z$11,\"\")","v":"合同会社メガソーラー菅原　　○○支店　技術部　　技術部長　　菅原　拓一"},{"$f":"IF(OR($F73=\"✓\",$F75=\"✓\"),AA$11,\"\")","v":"合同会社メガソーラー菅原　電気主任技術者　　菅原　拓三"},{"$f":"IF(U73<>\"\",\"ＯＫ\",\"規格番号の明記が無い\")","v":"ＯＫ"},"規格番号の明記があること"]
[null,null,null,null,null,null,null,null,null,null,null,null,null,null,null,null,null,null,null,null,null,null,null,null,null,null,null,{"$f":"IF(W72<>\"\",\"ＯＫ\",\"備考欄の説明書きが無い\")","v":"ＯＫ"},"備考欄の説明書きがあること"]
[null,null,null,null,null,null,null,null,null,null,null,null,null,null,null,null,null,null,null,null,null,null,null,null,null,null,null,{"$f":"IF(Z75<>\"\",\"ＯＫ\",\"設置者の確認が無い\")","v":"ＯＫ"},"設置者の確認があること"]
[null,null,null,null,null,null,null,null,null,null,null,null,null,null,null,null,null,null,null,null,null,null,null,null,null,null,null,{"$f":"IF(【届出書】入力!C67=\"事業用（自家用もしくは電気事業用）\",IF(AA75<>\"\",\"ＯＫ\",\"主任技術者の確認が無い\"),\"ＯＫ\")","v":"ＯＫ"},"主任技術者の確認があること（小規模事業用はスルーでＯＫ）"]
[null,null,null,null,null,null,null,null,null,null,null,null,null,null,null,null,null,null,null,null,null,null,null,null,null,{"$f":"IF($Z$15=\"\",\"\",$Z$15)","v":""},null,{"$f":"IF(【届出書】入力!C67=\"小規模事業用\",IF(AND(Z79<>\"\",Z80<>\"\",),\"ＯＫ\",\"委託先の確認が無い\"),\"ＯＫ\")","v":"ＯＫ"},"委託先の確認があること（事業用はスルーでＯＫ）"]
[null,null,null,null,null,null,null,null,null,null,null,null,null,null,null,null,null,null,null,null,null,null,null,null,null,{"$f":"IF($Z$16=\"\",\"\",\"委託先の氏名、住所、電話番号、メールアドレスは番号１に同じ。\")","v":""}]
[]
[]
[7,"基礎及びアンカー強度の確認","確認方法","支持物の基礎およびアンカーは設計荷重に対して上部構造に支障をきたす沈下、浮上がり及び水平方向への移動が生じないことを図面等によって確認する。",null,null,null,null,null,null,null,null,null,null,null,null,null,null,null,null,null,null,{"$f":"IF(【別紙】機械関係の入力!D20=\"いいえ\",\"基礎およびアンカーは存在しないため、対象外とした。\",IF(AND(I84=\"✓\",R84=\"✓\"),IF(【別紙】機械関係の入力!D2<>\"カーポート\",\"図面および構造計算書により判定基準すべてが満たされていることを確認した。\",IF(AND(【別紙】機械関係の入力!D2=\"カーポート\",【別紙】機械関係の入力!D19=\"はい\"),\"建築確認時に行った構造計算により確認を行った。\",\"不適合\")),\"不適合\"))","v":"基礎およびアンカーは存在しないため、対象外とした。"},null,null,"確認年月日","確認年月日",{"$f":"IF(AND(AB84=\"ＯＫ\",AB85=\"ＯＫ\",AB86=\"ＯＫ\",AB87=\"ＯＫ\",AB88=\"ＯＫ\",AB89=\"ＯＫ\",AB90=\"ＯＫ\"),\"ＯＫ\",\"\")","v":"ＯＫ"},"全体：以下内容がすべてＯＫならＯＫ　ここは対象外のときＯＫとしている"]
[null,null,"判定基準","①基礎に作用する押込方向、引抜方向、水平方向の応力に対して抵抗力があること。\n②構造計算によって基礎の抵抗力が与えられている場合は、当該設備の地盤特性（土質、Ｎ値等）が適切に設定されていること。\n③載荷試験によって基礎の抵抗力を確認している場合は、適切な試験方法で実施されていること。\n④水面に施設される設備のアンカーにおいては、アンカーごとの荷重の偏りを考慮して安全性が確認されていること。",null,{"$f":"IF(【別紙】機械関係の入力!D20=\"いいえ\",\"\",\"✓\")","v":""},"済",null,{"$f":"IF(【別紙】機械関係の入力!D20=\"いいえ\",\"\",IF(AND(F84=\"✓\",【別紙】機械関係の入力!D21=\"はい\"),\"✓\",\"\"))","v":""},"合",null,null,"有",null,null,"有",null,{"$f":"IF(【別紙】機械関係の入力!D20=\"いいえ\",\"\",IF(AND(F84=\"✓\",【別紙】機械関係の入力!D21=\"はい\"),\"✓\",\"\"))","v":""},"有",null,{"$f":"IF(【別紙】機械関係の入力!D20=\"いいえ\",\"対象となる規格無し\",IF(【別紙】機械関係の入力!D21=\"はい\",IF(AND(【別紙】機械関係の入力!D2=\"カーポート\",【別紙】機械関係の入力!D22=\"はい\"),\"建築基準法に基づき\",\"対象となる規格無し\"),\"\"))","v":"対象となる規格無し"},null,null,null,null,{"$f":"IF(【別紙】確認者の入力!$D$3=\"\",\"\",TEXT(【別紙】確認者の入力!$D$3,\"[DBNum3]ggge年m月d日\"))","v":"令和７年６月１２日"},{"$f":"IF(【別紙】確認者の入力!$D$2=\"小規模事業用\",\"－\",IF(【別紙】確認者の入力!$D$3=\"\",\"\",TEXT(【別紙】確認者の入力!$D$3,\"[DBNum3]ggge年m月d日\")))","v":"令和７年６月１２日"},{"$f":"IF(【別紙】機械関係の入力!D20=\"いいえ\",\"ＯＫ\",IF(AND(OR(F84=\"✓\",F86=\"✓\"),OR(I84=\"✓\",I86=\"✓\"),OR(L84=\"✓\",L86=\"✓\"),OR(O84=\"✓\",O86=\"✓\"),OR(R84=\"✓\",R86=\"✓\")),\"ＯＫ\",\"\"))","v":"ＯＫ"},"確認状況～記録のチェックが全てあること"]
[null,null,null,null,null,null,null,null,null,null,null,null,null,null,null,null,null,null,null,null,{"$f":"IF(【別紙】機械関係の入力!D20=\"いいえ\",\"\",IF(【別紙】機械関係の入力!D21=\"はい\",IF(AND(【別紙】機械関係の入力!D2=\"カーポート\",【別紙】機械関係の入力!D22=\"はい\"),\"確認済み\",\"\"),\"\"))","v":""},null,null,null,null,"確認者","確認者",{"$f":"IF(I86=\"✓\",\"判定結果：否の解消が必要\",\"ＯＫ\")","v":"ＯＫ"},"判定結果：否がないこと"]
[null,null,null,null,null,{"$f":"IF(【別紙】機械関係の入力!D20=\"いいえ\",\"✓\",\"\")","v":"✓"},"対象外",null,{"$f":"IF(【別紙】機械関係の入力!D20=\"いいえ\",\"\",IF(AND(F84=\"✓\",【別紙】機械関係の入力!D21=\"はい\"),\"\",\"✓\"))","v":""},"否",null,{"$f":"IF(【別紙】機械関係の入力!D20=\"いいえ\",\"\",IF(AND(F84=\"✓\",【別紙】機械関係の入力!D21=\"はい\"),\"✓\",\"\"))","v":""},"無",null,{"$f":"IF(【別紙】機械関係の入力!D20=\"いいえ\",\"\",IF(AND(F84=\"✓\",【別紙】機械関係の入力!D21=\"はい\"),\"✓\",\"\"))","v":""},"無",null,null,"無",null,null,null,null,null,null,{"$f":"IF(OR($F84=\"✓\",$F86=\"✓\"),Z$11,\"\")","v":"合同会社メガソーラー菅原　　○○支店　技術部　　技術部長　　菅原　拓一"},{"$f":"IF(OR($F84=\"✓\",$F86=\"✓\"),AA$11,\"\")","v":"合同会社メガソーラー菅原　電気主任技術者　　菅原　拓三"},{"$f":"IF(【別紙】機械関係の入力!D20=\"いいえ\",\"ＯＫ\",IF(U84<>\"\",\"ＯＫ\",\"規格番号の明記が無い\"))","v":"ＯＫ"},"規格番号の明記があること"]
[null,null,null,null,null,null,null,null,null,null,null,null,null,null,null,null,null,null,null,null,null,null,null,null,null,null,null,{"$f":"IF(【別紙】機械関係の入力!D20=\"いいえ\",\"ＯＫ\",IF(W83<>\"\",\"ＯＫ\",\"備考欄の説明書きが無い\"))","v":"ＯＫ"},"備考欄の説明書きがあること"]
[null,null,null,null,null,null,null,null,null,null,null,null,null,null,null,null,null,null,null,null,null,null,null,null,null,null,null,{"$f":"IF(Z86<>\"\",\"ＯＫ\",\"設置者の確認が無い\")","v":"ＯＫ"},"設置者の確認があること"]
[null,null,null,null,null,null,null,null,null,null,null,null,null,null,null,null,null,null,null,null,null,null,null,null,null,null,null,{"$f":"IF(【届出書】入力!C78=\"事業用（自家用もしくは電気事業用）\",IF(AA86<>\"\",\"ＯＫ\",\"主任技術者の確認が無い\"),\"ＯＫ\")","v":"ＯＫ"},"主任技術者の確認があること（小規模事業用はスルーでＯＫ）"]
[null,null,null,null,null,null,null,null,null,null,null,null,null,null,null,null,null,null,null,null,null,null,null,null,null,{"$f":"IF($Z$15=\"\",\"\",$Z$15)","v":""},null,{"$f":"IF(【届出書】入力!C78=\"小規模事業用\",IF(AND(Z90<>\"\",Z91<>\"\",),\"ＯＫ\",\"委託先の確認が無い\"),\"ＯＫ\")","v":"ＯＫ"},"委託先の確認があること（事業用はスルーでＯＫ）"]
[null,null,null,null,null,null,null,null,null,null,null,null,null,null,null,null,null,null,null,null,null,null,null,null,null,{"$f":"IF($Z$16=\"\",\"\",\"委託先の氏名、住所、電話番号、メールアドレスは番号１に同じ。\")","v":""}]
[]
[]
[8,"アレイ面の最高の高さが９mを超える場合に必要な確認","確認方法","建築基準法（昭和２５年法律第２０１号）での工作物の規定に適合していることを図面等によって確認する。",null,null,null,null,null,null,null,null,null,null,null,null,null,null,null,null,null,null,{"$f":"IF(R95=\"✓\",\"図面および構造計算書により判定基準すべてが満たされていることを確認した。\",IF(F97=\"✓\",\"アレイ面の高さが９ｍを超えないため、対象外とした。\",\"不適合\"))","v":"アレイ面の高さが９ｍを超えないため、対象外とした。"},null,null,"確認年月日","確認年月日",{"$f":"IF(AND(AB95=\"ＯＫ\",AB96=\"ＯＫ\",AB97=\"ＯＫ\",AB98=\"ＯＫ\",AB99=\"ＯＫ\",AB100=\"ＯＫ\",AB101=\"ＯＫ\"),\"ＯＫ\",\"\")","v":"ＯＫ"},"全体：以下内容がすべてＯＫならＯＫ　ここは対象外のときＯＫとしている"]
[null,null,null,null,null,{"$f":"IF(【別紙】機械関係の入力!D23=\"いいえ\",\"\",\"✓\")","v":""},"済",null,{"$f":"IF(【別紙】機械関係の入力!D23=\"いいえ\",\"\",IF(AND(【別紙】機械関係の入力!D23=\"はい\",【別紙】機械関係の入力!D24=\"はい\"),\"✓\",\"\"))","v":""},"合",null,null,"有",null,null,"有",null,{"$f":"IF(【別紙】機械関係の入力!D23=\"いいえ\",\"\",IF(AND(【別紙】機械関係の入力!D23=\"はい\",【別紙】機械関係の入力!D24=\"はい\"),\"✓\",\"\"))","v":""},"有",null,{"$f":"IF(AND(【別紙】機械関係の入力!D23=\"はい\",【別紙】機械関係の入力!D24=\"はい\"),\"建築基準法に基づき\",\"対象となる規格無し\")","v":"対象となる規格無し"},null,null,null,null,{"$f":"IF(【別紙】確認者の入力!$D$3=\"\",\"\",TEXT(【別紙】確認者の入力!$D$3,\"[DBNum3]ggge年m月d日\"))","v":"令和７年６月１２日"},{"$f":"IF(【別紙】確認者の入力!$D$2=\"小規模事業用\",\"－\",IF(【別紙】確認者の入力!$D$3=\"\",\"\",TEXT(【別紙】確認者の入力!$D$3,\"[DBNum3]ggge年m月d日\")))","v":"令和７年６月１２日"},{"$f":"IF(【別紙】機械関係の入力!D23=\"いいえ\",\"ＯＫ\",IF(AND(OR(F95=\"✓\",F97=\"✓\"),OR(I95=\"✓\",I97=\"✓\"),OR(L95=\"✓\",L97=\"✓\"),OR(O95=\"✓\",O97=\"✓\"),OR(R95=\"✓\",R97=\"✓\")),\"ＯＫ\",\"\"))","v":"ＯＫ"},"確認状況～記録のチェックが全てあること"]
[null,null,"判定基準","①設備の基礎は建築基準法施行令（昭和２５年政令第３３８号）第３８条の要求を満たしていること。\n②建築基準法施行令第６５条に基づき、架台を構成する部材のうち圧縮力を負担する部材は、有効細長比（断面の最小二次率半径に対する座屈長さの比をいう）が支柱では２００以下、それ以外の部材では２５０以下であること。\n③建築基準法施行令第６６条に基づき、架台の支柱の脚部は国土交通大臣が定める基準（平成１２年建設省告示第１４５６号）に従ったアンカーボルトによる緊結その他の構造方法により基礎に緊結されていること。ただし、滑節構造である場合においては、この限りでない。\n④支持物の接合部に用いる高力ボルト、ボルト及びリベットは、建築基準法施行令第６８条の要求を満たしていること。\n⑤建築基準法施行令第６９条に基づき、すべての方向の水平力に対して安全であるように、架台の架構には型鋼、棒鋼若しくは構造用ケーブルの斜材又は鉄筋コンクリート造の壁が釣合い良く配置されていること。\n⑥建築基準法施行令第９３条に基づき、地盤の許容応力度及び基礎ぐいの許容支持力は、国土交通大臣（平成１３年国土交通省告示第１１１３号）が定める方法によって、地盤調査を行い、その結果に基づいて定めていること。ただし、地盤の許容応力度については、同条に示された数値を用いることができる。",null,null,null,null,null,null,null,null,null,null,null,null,null,null,null,null,{"$f":"IF(AND(【別紙】機械関係の入力!D23=\"はい\",【別紙】機械関係の入力!D24=\"はい\"),\"確認済み\",\"\")","v":""},null,null,null,null,"確認者","確認者",{"$f":"IF(I97=\"✓\",\"判定結果：否の解消が必要\",\"ＯＫ\")","v":"ＯＫ"},"判定結果：否がないこと"]
[null,null,null,null,null,{"$f":"IF(【別紙】機械関係の入力!D23=\"いいえ\",\"✓\",\"\")","v":"✓"},"対象外",null,{"$f":"IF(【別紙】機械関係の入力!D23=\"いいえ\",\"\",IF(AND(【別紙】機械関係の入力!D23=\"はい\",【別紙】機械関係の入力!D24=\"はい\"),\"\",\"✓\"))","v":""},"否",null,{"$f":"IF(【別紙】機械関係の入力!D23=\"いいえ\",\"\",IF(AND(【別紙】機械関係の入力!D23=\"はい\",【別紙】機械関係の入力!D24=\"はい\"),\"✓\",\"\"))","v":""},"無",null,{"$f":"IF(【別紙】機械関係の入力!D23=\"いいえ\",\"\",IF(AND(【別紙】機械関係の入力!D23=\"はい\",【別紙】機械関係の入力!D24=\"はい\"),\"✓\",\"\"))","v":""},"無",null,null,"無",null,null,null,null,null,null,{"$f":"IF(OR($F95=\"✓\",$F97=\"✓\"),Z$11,\"\")","v":"合同会社メガソーラー菅原　　○○支店　技術部　　技術部長　　菅原　拓一"},{"$f":"IF(OR($F95=\"✓\",$F97=\"✓\"),AA$11,\"\")","v":"合同会社メガソーラー菅原　電気主任技術者　　菅原　拓三"},{"$f":"IF(【別紙】機械関係の入力!D31=\"いいえ\",\"ＯＫ\",IF(U95<>\"\",\"ＯＫ\",\"規格番号の明記が無い\"))","v":"ＯＫ"},"規格番号の明記があること"]
[null,null,null,null,null,null,null,null,null,null,null,null,null,null,null,null,null,null,null,null,null,null,null,null,null,null,null,{"$f":"IF(【別紙】機械関係の入力!D31=\"いいえ\",\"ＯＫ\",IF(W94<>\"\",\"ＯＫ\",\"備考欄の説明書きが無い\"))","v":"ＯＫ"},"備考欄の説明書きがあること"]
[null,null,null,null,null,null,null,null,null,null,null,null,null,null,null,null,null,null,null,null,null,null,null,null,null,null,null,{"$f":"IF(Z97<>\"\",\"ＯＫ\",\"設置者の確認が無い\")","v":"ＯＫ"},"設置者の確認があること"]
[null,null,null,null,null,null,null,null,null,null,null,null,null,null,null,null,null,null,null,null,null,null,null,null,null,null,null,{"$f":"IF(【届出書】入力!C89=\"事業用（自家用もしくは電気事業用）\",IF(AA97<>\"\",\"ＯＫ\",\"主任技術者の確認が無い\"),\"ＯＫ\")","v":"ＯＫ"},"主任技術者の確認があること（小規模事業用はスルーでＯＫ）"]
[null,null,null,null,null,null,null,null,null,null,null,null,null,null,null,null,null,null,null,null,null,null,null,null,null,{"$f":"IF($Z$15=\"\",\"\",$Z$15)","v":""},null,{"$f":"IF(【届出書】入力!C89=\"小規模事業用\",IF(AND(Z101<>\"\",Z102<>\"\",),\"ＯＫ\",\"委託先の確認が無い\"),\"ＯＫ\")","v":"ＯＫ"},"委託先の確認があること（事業用はスルーでＯＫ）"]
[null,null,null,null,null,null,null,null,null,null,null,null,null,null,null,null,null,null,null,null,null,null,null,null,null,{"$f":"IF($Z$16=\"\",\"\",\"委託先の氏名、住所、電話番号、メールアドレスは番号１に同じ。\")","v":""}]
[]
[]
[9,"土砂の流出及び崩壊の防止に係る確認","確認方法","　土地に自立して支持物を設置する場合、施設による土砂流出又は地盤の崩壊が生じていないことを確認する。\n　設備の施設された土地が土砂流出及び地盤の崩壊のおそれがある場合に対して、排水工、法面保護工等の対策を講じている場合には、図面等のとおり施工されていることを確認する。\n　設備を施設する地盤が傾斜地である場合には、必要に応じて抑制工や抑止工が施されていることを確認する。",null,null,null,null,null,null,null,null,null,null,null,null,null,null,null,null,null,null,{"$f":"IF(I106=\"✓\",\"判定基準の①は土砂流出や地盤崩壊が兆候も含めて生じていないことを確認した。判定基準の②は図面等のとおりに施工されていることを確認した。\",IF(F108=\"✓\",\"土地に自立していないため、対象外とした。\",\"不適合\"))","v":"土地に自立していないため、対象外とした。"},null,null,"確認年月日","確認年月日",{"$f":"IF(AND(AB106=\"ＯＫ\",AB107=\"ＯＫ\",AB108=\"ＯＫ\",AB109=\"ＯＫ\",AB110=\"ＯＫ\",AB111=\"ＯＫ\",AB112=\"ＯＫ\"),\"ＯＫ\",\"\")","v":"ＯＫ"},"全体：以下内容がすべてＯＫならＯＫ　ここは対象外のときＯＫとしている"]
[null,null,null,null,null,{"$f":"IF(【別紙】機械関係の入力!D25=\"いいえ\",\"\",\"✓\")","v":""},"済",null,{"$f":"IF(【別紙】機械関係の入力!D25=\"いいえ\",\"\",IF(AND(【別紙】機械関係の入力!D25=\"はい\",【別紙】機械関係の入力!D26=\"はい\",【別紙】機械関係の入力!D27=\"はい\"),\"✓\",\"\"))","v":""},"合",null,{"$f":"IF(【別紙】機械関係の入力!D25=\"いいえ\",\"\",IF(AND(【別紙】機械関係の入力!D25=\"はい\",【別紙】機械関係の入力!D26=\"はい\",【別紙】機械関係の入力!D27=\"はい\"),\"✓\",\"\"))","v":""},"有",null,null,"有",null,{"$f":"IF(【別紙】機械関係の入力!D25=\"いいえ\",\"\",IF(AND(【別紙】機械関係の入力!D25=\"はい\",【別紙】機械関係の入力!D26=\"はい\",【別紙】機械関係の入力!D27=\"はい\"),\"✓\",\"\"))","v":""},"有",null,"対象となる規格無し",null,null,null,null,{"$f":"IF(【別紙】確認者の入力!$D$3=\"\",\"\",TEXT(【別紙】確認者の入力!$D$3,\"[DBNum3]ggge年m月d日\"))","v":"令和７年６月１２日"},{"$f":"IF(【別紙】確認者の入力!$D$2=\"小規模事業用\",\"－\",IF(【別紙】確認者の入力!$D$3=\"\",\"\",TEXT(【別紙】確認者の入力!$D$3,\"[DBNum3]ggge年m月d日\")))","v":"令和７年６月１２日"},{"$f":"IF(OR(【別紙】機械関係の入力!D25=\"はい\",F108=\"✓\"),\"ＯＫ\",IF(AND(OR(F106=\"✓\",F108=\"✓\"),OR(I106=\"✓\",I108=\"✓\"),OR(L106=\"✓\",L108=\"✓\"),OR(O106=\"✓\",O108=\"✓\"),OR(R106=\"✓\",R108=\"✓\")),\"ＯＫ\",\"\"))","v":"ＯＫ"},"確認状況～記録のチェックが全てあること"]
[null,null,null,null,null,null,null,null,null,null,null,null,null,null,null,null,null,null,null,null,null,null,null,null,null,"確認者","確認者",{"$f":"IF(I108=\"✓\",\"判定結果：否の解消が必要\",\"ＯＫ\")","v":"ＯＫ"},"判定結果：否がないこと"]
[null,null,null,null,null,{"$f":"IF(【別紙】機械関係の入力!D25=\"いいえ\",\"✓\",\"\")","v":"✓"},"対象外",null,{"$f":"IF(【別紙】機械関係の入力!D25=\"いいえ\",\"\",IF(AND(【別紙】機械関係の入力!D25=\"はい\",【別紙】機械関係の入力!D26=\"はい\",【別紙】機械関係の入力!D27=\"はい\"),\"\",\"✓\"))","v":""},"否",null,null,"無",null,{"$f":"IF(【別紙】機械関係の入力!D25=\"いいえ\",\"\",IF(AND(【別紙】機械関係の入力!D25=\"はい\",【別紙】機械関係の入力!D26=\"はい\",【別紙】機械関係の入力!D27=\"はい\"),\"✓\",\"\"))","v":""},"無",null,null,"無",null,null,null,null,null,null,{"$f":"IF(OR($F106=\"✓\",$F108=\"✓\"),Z$11,\"\")","v":"合同会社メガソーラー菅原　　○○支店　技術部　　技術部長　　菅原　拓一"},{"$f":"IF(OR($F106=\"✓\",$F108=\"✓\"),AA$11,\"\")","v":"合同会社メガソーラー菅原　電気主任技術者　　菅原　拓三"},{"$f":"IF(【別紙】機械関係の入力!D42=\"いいえ\",\"ＯＫ\",IF(U106<>\"\",\"ＯＫ\",\"規格番号の明記が無い\"))","v":"ＯＫ"},"規格番号の明記があること"]
[null,null,"判定基準","①設備の施設による土砂流出や地盤崩壊が生じていないこと。また、その兆候がみられないこと。\n②排水工、法面保護工などの抑止・抑制工が図面等のとおりに施工されていること。",null,null,null,null,null,null,null,null,null,null,null,null,null,null,null,null,null,null,null,null,null,null,null,{"$f":"IF(【別紙】機械関係の入力!D42=\"いいえ\",\"ＯＫ\",IF(W105<>\"\",\"ＯＫ\",\"備考欄の説明書きが無い\"))","v":"ＯＫ"},"備考欄の説明書きがあること"]
[null,null,null,null,null,null,null,null,null,null,null,null,null,null,null,null,null,null,null,null,null,null,null,null,null,null,null,{"$f":"IF(Z108<>\"\",\"ＯＫ\",\"設置者の確認が無い\")","v":"ＯＫ"},"設置者の確認があること"]
[null,null,null,null,null,null,null,null,null,null,null,null,null,null,null,null,null,null,null,null,null,null,null,null,null,null,null,{"$f":"IF(【届出書】入力!C100=\"事業用（自家用もしくは電気事業用）\",IF(AA108<>\"\",\"ＯＫ\",\"主任技術者の確認が無い\"),\"ＯＫ\")","v":"ＯＫ"},"主任技術者の確認があること（小規模事業用はスルーでＯＫ）"]
[null,null,null,null,null,null,null,null,null,null,null,null,null,null,null,null,null,null,null,null,null,null,null,null,null,{"$f":"IF($Z$15=\"\",\"\",$Z$15)","v":""},null,{"$f":"IF(【届出書】入力!C100=\"小規模事業用\",IF(AND(Z112<>\"\",Z113<>\"\",),\"ＯＫ\",\"委託先の確認が無い\"),\"ＯＫ\")","v":"ＯＫ"},"委託先の確認があること（事業用はスルーでＯＫ）"]
[null,null,null,null,null,null,null,null,null,null,null,null,null,null,null,null,null,null,null,null,null,null,null,null,null,{"$f":"IF($Z$16=\"\",\"\",\"委託先の氏名、住所、電話番号、メールアドレスは番号１に同じ。\")","v":""}]
[]
[]
[10,"接地抵抗測定","確認方法","次に示す接地方法に応じて以下の測定方法により接地抵抗値を測定する。\n①機器ごとに接地する「単独接地」；直読式接地抵抗計による測定\n②いくつかの接地箇所を連絡して接地する「連接接地」；直読式接地抵抗計による測定\n③接地線を網状に埋設し、各交流点で連接する「網状（メッシュ）接地」；電圧降下法又は高周波パルス方式による測定\nなお、連接接地法及びメッシュ接地法により接地されている場合であって、変更の工事の場合は、当該設備と既設接地極・網との導通試験に替えることができる。",null,null,null,null,null,null,null,null,null,null,null,null,null,null,null,null,null,null,{"$f":"IF(F117=\"✓\",IF(AND(【届出書】入力!C20<>\"変更\",【別紙】電気関係の入力!D4=\"はい\"),\"不適合\",IF(AND(【届出書】入力!C20=\"変更\",OR(【別紙】電気関係の入力!D3=\"連接接地\",【別紙】電気関係の入力!D3=\"メッシュ接地\"),【別紙】電気関係の入力!D4=\"はい\"),\"今回は変更の工事であり、接地抵抗値が判断基準に規定された値以下であることが既知である当該設備と既設接地極・網との導通試験に替えた。\",IF(OR(【別紙】電気関係の入力!D3=\"単独接地\",【別紙】電気関係の入力!D3=\"連接接地\"),\"直読式接地抵抗計による測定により接地抵抗値が判断基準に規定された値以下であることを確認した。\",IF(【別紙】電気関係の入力!D3=\"メッシュ接地\",IF(【別紙】電気関係の入力!D5=\"電圧降下法\",\"電圧降下法\",\"高周波パルス法\")&\"による測定により接地抵抗値が判断基準に規定された値以下であることを確認した。\")))),\"不適合\")","v":"直読式接地抵抗計による測定により接地抵抗値が判断基準に規定された値以下であることを確認した。"},null,null,"確認年月日","確認年月日",{"$f":"IF(AND(AB117=\"ＯＫ\",AB118=\"ＯＫ\",AB119=\"ＯＫ\",AB120=\"ＯＫ\",AB121=\"ＯＫ\",AB122=\"ＯＫ\",AB123=\"ＯＫ\"),\"ＯＫ\",\"\")","v":"ＯＫ"},"全体：以下内容がすべてＯＫならＯＫ"]
[null,null,null,null,null,{"$f":"IF(【別紙】電気関係の入力!D2=\"はい\",\"✓\",\"\")","v":"✓"},"済",null,{"$f":"IF(【別紙】電気関係の入力!D2=\"はい\",\"✓\",\"\")","v":"✓"},"合",null,{"$f":"IF(【別紙】電気関係の入力!D2=\"はい\",\"✓\",\"\")","v":"✓"},"有",null,null,"有",null,{"$f":"IF(AND(【届出書】入力!C20=\"変更\",【別紙】電気関係の入力!D4=\"はい\"),\"✓\",\"\")","v":"✓"},"有",null,{"$f":"IF(【別紙】電気関係の入力!D2=\"はい\",\"対象となる規格無し\",\"\")","v":"対象となる規格無し"},null,null,null,null,{"$f":"IF(【別紙】確認者の入力!$D$3=\"\",\"\",TEXT(【別紙】確認者の入力!$D$3,\"[DBNum3]ggge年m月d日\"))","v":"令和７年６月１２日"},{"$f":"IF(【別紙】確認者の入力!$D$2=\"小規模事業用\",\"－\",IF(【別紙】確認者の入力!$D$3=\"\",\"\",TEXT(【別紙】確認者の入力!$D$3,\"[DBNum3]ggge年m月d日\")))","v":"令和７年６月１２日"},{"$f":"IF(AND(OR(F117=\"✓\",F119=\"✓\"),OR(I117=\"✓\",I119=\"✓\"),OR(L117=\"✓\",L119=\"✓\"),OR(O117=\"✓\",O119=\"✓\"),OR(R117=\"✓\",R119=\"✓\")),\"ＯＫ\",\"\")","v":"ＯＫ"},"確認状況～記録のチェックが全てあること"]
[null,null,null,null,null,null,null,null,null,null,null,null,null,null,null,null,null,null,null,null,null,null,null,null,null,"確認者","確認者",{"$f":"IF(I119=\"✓\",\"判定結果：否の解消が必要\",\"ＯＫ\")","v":"ＯＫ"},"判定結果：否がないこと"]
[null,null,null,null,null,null,"対象外",null,{"$f":"IF(【別紙】電気関係の入力!D2=\"はい\",\"\",\"✓\")","v":""},"否",null,null,"無",null,{"$f":"IF(【別紙】電気関係の入力!D2=\"はい\",\"✓\",\"\")","v":"✓"},"無",null,{"$f":"IF(AND(【届出書】入力!C20=\"変更\",【別紙】電気関係の入力!D4=\"はい\"),\"\",\"✓\")","v":""},"無",null,null,null,null,null,null,{"$f":"IF(OR($F117=\"✓\",$F119=\"✓\"),Z$11,\"\")","v":"合同会社メガソーラー菅原　　○○支店　技術部　　技術部長　　菅原　拓一"},{"$f":"IF(OR($F117=\"✓\",$F119=\"✓\"),AA$11,\"\")","v":"合同会社メガソーラー菅原　電気主任技術者　　菅原　拓三"},{"$f":"IF(U117<>\"\",\"ＯＫ\",\"規格番号の明記が無い\")","v":"ＯＫ"},"規格番号の明記があること"]
[null,null,null,null,null,null,null,null,null,null,null,null,null,null,null,null,null,null,null,null,null,null,null,null,null,null,null,{"$f":"IF(AND(W116<>\"\",W116<>\"不適合\"),\"ＯＫ\",\"備考欄の説明書きが無い、もしくは不適合がある\")","v":"ＯＫ"},"備考欄の説明書きがあり、不適合が無いこと"]
[null,null,"判定基準","接地抵抗値が電技解釈第１７条又は第２４条第１項第２号で規定された値以下であること。",null,null,null,null,null,null,null,null,null,null,null,null,null,null,null,null,null,null,null,null,null,null,null,{"$f":"IF(Z119<>\"\",\"ＯＫ\",\"設置者の確認が無い\")","v":"ＯＫ"},"設置者の確認があること"]
[null,null,null,null,null,null,null,null,null,null,null,null,null,null,null,null,null,null,null,null,null,null,null,null,null,null,null,{"$f":"IF(【届出書】入力!C111=\"事業用（自家用もしくは電気事業用）\",IF(AA119<>\"\",\"ＯＫ\",\"主任技術者の確認が無い\"),\"ＯＫ\")","v":"ＯＫ"},"主任技術者の確認があること（小規模事業用はスルーでＯＫ）"]
[null,null,null,null,null,null,null,null,null,null,null,null,null,null,null,null,null,null,null,null,null,null,null,null,null,{"$f":"IF($Z$15=\"\",\"\",$Z$15)","v":""},null,{"$f":"IF(【届出書】入力!C111=\"小規模事業用\",IF(AND(Z123<>\"\",Z124<>\"\"),\"ＯＫ\",\"委託先の確認が無い\"),\"ＯＫ\")","v":"ＯＫ"},"委託先の確認があること（事業用はスルーでＯＫ）"]
[null,null,null,null,null,null,null,null,null,null,null,null,null,null,null,null,null,null,null,null,null,null,null,null,null,{"$f":"IF($Z$16=\"\",\"\",\"委託先の氏名、住所、電話番号、メールアドレスは番号１に同じ。\")","v":""}]
[]
[]
[11,"絶縁抵抗測定","確認方法",{"$f":"IF(【届出書】入力!C2=\"小規模事業用\",\"①電圧電路の絶縁測定は必要と認められる回路について行うものとする。\",\"①低圧電路の絶縁測定は発電機の界磁回路等特に必要と認められる回路について行うものとする。\")","v":"①低圧電路の絶縁測定は発電機の界磁回路等特に必要と認められる回路について行うものとする。"},null,null,null,null,null,null,null,null,null,null,null,null,null,null,null,null,null,null,{"$f":"IF(AND(【届出書】入力!C2=\"小規模事業用\",【別紙】電気関係の入力!D7=\"はい\"),\"絶縁抵抗測定が困難であったため、当該電路の使用電圧が加わった状態における漏えい電流が、１ｍＡ以下であることを確認した。\",IF(【別紙】電気関係の入力!D8<>\"\",\"不適合\",IF(F128=\"✓\",\"JISC1302(2018)に定められた絶縁抵抗計を使用のうえ、判定基準すべてが満たされていることを確認した。\",\"不適合\")))","v":"JISC1302(2018)に定められた絶縁抵抗計を使用のうえ、判定基準すべてが満たされていることを確認した。"},null,null,"確認年月日","確認年月日",{"$f":"IF(AND(AB128=\"ＯＫ\",AB129=\"ＯＫ\",AB130=\"ＯＫ\",AB131=\"ＯＫ\",AB132=\"ＯＫ\",AB133=\"ＯＫ\",AB134=\"ＯＫ\"),\"ＯＫ\",\"\")","v":"ＯＫ"},"全体：以下内容がすべてＯＫならＯＫ"]
[null,null,null,{"$f":"IF(【届出書】入力!C2=\"小規模事業用\",\"②小規模事業用電気工作物は対象外\",\"②高圧及び特別高圧電路の絶縁抵抗測定は絶縁耐力試験の回路について行う。\")","v":"②高圧及び特別高圧電路の絶縁抵抗測定は絶縁耐力試験の回路について行う。"},null,{"$f":"IF(【別紙】電気関係の入力!D6=\"はい\",\"✓\",\"\")","v":"✓"},"済",null,{"$f":"IF(【別紙】電気関係の入力!D6=\"はい\",\"✓\",\"\")","v":"✓"},"合",null,{"$f":"IF(【別紙】電気関係の入力!D6=\"はい\",\"✓\",\"\")","v":"✓"},"有",null,null,"有",null,null,"有",null,{"$f":"IF(【別紙】電気関係の入力!D6=\"はい\",\"JISC1302(2018)\",\"\")","v":"JISC1302(2018)"},null,null,null,null,{"$f":"IF(【別紙】確認者の入力!$D$3=\"\",\"\",TEXT(【別紙】確認者の入力!$D$3,\"[DBNum3]ggge年m月d日\"))","v":"令和７年６月１２日"},{"$f":"IF(【別紙】確認者の入力!$D$2=\"小規模事業用\",\"－\",IF(【別紙】確認者の入力!$D$3=\"\",\"\",TEXT(【別紙】確認者の入力!$D$3,\"[DBNum3]ggge年m月d日\")))","v":"令和７年６月１２日"},{"$f":"IF(AND(OR(F128=\"✓\",F130=\"✓\"),OR(I128=\"✓\",I130=\"✓\"),OR(L128=\"✓\",L130=\"✓\"),OR(O128=\"✓\",O130=\"✓\"),OR(R128=\"✓\",R130=\"✓\")),\"ＯＫ\",\"\")","v":"ＯＫ"},"確認状況～記録のチェックが全てあること"]
[null,null,null,{"$f":"IF(【届出書】入力!C2=\"小規模事業用\",\"③絶縁抵抗の測定は、ＪＩＳ Ｃ１３０２「絶縁抵抗計」に定められている絶縁抵抗計を使用す\nるものとし、低圧の機器及び電路については、５００Ｖ絶縁抵抗計を使用して測定する。\",\"③絶縁抵抗の測定は、ＪＩＳＣ１３０２「絶縁抵抗計」に定められている絶縁抵抗計を使用するものとし、低圧の機器及び電路については、５００Ｖ絶縁抵抗計、高圧又は特別高圧の機器及び電路については、１，０００Ｖ絶縁抵抗計を使用して測定する。\")","v":"③絶縁抵抗の測定は、ＪＩＳＣ１３０２「絶縁抵抗計」に定められている絶縁抵抗計を使用するものとし、低圧の機器及び電路については、５００Ｖ絶縁抵抗計、高圧又は特別高圧の機器及び電路については、１，０００Ｖ絶縁抵抗計を使用して測定する。"},null,null,null,null,null,null,null,null,null,null,null,null,null,null,null,null,null,null,null,null,null,"確認者","確認者",{"$f":"IF(I130=\"✓\",\"判定結果：否の解消が必要\",\"ＯＫ\")","v":"ＯＫ"},"判定結果：否がないこと"]
[null,null,null,null,null,null,"対象外",null,null,"否",null,null,"無",null,{"$f":"IF(【別紙】電気関係の入力!D6=\"はい\",\"✓\",\"\")","v":"✓"},"無",null,{"$f":"IF(【別紙】電気関係の入力!D6=\"はい\",\"✓\",\"\")","v":"✓"},"無",null,null,null,null,null,null,{"$f":"IF(OR($F128=\"✓\",$F130=\"✓\"),Z$11,\"\")","v":"合同会社メガソーラー菅原　　○○支店　技術部　　技術部長　　菅原　拓一"},{"$f":"IF(OR($F128=\"✓\",$F130=\"✓\"),AA$11,\"\")","v":"合同会社メガソーラー菅原　電気主任技術者　　菅原　拓三"},{"$f":"IF(U128<>\"\",\"ＯＫ\",\"規格番号の明記が無い\")","v":"ＯＫ"},"規格番号の明記があること"]
[null,null,null,"④絶縁抵抗値は「１分値」を採用するものとする。ただし、被測定機器の静電容量が大きいため（長い地中ケーブル等を含む場合）短時間では絶縁抵抗計の指針が静止しないときは、指針が静止後の値を採用する。（３分以上測定を継続する必要はない。）",null,null,null,null,null,null,null,null,null,null,null,null,null,null,null,null,null,null,null,null,null,null,null,{"$f":"IF(W127<>\"\",\"ＯＫ\",\"備考欄の説明書きが無い\")","v":"ＯＫ"},"備考欄の説明書きがあること"]
[null,null,null,null,null,null,null,null,null,null,null,null,null,null,null,null,null,null,null,null,null,null,null,null,null,null,null,{"$f":"IF(Z130<>\"\",\"ＯＫ\",\"設置者の確認が無い\")","v":"ＯＫ"},"設置者の確認があること"]
[null,null,"判定基準",{"$f":"IF(【届出書】入力!C2=\"小規模事業用\",\"①低圧電路の電線相互間及び電路と大地との間の絶縁抵抗は、電路の使用電圧が３００Ｖ以下で対地電圧が１５０Ｖ以下の電路では０．１ＭΩ以上、３００Ｖ以下で対地電圧が１５０Ｖを超えるものは０．２ＭΩ以上、３００Ｖを超える低圧電路では０．４ＭΩ以上であること。または、絶縁抵抗測定が困難な場合においては、当該電路の使用電圧が加わった状態における漏えい電流が、１ｍＡ以下であること。\",\"①低圧電路の電線相互間及び電路と大地との間の絶縁抵抗は、電路の使用電圧が３００Ｖ以下で対地電圧が１５０Ｖ以下の電路では０．１ＭΩ以上、３００Ｖ以下で対地電圧が１５０Ｖを超えるものは０．２ＭΩ以上、３００Ｖを超える低圧電路では０．４ＭΩ以上であること。\")","v":"①低圧電路の電線相互間及び電路と大地との間の絶縁抵抗は、電路の使用電圧が３００Ｖ以下で対地電圧が１５０Ｖ以下の電路では０．１ＭΩ以上、３００Ｖ以下で対地電圧が１５０Ｖを超えるものは０．２ＭΩ以上、３００Ｖを超える低圧電路では０．４ＭΩ以上であること。"},null,null,null,null,null,null,null,null,null,null,null,null,null,null,null,null,null,null,null,null,null,null,null,{"$f":"IF(【届出書】入力!C122=\"事業用（自家用もしくは電気事業用）\",IF(AA130<>\"\",\"ＯＫ\",\"主任技術者の確認が無い\"),\"ＯＫ\")","v":"ＯＫ"},"主任技術者の確認があること（小規模事業用はスルーでＯＫ）"]
[null,null,null,null,null,null,null,null,null,null,null,null,null,null,null,null,null,null,null,null,null,null,null,null,null,{"$f":"IF($Z$15=\"\",\"\",$Z$15)","v":""},null,{"$f":"IF(【届出書】入力!C122=\"小規模事業用\",IF(AND(Z134<>\"\",Z135<>\"\"),\"ＯＫ\",\"委託先の確認が無い\"),\"ＯＫ\")","v":"ＯＫ"},"委託先の確認があること（事業用はスルーでＯＫ）"]
[null,null,null,{"$f":"IF(【届出書】入力!C2=\"小規模事業用\",\"\",\"②高圧及び特別高圧の電路については、大地及び他の電路（多心ケーブルにあっては他の心線、変圧器にあっては他の巻線）と絶縁されていることが確認できること。\")","v":"②高圧及び特別高圧の電路については、大地及び他の電路（多心ケーブルにあっては他の心線、変圧器にあっては他の巻線）と絶縁されていることが確認できること。"},null,null,null,null,null,null,null,null,null,null,null,null,null,null,null,null,null,null,null,null,null,{"$f":"IF($Z$16=\"\",\"\",\"委託先の氏名、住所、電話番号、メールアドレスは番号１に同じ。\")","v":""}]
[]
[]
[12,"絶縁耐力試験","確認方法",{"$f":"IF(【届出書】入力!C2=\"小規模事業用\",\"太陽電池モジュールの使用電圧に応じて電技解釈第１６条第５項に定められている試験電圧を印加する。\",\"電力回路や機器の使用電圧に応じて電技解釈第１４条から第１６条までに定められている試験電圧を印加する。また、特別高圧の電路、変圧器の電路及び器具等の電路の絶縁耐力を電技解釈第１５条第４号、第１６条第１項第２号、第１６条第６項第３号又は第１６条第６項第５号に基づき絶縁耐力試験を実施したことを確認できたものについては、常規対地電圧を電路と大地との間に連続して印加することができる。\")","v":"電力回路や機器の使用電圧に応じて電技解釈第１４条から第１６条までに定められている試験電圧を印加する。また、特別高圧の電路、変圧器の電路及び器具等の電路の絶縁耐力を電技解釈第１５条第４号、第１６条第１項第２号、第１６条第６項第３号又は第１６条第６項第５号に基づき絶縁耐力試験を実施したことを確認できたものについては、常規対地電圧を電路と大地との間に連続して印加することができる。"},null,null,null,null,null,null,null,null,null,null,null,null,null,null,null,null,null,null,{"$f":"IF(AND(I139=\"✓\",AND(【別紙】電気関係の入力!D9=\"はい\",OR(AND(【別紙】電気関係の入力!D10=\"現地\",【別紙】電気関係の入力!D11=\"いいえ\"),AND(【別紙】電気関係の入力!D10=\"工場\",【別紙】電気関係の入力!D11=\"はい\")))),\"判定基準すべてが満たされていることを確認した。\",\"不適合\")","v":"判定基準すべてが満たされていることを確認した。"},null,null,"確認年月日","確認年月日",{"$f":"IF(AND(AB139=\"ＯＫ\",AB140=\"ＯＫ\",AB141=\"ＯＫ\",AB142=\"ＯＫ\",AB143=\"ＯＫ\",AB144=\"ＯＫ\",AB145=\"ＯＫ\"),\"ＯＫ\",\"\")","v":"ＯＫ"},"全体：以下内容がすべてＯＫならＯＫ"]
[null,null,null,null,null,{"$f":"IF(【別紙】電気関係の入力!D9=\"はい\",\"✓\",\"\")","v":"✓"},"済",null,{"$f":"IF(AND(L139=\"✓\",OR(O139=\"✓\",O141=\"✓\"),OR(R139=\"✓\",R141=\"✓\")),\"✓\",\"\")","v":"✓"},"合",null,{"$f":"IF(【別紙】電気関係の入力!D9=\"はい\",\"✓\",\"\")","v":"✓"},"有",null,{"$f":"IF(【別紙】電気関係の入力!D10=\"工場\",\"✓\",\"\")","v":""},"有",null,{"$f":"IF(OR(【別紙】電気関係の入力!D16=\"はい\",【別紙】電気関係の入力!D22=\"はい\"),\"✓\",\"\")","v":"✓"},"有",null,{"$f":"IF(【別紙】電気関係の入力!D16=\"はい\",\"JEC-2470(2017)\",\"対象となる規格無し\")","v":"JEC-2470(2017)"},null,null,null,null,{"$f":"IF(【別紙】確認者の入力!$D$3=\"\",\"\",TEXT(【別紙】確認者の入力!$D$3,\"[DBNum3]ggge年m月d日\"))","v":"令和７年６月１２日"},{"$f":"IF(【別紙】確認者の入力!$D$2=\"小規模事業用\",\"－\",IF(【別紙】確認者の入力!$D$3=\"\",\"\",TEXT(【別紙】確認者の入力!$D$3,\"[DBNum3]ggge年m月d日\")))","v":"令和７年６月１２日"},{"$f":"IF(AND(OR(F139=\"✓\",F141=\"✓\"),OR(I139=\"✓\",I141=\"✓\"),OR(L139=\"✓\",L141=\"✓\"),OR(O139=\"✓\",O141=\"✓\"),OR(R139=\"✓\",R141=\"✓\")),\"ＯＫ\",\"\")","v":"ＯＫ"},"確認状況～記録のチェックが全てあること"]
[null,null,null,null,null,null,null,null,null,null,null,null,null,null,null,null,null,null,null,null,{"$f":"IF(【別紙】電気関係の入力!D16=\"はい\",\" (JEC-2470(2018)にて追補)\",\"\")","v":" (JEC-2470(2018)にて追補)"},null,{"$f":"IF(AND(【別紙】電気関係の入力!D15=\"はい\",【別紙】電気関係の入力!D16=\"はい\",【別紙】電気関係の入力!D17=\"はい\",【別紙】電気関係の入力!D19=\"いいえ\"),\"逆変換装置は電技解釈第１６条第６項第５号に基づく絶縁耐力試験を工場試験記録により確認するとともに常規対地電圧を印加する現地試験を行った。\",IF(AND(【別紙】電気関係の入力!D19=\"はい\",【別紙】電気関係の入力!D20<>\"通常やらない\"),\"逆変換装置は電技解釈第１６条第６項第１号ロに基づく絶縁耐力試験を現地で行った。\",\"不適合\"))","v":"逆変換装置は電技解釈第１６条第６項第５号に基づく絶縁耐力試験を工場試験記録により確認するとともに常規対地電圧を印加する現地試験を行った。"},null,null,"確認者","確認者",{"$f":"IF(I141=\"✓\",\"判定結果：否の解消が必要\",\"ＯＫ\")","v":"ＯＫ"},"判定結果：否がないこと"]
[null,null,null,"ただし、電技解釈第１６条第５項第２号に適合する絶縁性能を有することが確認できた太陽電池モジュールについては、現地での絶縁耐力試験は省略できるものとする。\nなお、常規対地電圧とは、通常の運転状態で主回路の電路と大地との間に加わる電圧をいう。",null,null,"対象外",null,{"$f":"IF(【別紙】電気関係の入力!D9=\"はい\",\"\",\"✓\")","v":""},"否",null,{"$f":"IF(【別紙】電気関係の入力!D9=\"はい\",\"\",\"✓\")","v":""},"無",null,{"$f":"IF(【別紙】電気関係の入力!D10=\"工場\",\"\",\"✓\")","v":"✓"},"無",null,{"$f":"IF(OR(【別紙】電気関係の入力!D16=\"はい\",【別紙】電気関係の入力!D22=\"はい\"),\"\",\"✓\")","v":""},"無",null,{"$f":"IF(【別紙】電気関係の入力!D22=\"はい\",\"JISC8918(2013)､JISC8939(2013)\",\"\")","v":"JISC8918(2013)､JISC8939(2013)"},null,null,null,null,{"$f":"IF($F139=\"✓\",Z$11,\"\")","v":"合同会社メガソーラー菅原　　○○支店　技術部　　技術部長　　菅原　拓一"},{"$f":"IF($F139=\"✓\",AA$11,\"\")","v":"合同会社メガソーラー菅原　電気主任技術者　　菅原　拓三"},{"$f":"IF(U139<>\"\",\"ＯＫ\",\"規格番号の明記が無い\")","v":"ＯＫ"},"規格番号の明記があること"]
[null,null,null,null,null,null,null,null,null,null,null,null,null,null,null,null,null,null,null,null,null,null,null,null,null,null,null,{"$f":"IF(AND(AND(W138<>\"\",W138<>\"不適合\"),AND(W140<>\"\",W140<>\"不適合\"),AND(W145<>\"\",W145<>\"不適合\")),\"ＯＫ\",\"備考欄の説明書きが無い、もしくは不適合がある\")","v":"ＯＫ"},"備考欄の説明書きがあること"]
[null,null,"判定基準",{"$f":"IF(【届出書】入力!C2=\"小規模事業用\",\"試験電圧を連続して１０分間加えた後、絶縁抵抗測定を行い絶縁に異常のないこと。\",\"試験電圧を連続して１０分間加えた後、絶縁抵抗測定を行い絶縁に異常のないこと。また、電技解釈第１５条第４号、第１６条第１項第２号、第１６条第６項第３号又は第１６条第６項第５号によって実施した場合には、常規対地電圧を連続して１０分間加え、絶縁に異常がないこと。\")","v":"試験電圧を連続して１０分間加えた後、絶縁抵抗測定を行い絶縁に異常のないこと。また、電技解釈第１５条第４号、第１６条第１項第２号、第１６条第６項第３号又は第１６条第６項第５号によって実施した場合には、常規対地電圧を連続して１０分間加え、絶縁に異常がないこと。"},null,null,null,null,null,null,null,null,null,null,null,null,null,null,null,null,{"$f":"IF(【別紙】電気関係の入力!D27=\"\",\"\",【別紙】電気関係の入力!D27)","v":"JISC61215"},null,null,null,null,null,null,{"$f":"IF(Z141<>\"\",\"ＯＫ\",\"設置者の確認が無い\")","v":"ＯＫ"},"設置者の確認があること"]
[null,null,null,null,null,null,null,null,null,null,null,null,null,null,null,null,null,null,null,null,null,null,null,null,null,null,null,{"$f":"IF(【届出書】入力!C133=\"事業用（自家用もしくは電気事業用）\",IF(AA141<>\"\",\"ＯＫ\",\"主任技術者の確認が無い\"),\"ＯＫ\")","v":"ＯＫ"},"主任技術者の確認があること（小規模事業用はスルーでＯＫ）"]
[null,null,null,null,null,null,null,null,null,null,null,null,null,null,null,null,null,null,null,null,null,null,{"$f":"IF(AND(【別紙】電気関係の入力!D21=\"はい\",【別紙】電気関係の入力!D22=\"はい\",【別紙】電気関係の入力!D23=\"はい\",【別紙】電気関係の入力!D25=\"はい\"),\"太陽電池モジュールは電技解釈第１６条第５項第２号に適合することを工場試験結果により確認した。\",IF(【別紙】電気関係の入力!D25=\"いいえ\",\"太陽電池モジュールは電技解釈第１６条第５項第１号に適合した絶縁性能があることを確認した。\",\"不適合\"))","v":"太陽電池モジュールは電技解釈第１６条第５項第１号に適合した絶縁性能があることを確認した。"},null,null,{"$f":"IF($Z$15=\"\",\"\",$Z$15)","v":""},null,{"$f":"IF(【届出書】入力!C133=\"小規模事業用\",IF(AND(Z145<>\"\",Z146<>\"\"),\"ＯＫ\",\"委託先の確認が無い\"),\"ＯＫ\")","v":"ＯＫ"},"委託先の確認があること（事業用はスルーでＯＫ）"]
[null,null,null,null,null,null,null,null,null,null,null,null,null,null,null,null,null,null,null,null,null,null,null,null,null,{"$f":"IF($Z$16=\"\",\"\",\"委託先の氏名、住所、電話番号、メールアドレスは番号１に同じ。\")","v":""}]
[]
[]
[13,"保護装置試験","確認方法",{"$f":"IF(【届出書】入力!C2=\"小規模事業用\",\"電技解釈第３３条又は第３６条で規定される保護装置ごとに、関連する継電器を手動等で接点を閉じるか又は実際に動作させることにより試験する。\nなお、逆変換装置が電技解釈第３３条に適合することを示す第三者認証を取得しており、かつ、漏電遮断器が施設されている場合は、逆変換装置に係る保護装置試験を省略することができるものとする。ただし、この場合においても、漏電遮断器に対する保護装置試験は必要となる。\",\"電技解釈第３４条、第３６条又は第４３条で規定される保護装置ごとに、関連する継電器を手動等で接点を閉じるか又は実際に動作させることにより試験する。\")","v":"電技解釈第３４条、第３６条又は第４３条で規定される保護装置ごとに、関連する継電器を手動等で接点を閉じるか又は実際に動作させることにより試験する。"},null,null,null,null,null,null,null,null,null,null,null,null,null,null,null,null,null,null,{"$f":"IF(I150=\"✓\",\"判定基準すべてが満たされていることを確認した。\"&IF(AND(R150=\"✓\",【別紙】電気関係の入力②!D5=\"逆変換装置は現地試験の省略が可能です。\"),\"なお、逆変換装置が電技解釈第３３条に適合することを示す第三者認証を取得しており、かつ、\n漏電遮断器が施設されているため、逆変換装置に係る保護装置試験は省略した。\",\"\"),\"不適合\")","v":"判定基準すべてが満たされていることを確認した。"},null,null,"確認年月日","確認年月日",{"$f":"IF(AND(AB150=\"ＯＫ\",AB151=\"ＯＫ\",AB152=\"ＯＫ\",AB153=\"ＯＫ\",AB154=\"ＯＫ\",AB155=\"ＯＫ\",AB156=\"ＯＫ\"),\"ＯＫ\",\"\")","v":"ＯＫ"},"全体：以下内容がすべてＯＫならＯＫ"]
[null,null,null,null,null,{"$f":"IF(【別紙】電気関係の入力②!D2=\"はい\",\"✓\",\"\")","v":"✓"},"済",null,{"$f":"IF(AND(L150=\"✓\",OR(O150=\"✓\",O152=\"✓\"),OR(R150=\"✓\",R152=\"✓\")),\"✓\",\"\")","v":"✓"},"合",null,"✓","有",null,null,"有",null,{"$f":"IF(AND(【届出書】入力!C2=\"小規模事業用\",【別紙】電気関係の入力②!D3=\"はい\"),\"✓\",\"\")","v":""},"有",null,{"$f":"IF(AND(R150=\"✓\",【別紙】電気関係の入力②!D3=\"はい\"),\"逆変換装置が電技解釈第３３条に適合することを示す第三者認証\",\"対象となる規格無し\")","v":"対象となる規格無し"},null,null,null,null,{"$f":"IF(【別紙】確認者の入力!$D$3=\"\",\"\",TEXT(【別紙】確認者の入力!$D$3,\"[DBNum3]ggge年m月d日\"))","v":"令和７年６月１２日"},{"$f":"IF(【別紙】確認者の入力!$D$2=\"小規模事業用\",\"－\",IF(【別紙】確認者の入力!$D$3=\"\",\"\",TEXT(【別紙】確認者の入力!$D$3,\"[DBNum3]ggge年m月d日\")))","v":"令和７年６月１２日"},{"$f":"IF(AND(OR(F150=\"✓\",F152=\"✓\"),OR(I150=\"✓\",I152=\"✓\"),OR(L150=\"✓\",L152=\"✓\"),OR(O150=\"✓\",O152=\"✓\"),OR(R150=\"✓\",R152=\"✓\")),\"ＯＫ\",\"\")","v":"ＯＫ"},"確認状況～記録のチェックが全てあること"]
[null,null,null,null,null,null,null,null,null,null,null,null,null,null,null,null,null,null,null,null,null,null,null,null,null,"確認者","確認者",{"$f":"IF(I152=\"✓\",\"判定結果：否の解消が必要\",\"ＯＫ\")","v":"ＯＫ"},"判定結果：否がないこと"]
[null,null,null,null,null,null,"対象外",null,null,"否",null,null,"無",null,"✓","無",null,{"$f":"IF(AND(【届出書】入力!C2=\"小規模事業用\",【別紙】電気関係の入力②!D3=\"はい\"),\"\",\"✓\")","v":"✓"},"無",null,null,null,null,null,null,{"$f":"IF(OR($F150=\"✓\",$F152=\"✓\"),Z$11,\"\")","v":"合同会社メガソーラー菅原　　○○支店　技術部　　技術部長　　菅原　拓一"},{"$f":"IF(OR($F150=\"✓\",$F152=\"✓\"),AA$11,\"\")","v":"合同会社メガソーラー菅原　電気主任技術者　　菅原　拓三"},{"$f":"IF(U150<>\"\",\"ＯＫ\",\"規格番号の明記が無い\")","v":"ＯＫ"},"規格番号の明記があること"]
[null,null,"判定基準","関連する遮断器、故障表示器、警報装置、遮断器の開閉表示等が正常に動作すること。",null,null,null,null,null,null,null,null,null,null,null,null,null,null,null,null,null,null,null,null,null,null,null,{"$f":"IF(W149<>\"\",\"ＯＫ\",\"備考欄の説明書きが無い\")","v":"ＯＫ"},"備考欄の説明書きがあること"]
[null,null,null,null,null,null,null,null,null,null,null,null,null,null,null,null,null,null,null,null,null,null,null,null,null,null,null,{"$f":"IF(Z152<>\"\",\"ＯＫ\",\"設置者の確認が無い\")","v":"ＯＫ"},"設置者の確認があること"]
[null,null,null,null,null,null,null,null,null,null,null,null,null,null,null,null,null,null,null,null,null,null,null,null,null,null,null,{"$f":"IF(【届出書】入力!C144=\"事業用（自家用もしくは電気事業用）\",IF(AA152<>\"\",\"ＯＫ\",\"主任技術者の確認が無い\"),\"ＯＫ\")","v":"ＯＫ"},"主任技術者の確認があること（小規模事業用はスルーでＯＫ）"]
[null,null,null,null,null,null,null,null,null,null,null,null,null,null,null,null,null,null,null,null,null,null,null,null,null,{"$f":"IF($Z$15=\"\",\"\",$Z$15)","v":""},null,{"$f":"IF(【届出書】入力!C144=\"小規模事業用\",IF(AND(Z156<>\"\",Z157<>\"\"),\"ＯＫ\",\"委託先の確認が無い\"),\"ＯＫ\")","v":"ＯＫ"},"委託先の確認があること（事業用はスルーでＯＫ）"]
[null,null,null,null,null,null,null,null,null,null,null,null,null,null,null,null,null,null,null,null,null,null,null,null,null,{"$f":"IF($Z$16=\"\",\"\",\"委託先の氏名、住所、電話番号、メールアドレスは番号１に同じ。\")","v":""}]
[]
[]
[14,"遮断器関係試験","確認方法",{"$f":"IF(【届出書】入力!C2=\"小規模事業用\",\"\",\"①付属タンク（アキュームレータを含む。以下同じ。）の容量試験\")","v":"①付属タンク（アキュームレータを含む。以下同じ。）の容量試験"},null,null,null,null,null,null,null,null,null,null,null,null,null,null,null,null,null,null,{"$f":"IF(【届出書】入力!C2=\"小規模事業用\",\"小規模事業用電気工作物は対象外\",\"操作用駆動源（圧縮空気、圧油等）の付属タンクを用いた遮断器、開閉器いずれも使用なし。\")","v":"操作用駆動源（圧縮空気、圧油等）の付属タンクを用いた遮断器、開閉器いずれも使用なし。"},null,null,"確認年月日","確認年月日",{"$f":"IF(AND(AB161=\"ＯＫ\",AB162=\"ＯＫ\",AB163=\"ＯＫ\",AB164=\"ＯＫ\",AB165=\"ＯＫ\",AB166=\"ＯＫ\",AB167=\"ＯＫ\"),\"ＯＫ\",\"\")","v":"ＯＫ"},"全体：以下内容がすべてＯＫならＯＫ　ここは対象外のときＯＫとしている"]
[null,null,null,{"$f":"IF(【届出書】入力!C2=\"小規模事業用\",\"\",\"　遮断器又は開閉器について、操作用駆動源（圧縮空気、圧油等）の付属タンクの供給元弁を閉じて、圧縮空気等が補給されない状態で入切の操作を連続して１回以上（再閉\")","v":"　遮断器又は開閉器について、操作用駆動源（圧縮空気、圧油等）の付属タンクの供給元弁を閉じて、圧縮空気等が補給されない状態で入切の操作を連続して１回以上（再閉"},null,null,"済",null,null,"合",null,null,"有",null,null,"有",null,null,"有",null,"対象となる規格無し",null,null,null,null,{"$f":"IF(【別紙】確認者の入力!$D$3=\"\",\"\",TEXT(【別紙】確認者の入力!$D$3,\"[DBNum3]ggge年m月d日\"))","v":"令和７年６月１２日"},{"$f":"IF(【別紙】確認者の入力!$D$2=\"小規模事業用\",\"－\",IF(【別紙】確認者の入力!$D$3=\"\",\"\",TEXT(【別紙】確認者の入力!$D$3,\"[DBNum3]ggge年m月d日\")))","v":"令和７年６月１２日"},{"$f":"IF(【別紙】電気関係の入力②!D6=\"いいえ\",\"ＯＫ\",IF(AND(OR(F161=\"✓\",F163=\"✓\"),OR(I161=\"✓\",I163=\"✓\"),OR(L161=\"✓\",L163=\"✓\"),OR(O161=\"✓\",O163=\"✓\"),OR(R161=\"✓\",R163=\"✓\")),\"ＯＫ\",\"\"))","v":"ＯＫ"},"確認状況～記録のチェックが全てあること"]
[null,null,null,{"$f":"IF(【届出書】入力!C2=\"小規模事業用\",\"\",\"路保護方式の場合は２回以上）行い、当該機器の動作、開閉表示器の表示を確認する。なお、遮断器に不完全投入（開放）を防止するための鎖錠装置がある場合は、付属タン\")","v":"路保護方式の場合は２回以上）行い、当該機器の動作、開閉表示器の表示を確認する。なお、遮断器に不完全投入（開放）を防止するための鎖錠装置がある場合は、付属タン"},null,null,null,null,null,null,null,null,null,null,null,null,null,null,null,null,null,null,null,null,null,"確認者","確認者",{"$f":"IF(I163=\"✓\",\"判定結果：否の解消が必要\",\"ＯＫ\")","v":"ＯＫ"},"判定結果：否がないこと"]
[null,null,null,{"$f":"IF(【届出書】入力!C2=\"小規模事業用\",\"小規模事業用電気工作物は対象外\",\"クの圧力を変動させて鎖錠及び復帰用圧力継電器の動作を行わせ、当該機器の動作、開閉表示器の表示を確認する。\")","v":"クの圧力を変動させて鎖錠及び復帰用圧力継電器の動作を行わせ、当該機器の動作、開閉表示器の表示を確認する。"},null,"✓","対象外",null,null,"否",null,null,"無",null,null,"無",null,null,"無",null,null,null,null,null,null,{"$f":"IF(OR($F161=\"✓\",$F163=\"✓\"),Z$11,\"\")","v":"合同会社メガソーラー菅原　　○○支店　技術部　　技術部長　　菅原　拓一"},{"$f":"IF(OR($F161=\"✓\",$F163=\"✓\"),AA$11,\"\")","v":"合同会社メガソーラー菅原　電気主任技術者　　菅原　拓三"},{"$f":"IF(【別紙】機械関係の入力!D97=\"いいえ\",\"ＯＫ\",IF(U161<>\"\",\"ＯＫ\",\"規格番号の明記が無い\"))","v":"ＯＫ"},"規格番号の明記があること"]
[null,null,null,{"$f":"IF(【届出書】入力!C2=\"小規模事業用\",\"\",\"②駆動力発生装置自動始動停止試験\")","v":"②駆動力発生装置自動始動停止試験"},null,null,null,null,null,null,null,null,null,null,null,null,null,null,null,null,null,null,null,null,null,null,null,{"$f":"IF(【別紙】機械関係の入力!D97=\"いいえ\",\"ＯＫ\",IF(W160<>\"\",\"ＯＫ\",\"備考欄の説明書きが無い\"))","v":"ＯＫ"},"備考欄の説明書きがあること"]
[null,null,null,{"$f":"IF(【届出書】入力!C2=\"小規模事業用\",\"\",\"　付属タンクの排出弁を静かに開いて圧力を徐々に下げ駆動力発生装置を自動始動させ、その時の圧力を測定する。駆動力発生装置が始動した後に排出弁を閉鎖して圧力を徐々\")","v":"　付属タンクの排出弁を静かに開いて圧力を徐々に下げ駆動力発生装置を自動始動させ、その時の圧力を測定する。駆動力発生装置が始動した後に排出弁を閉鎖して圧力を徐々"},null,null,null,null,null,null,null,null,null,null,null,null,null,null,null,null,null,null,null,null,null,null,null,{"$f":"IF(Z163<>\"\",\"ＯＫ\",\"設置者の確認が無い\")","v":"ＯＫ"},"設置者の確認があること"]
[null,null,null,{"$f":"IF(【届出書】入力!C2=\"小規模事業用\",\"\",\"に上げ、運転中の駆動力発生装置が自動停止する時の圧力を測定する。\")","v":"に上げ、運転中の駆動力発生装置が自動停止する時の圧力を測定する。"},null,null,null,null,null,null,null,null,null,null,null,null,null,null,null,null,null,null,null,null,null,null,null,{"$f":"IF(【届出書】入力!C155=\"事業用（自家用もしくは電気事業用）\",IF(AA163<>\"\",\"ＯＫ\",\"主任技術者の確認が無い\"),\"ＯＫ\")","v":"ＯＫ"},"主任技術者の確認があること（小規模事業用はスルーでＯＫ）"]
[null,null,null,{"$f":"IF(【届出書】入力!C2=\"小規模事業用\",\"\",\"③駆動力発生装置付属タンク安全弁動作試験\")","v":"③駆動力発生装置付属タンク安全弁動作試験"},null,null,null,null,null,null,null,null,null,null,null,null,null,null,null,null,null,null,null,null,null,{"$f":"IF($Z$15=\"\",\"\",$Z$15)","v":""},null,{"$f":"IF(【届出書】入力!C155=\"小規模事業用\",IF(AND(Z167<>\"\",Z168<>\"\",),\"ＯＫ\",\"委託先の確認が無い\"),\"ＯＫ\")","v":"ＯＫ"},"委託先の確認があること（事業用はスルーでＯＫ）"]
[null,null,null,{"$f":"IF(【届出書】入力!C2=\"小規模事業用\",\"\",\"　付属タンクの出口止め弁を閉めて、駆動力発生装置を運転して圧力を徐々に上げ、その付属タンクに設置してある安全弁の吹出圧力を測定する。\")","v":"　付属タンクの出口止め弁を閉めて、駆動力発生装置を運転して圧力を徐々に上げ、その付属タンクに設置してある安全弁の吹出圧力を測定する。"},null,null,null,null,null,null,null,null,null,null,null,null,null,null,null,null,null,null,null,null,null,{"$f":"IF($Z$16=\"\",\"\",\"委託先の氏名、住所、電話番号、メールアドレスは番号１に同じ。\")","v":""}]
[null,null,"判定基準",{"$f":"IF(【届出書】入力!C2=\"小規模事業用\",\"\",\"①設定どおりの動作が行われること。\")","v":"①設定どおりの動作が行われること。"}]
[null,null,null,{"$f":"IF(【届出書】入力!C2=\"小規模事業用\",\"小規模事業用電気工作物は対象外\",\"②自動始動及び自動停止が設定圧力の範囲内で行われること。\")","v":"②自動始動及び自動停止が設定圧力の範囲内で行われること。"}]
[null,null,null,{"$f":"IF(【届出書】入力!C2=\"小規模事業用\",\"\",\"③安全弁の吹出圧力が付属タンクの最高使用圧力以下であること。\")","v":"③安全弁の吹出圧力が付属タンクの最高使用圧力以下であること。"}]
[15,"総合インターロック試験","確認方法","発電設備を軽負荷運転させ、総合インターロックが作動する原因となる電気的要素及び機械的要素のそれぞれについて事故を模擬し、これに係る保護継電装置を実動作又は手動で接点を閉じて動作させる。\nなお、本試験により確認すべき内容が保護装置試験、制御電源喪失試験又は負荷遮断試験（現地で実施するものに限る。）と併せて行える場合は、複数の試験を同時に実施することができるものとする。",null,null,null,null,null,null,null,null,null,null,null,null,null,null,null,null,null,null,{"$f":"IF(【届出書】入力!C2=\"小規模事業用\",\"小規模事業用電気工作物は対象外\",IF(【別紙】電気関係の入力②!D7=\"はい\",\"判定基準すべてが満たされていることを確認した。\",\"不適合\"))","v":"判定基準すべてが満たされていることを確認した。"},null,null,"確認年月日","確認年月日",{"$f":"IF(AND(AB173=\"ＯＫ\",AB174=\"ＯＫ\",AB175=\"ＯＫ\",AB176=\"ＯＫ\",AB177=\"ＯＫ\",AB178=\"ＯＫ\",AB179=\"ＯＫ\"),\"ＯＫ\",\"\")","v":"ＯＫ"},"全体：以下内容がすべてＯＫならＯＫ　ここは対象外のときＯＫとしている"]
[null,null,null,null,null,{"$f":"IF(【届出書】入力!C2=\"小規模事業用\",\"\",IF(【別紙】電気関係の入力②!D7=\"はい\",\"✓\",\"\"))","v":"✓"},"済",null,{"$f":"IF(【届出書】入力!C2=\"小規模事業用\",\"\",IF(【別紙】電気関係の入力②!D7=\"はい\",\"✓\",\"\"))","v":"✓"},"合",null,{"$f":"IF(【届出書】入力!C2=\"小規模事業用\",\"\",IF(【別紙】電気関係の入力②!D7=\"はい\",\"✓\",\"\"))","v":"✓"},"有",null,null,"有",null,null,"有",null,"対象となる規格無し",null,null,null,null,{"$f":"IF(【別紙】確認者の入力!$D$3=\"\",\"\",TEXT(【別紙】確認者の入力!$D$3,\"[DBNum3]ggge年m月d日\"))","v":"令和７年６月１２日"},{"$f":"IF(【別紙】確認者の入力!$D$2=\"小規模事業用\",\"－\",IF(【別紙】確認者の入力!$D$3=\"\",\"\",TEXT(【別紙】確認者の入力!$D$3,\"[DBNum3]ggge年m月d日\")))","v":"令和７年６月１２日"},{"$f":"IF(OR(【別紙】電気関係の入力②!D7=\"はい\",AND(【届出書】入力!C2=\"小規模事業用\",【別紙】電気関係の入力②!D7=\"対象外\")),\"ＯＫ\",IF(AND(OR(F173=\"✓\",F175=\"✓\"),OR(I173=\"✓\",I175=\"✓\"),OR(L173=\"✓\",L175=\"✓\"),OR(O173=\"✓\",O175=\"✓\"),OR(R173=\"✓\",R175=\"✓\")),\"ＯＫ\",\"\"))","v":"ＯＫ"},"確認状況～記録のチェックが全てあること"]
[null,null,null,null,null,null,null,null,null,null,null,null,null,null,null,null,null,null,null,null,null,null,null,null,null,"確認者","確認者",{"$f":"IF(I175=\"✓\",\"判定結果：否の解消が必要\",\"ＯＫ\")","v":"ＯＫ"},"判定結果：否がないこと"]
[null,null,null,null,null,{"$f":"IF(【届出書】入力!C2=\"小規模事業用\",\"✓\",IF(【別紙】電気関係の入力②!D7=\"はい\",\"\",\"\"))","v":""},"対象外",null,null,"否",null,null,"無",null,{"$f":"IF(【届出書】入力!C2=\"小規模事業用\",\"\",IF(【別紙】電気関係の入力②!D7=\"はい\",\"✓\",\"\"))","v":"✓"},"無",null,{"$f":"IF(【届出書】入力!C2=\"小規模事業用\",\"\",IF(【別紙】電気関係の入力②!D7=\"はい\",\"✓\",\"\"))","v":"✓"},"無",null,null,null,null,null,null,{"$f":"IF(OR($F173=\"✓\",$F175=\"✓\"),Z$11,\"\")","v":"合同会社メガソーラー菅原　　○○支店　技術部　　技術部長　　菅原　拓一"},{"$f":"IF(OR($F173=\"✓\",$F175=\"✓\"),AA$11,\"\")","v":"合同会社メガソーラー菅原　電気主任技術者　　菅原　拓三"},{"$f":"IF(【別紙】機械関係の入力!D109=\"いいえ\",\"ＯＫ\",IF(U173<>\"\",\"ＯＫ\",\"規格番号の明記が無い\"))","v":"ＯＫ"},"規格番号の明記があること"]
[null,null,null,null,null,null,null,null,null,null,null,null,null,null,null,null,null,null,null,null,null,null,null,null,null,null,null,{"$f":"IF(【別紙】機械関係の入力!D109=\"いいえ\",\"ＯＫ\",IF(W172<>\"\",\"ＯＫ\",\"備考欄の説明書きが無い\"))","v":"ＯＫ"},"備考欄の説明書きがあること"]
[null,null,null,null,null,null,null,null,null,null,null,null,null,null,null,null,null,null,null,null,null,null,null,null,null,null,null,{"$f":"IF(Z175<>\"\",\"ＯＫ\",\"設置者の確認が無い\")","v":"ＯＫ"},"設置者の確認があること"]
[null,null,"判定基準","プラントが自動的かつ安全に停止するとともに関連する警報、表示等が正常に動作すること。",null,null,null,null,null,null,null,null,null,null,null,null,null,null,null,null,null,null,null,null,null,null,null,{"$f":"IF(【届出書】入力!C167=\"事業用（自家用もしくは電気事業用）\",IF(AA175<>\"\",\"ＯＫ\",\"主任技術者の確認が無い\"),\"ＯＫ\")","v":"ＯＫ"},"主任技術者の確認があること（小規模事業用はスルーでＯＫ）"]
[null,null,null,null,null,null,null,null,null,null,null,null,null,null,null,null,null,null,null,null,null,null,null,null,null,{"$f":"IF($Z$15=\"\",\"\",$Z$15)","v":""},null,{"$f":"IF(【届出書】入力!C167=\"小規模事業用\",IF(AND(Z179<>\"\",Z180<>\"\",),\"ＯＫ\",\"委託先の確認が無い\"),\"ＯＫ\")","v":"ＯＫ"},"委託先の確認があること（事業用はスルーでＯＫ）"]
[null,null,null,null,null,null,null,null,null,null,null,null,null,null,null,null,null,null,null,null,null,null,null,null,null,{"$f":"IF($Z$16=\"\",\"\",\"委託先の氏名、住所、電話番号、メールアドレスは番号１に同じ。\")","v":""}]
[]
[]
[16,"制御電源喪失試験","確認方法","発電設備を運転中に制御電源を喪失させたときに過渡変化する主要パラメーターの測定並びに遮断器、開閉器等の開閉の状況及び警報、表示等を確認する。",null,null,null,null,null,null,null,null,null,null,null,null,null,null,null,null,null,null,{"$f":"IF(OR(F184=\"\",I184=\"\",L184=\"\"),\"不適合\",\"確認方法に基づき、判定基準すべてが満たされていることを確認した。\")","v":"確認方法に基づき、判定基準すべてが満たされていることを確認した。"},null,null,"確認年月日","確認年月日",{"$f":"IF(AND(AB184=\"ＯＫ\",AB185=\"ＯＫ\",AB186=\"ＯＫ\",AB187=\"ＯＫ\",AB188=\"ＯＫ\",AB189=\"ＯＫ\",AB190=\"ＯＫ\"),\"ＯＫ\",\"\")","v":"ＯＫ"},"全体：以下内容がすべてＯＫならＯＫ"]
[null,null,null,"なお、本試験により確認すべき内容が保護装置試験、総合インターロック試験又は負荷遮断試験（現地で実施するものに限る。）と併せて行える場合は、複数の試",null,{"$f":"IF(【別紙】電気関係の入力②!D8=\"はい\",\"✓\",\"\")","v":"✓"},"済",null,{"$f":"IF(【別紙】電気関係の入力②!D8=\"はい\",\"✓\",\"\")","v":"✓"},"合",null,{"$f":"IF(【別紙】電気関係の入力②!D8=\"はい\",\"✓\",\"\")","v":"✓"},"有",null,{"$f":"IF(AND(【届出書】入力!C2=\"小規模事業用\",【別紙】電気関係の入力②!D13=\"はい\"),\"✓\",\"\")","v":""},"有",null,{"$f":"IF(AND(【届出書】入力!C2=\"小規模事業用\",【別紙】電気関係の入力②!D10=\"はい\"),\"✓\",\"\")","v":""},"有",null,{"$f":"IF(【届出書】入力!C2=\"小規模事業用\",IF(【別紙】電気関係の入力②!D11=\"\",\"対象となる規格無し\",【別紙】電気関係の入力②!D11),\"対象となる規格無し\")","v":"対象となる規格無し"},null,null,null,null,{"$f":"IF(【別紙】確認者の入力!$D$3=\"\",\"\",TEXT(【別紙】確認者の入力!$D$3,\"[DBNum3]ggge年m月d日\"))","v":"令和７年６月１２日"},{"$f":"IF(【別紙】確認者の入力!$D$2=\"小規模事業用\",\"－\",IF(【別紙】確認者の入力!$D$3=\"\",\"\",TEXT(【別紙】確認者の入力!$D$3,\"[DBNum3]ggge年m月d日\")))","v":"令和７年６月１２日"},{"$f":"IF(AND(OR(F184=\"✓\",F186=\"✓\"),OR(I184=\"✓\",I186=\"✓\"),OR(L184=\"✓\",L186=\"✓\"),OR(O184=\"✓\",O186=\"✓\"),OR(R184=\"✓\",R186=\"✓\")),\"ＯＫ\",\"\")","v":"ＯＫ"},"確認状況～記録のチェックが全てあること"]
[null,null,null,{"$f":"\"験を同時に実施すること\"&IF(【届出書】入力!C2=\"小規模事業用\",\"、逆変換装置が（b）判定基準に適合することを示す第三者認証を取得している場合についてはその範囲で省略すること、工場試験の結果\",\"ができるものとする。\")","v":"験を同時に実施することができるものとする。"},null,null,null,null,null,null,null,null,null,null,null,null,null,null,null,null,null,null,null,null,null,"確認者","確認者",{"$f":"IF(I186=\"✓\",\"判定結果：否の解消が必要\",\"ＯＫ\")","v":"ＯＫ"},"判定結果：否がないこと"]
[null,null,null,{"$f":"IF(【届出書】入力!C2=\"小規模事業用\",\"から判断して支障ないと認められる場合は記録により確認することができるものとする。\",\"\")","v":""},null,null,"対象外",null,null,"否",null,null,"無",null,{"$f":"IF(AND(【届出書】入力!C2=\"小規模事業用\",【別紙】電気関係の入力②!D13=\"はい\"),\"\",\"✓\")","v":"✓"},"無",null,{"$f":"IF(AND(【届出書】入力!C2=\"小規模事業用\",【別紙】電気関係の入力②!D10=\"はい\"),\"\",\"✓\")","v":"✓"},"無",null,null,null,null,null,null,{"$f":"IF($F184=\"✓\",Z$11,\"\")","v":"合同会社メガソーラー菅原　　○○支店　技術部　　技術部長　　菅原　拓一"},{"$f":"IF($F184=\"✓\",AA$11,\"\")","v":"合同会社メガソーラー菅原　電気主任技術者　　菅原　拓三"},{"$f":"IF(U184<>\"\",\"ＯＫ\",\"規格番号の明記が無い\")","v":"ＯＫ"},"規格番号の明記があること"]
[null,null,"判定基準","プラントが自動的、かつ、安全に規定の状態に移行すること及び測定結果に異常が認められないこと並びに遮断器、開閉器が正常に動作し、かつ警報、表示等が正常に出ること。",null,null,null,null,null,null,null,null,null,null,null,null,null,null,null,null,null,null,null,null,null,null,null,{"$f":"IF(W183<>\"\",\"ＯＫ\",\"備考欄の説明書きが無い\")","v":"ＯＫ"},"備考欄の説明書きがあること"]
[null,null,null,null,null,null,null,null,null,null,null,null,null,null,null,null,null,null,null,null,null,null,null,null,null,null,null,{"$f":"IF(Z186<>\"\",\"ＯＫ\",\"設置者の確認が無い\")","v":"ＯＫ"},"設置者の確認があること"]
[null,null,null,null,null,null,null,null,null,null,null,null,null,null,null,null,null,null,null,null,null,null,null,null,null,null,null,{"$f":"IF(【届出書】入力!C178=\"事業用（自家用もしくは電気事業用）\",IF(AA186<>\"\",\"ＯＫ\",\"主任技術者の確認が無い\"),\"ＯＫ\")","v":"ＯＫ"},"主任技術者の確認があること（小規模事業用はスルーでＯＫ）"]
[null,null,null,null,null,null,null,null,null,null,null,null,null,null,null,null,null,null,null,null,null,null,null,null,null,{"$f":"IF($Z$15=\"\",\"\",$Z$15)","v":""},null,{"$f":"IF(【届出書】入力!C178=\"小規模事業用\",IF(AND(Z190<>\"\",Z191<>\"\"),\"ＯＫ\",\"委託先の確認が無い\"),\"ＯＫ\")","v":"ＯＫ"},"委託先の確認があること（事業用はスルーでＯＫ）"]
[null,null,null,null,null,null,null,null,null,null,null,null,null,null,null,null,null,null,null,null,null,null,null,null,null,{"$f":"IF($Z$16=\"\",\"\",\"委託先の氏名、住所、電話番号、メールアドレスは番号１に同じ。\")","v":""}]
[]
[]
[17,"負荷遮断試験","確認方法","発電設備出力の１／４負荷運転状態から負荷遮断し、異常のないことを確認した後、順次２／４、３／４、４／４負荷運転まで段階的に試験を行う。",null,null,null,null,null,null,null,null,null,null,null,null,null,null,null,null,null,null,{"$f":"IF(AND(L195=\"✓\",O195=\"\"),\"判定基準すべてが満たされていることを確認した。\",IF(AND(L195=\"✓\",O195=\"✓\"),\"必要な負荷運転での現地試験の実施が困難であり、一部の負荷が試験を実施できなかったが、工場試験記録の結果から支障ないことを確認した。\",\"不適合\"))","v":"判定基準すべてが満たされていることを確認した。"},null,null,"確認年月日","確認年月日",{"$f":"IF(AND(AB195=\"ＯＫ\",AB196=\"ＯＫ\",AB197=\"ＯＫ\",AB198=\"ＯＫ\",AB199=\"ＯＫ\",AB200=\"ＯＫ\",AB201=\"ＯＫ\"),\"ＯＫ\",\"\")","v":"ＯＫ"},"全体：以下内容がすべてＯＫならＯＫ"]
[null,null,null,"発電電圧について、過渡変化を記録できる測定機器（発電所の構外に施設する監視制御装置等を含む。）により確認する。",null,{"$f":"IF(OR(AND(【別紙】電気関係の入力②!D15=\"はい\",【別紙】電気関係の入力②!D16=\"はい\",【別紙】電気関係の入力②!D17=\"いいえ\"),AND(【別紙】電気関係の入力②!D15=\"はい\",【別紙】電気関係の入力②!D16=\"いいえ\",【別紙】電気関係の入力②!D17=\"はい\")),\"✓\",\"\")","v":"✓"},"済",null,{"$f":"IF(OR(AND(【別紙】電気関係の入力②!D15=\"はい\",【別紙】電気関係の入力②!D16=\"はい\",【別紙】電気関係の入力②!D17=\"いいえ\"),AND(【別紙】電気関係の入力②!D15=\"はい\",【別紙】電気関係の入力②!D16=\"いいえ\",【別紙】電気関係の入力②!D17=\"はい\")),\"✓\",\"\")","v":"✓"},"合",null,{"$f":"IF(OR(AND(【別紙】電気関係の入力②!D15=\"はい\",【別紙】電気関係の入力②!D16=\"はい\",【別紙】電気関係の入力②!D17=\"いいえ\"),AND(【別紙】電気関係の入力②!D15=\"はい\",【別紙】電気関係の入力②!D16=\"いいえ\",【別紙】電気関係の入力②!D17=\"はい\")),\"✓\",\"\")","v":"✓"},"有",null,{"$f":"IF(AND(【別紙】電気関係の入力②!D15=\"はい\",【別紙】電気関係の入力②!D16=\"いいえ\",【別紙】電気関係の入力②!D17=\"はい\"),\"✓\",\"\")","v":""},"有",null,null,"有",null,"対象となる規格無し",null,null,null,null,{"$f":"IF(【別紙】確認者の入力!$D$3=\"\",\"\",TEXT(【別紙】確認者の入力!$D$3,\"[DBNum3]ggge年m月d日\"))","v":"令和７年６月１２日"},{"$f":"IF(【別紙】確認者の入力!$D$2=\"小規模事業用\",\"－\",IF(【別紙】確認者の入力!$D$3=\"\",\"\",TEXT(【別紙】確認者の入力!$D$3,\"[DBNum3]ggge年m月d日\")))","v":"令和７年６月１２日"},{"$f":"IF(AND(OR(F195=\"✓\",F197=\"✓\"),OR(I195=\"✓\",I197=\"✓\"),OR(L195=\"✓\",L197=\"✓\"),OR(O195=\"✓\",O197=\"✓\"),OR(R195=\"✓\",R197=\"✓\")),\"ＯＫ\",\"\")","v":"ＯＫ"},"確認状況～記録のチェックが全てあること"]
[null,null,null,{"$f":"IF(【届出書】入力!C2=\"小規模事業用\",\"なお、逆変換装置が（b）判定基準に適合することを示す第三者認証を取得している場合についてはその範囲で省略すること、必要な負荷運転での現地試験の実施が困難であった場合は、工場試験の結果から判断して支障ないと認められるものは記録により確認することができるものとする。\",\"なお、必要な負荷運転での現地試験の実施が困難であった場合は、工場試験の結果から判断して支障ないと認められるものについては記録により確認できるものとする。\")","v":"なお、必要な負荷運転での現地試験の実施が困難であった場合は、工場試験の結果から判断して支障ないと認められるものについては記録により確認できるものとする。"},null,null,null,null,null,null,null,null,null,null,null,null,null,null,null,null,null,null,null,null,null,"確認者","確認者",{"$f":"IF(I197=\"✓\",\"判定結果：否の解消が必要\",\"ＯＫ\")","v":"ＯＫ"},"判定結果：否がないこと"]
[null,null,null,null,null,{"$f":"IF(F195=\"✓\",\"\",\"✓\")","v":""},"対象外",null,{"$f":"IF(I195=\"✓\",\"\",\"✓\")","v":""},"否",null,{"$f":"IF(L195=\"✓\",\"\",\"✓\")","v":""},"無",null,{"$f":"IF(O195=\"✓\",\"\",\"✓\")","v":"✓"},"無",null,"✓","無",null,null,null,null,null,null,{"$f":"IF(OR($F195=\"✓\",$F197=\"✓\"),Z$11,\"\")","v":"合同会社メガソーラー菅原　　○○支店　技術部　　技術部長　　菅原　拓一"},{"$f":"IF(OR($F195=\"✓\",$F197=\"✓\"),AA$11,\"\")","v":"合同会社メガソーラー菅原　電気主任技術者　　菅原　拓三"},{"$f":"IF(U195<>\"\",\"ＯＫ\",\"規格番号の明記が無い\")","v":"ＯＫ"},"規格番号の明記があること"]
[null,null,"判定基準","負荷遮断後、発電電圧等負荷遮断時に過渡変化するパラメーターの変動が制限値内にあり、かつ、プラントは安全に規定の状態へ移行すること。",null,null,null,null,null,null,null,null,null,null,null,null,null,null,null,null,null,null,null,null,null,null,null,{"$f":"IF(W194<>\"\",\"ＯＫ\",\"備考欄の説明書きが無い\")","v":"ＯＫ"},"備考欄の説明書きがあること"]
[null,null,null,null,null,null,null,null,null,null,null,null,null,null,null,null,null,null,null,null,null,null,null,null,null,null,null,{"$f":"IF(Z197<>\"\",\"ＯＫ\",\"設置者の確認が無い\")","v":"ＯＫ"},"設置者の確認があること"]
[null,null,null,null,null,null,null,null,null,null,null,null,null,null,null,null,null,null,null,null,null,null,null,null,null,null,null,{"$f":"IF(【届出書】入力!C189=\"事業用（自家用もしくは電気事業用）\",IF(AA197<>\"\",\"ＯＫ\",\"主任技術者の確認が無い\"),\"ＯＫ\")","v":"ＯＫ"},"主任技術者の確認があること（小規模事業用はスルーでＯＫ）"]
[null,null,null,null,null,null,null,null,null,null,null,null,null,null,null,null,null,null,null,null,null,null,null,null,null,{"$f":"IF($Z$15=\"\",\"\",$Z$15)","v":""},null,{"$f":"IF(【届出書】入力!C189=\"小規模事業用\",IF(AND(Z201<>\"\",Z202<>\"\"),\"ＯＫ\",\"委託先の確認が無い\"),\"ＯＫ\")","v":"ＯＫ"},"委託先の確認があること（事業用はスルーでＯＫ）"]
[null,null,null,null,null,null,null,null,null,null,null,null,null,null,null,null,null,null,null,null,null,null,null,null,null,{"$f":"IF($Z$16=\"\",\"\",\"委託先の氏名、住所、電話番号、メールアドレスは番号１に同じ。\")","v":""}]
[]
[]
[18,"遠隔監視制御試験","確認方法",{"$f":"IF(【届出書】入力!C2=\"小規模事業用\",\"小規模事業用電気工作物は対象外\",\"発電制御所において、電技解釈第４７条の２で規定された被制御発電所の主機の自動始動停止操作、あるいは必要な遮断器等の開閉操作及び運転に必要な制御開閉器類の制御操作を遠隔で行い、当該機器が動作すること及び発電制御所に状態変化が表示されることを確認する。\")","v":"発電制御所において、電技解釈第４７条の２で規定された被制御発電所の主機の自動始動停止操作、あるいは必要な遮断器等の開閉操作及び運転に必要な制御開閉器類の制御操作を遠隔で行い、当該機器が動作すること及び発電制御所に状態変化が表示されることを確認する。"},null,null,null,null,null,null,null,null,null,null,null,null,null,null,null,null,null,null,{"$f":"IF(【届出書】入力!C2=\"小規模事業用\",\"小規模事業用電気工作物は対象外\",IF(【別紙】電気関係の入力②!D18=\"対象外\",\"監視制御方式が遠隔監視制御方式ではないため、対象外とした。\",IF(【別紙】電気関係の入力②!D18=\"いいえ\",\"不適合\",\"判定基準すべてが満たされていることを確認した。\")))","v":"監視制御方式が遠隔監視制御方式ではないため、対象外とした。"},null,null,"確認年月日","確認年月日",{"$f":"IF(AND(AB206=\"ＯＫ\",AB207=\"ＯＫ\",AB208=\"ＯＫ\",AB209=\"ＯＫ\",AB210=\"ＯＫ\",AB211=\"ＯＫ\",AB212=\"ＯＫ\"),\"ＯＫ\",\"\")","v":"ＯＫ"},"全体：以下内容がすべてＯＫならＯＫ　ここは対象外のときＯＫとしている"]
[null,null,null,null,null,{"$f":"IF(【届出書】入力!C2=\"小規模事業用\",\"\",IF(【別紙】電気関係の入力②!D18=\"対象外\",\"\",\"✓\"))","v":""},"済",null,{"$f":"IF(【届出書】入力!C2=\"小規模事業用\",\"\",IF(【別紙】電気関係の入力②!D18=\"対象外\",\"\",\"✓\"))","v":""},"合",null,{"$f":"IF(【届出書】入力!C2=\"小規模事業用\",\"\",IF(【別紙】電気関係の入力②!D18=\"対象外\",\"\",\"✓\"))","v":""},"有",null,null,"有",null,null,"有",null,"対象となる規格無し",null,null,null,null,{"$f":"IF(【別紙】確認者の入力!$D$3=\"\",\"\",TEXT(【別紙】確認者の入力!$D$3,\"[DBNum3]ggge年m月d日\"))","v":"令和７年６月１２日"},{"$f":"IF(【別紙】確認者の入力!$D$2=\"小規模事業用\",\"－\",IF(【別紙】確認者の入力!$D$3=\"\",\"\",TEXT(【別紙】確認者の入力!$D$3,\"[DBNum3]ggge年m月d日\")))","v":"令和７年６月１２日"},{"$f":"IF(OR(【別紙】電気関係の入力②!D18=\"はい\",【別紙】電気関係の入力②!D18=\"対象外\"),\"ＯＫ\",IF(AND(OR(F206=\"✓\",F208=\"✓\"),OR(I206=\"✓\",I208=\"✓\"),OR(L206=\"✓\",L208=\"✓\"),OR(O206=\"✓\",O208=\"✓\"),OR(R206=\"✓\",R208=\"✓\")),\"ＯＫ\",\"\"))","v":"ＯＫ"},"確認状況～記録のチェックが全てあること"]
[null,null,null,null,null,null,null,null,null,null,null,null,null,null,null,null,null,null,null,null,null,null,null,null,null,"確認者","確認者",{"$f":"IF(I208=\"✓\",\"判定結果：否の解消が必要\",\"ＯＫ\")","v":"ＯＫ"},"判定結果：否がないこと"]
[null,null,null,null,null,{"$f":"IF(【届出書】入力!C2=\"小規模事業用\",\"✓\",IF(【別紙】電気関係の入力②!D18=\"はい\",\"\",IF(【別紙】電気関係の入力②!D18=\"対象外\",\"✓\",\"\")))","v":"✓"},"対象外",null,null,"否",null,null,"無",null,{"$f":"IF(【届出書】入力!C2=\"小規模事業用\",\"\",IF(【別紙】電気関係の入力②!D18=\"対象外\",\"\",\"✓\"))","v":""},"無",null,{"$f":"IF(【届出書】入力!C2=\"小規模事業用\",\"\",IF(【別紙】電気関係の入力②!D18=\"対象外\",\"\",\"✓\"))","v":""},"無",null,null,null,null,null,null,{"$f":"IF(OR($F206=\"✓\",$F208=\"✓\"),Z$11,\"\")","v":"合同会社メガソーラー菅原　　○○支店　技術部　　技術部長　　菅原　拓一"},{"$f":"IF(OR($F206=\"✓\",$F208=\"✓\"),AA$11,\"\")","v":"合同会社メガソーラー菅原　電気主任技術者　　菅原　拓三"},{"$f":"IF(【別紙】機械関係の入力!D142=\"いいえ\",\"ＯＫ\",IF(U206<>\"\",\"ＯＫ\",\"規格番号の明記が無い\"))","v":"ＯＫ"},"規格番号の明記があること"]
[null,null,null,null,null,null,null,null,null,null,null,null,null,null,null,null,null,null,null,null,null,null,null,null,null,null,null,{"$f":"IF(【別紙】機械関係の入力!D142=\"いいえ\",\"ＯＫ\",IF(W205<>\"\",\"ＯＫ\",\"備考欄の説明書きが無い\"))","v":"ＯＫ"},"備考欄の説明書きがあること"]
[null,null,null,null,null,null,null,null,null,null,null,null,null,null,null,null,null,null,null,null,null,null,null,null,null,null,null,{"$f":"IF(Z208<>\"\",\"ＯＫ\",\"設置者の確認が無い\")","v":"ＯＫ"},"設置者の確認があること"]
[null,null,"判定基準",{"$f":"IF(【届出書】入力!C2=\"小規模事業用\",\"小規模事業用電気工作物は対象外\",\"被制御発電所の関係機器が正常に動作すること、及び被制御発電所の状態変化が正しく発電制御所又は技術員駐在所に表示されること。\")","v":"被制御発電所の関係機器が正常に動作すること、及び被制御発電所の状態変化が正しく発電制御所又は技術員駐在所に表示されること。"},null,null,null,null,null,null,null,null,null,null,null,null,null,null,null,null,null,null,null,null,null,null,null,{"$f":"IF(【届出書】入力!C200=\"事業用（自家用もしくは電気事業用）\",IF(AA208<>\"\",\"ＯＫ\",\"主任技術者の確認が無い\"),\"ＯＫ\")","v":"ＯＫ"},"主任技術者の確認があること（小規模事業用はスルーでＯＫ）"]
[null,null,null,null,null,null,null,null,null,null,null,null,null,null,null,null,null,null,null,null,null,null,null,null,null,{"$f":"IF($Z$15=\"\",\"\",$Z$15)","v":""},null,{"$f":"IF(【届出書】入力!C200=\"小規模事業用\",IF(AND(Z212<>\"\",Z213<>\"\",),\"ＯＫ\",\"委託先の確認が無い\"),\"ＯＫ\")","v":"ＯＫ"},"委託先の確認があること（事業用はスルーでＯＫ）"]
[null,null,null,null,null,null,null,null,null,null,null,null,null,null,null,null,null,null,null,null,null,null,null,null,null,{"$f":"IF($Z$16=\"\",\"\",\"委託先の氏名、住所、電話番号、メールアドレスは番号１に同じ。\")","v":""}]
[]
[]
[19,"負荷試験（出力試験）","確認方法","発電設備を可能な限り定格出力、定格電圧及び定格力率に保持して機器各部の温度上昇が飽和状態になるまで連続運転し、逆変換装置、変圧器等の異常な温度上昇、異常振動、異音等の有無及び高調波（電圧歪率）を測定機器（発電所の構外に施設する監視制御装置等を含む。）、警報の有無及び所内巡視等の方法により確認する。\n連続運転中に巡視点検できない箇所については、連続運転終了後に実施する。\nただし、電技解釈第２０条に基づき温度上昇試験を実施したことを確認できたもの及びＪＥＣ－２４７０（２０１７）（ＪＥＣ－２４７０（２０１８）にて追補）に基づく温度上昇試験を実施したことを確認できた逆変換装置については、現地での負荷試験は省略できるものとする。",null,null,null,null,null,null,null,null,null,null,null,null,null,null,null,null,null,null,{"$f":"IF(L217=\"✓\",\"判定基準すべてが満たされていることを確認した。\",\"不適合\")","v":"判定基準すべてが満たされていることを確認した。"},null,null,"確認年月日","確認年月日",{"$f":"IF(AND(AB217=\"ＯＫ\",AB218=\"ＯＫ\",AB219=\"ＯＫ\",AB220=\"ＯＫ\",AB221=\"ＯＫ\",AB222=\"ＯＫ\",AB223=\"ＯＫ\"),\"ＯＫ\",\"\")","v":"ＯＫ"},"全体：以下内容がすべてＯＫならＯＫ"]
[null,null,null,null,null,"✓","済",null,{"$f":"IF(【別紙】電気関係の入力②!D19=\"はい\",\"✓\",\"\")","v":"✓"},"合",null,{"$f":"IF(【別紙】電気関係の入力②!D19=\"はい\",\"✓\",\"\")","v":"✓"},"有",null,{"$f":"IF(【別紙】電気関係の入力②!D22=\"はい\",\"✓\",\"\")","v":"✓"},"有",null,{"$f":"IF(【別紙】電気関係の入力②!D20=\"はい\",\"✓\",\"\")","v":"✓"},"有",null,{"$f":"IF(【別紙】電気関係の入力②!D22=\"はい\",\"JEC-2470(2017)\",\"\")","v":"JEC-2470(2017)"},null,null,null,null,{"$f":"IF(【別紙】確認者の入力!$D$3=\"\",\"\",TEXT(【別紙】確認者の入力!$D$3,\"[DBNum3]ggge年m月d日\"))","v":"令和７年６月１２日"},{"$f":"IF(【別紙】確認者の入力!$D$2=\"小規模事業用\",\"－\",IF(【別紙】確認者の入力!$D$3=\"\",\"\",TEXT(【別紙】確認者の入力!$D$3,\"[DBNum3]ggge年m月d日\")))","v":"令和７年６月１２日"},{"$f":"IF(AND(OR(F217=\"✓\",F219=\"✓\"),OR(I217=\"✓\",I219=\"✓\"),OR(L217=\"✓\",L219=\"✓\"),OR(O217=\"✓\",O219=\"✓\"),OR(R217=\"✓\",R219=\"✓\")),\"ＯＫ\",\"\")","v":"ＯＫ"},"確認状況～記録のチェックが全てあること"]
[null,null,null,null,null,null,null,null,null,null,null,null,null,null,null,null,null,null,null,null,{"$f":"IF(【別紙】電気関係の入力②!D22=\"はい\",\" (JEC-2470(2018)にて追補)\",\"\")","v":" (JEC-2470(2018)にて追補)"},null,{"$f":"IF(【別紙】電気関係の入力②!D21=\"負荷試験の現地試験の省略が可能です。\",IF(【別紙】電気関係の入力②!D24=\"はい\",\"モジュールは、日本電気規格委員会「電気機械器具の熱的強度の確認方法」により現地での負荷試験は省略した。\",\"モジュールは現地での負荷試験を実施した。\"),\"不適合\")","v":"モジュールは、日本電気規格委員会「電気機械器具の熱的強度の確認方法」により現地での負荷試験は省略した。"},null,null,"確認者","確認者",{"$f":"IF(I219=\"✓\",\"判定結果：否の解消が必要\",\"ＯＫ\")","v":"ＯＫ"},"判定結果：否がないこと"]
[null,null,null,null,null,null,"対象外",null,{"$f":"IF(【別紙】電気関係の入力②!D19=\"はい\",\"\",\"✓\")","v":""},"否",null,{"$f":"IF(【別紙】電気関係の入力②!D19=\"はい\",\"\",\"✓\")","v":""},"無",null,{"$f":"IF(【別紙】電気関係の入力②!D22=\"はい\",\"\",\"✓\")","v":""},"無",null,{"$f":"IF(【別紙】電気関係の入力②!D20=\"はい\",\"\",\"✓\")","v":""},"無",null,{"$f":"IF(【別紙】電気関係の入力②!D20=\"はい\",\"JESC E7002(2015)\",\"\")","v":"JESC E7002(2015)"},null,null,null,null,{"$f":"IF(OR($F217=\"✓\",$F219=\"✓\"),Z$11,\"\")","v":"合同会社メガソーラー菅原　　○○支店　技術部　　技術部長　　菅原　拓一"},{"$f":"IF(OR($F217=\"✓\",$F219=\"✓\"),AA$11,\"\")","v":"合同会社メガソーラー菅原　電気主任技術者　　菅原　拓三"},{"$f":"IF(OR(U217<>\"\",U218<>\"\",U219<>\"\"),\"ＯＫ\",\"規格番号の明記が無い\")","v":"ＯＫ"},"規格番号の明記があること"]
[null,null,null,null,null,null,null,null,null,null,null,null,null,null,null,null,null,null,null,null,null,null,null,null,null,null,null,{"$f":"IF(AND(AND(W216<>\"\",W216<>\"不適合\"),AND(W218<>\"\",W218<>\"不適合\"),AND(W222<>\"\",W222<>\"不適合\")),\"ＯＫ\",\"備考欄の説明書きが無い、もしくは不適合がある\")","v":"ＯＫ"},"備考欄の説明書きがあること"]
[null,null,null,null,null,null,null,null,null,null,null,null,null,null,null,null,null,null,null,null,null,null,null,null,null,null,null,{"$f":"IF(Z219<>\"\",\"ＯＫ\",\"設置者の確認が無い\")","v":"ＯＫ"},"設置者の確認があること"]
[null,null,null,null,null,null,null,null,null,null,null,null,null,null,null,null,null,null,null,null,null,null,{"$f":"IF(【別紙】電気関係の入力②!D23=\"負荷試験の現地試験の省略が可能です。\",IF(【別紙】電気関係の入力②!D24=\"はい\",\"逆変換装置は、JEC-2470(2017)(JEC-2470(2018)にて追補)に基づく温度上昇試験を実施したことを確認できたため、現地での負荷試験を省略した。\",\"逆変換装置は現地での負荷試験を実施した。\"),\"不適合\")","v":"逆変換装置は、JEC-2470(2017)(JEC-2470(2018)にて追補)に基づく温度上昇試験を実施したことを確認できたため、現地での負荷試験を省略した。"},null,null,null,null,{"$f":"IF(【届出書】入力!C211=\"事業用（自家用もしくは電気事業用）\",IF(AA219<>\"\",\"ＯＫ\",\"主任技術者の確認が無い\"),\"ＯＫ\")","v":"ＯＫ"},"主任技術者の確認があること（小規模事業用はスルーでＯＫ）"]
[null,null,null,null,null,null,null,null,null,null,null,null,null,null,null,null,null,null,null,null,null,null,null,null,null,{"$f":"IF($Z$15=\"\",\"\",$Z$15)","v":""},null,{"$f":"IF(【届出書】入力!C211=\"小規模事業用\",IF(AND(Z223<>\"\",Z224<>\"\"),\"ＯＫ\",\"委託先の確認が無い\"),\"ＯＫ\")","v":"ＯＫ"},"委託先の確認があること（事業用はスルーでＯＫ）"]
[null,null,null,null,null,null,null,null,null,null,null,null,null,null,null,null,null,null,null,null,null,null,null,null,null,{"$f":"IF($Z$16=\"\",\"\",\"委託先の氏名、住所、電話番号、メールアドレスは番号１に同じ。\")","v":""}]
[]
[]
[null,null,"判定基準","発電設備の各装置の定格は図面等どおりであり、かつ、異常が認められないこと。"]
[20,"関係法令の規定の遵守の確認","確認方法","発電所、発電設備の工事が次に掲げる許可（以下「関係許可」という。）を要する行為を伴う場合において、当該行為が当該許可を受けたところに従って行われたことを書類等により確認する。\n①　砂防法（明治３０年法律第２９号）第４条（同法第三条において準用する場合を含む。）の規定による許可\n②　森林法（昭和２６年法律第２４９号）第１０条の２第１項の許可\n③　地すべり等防止法（昭和３３年法律第３０号）第１８条第１項又は同法第４２条第１項の許可\n④　宅地造成及び特定盛土等規制法（昭和３６年法律第１９１号）第１２条第１項又は第３０条第１項の許可\n⑤　急傾斜地の崩壊による災害の防止に関する法律（昭和４４年法律第５７号）第７条第１項の許可",null,null,null,null,null,null,null,null,null,null,null,null,null,null,null,null,null,null,"以下の許可内容を基に工事されていることを確認した。",null,null,"確認年月日","確認年月日",{"$f":"IF(AND(AB229=\"ＯＫ\",AB230=\"ＯＫ\",AB231=\"ＯＫ\",AB232=\"ＯＫ\",AB233=\"ＯＫ\",AB234=\"ＯＫ\",AB235=\"ＯＫ\"),\"ＯＫ\",\"\")","v":"ＯＫ"},"全体：以下内容がすべてＯＫならＯＫ"]
[null,null,null,null,null,{"$f":"IF(OR(AND(【別紙】関係法令の入力!D2=\"はい\",【別紙】関係法令の入力!D3=\"はい\"),AND(【別紙】関係法令の入力!D4=\"はい\",【別紙】関係法令の入力!D5=\"はい\"),AND(【別紙】関係法令の入力!D6=\"はい\",【別紙】関係法令の入力!D7=\"はい\"),AND(【別紙】関係法令の入力!D8=\"はい\",【別紙】関係法令の入力!D9=\"はい\"),AND(【別紙】関係法令の入力!D10=\"はい\",【別紙】関係法令の入力!D11=\"はい\"),AND(【別紙】関係法令の入力!D12=\"はい\",【別紙】関係法令の入力!D13=\"はい\")),\"✓\",\"\")","v":""},"済",null,{"$f":"IF(F231=\"✓\",\"\",IF(I231=\"✓\",\"\",IF(AND(AND(【別紙】関係法令の入力!D2=\"はい\",AND(【別紙】関係法令の入力!D3<>\"いいえ\",【別紙】関係法令の入力!D3<>\"\")),AND(【別紙】関係法令の入力!D4=\"はい\",AND(【別紙】関係法令の入力!D5<>\"いいえ\",【別紙】関係法令の入力!D5<>\"\")),AND(【別紙】関係法令の入力!D6=\"はい\",AND(【別紙】関係法令の入力!D7<>\"いいえ\",【別紙】関係法令の入力!D7<>\"\")),AND(【別紙】関係法令の入力!D8=\"はい\",AND(【別紙】関係法令の入力!D9<>\"いいえ\",【別紙】関係法令の入力!D9<>\"\")),AND(【別紙】関係法令の入力!D10=\"はい\",AND(【別紙】関係法令の入力!D11<>\"いいえ\",【別紙】関係法令の入力!D11<>\"\")),AND(【別紙】関係法令の入力!D12=\"はい\",AND(【別紙】関係法令の入力!D13<>\"いいえ\",【別紙】関係法令の入力!D13<>\"\"))),\"✓\",\"\")))","v":""},"合",null,null,"有",null,null,"有",null,{"$f":"IF(F231=\"✓\",\"\",IF(I231=\"✓\",\"\",IF(OR(AND(【別紙】関係法令の入力!D2=\"はい\",OR(【別紙】関係法令の入力!D3=\"はい\",【別紙】関係法令の入力!D3=\"対象外\")),AND(【別紙】関係法令の入力!D4=\"はい\",OR(【別紙】関係法令の入力!D5=\"はい\",【別紙】関係法令の入力!D5=\"対象外\")),AND(【別紙】関係法令の入力!D6=\"はい\",OR(【別紙】関係法令の入力!D7=\"はい\",【別紙】関係法令の入力!D7=\"対象外\")),AND(【別紙】関係法令の入力!D8=\"はい\",OR(【別紙】関係法令の入力!D9=\"はい\",【別紙】関係法令の入力!D9=\"対象外\")),AND(【別紙】関係法令の入力!D10=\"はい\",OR(【別紙】関係法令の入力!D11=\"はい\",【別紙】関係法令の入力!D11=\"対象外\")),AND(【別紙】関係法令の入力!D12=\"はい\",OR(【別紙】関係法令の入力!D13=\"はい\",【別紙】関係法令の入力!D13=\"対象外\"))),\"✓\",\"\")))","v":""},"有",null,"対象となる規格無し",null,null,null,null,{"$f":"IF(【別紙】確認者の入力!$D$3=\"\",\"\",TEXT(【別紙】確認者の入力!$D$3,\"[DBNum3]ggge年m月d日\"))","v":"令和７年６月１２日"},{"$f":"IF(【別紙】確認者の入力!$D$2=\"小規模事業用\",\"－\",IF(【別紙】確認者の入力!$D$3=\"\",\"\",TEXT(【別紙】確認者の入力!$D$3,\"[DBNum3]ggge年m月d日\")))","v":"令和７年６月１２日"},{"$f":"IF(OR(F231=\"✓\",AND(OR(F229=\"✓\",F231=\"✓\"),OR(I229=\"✓\",I231=\"✓\"),OR(L229=\"✓\",L231=\"✓\"),OR(O229=\"✓\",O231=\"✓\")),OR(R229=\"✓\",R231=\"✓\")),\"ＯＫ\",\"\")","v":"ＯＫ"},"確認状況～記録のチェックが全てあること"]
[null,null,null,null,null,null,null,null,null,null,null,null,null,null,null,null,null,null,null,null,null,null,{"$f":"IF(【別紙】関係法令の入力!D3=\"はい\",\"✓\",\"\")","v":""},"①","砂防法","確認者","確認者",{"$f":"IF(I231=\"✓\",\"判定結果：否の解消が必要\",\"ＯＫ\")","v":"ＯＫ"},"判定結果：否がないこと"]
[null,null,null,null,null,{"$f":"IF(AND(AND(【別紙】関係法令の入力!D2=\"はい\",【別紙】関係法令の入力!D3=\"対象外\"),AND(【別紙】関係法令の入力!D4=\"はい\",【別紙】関係法令の入力!D5=\"対象外\"),AND(【別紙】関係法令の入力!D6=\"はい\",【別紙】関係法令の入力!D7=\"対象外\"),AND(【別紙】関係法令の入力!D8=\"はい\",【別紙】関係法令の入力!D9=\"対象外\"),AND(【別紙】関係法令の入力!D10=\"はい\",【別紙】関係法令の入力!D11=\"対象外\"),AND(【別紙】関係法令の入力!D12=\"はい\",【別紙】関係法令の入力!D13=\"対象外\")),\"✓\",\"\")","v":"✓"},"対象外",null,{"$f":"IF(F231=\"✓\",\"\",IF(OR(【別紙】関係法令の入力!D2=\"いいえ\",【別紙】関係法令の入力!D4=\"いいえ\",【別紙】関係法令の入力!D6=\"いいえ\",【別紙】関係法令の入力!D8=\"いいえ\",【別紙】関係法令の入力!D10=\"いいえ\",【別紙】関係法令の入力!D12=\"いいえ\",【別紙】関係法令の入力!D2=\"\",【別紙】関係法令の入力!D4=\"\",【別紙】関係法令の入力!D6=\"\",【別紙】関係法令の入力!D8=\"\",【別紙】関係法令の入力!D10=\"\",【別紙】関係法令の入力!D12=\"\"),\"✓\",\"\"))","v":""},"否",null,{"$f":"IF(F231=\"✓\",\"\",IF(I231=\"✓\",\"\",IF(OR(AND(【別紙】関係法令の入力!D2=\"はい\",OR(【別紙】関係法令の入力!D3=\"はい\",【別紙】関係法令の入力!D3=\"対象外\")),AND(【別紙】関係法令の入力!D4=\"はい\",OR(【別紙】関係法令の入力!D5=\"はい\",【別紙】関係法令の入力!D5=\"対象外\")),AND(【別紙】関係法令の入力!D6=\"はい\",OR(【別紙】関係法令の入力!D7=\"はい\",【別紙】関係法令の入力!D7=\"対象外\")),AND(【別紙】関係法令の入力!D8=\"はい\",OR(【別紙】関係法令の入力!D9=\"はい\",【別紙】関係法令の入力!D9=\"対象外\")),AND(【別紙】関係法令の入力!D10=\"はい\",OR(【別紙】関係法令の入力!D11=\"はい\",【別紙】関係法令の入力!D11=\"対象外\")),AND(【別紙】関係法令の入力!D12=\"はい\",OR(【別紙】関係法令の入力!D13=\"はい\",【別紙】関係法令の入力!D13=\"対象外\"))),\"✓\",\"\")))","v":""},"無",null,{"$f":"IF(F231=\"✓\",\"\",IF(I231=\"✓\",\"\",IF(OR(AND(【別紙】関係法令の入力!D2=\"はい\",OR(【別紙】関係法令の入力!D3=\"はい\",【別紙】関係法令の入力!D3=\"対象外\")),AND(【別紙】関係法令の入力!D4=\"はい\",OR(【別紙】関係法令の入力!D5=\"はい\",【別紙】関係法令の入力!D5=\"対象外\")),AND(【別紙】関係法令の入力!D6=\"はい\",OR(【別紙】関係法令の入力!D7=\"はい\",【別紙】関係法令の入力!D7=\"対象外\")),AND(【別紙】関係法令の入力!D8=\"はい\",OR(【別紙】関係法令の入力!D9=\"はい\",【別紙】関係法令の入力!D9=\"対象外\")),AND(【別紙】関係法令の入力!D10=\"はい\",OR(【別紙】関係法令の入力!D11=\"はい\",【別紙】関係法令の入力!D11=\"対象外\")),AND(【別紙】関係法令の入力!D12=\"はい\",OR(【別紙】関係法令の入力!D13=\"はい\",【別紙】関係法令の入力!D13=\"対象外\"))),\"✓\",\"\")))","v":""},"無",null,null,"無",null,null,null,{"$f":"IF(【別紙】関係法令の入力!D5=\"はい\",\"✓\",\"\")","v":""},"②","森林法",{"$f":"IF(OR($F229=\"✓\",$F231=\"✓\"),Z$11,\"\")","v":"合同会社メガソーラー菅原　　○○支店　技術部　　技術部長　　菅原　拓一"},{"$f":"IF(OR($F229=\"✓\",$F231=\"✓\"),AA$11,\"\")","v":"合同会社メガソーラー菅原　電気主任技術者　　菅原　拓三"},{"$f":"IF(OR(U229<>\"\",U230<>\"\",U231<>\"\"),\"ＯＫ\",\"規格番号の明記が無い\")","v":"ＯＫ"},"規格番号の明記があること"]
[null,null,null,null,null,null,null,null,null,null,null,null,null,null,null,null,null,null,null,null,null,null,{"$f":"IF(【別紙】関係法令の入力!D7=\"はい\",\"✓\",\"\")","v":""},"③","地すべり等防止法",null,null,{"$f":"IF(AND(W235<>\"\",W235<>\"不適合\"),\"ＯＫ\",\"備考欄の説明書きが無い、もしくは不適合がある\")","v":"ＯＫ"},"備考欄の説明書きがあること"]
[null,null,null,null,null,null,null,null,null,null,null,null,null,null,null,null,null,null,null,null,null,null,{"$f":"IF(【別紙】関係法令の入力!D9=\"はい\",\"✓\",\"\")","v":""},"④","宅地造成及び特定盛土等規制法",null,null,{"$f":"IF(Z231<>\"\",\"ＯＫ\",\"設置者の確認が無い\")","v":"ＯＫ"},"設置者の確認があること。関係法令の確認が無い場合には設置者の氏名は出てこない"]
[null,null,null,null,null,null,null,null,null,null,null,null,null,null,null,null,null,null,null,null,null,null,{"$f":"IF(【別紙】関係法令の入力!D11=\"はい\",\"✓\",\"\")","v":""},"⑤","急傾斜地の崩壊により災害の防止に関する法律",{"$f":"IF($Z$15=\"\",\"\",$Z$15)","v":""},null,{"$f":"IF(【届出書】入力!C223=\"事業用（自家用もしくは電気事業用）\",IF(AA231<>\"\",\"ＯＫ\",\"主任技術者の確認が無い\"),\"ＯＫ\")","v":"ＯＫ"},"主任技術者の確認があること（小規模事業用はスルーでＯＫ）"]
[null,null,"判定基準","関係許可を要する行為が当該関係許可を受けたところに従って行われていること。",null,null,null,null,null,null,null,null,null,null,null,null,null,null,null,null,null,null,{"$f":"IF(AND(【別紙】関係法令の入力!D3=\"対象外\",【別紙】関係法令の入力!D5=\"対象外\",【別紙】関係法令の入力!D7=\"対象外\",【別紙】関係法令の入力!D9=\"対象外\",【別紙】関係法令の入力!D11=\"対象外\"),IF(OR(【別紙】機械関係の入力!D2=\"屋根（屋上含む）\",【別紙】機械関係の入力!D2=\"カーポート\"),\"設置形態が\"&【別紙】機械関係の入力!D2&\"のため、関係許可を要する行為に該当しないと判断した。\",IF(【別紙】関係法令の入力!D15<>\"\",【別紙】関係法令の入力!D15&\"へ確認結果、①～⑤のいずれも許可不要であることを確認した。\",\"不適合\")),IF(AND(【別紙】関係法令の入力!D15<>\"\",【別紙】関係法令の入力!D19<>\"\",OR(W230=\"✓\",W231=\"✓\",W232=\"✓\",W233=\"✓\",W234=\"✓\")),【別紙】関係法令の入力!D19&\"の許可を受けて工事を実施した。\",\"不適合\"))","v":"設置形態が屋根（屋上含む）のため、関係許可を要する行為に該当しないと判断した。"},null,null,{"$f":"IF($Z$16=\"\",\"\",\"委託先の氏名、住所、電話番号、メールアドレスは番号１に同じ。\")","v":""},null,{"$f":"IF(【届出書】入力!C223=\"小規模事業用\",IF(AND(Z234<>\"\",Z235<>\"\"),\"ＯＫ\",\"委託先の確認が無い\"),\"ＯＫ\")","v":"ＯＫ"},"委託先の確認があること（事業用はスルーでＯＫ）"]
[null,null,"（１）","この欄は、現地試験が困難で工場作動試験結果等の記録による確認で代替する場合には「無」とすること。"]
[null,null,"（２）","この欄には、使用前自己確認を実施した者及び主任技術者の氏名。"]

{"sheet":"【別紙】電気関係の入力","index":7,"n_rows":27,"n_cols":5,"rows_kept":27,"cut":false,"hidden":false,"merged":[]}
["【別紙：電気関係】",null,null,"↓実際に行った内容を黄色の部分へ入力してください。","説明"]
[null,"１０　接地抵抗","測定を行った結果、判定は合ですか","はい","接地抵抗は土壌の状況によって変動するため、現地検査の実施が必須となります。"]
[null,null,"接地方法","単独接地"]
[null,null,"当該設備と既設接地極・網との導通試験を測定の代替としましたか","はい","連接接地法及びﾒｯｼｭ接地法により接地され、変更の工事の場合のみ。設置の工事(ﾀﾌﾞ【届出書】入力にて新設)の場合は測定が必須のため､ はい は不適合です。"]
[null,null,"【メッシュ接地のみ】測定方法はどのようなものですか"]
[null,"１１　絶縁抵抗","測定を行った結果、判定は合ですか","はい","新設であれば施工不良、変更であれば経年劣化の可能性があるため、現地検査の実施が必須となります。"]
[null,null,"絶縁抵抗測定が困難のため、漏れ電流測定にて代替しましたか","いいえ","小規模事業用電気工作物のみ、代替可能です。"]
[null,null,null,{"$f":"IF(AND(【届出書】入力!C2=\"事業用（自家用もしくは電気事業用）\",D7=\"はい\"),\"事業用の場合、漏れ電流測定による絶縁抵抗測定の代替はできません。\",\"\")","v":""}]
[null,"１２　絶縁耐力","【電路】絶縁耐力試験を現地で行いましたか。","はい","印加する電圧の違い（技術基準に規定する試験電圧or常規対地電圧）はありますが、現地試験の実施は必須です。"]
[null,null,"【電路】技術基準に規定する試験電圧の１０分間印加はどこで行いましたか。","現地","技術基準に規定する試験電圧を１０分間印加する必要があります。"]
[null,null,"【電路】常規対地電圧（≠技術基準に規定する試験電圧）を１０分間印加しましたか。","いいえ","技術基準に規定する試験電圧の１０分間印加を現地で行った場合は　いいえ　としてください。"]
[null,null,null,{"$f":"IF(OR(D9<>\"はい\",D10=\"現地と工場のいずれも未実施\"),\"技術基準を満たす絶縁耐力試験ではないため、不適合\",IF(OR(AND(D10=\"現地\",D11=\"いいえ\"),AND(D10=\"工場\",D11=\"はい\")),\"\",IF(AND(D10=\"現地\",D11=\"はい\"),\"試験電圧と常規対地電圧の両方を印加したこととなっており、一般的な現地試験では考えにくいものとなっております。\",\"技術基準を満たす絶縁耐力試験ではないため、不適合\")))","v":""}]
[null,null,"パネル１枚の開放電圧は何ボルトですか",52.79,"Ｖ（ボルト）単位を入力してください。単位は入力不要です。複数種類の電圧が有る場合、最大のもの１つを入力してください。"]
[null,null,"開放電圧が最大となるモジュールの直列数",16,"複数種類の直列数が有る場合、最大のもの１つを入力してください。"]
[null,null,"【電力変換装置】１５００Ｖ以下の直流電路に敷設しましたか",{"$f":"IF(発電方式に関する説明書!C14<=1500,\"はい\",\"いいえ\")","v":"はい"},"ＰＣＳに繋がる太陽電池について、１パネルの開放電圧×開放電圧が最大となるモジュールの直列数≦１５００Ｖ"]
[null,null,"【電力変換装置】JEC-2470(2017)「7.2」の交流耐電圧試験による絶縁耐力を有していますか","はい"]
[null,null,"【電力変換装置】常規対地電圧を１０分間印加しましたか","はい","技術基準に規定する試験電圧の１０分間印加を行った場合は　いいえ　としてください。"]
[null,null,null,{"$f":"IF(AND(D15=\"はい\",D16=\"はい\",D17=\"はい\"),\"逆変換装置は電技解釈第１６条第６項第５号に基づく絶縁耐力試験を工場試験記録により確認するとともに常規対地電圧を印加する現地試験が可能です。\",\"技術基準に規定する試験電圧の印加が必要です。\")","v":"逆変換装置は電技解釈第１６条第６項第５号に基づく絶縁耐力試験を工場試験記録により確認するとともに常規対地電圧を印加する現地試験が可能です。"}]
[null,null,"【電力変換装置】技術基準に規定する試験電圧を１０分間印加しましたか","いいえ","常規対地電圧の１０分間印加を行った場合は　いいえ　としてください。"]
[null,null,null,{"$f":"IF(AND(D17=\"はい\",D19=\"はい\"),\"通常やらない\",\"\")","v":""},"１５００Ｖを超える直流電路に敷設した場合、試験電圧＝最大使用電圧(=使用電圧×1.15/1.1)×１．５　の必要があります。"]
[null,null,"【モジュール】使用電圧は低圧ですか。",{"$f":"IF(発電方式に関する説明書!C14<=750,\"はい\",\"いいえ\")","v":"いいえ"},"低圧は交流６００Ｖ以下もしくは直流７５０Ｖ以下ですが、モジュールは直流７５０Ｖ以下を確認してください。"]
[null,null,"【モジュール】JISC8918(2013)「7.1」又はJISC8939(2013)「7.1」に適合していますか","はい"]
[null,null,"電気設備の技術基準を定める省令第５８条の絶縁性能を有していますか","はい","LSやCBで区切るごとに、対地電圧150V以下:0.1MΩ以上、その他の300V以下:0.2MΩ以上、300Vを超えるもの:0.4MΩ以上"]
[null,null,null,{"$f":"IF(AND(D21=\"はい\",D22=\"はい\",D23=\"はい\"),\"モジュールは現地の絶縁耐力試験が省略可能です。\",\"モジュールは現地の絶縁耐力試験が必要です。\")","v":"モジュールは現地の絶縁耐力試験が必要です。"}]
[null,null,"【モジュール】現地の絶縁耐力試験および試験後の絶縁抵抗測定を省略しましたか。","いいえ","「いいえ」の場合、　試験電圧＝最大使用電圧×１．５（500V未満は500V）　の必要があります。"]
[null,null,null,null,"最大使用電圧＝使用電圧×１．１５（1.15は､使用電圧＞1000Vでは1.15/1.1）"]
[null,null,"【規格】電技解釈第１４条から第１６条に登場する規格以外で使用したものがあれば記載ください。","JISC61215","複数有る場合は「、」で区切って記載ください。"]

{"sheet":"【別紙】電気関係の入力②","index":8,"n_rows":24,"n_cols":5,"rows_kept":24,"cut":false,"hidden":false,"merged":[]}
["【別紙：電気関係②】",null,null,"↓実際に行った内容を黄色の部分へ入力してください。","説明"]
[null,"１３　保護装置","現地試験の結果、判定は合ですか","はい"]
[null,null,"逆変換装置が電技解釈第３３条に適合することを示す第三者認証を取得していますか","はい","小規模事業用電気工作物の場合のみ"]
[null,null,"漏電遮断器が施設されていますか","はい","小規模事業用電気工作物の場合のみ"]
[null,null,null,{"$f":"IF(AND(【届出書】入力!C2=\"小規模事業用\",D3=\"はい\",D4=\"はい\"),\"逆変換装置は現地試験の省略が可能です。\",\"\")","v":""}]
[null,"１４　遮断器関係","ガスや油、空気といった流体を使用していますか","いいえ","環境上の配慮より、主流は　いいえ　です。（ガス：地球温暖化、油：火災、水質汚濁、空気：騒音）"]
[null,"１５　総合ｲﾝﾀｰﾛｯｸ","現地試験の結果、判定は合ですか","はい","現地試験は必須です。"]
[null,"１６　制御電源","現地試験の結果、判定は合ですか","はい","現地試験は必須です。"]
[null,null,"保護装置試験、総合ｲﾝﾀｰﾛｯｸ試験又は負荷遮断試験と併せて行いましたか","いいえ","負荷遮断試験は現地で行うものに限ります。"]
[null,null,"逆変換装置が判定基準に適合することを示す第三者認証を取得していますか","はい","小規模事業用電気工作物の場合のみ"]
[null,null,"逆変換装置が判定基準に適合することを示す第三者認証の名称を入力してください。","JEC-2470(2017)(JEC-2470(2018)にて追補)","小規模事業用電気工作物の場合のみ、逆変換装置が第三者認証を取得して現地試験を省略する場合は明記ください。"]
[null,null,null,{"$f":"IF(AND(【届出書】入力!C2=\"小規模事業用\",D10=\"はい\",D11<>\"\"),\"認証された項目は現地試験の省略が可能です。\",\"\")","v":""}]
[null,null,"工場試験の結果から判断して支障ないと認められる場合は記録により確認しましたか","はい","小規模事業用電気工作物の場合のみ"]
[null,null,null,{"$f":"IF(AND(【届出書】入力!C2=\"小規模事業用\",D13=\"はい\"),\"認証された項目は現地試験の省略が可能です。\",\"\")","v":""}]
[null,"１７　負荷遮断","現地試験の結果、判定は合ですか","はい","現地試験は必須です。"]
[null,null,"すべての負荷において遮断試験は実施できましたか","はい","１つ下にて　はい　とされた場合、　いいえ　としてください。"]
[null,null,"1/4負荷､2/4負荷､3/4負荷､4/4負荷のいずれかができなかった場合、\n工場試験記録により問題ないことを確認しましたか","いいえ","１つ上にて　はい　とされた場合、　いいえ　としてください。全部ができないのは駄目です。"]
[null,"１８　遠隔監視制御","現地試験の結果、判定は合ですか","対象外","遠隔監視があれば、現地試験を実施する必要があります。工場試験記録やその他記録による確認はありません。"]
[null,"１９　負荷試験","現地試験の結果、判定は合ですか","はい","モジュールおよび逆変換装置は一部省略可能ですが、電路の現地試験は必須です。"]
[null,null,"電技解釈第２０条に基づき温度上昇試験を実施したことを確認できたものを使用しましたか","はい","日本電気規格委員会「電気機械器具の熱的強度の確認方法」JESC E7002(2015)"]
[null,null,null,{"$f":"IF(D20=\"はい\",\"負荷試験の現地試験の省略が可能です。\",\"負荷試験の現地試験が必要です。\")","v":"負荷試験の現地試験の省略が可能です。"}]
[null,null,"JEC-2470(2017)(JEC-2470(2018)にて追補)に基づく温度上昇試験を実施したことを\n確認できた逆変換装置を使用していますか","はい"]
[null,null,null,{"$f":"IF(D22=\"はい\",\"負荷試験の現地試験の省略が可能です。\",\"負荷試験の現地試験が必要です。\")","v":"負荷試験の現地試験の省略が可能です。"}]
[null,null,"負荷試験の現地試験の省略が可能な場合において、現地試験を省略しましたか","はい"]

{"sheet":"【別紙】関係法令の入力","index":9,"n_rows":19,"n_cols":5,"rows_kept":19,"cut":false,"hidden":false,"merged":[]}
["【別紙：関係法令】",null,null,"↓実際に行った内容を黄色の部分へ入力してください。"]
[null,"２０　関係法令","砂防法第４条の規定に該当するか確認しましたか","はい"]
[null,null,"砂防法第４条の規定による許可を受けましたか","対象外"]
[null,null,"森林法第１０条の２第１項に該当するか確認しましたか","はい"]
[null,null,"森林法第１０条の２第１項の許可を受けましたか","対象外"]
[null,null,"地すべり等防止法第１８条第１項又は同法第４２条第１項に該当するか確認しましたか","はい"]
[null,null,"地すべり等防止法第１８条第１項又は同法第４２条第１項の許可を受けましたか","対象外"]
[null,null,"宅地造成及び特定盛土等規制法第１２条第１項又は第３０条第１項に該当するか確認しましたか","はい"]
[null,null,"宅地造成及び特定盛土等規制法第１２条第１項又は第３０条第１項の許可を受けましたか","対象外"]
[null,null,"急傾斜地の崩壊による災害の防止に関する法律第７条第１項に該当するか確認しましたか","はい"]
[null,null,"急傾斜地の崩壊による災害の防止に関する法律第７条第１項の許可を受けましたか","対象外"]
[null,null,"土砂災害警戒区域等における土砂災害防止対策の推進に関する法律第７条第１項の規定により指定された土砂災害警戒区域に該当するか確認しましたか","はい"]
[null,null,"土砂災害警戒区域等における土砂災害防止対策の推進に関する法律第７条第１項の許可を受けましたか","対象外"]
[]
[null,null,"０設置形態が屋根（屋上含む）もしくはカーポートではないとき、許可行為の確認先","○○県□□部◇◇課","土地の開発行為が生じるため､自治体始め担当部署へ確認が必要です。○○県□□部◇◇課のように記載ください。"]
[null,null,null,null,"確認先が複数有る場合には「、」で区切って記載ください。"]
[null,null,null,null,"砂防法、森林法、地すべり等防止法、宅地造成及び特定盛土等規制法、急傾斜地の崩壊により災害の防止に関する法律"]
[null,null,null,null,"の対象を確認した部署を記入してください。相手先の部署に異動の可能性があるため、担当者名は記載不要です。"]
[null,null,"【許可を受けた場合のみ】許可した自治体名を記載してください。","○○県"]

{"sheet":"地形図","index":10,"n_rows":32,"n_cols":1,"rows_kept":32,"cut":false,"hidden":false,"merged":[]}
["注意）地形図・平面図・断面図は記載例です。このまま印刷するものではありません。作成をお願いいたします。"]
[]
["◇地形図（記載例）"]
[]
[]
[]
[]
[]
[]
[]
[]
[]
[]
[]
[]
[]
[]
[]
[]
[]
[]
[]
[]
[]
[]
[]
[]
[]
[]
["（必要事項）"]
["　・標高がわかることや著作権上の問題が無いことから、国土地理院の電子地図の使用を推奨します。"]
["　・発電所の設置場所が地形図の中心にあることを確認し、印刷後に発電所部分に印（該当部を色付けする等）をお願いいたします。"]

{"sheet":"平面図","index":11,"n_rows":31,"n_cols":1,"rows_kept":31,"cut":false,"hidden":false,"merged":[]}
["注意）地形図・平面図・断面図は記載例です。このまま印刷するものではありません。作成をお願いいたします。"]
[]
["◇平面図（記載例）"]
[]
[]
[]
[]
[]
[]
[]
[]
[]
[]
[]
[]
[]
[]
[]
[]
[]
[]
[]
[]
[]
[]
[]
["（必要事項）"]
["　・設計時に作成されたパネル配置図（平面図）や保安規程の使用区域図を転用するのも可です。"]
["　・設計時と完成時に変更されている場合は完成時の図面を使用してください。"]
["　・パネルの配列（配列数及び回路数）が分かるようにしてください。図⾯内の空白部に記載するなど補足をお願いいたします。"]
["　・野立て（地上、傾斜地）や水上の場合、さく、へい等（施錠、立入禁止表⽰含む）が施設されていることがわかるようにしてください。"]

{"sheet":"断面図","index":12,"n_rows":24,"n_cols":11,"rows_kept":24,"cut":false,"hidden":false,"merged":[[17,0,17,4],[17,5,17,9],[17,10,17,13]]}
["注意）地形図・平面図・断面図は記載例です。このまま印刷するものではありません。作成をお願いいたします。"]
[]
["◇断面図（記載例）"]
[]
[]
[]
[]
[]
[]
[]
[]
[]
[]
[]
[]
[]
[]
["例：野立て",null,null,null,null,"例：屋根置き",null,null,null,null,"例：営農型"]
[]
["（必要事項）"]
["　・設計時に作成された断面図を転用するのも可です。"]
["　・設計時と完成時に変更されている場合は完成時の図面を使用してください。"]
["　・地上面（ＧＬ）からの高さ、支持物、太陽電池モジュール及び高さが記載されている図面"]
["　・屋根置きの場合は、地上面及び屋根面から太陽電池モジュールまでの高さが分かるようにしてください。"]

{"sheet":"発電方式に関する説明書","index":13,"n_rows":14,"n_cols":8,"rows_kept":14,"cut":false,"hidden":false,"merged":[[9,2,9,4],[10,2,10,4],[11,2,11,4],[12,2,12,4],[1,0,1,5],[4,2,4,5],[5,2,5,5],[6,2,6,5],[7,2,7,5],[8,2,8,4]]}
[null,null,null,null,null,null,null,{"$f":"IF(OR(C6=\"\",C8=\"\",C9=\"\",C10=\"\",C11=\"\",C12=\"\",C13=\"\"),\"記載不足や不適合の項目が見られ、印刷不可\",\"印刷ＯＫ\")","v":"印刷ＯＫ"}]
["発電方式に関する説明書"]
[null,null,null,null,null,null,null,"黄色いセルの入力をお願いいたします。"]
["発電所の概要及びシステム構成"]
[null,"設置方法",{"$f":"IF(【別紙】機械関係の入力!D2=\"\",\"\",【別紙】機械関係の入力!D2)","v":"屋根（屋上含む）"}]
[null,"供給形態","自家消費"]
[null,"供給先の設備",{"$f":"【別紙】確認者の入力!D2","v":"事業用（自家用もしくは電気事業用）"}]
[null,"種類","単結晶シリコン"]
[null,"出力",39.549999999999997,null,null,"W"]
[null,"開放電圧",{"$f":"【別紙】電気関係の入力!D13","v":52.79},null,null,"V"]
[null,"短絡電流",0.1,null,null,"A"]
[null,"モジュールの個数",100,null,null,"枚"]
[null,"開放電圧が最大となるモジュールの直列数",{"$f":"【別紙】電気関係の入力!D14","v":16},null,null,"枚"]
[null,"開放電圧×直列数",{"$f":"IF($C$10*C13=0,0,$C$10*$C$13)","v":844.64},{"$f":"IF($C$14<=750,\"≦\",\">\")","v":">"},750,"V"]

{"sheet":"添付書類一覧","index":14,"n_rows":48,"n_cols":15,"rows_kept":48,"cut":false,"hidden":true,"merged":[[43,1,45,1],[43,2,43,4],[43,8,45,11],[46,1,48,1],[46,2,46,4],[46,8,48,11],[37,1,39,1],[37,2,37,4],[37,8,39,11],[40,1,42,1],[40,2,40,4],[40,8,42,11],[29,1,33,1],[29,8,33,11],[30,2,30,4],[34,1,36,1],[34,2,34,4],[34,8,36,11],[8,1,10,1],[8,5,10,11],[11,1,13,1],[11,5,13,11],[14,1,28,1],[14,8,16,11],[17,11,19,11],[20,2,20,4],[20,11,22,11],[23,11,25,11],[26,11,28,11],[0,1,1,11],[2,1,4,1],[2,2,4,4],[2,5,4,11],[5,1,7,1],[5,5,7,11]]}
[null,"使用前自己確認結果確認届出書添付書類一覧",null,null,null,null,null,null,null,null,null,null,{"$f":"IF(AND(AND(M19<>\"未確認のため不適合\",M22<>\"未確認のため不適合\",M25<>\"未確認のため不適合\",M28<>\"未確認のため不適合\"),AND(M32<>\"未確認のため不適合\",M32<>\"許可を受けていないため不適合\"),AND(M36<>\"未確認のため不適合\",M36<>\"許可を受けていないため不適合\"),AND(M39<>\"未確認のため不適合\",M39<>\"許可を受けていないため不適合\"),AND(M42<>\"未確認のため不適合\",M42<>\"許可を受けていないため不適合\"),AND(M45<>\"未確認のため不適合\",M45<>\"許可を受けていないため不適合\"),AND(M48<>\"未確認のため不適合\",M48<>\"許可を受けていないため不適合\")),\"印刷ＯＫ\",\"記載不足や不適合の項目が見られ、印刷不可\")","v":"印刷ＯＫ"}]
[]
[null,"添付書類名","必須",null,null,"条件により添付必要"]
[]
[null,null,null,null,null,null,null,null,null,null,null,null,null,"【別紙】関係法令の入力　再掲"]
[null,"発電所の概要を明示した地形図",null,null,null,"－",null,null,null,null,null,null,null,"砂防法第４条の規定に該当するか確認しましたか",{"$f":"IF(【別紙】関係法令の入力!D2=\"\",\"\",【別紙】関係法令の入力!D2)","v":"はい"}]
[null,null,null,"✓",null,null,null,null,null,null,null,null,null,"砂防法第４条の規定による許可を受けましたか",{"$f":"IF(【別紙】関係法令の入力!D3=\"\",\"\",【別紙】関係法令の入力!D3)","v":"対象外"}]
[null,null,null,null,null,null,null,null,null,null,null,null,null,"森林法第１０条の２第１項に該当するか確認しましたか",{"$f":"IF(【別紙】関係法令の入力!D4=\"\",\"\",【別紙】関係法令の入力!D4)","v":"はい"}]
[null,"主要設備の配置の状況を明示した平面図及び断面図",null,null,null,"－",null,null,null,null,null,null,null,"森林法第１０条の２第１項の許可を受けましたか",{"$f":"IF(【別紙】関係法令の入力!D5=\"\",\"\",【別紙】関係法令の入力!D5)","v":"対象外"}]
[null,null,null,"✓",null,null,null,null,null,null,null,null,null,"地すべり等防止法第１８条第１項又は同法第４２条第１項に該当するか確認しましたか",{"$f":"IF(【別紙】関係法令の入力!D6=\"\",\"\",【別紙】関係法令の入力!D6)","v":"はい"}]
[null,null,null,null,null,null,null,null,null,null,null,null,null,"地すべり等防止法第１８条第１項又は同法第４２条第１項の許可を受けましたか",{"$f":"IF(【別紙】関係法令の入力!D7=\"\",\"\",【別紙】関係法令の入力!D7)","v":"対象外"}]
[null,"発電方式に関する説明書",null,null,null,"－",null,null,null,null,null,null,null,"宅地造成及び特定盛土等規制法第１２条第１項又は第３０条第１項に該当するか確認しましたか",{"$f":"IF(【別紙】関係法令の入力!D8=\"\",\"\",【別紙】関係法令の入力!D8)","v":"はい"}]
[null,null,null,"✓",null,null,null,null,null,null,null,null,null,"宅地造成及び特定盛土等規制法第１２条第１項又は第３０条第１項の許可を受けましたか",{"$f":"IF(【別紙】関係法令の入力!D9=\"\",\"\",【別紙】関係法令の入力!D9)","v":"対象外"}]
[null,null,null,null,null,null,null,null,null,null,null,null,null,"急傾斜地の崩壊による災害の防止に関する法律第７条第１項に該当するか確認しましたか",{"$f":"IF(【別紙】関係法令の入力!D10=\"\",\"\",【別紙】関係法令の入力!D10)","v":"はい"}]
[null,"支持物の構造図及び強度計算書",null,null,null,null,null,null,"以下区域に設置する場合に添付が必要（該当するものにチェック）",null,null,null,null,"急傾斜地の崩壊による災害の防止に関する法律第７条第１項の許可を受けましたか",{"$f":"IF(【別紙】関係法令の入力!D11=\"\",\"\",【別紙】関係法令の入力!D11)","v":"対象外"}]
[null,null,null,null,null,null,null,null,null,null,null,null,null,"土砂災害警戒区域等における土砂災害防止対策の推進に関する法律第７条第１項の規定により指定された土砂災害警戒区域に該当するか確認しましたか",{"$f":"IF(【別紙】関係法令の入力!D12=\"\",\"\",【別紙】関係法令の入力!D12)","v":"はい"}]
[null,null,null,null,null,null,null,null,null,null,null,null,null,"土砂災害警戒区域等における土砂災害防止対策の推進に関する法律第７条第１項の許可を受けましたか",{"$f":"IF(【別紙】関係法令の入力!D13=\"\",\"\",【別紙】関係法令の入力!D13)","v":"対象外"}]
[null,null,null,null,null,null,null,null,null,null,null,"・砂防法（明治30年法律第29号）第二条の規定により指定された砂防指定地"]
[null,null,null,null,null,null,null,null,null,{"$f":"IF(AND(別紙!W230=\"✓\",M19=\"該当あり\"),\"✓\",\"\")","v":""},null,null,{"$f":"IF(OR(O6=\"\",O6=\"いいえ\"),\"未確認のため不適合\",IF(O7=\"はい\",\"該当あり\",\"該当なし\"))","v":"該当なし"}]
[]
[null,null,"該当なし",null,null,null,null,null,null,null,null,"・地すべり等防止法（昭和33年法律第30号）第三条第一項の規定により指定された地すべり防止区域"]
[null,null,null,{"$f":"IF(G22=\"✓\",\"\",\"✓\")","v":"✓"},null,null,{"$f":"IF(OR(J19=\"✓\",J22=\"✓\",J25=\"✓\",J28=\"✓\"),\"✓\",\"\")","v":""},null,null,{"$f":"IF(AND(別紙!W232=\"✓\",M22=\"該当あり\"),\"✓\",\"\")","v":""},null,null,{"$f":"IF(OR(O10=\"\",O10=\"いいえ\"),\"未確認のため不適合\",IF(O11=\"はい\",\"該当あり\",\"該当なし\"))","v":"該当なし"}]
[]
[null,null,null,null,null,null,null,null,null,null,null,"・急傾斜地の崩壊による災害の防止に関する法律（昭和44年7月1日法律第57号）第三条の規定により指定された急傾斜地崩壊危険区域"]
[null,null,null,null,null,null,null,null,null,{"$f":"IF(AND(別紙!W234=\"✓\",M25=\"該当あり\"),\"✓\",\"\")","v":""},null,null,{"$f":"IF(OR(O14=\"\",O14=\"いいえ\"),\"未確認のため不適合\",IF(O15=\"はい\",\"該当あり\",\"該当なし\"))","v":"該当なし"}]
[]
[null,null,null,null,null,null,null,null,null,null,null,"・土砂災害警戒区域等における土砂災害防止対策の推進に関する法律（平成十二年法律第五十七号）第七条第一項の規定により指定された土砂災害警戒区域"]
[null,null,null,null,null,null,null,null,null,{"$f":"IF(AND(OR(【別紙】関係法令の入力!D12=\"いいえ\",OR(【別紙】関係法令の入力!D13=\"はい\",【別紙】関係法令の入力!D13=\"いいえ\")),M28=\"該当あり\"),\"✓\",\"\")","v":""},null,null,{"$f":"IF(OR(O16=\"\",O16=\"いいえ\"),\"未確認のため不適合\",IF(O17=\"はい\",\"該当あり\",\"該当なし\"))","v":"該当なし"}]
[]
[null,"当該区域内の急傾斜地（急傾斜地の崩壊による災害の防止に関する法律第二条第一項に規定するものをいう。）の崩壊の防止措置に関する説明書",null,null,null,null,null,null,"急傾斜地崩壊危険区域内において行う制限工事に係る場合は添付が必要"]
[null,null,"該当なし"]
[null,null,null,{"$f":"IF(G32=\"✓\",\"\",\"✓\")","v":"✓"},null,null,{"$f":"IF(AND(別紙!W234=\"✓\",O15=\"はい\",M32=\"ＯＫ\"),\"✓\",\"\")","v":""},null,null,null,null,null,{"$f":"IF(OR(O14=\"\",O14=\"いいえ\"),\"未確認のため不適合\",IF(O15=\"いいえ\",\"許可を受けていないため不適合\",\"ＯＫ\"))","v":"ＯＫ"}]
[]
[]
[null,"許可を受けたところに従って行われたことを示す書類","該当なし",null,null,null,null,null,"砂防法（明治30年法律第29号）第四条（同法第三条において準用する場合を含む。）の規定による許可"]
[null,null,null,{"$f":"IF(G36=\"✓\",\"\",\"✓\")","v":"✓"},null,null,{"$f":"IF(AND(別紙!W230=\"✓\",O7=\"はい\",M36=\"ＯＫ\"),\"✓\",\"\")","v":""},null,null,null,null,null,{"$f":"IF(OR(O6=\"\",O6=\"いいえ\"),\"未確認のため不適合\",IF(O7=\"いいえ\",\"許可を受けていないため不適合\",\"ＯＫ\"))","v":"ＯＫ"}]
[]
[null,"許可を受けたところに従って行われたことを示す書類","該当なし",null,null,null,null,null,"森林法（昭和26年法律第249号）第十条の二第一項の許可"]
[null,null,null,{"$f":"IF(G39=\"✓\",\"\",\"✓\")","v":"✓"},null,null,{"$f":"IF(AND(別紙!W231=\"✓\",O9=\"はい\",M39=\"ＯＫ\"),\"✓\",\"\")","v":""},null,null,null,null,null,{"$f":"IF(OR(O8=\"\",O8=\"いいえ\"),\"未確認のため不適合\",IF(O9=\"いいえ\",\"許可を受けていないため不適合\",\"ＯＫ\"))","v":"ＯＫ"}]
[]
[null,"許可を受けたところに従って行われたことを示す書類","該当なし",null,null,null,null,null,"地すべり等防止法（昭和33年法律第30号）第十八条第一項又は同法第四十二条第一項の許可"]
[null,null,null,{"$f":"IF(G42=\"✓\",\"\",\"✓\")","v":"✓"},null,null,{"$f":"IF(AND(別紙!W232=\"✓\",O11=\"はい\",M42=\"ＯＫ\"),\"✓\",\"\")","v":""},null,null,null,null,null,{"$f":"IF(OR(O10=\"\",O10=\"いいえ\"),\"未確認のため不適合\",IF(O11=\"いいえ\",\"許可を受けていないため不適合\",\"ＯＫ\"))","v":"ＯＫ"}]
[]
[null,"宅地造成及び特定盛土等規制法第十七条第二項又は第三十六条第二項の規定により交付された検査済証の写し","該当なし",null,null,null,null,null,"宅地造成及び特定盛土等規制法（昭和36年法律第191号）第十二条第一項又は第三十条第一項の許可"]
[null,null,null,{"$f":"IF(G45=\"✓\",\"\",\"✓\")","v":"✓"},null,null,{"$f":"IF(AND(別紙!W233=\"✓\",O13=\"はい\",M45=\"ＯＫ\"),\"✓\",\"\")","v":""},null,null,null,null,null,{"$f":"IF(OR(O12=\"\",O12=\"いいえ\"),\"未確認のため不適合\",IF(O13=\"いいえ\",\"許可を受けていないため不適合\",\"ＯＫ\"))","v":"ＯＫ"}]
[]
[null,"許可を受けたところに従って行われたことを示す書類","該当なし",null,null,null,null,null,"急傾斜地の崩壊による災害の防止に関する法律（昭和44年法律第57号）第七条第一項の許可"]
[null,null,null,{"$f":"IF(G48=\"✓\",\"\",\"✓\")","v":"✓"},null,null,{"$f":"IF(AND(別紙!W234=\"✓\",O15=\"はい\",M48=\"ＯＫ\"),\"✓\",\"\")","v":""},null,null,null,null,null,{"$f":"IF(OR(O14=\"\",O14=\"いいえ\"),\"未確認のため不適合\",IF(O15=\"いいえ\",\"許可を受けていないため不適合\",\"ＯＫ\"))","v":"ＯＫ"}]